Workbook

Sheet Start
G2: Risk Dashboard Interactive Tool
G3: =+'Reference Dates'!$C$4 -> Q12023 Data
E4: Please enable macros to ensure the correct functioning of the tool
O5: List showing in Dropdown menu | P5: RI number | Q5: RI Code | R5: Name for tables - change if needs to be different from dropdown names | T5: Tables name for dropdown
O6: Tier 1 capital ratio | P6: 1 | Q6: SVC_1 | R6: Tier 1 capital ratio | T6: Assets
B7: Choose a Risk Indicator: | E7: RI Number (*) | G7: RI Code | O7: Total capital ratio | P7: 2 | Q7: SVC_2 | R7: Total capital ratio | T7: Loans Composition
B8: Tier 1 capital ratio | E8: =IFERROR(VLOOKUP(B8,$O$6:$Q$27,2,0),"") -> 1 | G8: =IFERROR(VLOOKUP(B8,$O$6:$Q$27,3,0),"") -> SVC_1 | O8: CET1 ratio | P8: 3 | Q8: SVC_3 | R8: CET1 ratio | T8: Loans NPL and coverage ratio
O9: CET1 ratio (fully loaded) | P9: 4 | Q9: SVC_29 | R9: CET1 ratio (fully loaded) | T9: NACE composition
B10: Choose a set of Tables from the statistical Annex: | O10: Leverage ratio | P10: 5 | Q10: SVC_13 | R10: Leverage ratio (transitional definition of Tier 1) | T10: NPL ratio by NACE
B11: Assets | I11: =IFERROR((LEFT($B$11,FIND(" ",$B$11)-1)),$B$11) -> Assets | O11: Leverage ratio (fully phased-in definition of Tier 1) | P11: 6 | Q11: SVC_12 | R11: Leverage ratio (fully phased-in definition of Tier 1) | T11: RE and Construction Exposures
O12: Ratio of non-performing loans and advances (NPL ratio) | P12: 7 | Q12: AQT_3.2 | R12: Ratio of non-performing loans and advances (NPL ratio) | T12: IFRS9
O13: Coverage ratio of non-performing loans and advances | P13: 8 | Q13: AQT_41.2 | R13: Coverage ratio of non-performing loans and advances | T13: Sovereigns
O14: Forbearance ratio for loans and advances | P14: 9 | Q14: AQT_42.2 | R14: Forbearance ratio for loans and advances | T14: Liabilities
B15: (*) In order of appearance in the Risk Dashboard | O15: Ratio of non-performing exposures (NPE ratio) | P15: 10 | Q15: AQT_3.1 | R15: Ratio of non-performing exposures (NPE ratio) | T15: Liquidity
O16: Return on equity | P16: 11 | Q16: PFT_21 | R16: Return on equity | T16: Own funds and RWA
O17: Return on assets | P17: 12 | Q17: PFT_24 | R17: Return on assets | T17: Profitability
O18: Cost to income ratio | P18: 13 | Q18: PFT_23 | R18: Cost to income ratio
O19: Net interest income to total net operating income | P19: 14 | Q19: PFT_25 | R19: Net interest income to total net operating income
O20: Net fee and commission income to total net operating income | P20: 15 | Q20: PFT_26 | R20: Net fee and commission income to total net operating income
O21: Net trading income to total net operating income | P21: 16 | Q21: PFT_29 | R21: Net trading income to total net operating income
O22: Net interest margin | P22: 17 | Q22: PFT_41 | R22: Net interest margin
O23: Cost of Risk | P23: 18 | Q23: PFT_43 | R23: Cost of Risk
O24: Loan-to-deposit ratio for households and non-financial corporations | P24: 19 | Q24: FND_32 | R24: Loan-to-deposit ratio for households and non-financial corporations
O25: Asset encumbrance ratio | P25: 20 | Q25: FND_33 | R25: Asset encumbrance ratio
O26: Liquidity coverage ratio (%) | P26: 21 | Q26: LIQ_17 | R26: Liquidity coverage ratio (%)
O27: Net Stable Funding Ratio | P27: 22 | Q27: LIQ_20 | R27: Net Stable Funding Ratio

Sheet Charts
B2: =$AR$21 -> Solvency
B3: =AM21&" - "&$AO$20 -> 1 - Tier 1 capital ratio
B4: Due to the automation of this file, charts axis are not scaled as in the booklet version. User may need to manually adjust it.
B5: Dispersion | J5: Numerator and denominator: trends
B7: 5th and 95th pct, interquartile range and median. | J7: =IF(AK21="PFT_43","Total numerator and denominator. 2018Q1=100.","Total numerator and denominator. "& IF(NOT(ISNA($AS$25)), YEAR($AM$25), IF(NOT(ISNA($AS$26)), YEAR($AM$26), IF(NOT(ISNA($AS$27)), YEAR($AM$27), IF(NOT(ISNA($AS$29)), YEAR($AM$29), IF(NOT(ISNA(#REF!)), YEAR($AM$30),IF(NOT(ISNA($AS$31)), YEAR($AM$31),IF(NOT(ISNA($AS$32)), YEAR($AM$32),IF(NOT(ISNA($AS$33)), YEAR($AM$33),IF(NOT(ISNA($AS$34)), YEAR($AM$34),IF(NOT(ISNA($AS$35)), YEAR($AM$35),IF(NOT(ISNA($AS$36)), YEAR($AM$36),YEAR($AM$37)))))))))))) &"Q"& IF(NOT(ISNA($AS$25)),ROUNDUP(MONTH($AM$25)/3,0), IF(NOT(ISNA($AS$26)),ROUNDUP(MONTH($AM$26)/3,0), IF(NOT(ISNA($AS$27)), ROUNDUP(MONTH($AM$27)/3,0), IF(NOT(ISNA($AS$29)), ROUNDUP(MONTH($AM$29)/3,0),NOT(ISNA($AS$30)))))) &" = 100.") -> Total numerator and denominator. 2020Q2 = 100.
B9: ="Country dispersion (as of "& YEAR(MAX(AM25:AM46))&" Q"&(ROUNDUP((MONTH(MAX(AM25:AM46))/3),0))&")" -> Country dispersion (as of 2023 Q1) | J9: KRI by size class
B11: ( * ) Not reported. Weighted Averages by country. | J11: ="Weighted average. Banks are classified in the size class according to the their average total assets between 2014Q4 and "&YEAR(MAX(AM25:AM46))&"Q"&(ROUNDUP(MONTH(MAX(AM25:AM46))/3,0))&IF(AN49="Y",". Non-FINREP banks are assigned to the bucket of small banks.",". ") -> Weighted average. Banks are classified in the size class according to the their average total assets between 2014Q4 and 2023Q1.
B14: Period | E14: Weighted average | H14: 25th percentile | K14: 50th percentile | N14: 75th percentile
C16: =AM25 -> 2020-06-01 | F16: =IF(AND(YEAR(C16)<2018,$AK$21="PFT_43"),"",IFERROR(VLOOKUP($C16,$AM$25:$BB$43,8,FALSE), "")) -> 0.1630563226 | I16: =IF(AND(YEAR(C16)<2018,$AK$21="PFT_43"),"",IFERROR(VLOOKUP($C16,$AM$25:$BB$43,5,FALSE), "")) -> 0.1479937941 | L16: =IF(AND(YEAR(C16)<2018,$AK$21="PFT_43"),"",IFERROR(VLOOKUP($C16,$AM$25:$BB$43,6,FALSE), "")) -> 0.1696146986 | O16: =IF(AND(YEAR(C16)<2018,$AK$21="PFT_43"),"",IFERROR(VLOOKUP($C16,$AM$25:$BB$43,9,FALSE), "")) -> 0.2011049692
C17: =AM26 -> 2020-09-01 | F17: 0.1671962406 | I17: 0.1529035899 | L17: 0.172888396 | O17: 0.2052266468
C18: =AM27 -> 2020-12-01 | F18: 0.1719856936 | I18: 0.1583604907 | L18: 0.1803584264 | O18: 0.212919732
C19: =AM29 -> 2021-03-01 | F19: 0.1705110613 | I19: 0.1574664782 | L19: 0.1802804216 | O19: 0.2109595522
C20: 2021-06-01 | F20: 0.1708387971 | I20: 0.1559383138 | L20: 0.1760116964 | O20: 0.2125969098 | AN20: dashboard name | AO20: =VLOOKUP($AM$21*1,List!$A$3:$M$24,8,FALSE) -> Tier 1 capital ratio
C21: 2021-09-01 | F21: 0.1700204526 | I21: 0.1555245461 | L21: 0.1754100082 | O21: 0.2129016755 | AK21: =VLOOKUP($AM$21*1,List!$A$3:$F$24,6,0) -> SVC_1 | AM21: =Start!E8 -> 1 | AN21: =VLOOKUP($AM$21*1,List!$A$3:$F$24,4,0) -> 1 | AO21: =VLOOKUP($AM$21*1,List!$A$3:$E$24,5,0) -> Tier 1 capital ratio | AP21: =VLOOKUP($AM$21*1,List!$A$3:$K$24,11,FALSE) -> 0 | AR21: =VLOOKUP($AM$21*1,List!$A$3:$M$24,13,FALSE) -> Solvency
C22: 2021-12-01 | F22: 0.171238519 | I22: 0.1577615238 | L22: 0.179593877 | O22: 0.2132876528 | AT22: WA
C23: 2022-03-01 | F23: 0.1642323349 | I23: 0.1529304941 | L23: 0.1694540415 | O23: 0.2011821022 | AP23: 5 | AQ23: 6 | AR23: 7 | AS23: 8 | AT23: 9 | AU23: 10 | AV23: 11 | AW23: 14 | AX23: 15 | AY23: Dispersion chart | BD23: 12 | BE23: 13 | BJ23: 16
C24: 2022-06-01 | F24: 0.1646277697 | I24: 0.1500821115 | L24: 0.1711790317 | O24: 0.20361911 | AL24: =+'Reference Dates'!$C$6 -> 2023-03-31 | AP24: 5^ pct | AQ24: First quartile | AR24: Median | AS24: Average | AT24: All banks | AU24: Third quartile | AV24: 95^ pct | AW24: Small | AX24: Medium | AY24: Q1 | AZ24: Q1 Neg | BA24: Q2 | BB24: Q3 | BC24: 5pct | BD24: 95 pct | BE24: Numeratir | BF24: Denominator | BG24: =VLOOKUP($AN$21,List!$D:$L,6,0) -> Tier 1 capital | BH24: =VLOOKUP($AN$21,List!$D:$L,7,0) -> Total risk exposure amount | BI24: Quarter | BJ24: Large
C25: 2022-09-01 | F25: 0.1629132408 | I25: 0.1496346017 | L25: 0.1685548993 | O25: 0.2033308191 | AK25: 1 | AL25: =(+AN25)*1 -> 202006 | AM25: =+'Reference Dates'!$C$7 -> 2020-06-01 | AN25: =+IF(MONTH(AM25)=12,YEAR(AM25)&MONTH(AM25),YEAR(AM25)&0&MONTH(AM25)) -> 202006 | AO25: =CONCATENATE($AO$21,AN25) -> Tier 1 capital ratio202006 | AP25: =VLOOKUP($AO25,Data!$A$1:$P$688,Charts!AP$23,FALSE) -> 0.1330936645 | AQ25: =VLOOKUP($AO25,Data!$A$1:$P$688,Charts!AQ$23,FALSE) -> 0.1479937941 | AR25: =VLOOKUP($AO25,Data!$A$1:$P$688,Charts!AR$23,FALSE) -> 0.1696146986 | AS25: =VLOOKUP($AO25,Data!$A$1:$P$688,Charts!AS$23,FALSE) -> 0.2065639391 | AT25: =VLOOKUP($AO25,Data!$A$1:$P$688,Charts!AT$23,FALSE) -> 0.1630563226 | AU25: =VLOOKUP($AO25,Data!$A$1:$P$688,Charts!AU$23,FALSE) -> 0.2011049692 | AV25: =VLOOKUP($AO25,Data!$A$1:$P$688,Charts!AV$23,FALSE) -> 0.3597325392 | AW25: =VLOOKUP($AO25,Data!$A$1:$P$688,Charts!AW$23,FALSE) -> 0.2094157884 | AX25: =VLOOKUP($AO25,Data!$A$1:$P$688,Charts!AX$23,FALSE) -> 0.1727319161 | AY25: =IF(AQ25<0,0,AQ25) -> 0.1479937941 | AZ25: =IF(AQ25<0,AQ25,0) -> 0 | BA25: =AR25-AY25 -> 0.02162090451 | BB25: =AU25-AR25 -> 0.0314902706 | BC25: =AQ25-AP25 -> 0.01490012965 | BD25: =AV25-AU25 -> 0.1586275699 | BE25: =VLOOKUP($AO25,Data!$A$1:$P$688,BD$23,FALSE) -> 1.340712269e+12 | BF25: =VLOOKUP($AO25,Data!$A$1:$P$688,BE$23,FALSE) -> 8.334492365e+12 | BG25: =IFERROR(IF($AP$21=0,BE25/BE$25*100,(100*(BE25*12/$BI25)/BE$25)),IFERROR(IF($AP$21=0, BE25/BE$26*100, 100*(BE25*12/$BI25)/BE$26), IFERROR(IF($AP$21=0, BE25/BE$27*100, 100*(BE25*12/$BI25)/BE$27),IFERROR(IF($AP$21=0, BE25/BE$29*100, 100*(BE25*12/$BI25)/BE$29), IFERROR(IF($AP$21=0, BE25/BE$30*100, 100*(BE25*12/$BI25)/BE$30),IFERROR(IF($AP$21=0, BE25/BE$31*100, 100*(BE25*12/$BI25)/#REF!),IFERROR(IF($AP$21=0, BE25/BE$32*100, 100*(BE25*12/$BI25)/BE$32),IFERROR(IF($AP$21=0, BE25/BE$32*100, 100*(BE25*12/$BI25)/BE$32),IFERROR(IF($AP$21=0, BE25/BE$33*100, 100*(BE25*12/$BI25)/BE$33),IFERROR(IF($AP$21=0, BE25/BE$34*100, 100*(BE25*12/$BI25)/BE$34),IF($AP$21=0, BE25/BE$35*100, 100*(BE25*12/$BI25)/BE$35))))))))))) -> 100 | BH25: =IFERROR(IF($AP$21=0,BF25/BF$25*100,(100*(BF25*12/$BI25)/BF$25)),IFERROR(IF($AP$21=0, BF25/BF$26*100, 100*(BF25*12/$BI25)/BF$26), IFERROR(IF($AP$21=0, BF25/BF$27*100, 100*(BF25*12/$BI25)/BF$27),IFERROR(IF($AP$21=0, BF25/BF$29*100, 100*(BF25*12/$BI25)/BF$29), IFERROR(IF($AP$21=0, BF25/BF$30*100, 100*(BF25*12/$BI25)/BF$30),IFERROR(IF($AP$21=0, BF25/BF$31*100, 100*(BF25*12/$BI25)/#REF!),IFERROR(IF($AP$21=0, BF25/BF$32*100, 100*(BF25*12/$BI25)/BF$32),IFERROR(IF($AP$21=0, BF25/BF$32*100, 100*(BF25*12/$BI25)/BF$32),IFERROR(IF($AP$21=0, BF25/BF$33*100, 100*(BF25*12/$BI25)/BF$33),IFERROR(IF($AP$21=0, BF25/BF$34*100, 100*(BF25*12/$BI25)/BF$34),IF($AP$21=0, BF25/BF$35*100, 100*(BF25*12/$BI25)/BF$35))))))))))) -> 100 | BI25: =MONTH(AM25) -> 6 | BJ25: =VLOOKUP($AO25,Data!$A$1:$P$688,Charts!BJ$23,FALSE) -> 0.1591440286
C26: =AM36 -> 2022-12-01 | F26: 0.1691842667 | I26: 0.1572875931 | L26: 0.1799127332 | O26: 0.2064656841 | AL26: 202009 | AM26: =IF(AM25<$AL$24,+DATE(YEAR(AM25),MONTH(AM25)+3,DAY(AM25)),"") -> 2020-09-01 | AN26: =+IF(MONTH(AM26)=12,YEAR(AM26)&MONTH(AM26),YEAR(AM26)&0&MONTH(AM26)) -> 202009 | AO26: =CONCATENATE($AO$21,AN26) -> Tier 1 capital ratio202009 | AP26: =VLOOKUP($AO26,Data!$A$1:$P$688,Charts!AP$23,FALSE) -> 0.1338801773 | AQ26: =VLOOKUP($AO26,Data!$A$1:$P$688,Charts!AQ$23,FALSE) -> 0.1529035899 | AR26: =VLOOKUP($AO26,Data!$A$1:$P$688,Charts!AR$23,FALSE) -> 0.172888396 | AS26: =VLOOKUP($AO26,Data!$A$1:$P$688,Charts!AS$23,FALSE) -> 0.2147456218 | AT26: =VLOOKUP($AO26,Data!$A$1:$P$688,Charts!AT$23,FALSE) -> 0.1671962406 | AU26: =VLOOKUP($AO26,Data!$A$1:$P$688,Charts!AU$23,FALSE) -> 0.2052266468 | AV26: =VLOOKUP($AO26,Data!$A$1:$P$688,Charts!AV$23,FALSE) -> 0.4015620238 | AW26: =VLOOKUP($AO26,Data!$A$1:$P$688,Charts!AW$23,FALSE) -> 0.2242047587 | AX26: =VLOOKUP($AO26,Data!$A$1:$P$688,Charts!AX$23,FALSE) -> 0.1768927122 | AY26: =IF(AQ26<0,0,AQ26) -> 0.1529035899 | AZ26: =IF(AQ26<0,AQ26,0) -> 0 | BA26: =AR26-AY26 -> 0.01998480614 | BB26: =AU26-AR26 -> 0.0323382508 | BC26: =AQ26-AP26 -> 0.01902341254 | BD26: =AV26-AU26 -> 0.196335377 | BE26: =VLOOKUP($AO26,Data!$A$1:$P$688,BD$23,FALSE) -> 1.350994898e+12 | BF26: =VLOOKUP($AO26,Data!$A$1:$P$688,BE$23,FALSE) -> 8.216783772e+12 | BG26: =IFERROR(IF($AP$21=0,BE26/BE$25*100,(100*(BE26*12/$BI26)/BE$25)),IFERROR(IF($AP$21=0, BE26/BE$26*100, 100*(BE26*12/$BI26)/BE$26), IFERROR(IF($AP$21=0, BE26/BE$27*100, 100*(BE26*12/$BI26)/BE$27),IFERROR(IF($AP$21=0, BE26/BE$29*100, 100*(BE26*12/$BI26)/BE$29), IFERROR(IF($AP$21=0, BE26/BE$30*100, 100*(BE26*12/$BI26)/BE$30),IFERROR(IF($AP$21=0, BE26/BE$31*100, 100*(BE26*12/$BI26)/#REF!),IFERROR(IF($AP$21=0, BE26/BE$32*100, 100*(BE26*12/$BI26)/BE$32),IFERROR(IF($AP$21=0, BE26/BE$32*100, 100*(BE26*12/$BI26)/BE$32),IFERROR(IF($AP$21=0, BE26/BE$33*100, 100*(BE26*12/$BI26)/BE$33),IFERROR(IF($AP$21=0, BE26/BE$34*100, 100*(BE26*12/$BI26)/BE$34),IF($AP$21=0, BE26/BE$35*100, 100*(BE26*12/$BI26)/BE$35))))))))))) -> 100.7669527 | BH26: =IFERROR(IF($AP$21=0,BF26/BF$25*100,(100*(BF26*12/$BI26)/BF$25)),IFERROR(IF($AP$21=0, BF26/BF$26*100, 100*(BF26*12/$BI26)/BF$26), IFERROR(IF($AP$21=0, BF26/BF$27*100, 100*(BF26*12/$BI26)/BF$27),IFERROR(IF($AP$21=0, BF26/BF$29*100, 100*(BF26*12/$BI26)/BF$29), IFERROR(IF($AP$21=0, BF26/BF$30*100, 100*(BF26*12/$BI26)/BF$30),IFERROR(IF($AP$21=0, BF26/BF$31*100, 100*(BF26*12/$BI26)/#REF!),IFERROR(IF($AP$21=0, BF26/BF$32*100, 100*(BF26*12/$BI26)/BF$32),IFERROR(IF($AP$21=0, BF26/BF$32*100, 100*(BF26*12/$BI26)/BF$32),IFERROR(IF($AP$21=0, BF26/BF$33*100, 100*(BF26*12/$BI26)/BF$33),IFERROR(IF($AP$21=0, BF26/BF$34*100, 100*(BF26*12/$BI26)/BF$34),IF($AP$21=0, BF26/BF$35*100, 100*(BF26*12/$BI26)/BF$35))))))))))) -> 98.58769332 | BI26: 9 | BJ26: =VLOOKUP($AO26,Data!$A$1:$P$688,Charts!BJ$23,FALSE) -> 0.1629261148
C27: =AM37 -> 2023-03-01 | F27: 0.1718189022 | I27: 0.1554563893 | L27: 0.17917808 | O27: 0.207391871 | AL27: 202012 | AM27: =IF(AM26<$AL$24,+DATE(YEAR(AM26),MONTH(AM26)+3,DAY(AM26)),"") -> 2020-12-01 | AN27: 202012 | AO27: Tier 1 capital ratio202012 | AP27: =VLOOKUP($AO27,Data!$A$1:$P$688,Charts!AP$23,FALSE) -> 0.1378822295 | AQ27: =VLOOKUP($AO27,Data!$A$1:$P$688,Charts!AQ$23,FALSE) -> 0.1583604907 | AR27: =VLOOKUP($AO27,Data!$A$1:$P$688,Charts!AR$23,FALSE) -> 0.1803584264 | AS27: =VLOOKUP($AO27,Data!$A$1:$P$688,Charts!AS$23,FALSE) -> 0.2341510742 | AT27: =VLOOKUP($AO27,Data!$A$1:$P$688,Charts!AT$23,FALSE) -> 0.1719856936 | AU27: =VLOOKUP($AO27,Data!$A$1:$P$688,Charts!AU$23,FALSE) -> 0.212919732 | AV27: =VLOOKUP($AO27,Data!$A$1:$P$688,Charts!AV$23,FALSE) -> 0.3869305403 | AW27: =VLOOKUP($AO27,Data!$A$1:$P$688,Charts!AW$23,FALSE) -> 0.2225914599 | AX27: =VLOOKUP($AO27,Data!$A$1:$P$688,Charts!AX$23,FALSE) -> 0.1825294659 | AY27: 0.1583604907 | AZ27: 0 | BA27: 0.02199793567 | BB27: 0.03256130555 | BC27: 0.0204782612 | BD27: 0.1740108083 | BE27: =VLOOKUP($AO27,Data!$A$1:$P$688,BD$23,FALSE) -> 1.400614667e+12 | BF27: =VLOOKUP($AO27,Data!$A$1:$P$688,BE$23,FALSE) -> 8.280401043e+12 | BG27: =IFERROR(IF($AP$21=0,BE27/BE$25*100,(100*(BE27*12/$BI27)/BE$25)),IFERROR(IF($AP$21=0, BE27/BE$26*100, 100*(BE27*12/$BI27)/BE$26), IFERROR(IF($AP$21=0, BE27/BE$27*100, 100*(BE27*12/$BI27)/BE$27),IFERROR(IF($AP$21=0, BE27/BE$29*100, 100*(BE27*12/$BI27)/BE$29), IFERROR(IF($AP$21=0, BE27/BE$30*100, 100*(BE27*12/$BI27)/BE$30),IFERROR(IF($AP$21=0, BE27/BE$31*100, 100*(BE27*12/$BI27)/#REF!),IFERROR(IF($AP$21=0, BE27/BE$32*100, 100*(BE27*12/$BI27)/BE$32),IFERROR(IF($AP$21=0, BE27/BE$32*100, 100*(BE27*12/$BI27)/BE$32),IFERROR(IF($AP$21=0, BE27/BE$33*100, 100*(BE27*12/$BI27)/BE$33),IFERROR(IF($AP$21=0, BE27/BE$34*100, 100*(BE27*12/$BI27)/BE$34),IF($AP$21=0, BE27/BE$35*100, 100*(BE27*12/$BI27)/BE$35))))))))))) -> 104.4679533 | BH27: =IFERROR(IF($AP$21=0,BF27/BF$25*100,(100*(BF27*12/$BI27)/BF$25)),IFERROR(IF($AP$21=0, BF27/BF$26*100, 100*(BF27*12/$BI27)/BF$26), IFERROR(IF($AP$21=0, BF27/BF$27*100, 100*(BF27*12/$BI27)/BF$27),IFERROR(IF($AP$21=0, BF27/BF$29*100, 100*(BF27*12/$BI27)/BF$29), IFERROR(IF($AP$21=0, BF27/BF$30*100, 100*(BF27*12/$BI27)/BF$30),IFERROR(IF($AP$21=0, BF27/BF$31*100, 100*(BF27*12/$BI27)/#REF!),IFERROR(IF($AP$21=0, BF27/BF$32*100, 100*(BF27*12/$BI27)/BF$32),IFERROR(IF($AP$21=0, BF27/BF$32*100, 100*(BF27*12/$BI27)/BF$32),IFERROR(IF($AP$21=0, BF27/BF$33*100, 100*(BF27*12/$BI27)/BF$33),IFERROR(IF($AP$21=0, BF27/BF$34*100, 100*(BF27*12/$BI27)/BF$34),IF($AP$21=0, BF27/BF$35*100, 100*(BF27*12/$BI27)/BF$35))))))))))) -> 99.35099441 | BI27: 12 | BJ27: =VLOOKUP($AO27,Data!$A$1:$P$688,Charts!BJ$23,FALSE) -> 0.1676008302
B29: From Q1 2020 onwards, EU aggregates no longer include figures for UK banks and they include data for subsidiaries of UK banks in EU countries. The EBA Risk Dashboard does not include data from Norwegian nor Liechtensteiner banks from June 2021 to March 2022 due to the implementation of the reporting framework based on CRR2/CRD5 taking place only in Q2 2022. | AL29: 202103 | AM29: =IF(AM27<$AL$24,+DATE(YEAR(AM27),MONTH(AM27)+3,DAY(AM27)),"") -> 2021-03-01 | AN29: 202103 | AO29: Tier 1 capital ratio202103 | AP29: =VLOOKUP($AO29,Data!$A$1:$P$688,Charts!AP$23,FALSE) -> 0.1374039246 | AQ29: =VLOOKUP($AO29,Data!$A$1:$P$688,Charts!AQ$23,FALSE) -> 0.1574664782 | AR29: =VLOOKUP($AO29,Data!$A$1:$P$688,Charts!AR$23,FALSE) -> 0.1802804216 | AS29: =VLOOKUP($AO29,Data!$A$1:$P$688,Charts!AS$23,FALSE) -> 0.2300475893 | AT29: =VLOOKUP($AO29,Data!$A$1:$P$688,Charts!AT$23,FALSE) -> 0.1705110613 | AU29: =VLOOKUP($AO29,Data!$A$1:$P$688,Charts!AU$23,FALSE) -> 0.2109595522 | AV29: =VLOOKUP($AO29,Data!$A$1:$P$688,Charts!AV$23,FALSE) -> 0.3839784168 | AW29: =VLOOKUP($AO29,Data!$A$1:$P$688,Charts!AW$23,FALSE) -> 0.2092294243 | AX29: =VLOOKUP($AO29,Data!$A$1:$P$688,Charts!AX$23,FALSE) -> 0.1807681382 | AY29: 0.1574664782 | AZ29: 0 | BA29: 0.02281394334 | BB29: 0.03067913059 | BC29: 0.02006255361 | BD29: 0.1730188647 | BE29: =VLOOKUP($AO29,Data!$A$1:$P$688,BD$23,FALSE) -> 1.408307781e+12 | BF29: =VLOOKUP($AO29,Data!$A$1:$P$688,BE$23,FALSE) -> 8.401079179e+12 | BG29: =IFERROR(IF($AP$21=0,BE29/BE$25*100,(100*(BE29*12/$BI29)/BE$25)),IFERROR(IF($AP$21=0, BE29/BE$26*100, 100*(BE29*12/$BI29)/BE$26), IFERROR(IF($AP$21=0, BE29/BE$27*100, 100*(BE29*12/$BI29)/BE$27),IFERROR(IF($AP$21=0, BE29/BE$29*100, 100*(BE29*12/$BI29)/BE$29), IFERROR(IF($AP$21=0, BE29/BE$30*100, 100*(BE29*12/$BI29)/BE$30),IFERROR(IF($AP$21=0, BE29/BE$31*100, 100*(BE29*12/$BI29)/#REF!),IFERROR(IF($AP$21=0, BE29/BE$32*100, 100*(BE29*12/$BI29)/BE$32),IFERROR(IF($AP$21=0, BE29/BE$32*100, 100*(BE29*12/$BI29)/BE$32),IFERROR(IF($AP$21=0, BE29/BE$33*100, 100*(BE29*12/$BI29)/BE$33),IFERROR(IF($AP$21=0, BE29/BE$34*100, 100*(BE29*12/$BI29)/BE$34),IF($AP$21=0, BE29/BE$35*100, 100*(BE29*12/$BI29)/BE$35))))))))))) -> 105.0417613 | BH29: =IFERROR(IF($AP$21=0,BF29/BF$25*100,(100*(BF29*12/$BI29)/BF$25)),IFERROR(IF($AP$21=0, BF29/BF$26*100, 100*(BF29*12/$BI29)/BF$26), IFERROR(IF($AP$21=0, BF29/BF$27*100, 100*(BF29*12/$BI29)/BF$27),IFERROR(IF($AP$21=0, BF29/BF$29*100, 100*(BF29*12/$BI29)/BF$29), IFERROR(IF($AP$21=0, BF29/BF$30*100, 100*(BF29*12/$BI29)/BF$30),IFERROR(IF($AP$21=0, BF29/BF$31*100, 100*(BF29*12/$BI29)/#REF!),IFERROR(IF($AP$21=0, BF29/BF$32*100, 100*(BF29*12/$BI29)/BF$32),IFERROR(IF($AP$21=0, BF29/BF$32*100, 100*(BF29*12/$BI29)/BF$32),IFERROR(IF($AP$21=0, BF29/BF$33*100, 100*(BF29*12/$BI29)/BF$33),IFERROR(IF($AP$21=0, BF29/BF$34*100, 100*(BF29*12/$BI29)/BF$34),IF($AP$21=0, BF29/BF$35*100, 100*(BF29*12/$BI29)/BF$35))))))))))) -> 100.7989307 | BI29: 3 | BJ29: =VLOOKUP($AO29,Data!$A$1:$P$688,Charts!BJ$23,FALSE) -> 0.1664892727
AL30: 202106 | AM30: 2021-06-01 | AN30: 202106 | AO30: Tier 1 capital ratio202106 | AP30: =VLOOKUP($AO30,Data!$A$1:$P$688,Charts!AP$23,FALSE) -> 0.1321016093 | AQ30: =VLOOKUP($AO30,Data!$A$1:$P$688,Charts!AQ$23,FALSE) -> 0.1559383138 | AR30: =VLOOKUP($AO30,Data!$A$1:$P$688,Charts!AR$23,FALSE) -> 0.1760116964 | AS30: =VLOOKUP($AO30,Data!$A$1:$P$688,Charts!AS$23,FALSE) -> 0.2268626834 | AT30: =VLOOKUP($AO30,Data!$A$1:$P$688,Charts!AT$23,FALSE) -> 0.1708387971 | AU30: =VLOOKUP($AO30,Data!$A$1:$P$688,Charts!AU$23,FALSE) -> 0.2125969098 | AV30: =VLOOKUP($AO30,Data!$A$1:$P$688,Charts!AV$23,FALSE) -> 0.3374986853 | AW30: =VLOOKUP($AO30,Data!$A$1:$P$688,Charts!AW$23,FALSE) -> 0.2137318891 | AX30: =VLOOKUP($AO30,Data!$A$1:$P$688,Charts!AX$23,FALSE) -> 0.1809112372 | AY30: =IF(AQ30<0,0,AQ30) -> 0.1559383138 | AZ30: =IF(AQ30<0,AQ30,0) -> 0 | BA30: =AR30-AY30 -> 0.02007338259 | BB30: =AU30-AR30 -> 0.03658521341 | BC30: =AQ30-AP30 -> 0.02383670454 | BD30: =AV30-AU30 -> 0.1249017754 | BE30: =VLOOKUP($AO30,Data!$A$1:$P$688,BD$23,FALSE) -> 1.421979978e+12 | BF30: =VLOOKUP($AO30,Data!$A$1:$P$688,BE$23,FALSE) -> 8.437854529e+12 | BG30: =IFERROR(IF($AP$21=0,BE30/BE$25*100,(100*(BE30*12/$BI30)/BE$25)),IFERROR(IF($AP$21=0, BE30/BE$26*100, 100*(BE30*12/$BI30)/BE$26), IFERROR(IF($AP$21=0, BE30/BE$27*100, 100*(BE30*12/$BI30)/BE$27),IFERROR(IF($AP$21=0, BE30/BE$29*100, 100*(BE30*12/$BI30)/BE$29), IFERROR(IF($AP$21=0, BE30/BE$30*100, 100*(BE30*12/$BI30)/BE$30),IFERROR(IF($AP$21=0, BE30/BE$31*100, 100*(BE30*12/$BI30)/#REF!),IFERROR(IF($AP$21=0, BE30/BE$32*100, 100*(BE30*12/$BI30)/BE$32),IFERROR(IF($AP$21=0, BE30/BE$32*100, 100*(BE30*12/$BI30)/BE$32),IFERROR(IF($AP$21=0, BE30/BE$33*100, 100*(BE30*12/$BI30)/BE$33),IFERROR(IF($AP$21=0, BE30/BE$34*100, 100*(BE30*12/$BI30)/BE$34),IF($AP$21=0, BE30/BE$35*100, 100*(BE30*12/$BI30)/BE$35))))))))))) -> 106.0615324 | BH30: =IFERROR(IF($AP$21=0,BF30/BF$25*100,(100*(BF30*12/$BI30)/BF$25)),IFERROR(IF($AP$21=0, BF30/BF$26*100, 100*(BF30*12/$BI30)/BF$26), IFERROR(IF($AP$21=0, BF30/BF$27*100, 100*(BF30*12/$BI30)/BF$27),IFERROR(IF($AP$21=0, BF30/BF$29*100, 100*(BF30*12/$BI30)/BF$29), IFERROR(IF($AP$21=0, BF30/BF$30*100, 100*(BF30*12/$BI30)/BF$30),IFERROR(IF($AP$21=0, BF30/BF$31*100, 100*(BF30*12/$BI30)/#REF!),IFERROR(IF($AP$21=0, BF30/BF$32*100, 100*(BF30*12/$BI30)/BF$32),IFERROR(IF($AP$21=0, BF30/BF$32*100, 100*(BF30*12/$BI30)/BF$32),IFERROR(IF($AP$21=0, BF30/BF$33*100, 100*(BF30*12/$BI30)/BF$33),IFERROR(IF($AP$21=0, BF30/BF$34*100, 100*(BF30*12/$BI30)/BF$34),IF($AP$21=0, BF30/BF$35*100, 100*(BF30*12/$BI30)/BF$35))))))))))) -> 101.2401735 | BI30: 6 | BJ30: =VLOOKUP($AO30,Data!$A$1:$P$688,Charts!BJ$23,FALSE) -> 0.166679309
AL31: 202109 | AM31: 2021-09-01 | AN31: 202109 | AO31: Tier 1 capital ratio202109 | AP31: =VLOOKUP($AO31,Data!$A$1:$P$688,Charts!AP$23,FALSE) -> 0.1313591355 | AQ31: =VLOOKUP($AO31,Data!$A$1:$P$688,Charts!AQ$23,FALSE) -> 0.1555245461 | AR31: =VLOOKUP($AO31,Data!$A$1:$P$688,Charts!AR$23,FALSE) -> 0.1754100082 | AS31: =VLOOKUP($AO31,Data!$A$1:$P$688,Charts!AS$23,FALSE) -> 0.2242327135 | AT31: =VLOOKUP($AO31,Data!$A$1:$P$688,Charts!AT$23,FALSE) -> 0.1700204526 | AU31: =VLOOKUP($AO31,Data!$A$1:$P$688,Charts!AU$23,FALSE) -> 0.2129016755 | AV31: =VLOOKUP($AO31,Data!$A$1:$P$688,Charts!AV$23,FALSE) -> 0.3315302694 | AW31: =VLOOKUP($AO31,Data!$A$1:$P$688,Charts!AW$23,FALSE) -> 0.2092976959 | AX31: =VLOOKUP($AO31,Data!$A$1:$P$688,Charts!AX$23,FALSE) -> 0.1783230318 | AY31: 0.1555245461 | AZ31: 0 | BA31: 0.01988546214 | BB31: 0.03749166729 | BC31: 0.02416541054 | BD31: 0.1186285939 | BE31: =VLOOKUP($AO31,Data!$A$1:$P$688,BD$23,FALSE) -> 1.419469326e+12 | BF31: =VLOOKUP($AO31,Data!$A$1:$P$688,BE$23,FALSE) -> 8.459617568e+12 | BG31: =IFERROR(IF($AP$21=0,BE31/BE$25*100,(100*(BE31*12/$BI31)/BE$25)),IFERROR(IF($AP$21=0, BE31/BE$26*100, 100*(BE31*12/$BI31)/BE$26), IFERROR(IF($AP$21=0, BE31/BE$27*100, 100*(BE31*12/$BI31)/BE$27),IFERROR(IF($AP$21=0, BE31/BE$29*100, 100*(BE31*12/$BI31)/BE$29), IFERROR(IF($AP$21=0, BE31/BE$30*100, 100*(BE31*12/$BI31)/BE$30),IFERROR(IF($AP$21=0, BE31/BE$31*100, 100*(BE31*12/$BI31)/#REF!),IFERROR(IF($AP$21=0, BE31/BE$32*100, 100*(BE31*12/$BI31)/BE$32),IFERROR(IF($AP$21=0, BE31/BE$32*100, 100*(BE31*12/$BI31)/BE$32),IFERROR(IF($AP$21=0, BE31/BE$33*100, 100*(BE31*12/$BI31)/BE$33),IFERROR(IF($AP$21=0, BE31/BE$34*100, 100*(BE31*12/$BI31)/BE$34),IF($AP$21=0, BE31/BE$35*100, 100*(BE31*12/$BI31)/BE$35))))))))))) -> 105.8742699 | BH31: =IFERROR(IF($AP$21=0,BF31/BF$25*100,(100*(BF31*12/$BI31)/BF$25)),IFERROR(IF($AP$21=0, BF31/BF$26*100, 100*(BF31*12/$BI31)/BF$26), IFERROR(IF($AP$21=0, BF31/BF$27*100, 100*(BF31*12/$BI31)/BF$27),IFERROR(IF($AP$21=0, BF31/BF$29*100, 100*(BF31*12/$BI31)/BF$29), IFERROR(IF($AP$21=0, BF31/BF$30*100, 100*(BF31*12/$BI31)/BF$30),IFERROR(IF($AP$21=0, BF31/BF$31*100, 100*(BF31*12/$BI31)/#REF!),IFERROR(IF($AP$21=0, BF31/BF$32*100, 100*(BF31*12/$BI31)/BF$32),IFERROR(IF($AP$21=0, BF31/BF$32*100, 100*(BF31*12/$BI31)/BF$32),IFERROR(IF($AP$21=0, BF31/BF$33*100, 100*(BF31*12/$BI31)/BF$33),IFERROR(IF($AP$21=0, BF31/BF$34*100, 100*(BF31*12/$BI31)/BF$34),IF($AP$21=0, BF31/BF$35*100, 100*(BF31*12/$BI31)/BF$35))))))))))) -> 101.5012936 | BI31: 9 | BJ31: =VLOOKUP($AO31,Data!$A$1:$P$688,Charts!BJ$23,FALSE) -> 0.1663561325
AL32: 202112 | AM32: 2021-12-01 | AN32: 202112 | AO32: =CONCATENATE($AO$21,AN32) -> Tier 1 capital ratio202112 | AP32: =VLOOKUP($AO32,Data!$A$1:$P$688,Charts!AP$23,FALSE) -> 0.1317458173 | AQ32: =VLOOKUP($AO32,Data!$A$1:$P$688,Charts!AQ$23,FALSE) -> 0.1577615238 | AR32: =VLOOKUP($AO32,Data!$A$1:$P$688,Charts!AR$23,FALSE) -> 0.179593877 | AS32: =VLOOKUP($AO32,Data!$A$1:$P$688,Charts!AS$23,FALSE) -> 0.2326861063 | AT32: =VLOOKUP($AO32,Data!$A$1:$P$688,Charts!AT$23,FALSE) -> 0.171238519 | AU32: =VLOOKUP($AO32,Data!$A$1:$P$688,Charts!AU$23,FALSE) -> 0.2132876528 | AV32: =VLOOKUP($AO32,Data!$A$1:$P$688,Charts!AV$23,FALSE) -> 0.3393697998 | AW32: =VLOOKUP($AO32,Data!$A$1:$P$688,Charts!AW$23,FALSE) -> 0.200618934 | AX32: =VLOOKUP($AO32,Data!$A$1:$P$688,Charts!AX$23,FALSE) -> 0.1822171397 | AY32: =IF(AQ32<0,0,AQ32) -> 0.1577615238 | AZ32: =IF(AQ32<0,AQ32,0) -> 0 | BA32: =AR32-AY32 -> 0.02183235318 | BB32: =AU32-AR32 -> 0.03369377578 | BC32: =AQ32-AP32 -> 0.02601570653 | BD32: =AV32-AU32 -> 0.126082147 | BE32: =VLOOKUP($AO32,Data!$A$1:$P$688,BD$23,FALSE) -> 1.437363716e+12 | BF32: =VLOOKUP($AO32,Data!$A$1:$P$688,BE$23,FALSE) -> 8.485274219e+12 | BG32: =IFERROR(IF($AP$21=0,BE32/BE$25*100,(100*(BE32*12/$BI32)/BE$25)),IFERROR(IF($AP$21=0, BE32/BE$26*100, 100*(BE32*12/$BI32)/BE$26), IFERROR(IF($AP$21=0, BE32/BE$27*100, 100*(BE32*12/$BI32)/BE$27),IFERROR(IF($AP$21=0, BE32/BE$29*100, 100*(BE32*12/$BI32)/BE$29), IFERROR(IF($AP$21=0, BE32/BE$30*100, 100*(BE32*12/$BI32)/BE$30),IFERROR(IF($AP$21=0, BE32/BE$31*100, 100*(BE32*12/$BI32)/#REF!),IFERROR(IF($AP$21=0, BE32/BE$32*100, 100*(BE32*12/$BI32)/BE$32),IFERROR(IF($AP$21=0, BE32/BE$32*100, 100*(BE32*12/$BI32)/BE$32),IFERROR(IF($AP$21=0, BE32/BE$33*100, 100*(BE32*12/$BI32)/BE$33),IFERROR(IF($AP$21=0, BE32/BE$34*100, 100*(BE32*12/$BI32)/BE$34),IF($AP$21=0, BE32/BE$35*100, 100*(BE32*12/$BI32)/BE$35))))))))))) -> 107.2089626 | BH32: =IFERROR(IF($AP$21=0,BF32/BF$25*100,(100*(BF32*12/$BI32)/BF$25)),IFERROR(IF($AP$21=0, BF32/BF$26*100, 100*(BF32*12/$BI32)/BF$26), IFERROR(IF($AP$21=0, BF32/BF$27*100, 100*(BF32*12/$BI32)/BF$27),IFERROR(IF($AP$21=0, BF32/BF$29*100, 100*(BF32*12/$BI32)/BF$29), IFERROR(IF($AP$21=0, BF32/BF$30*100, 100*(BF32*12/$BI32)/BF$30),IFERROR(IF($AP$21=0, BF32/BF$31*100, 100*(BF32*12/$BI32)/#REF!),IFERROR(IF($AP$21=0, BF32/BF$32*100, 100*(BF32*12/$BI32)/BF$32),IFERROR(IF($AP$21=0, BF32/BF$32*100, 100*(BF32*12/$BI32)/BF$32),IFERROR(IF($AP$21=0, BF32/BF$33*100, 100*(BF32*12/$BI32)/BF$33),IFERROR(IF($AP$21=0, BF32/BF$34*100, 100*(BF32*12/$BI32)/BF$34),IF($AP$21=0, BF32/BF$35*100, 100*(BF32*12/$BI32)/BF$35))))))))))) -> 101.8091306 | BI32: =MONTH(AM32) -> 12 | BJ32: =VLOOKUP($AO32,Data!$A$1:$P$688,Charts!BJ$23,FALSE) -> 0.1674107181
AL33: 202203 | AM33: =IF(AM32<$AL$24,+DATE(YEAR(AM32),MONTH(AM32)+3,DAY(AM32)),"") -> 2022-03-01 | AN33: 202203 | AO33: Tier 1 capital ratio202203 | AP33: =VLOOKUP($AO33,Data!$A$1:$P$688,Charts!AP$23,FALSE) -> 0.1308507733 | AQ33: =VLOOKUP($AO33,Data!$A$1:$P$688,Charts!AQ$23,FALSE) -> 0.1529304941 | AR33: =VLOOKUP($AO33,Data!$A$1:$P$688,Charts!AR$23,FALSE) -> 0.1694540415 | AS33: =VLOOKUP($AO33,Data!$A$1:$P$688,Charts!AS$23,FALSE) -> 0.2201433792 | AT33: =VLOOKUP($AO33,Data!$A$1:$P$688,Charts!AT$23,FALSE) -> 0.1642323349 | AU33: =VLOOKUP($AO33,Data!$A$1:$P$688,Charts!AU$23,FALSE) -> 0.2011821022 | AV33: =VLOOKUP($AO33,Data!$A$1:$P$688,Charts!AV$23,FALSE) -> 0.357436876 | AW33: =VLOOKUP($AO33,Data!$A$1:$P$688,Charts!AW$23,FALSE) -> 0.2052423798 | AX33: =VLOOKUP($AO33,Data!$A$1:$P$688,Charts!AX$23,FALSE) -> 0.1765893988 | AY33: 0.1529304941 | AZ33: 0 | BA33: 0.01652354741 | BB33: 0.03172806073 | BC33: 0.02207972072 | BD33: 0.1562547738 | BE33: =VLOOKUP($AO33,Data!$A$1:$P$688,BD$23,FALSE) -> 1.411013002e+12 | BF33: =VLOOKUP($AO33,Data!$A$1:$P$688,BE$23,FALSE) -> 8.716665495e+12 | BG33: =IFERROR(IF($AP$21=0,BE33/BE$25*100,(100*(BE33*12/$BI33)/BE$25)),IFERROR(IF($AP$21=0, BE33/BE$26*100, 100*(BE33*12/$BI33)/BE$26), IFERROR(IF($AP$21=0, BE33/BE$27*100, 100*(BE33*12/$BI33)/BE$27),IFERROR(IF($AP$21=0, BE33/BE$29*100, 100*(BE33*12/$BI33)/BE$29), IFERROR(IF($AP$21=0, BE33/BE$30*100, 100*(BE33*12/$BI33)/BE$30),IFERROR(IF($AP$21=0, BE33/BE$31*100, 100*(BE33*12/$BI33)/#REF!),IFERROR(IF($AP$21=0, BE33/BE$32*100, 100*(BE33*12/$BI33)/BE$32),IFERROR(IF($AP$21=0, BE33/BE$32*100, 100*(BE33*12/$BI33)/BE$32),IFERROR(IF($AP$21=0, BE33/BE$33*100, 100*(BE33*12/$BI33)/BE$33),IFERROR(IF($AP$21=0, BE33/BE$34*100, 100*(BE33*12/$BI33)/BE$34),IF($AP$21=0, BE33/BE$35*100, 100*(BE33*12/$BI33)/BE$35))))))))))) -> 105.2435362 | BH33: =IFERROR(IF($AP$21=0,BF33/BF$25*100,(100*(BF33*12/$BI33)/BF$25)),IFERROR(IF($AP$21=0, BF33/BF$26*100, 100*(BF33*12/$BI33)/BF$26), IFERROR(IF($AP$21=0, BF33/BF$27*100, 100*(BF33*12/$BI33)/BF$27),IFERROR(IF($AP$21=0, BF33/BF$29*100, 100*(BF33*12/$BI33)/BF$29), IFERROR(IF($AP$21=0, BF33/BF$30*100, 100*(BF33*12/$BI33)/BF$30),IFERROR(IF($AP$21=0, BF33/BF$31*100, 100*(BF33*12/$BI33)/#REF!),IFERROR(IF($AP$21=0, BF33/BF$32*100, 100*(BF33*12/$BI33)/BF$32),IFERROR(IF($AP$21=0, BF33/BF$32*100, 100*(BF33*12/$BI33)/BF$32),IFERROR(IF($AP$21=0, BF33/BF$33*100, 100*(BF33*12/$BI33)/BF$33),IFERROR(IF($AP$21=0, BF33/BF$34*100, 100*(BF33*12/$BI33)/BF$34),IF($AP$21=0, BF33/BF$35*100, 100*(BF33*12/$BI33)/BF$35))))))))))) -> 104.5854398 | BI33: 3 | BJ33: =VLOOKUP($AO33,Data!$A$1:$P$688,Charts!BJ$23,FALSE) -> 0.1594123121
AL34: 202206 | AM34: =IF(AM33<$AL$24,+DATE(YEAR(AM33),MONTH(AM33)+3,DAY(AM33)),"") -> 2022-06-01 | AN34: 202206 | AO34: Tier 1 capital ratio202206 | AP34: =VLOOKUP($AO34,Data!$A$1:$P$688,Charts!AP$23,FALSE) -> 0.131848128 | AQ34: =VLOOKUP($AO34,Data!$A$1:$P$688,Charts!AQ$23,FALSE) -> 0.1500821115 | AR34: =VLOOKUP($AO34,Data!$A$1:$P$688,Charts!AR$23,FALSE) -> 0.1711790317 | AS34: =VLOOKUP($AO34,Data!$A$1:$P$688,Charts!AS$23,FALSE) -> 0.2153959226 | AT34: =VLOOKUP($AO34,Data!$A$1:$P$688,Charts!AT$23,FALSE) -> 0.1646277697 | AU34: =VLOOKUP($AO34,Data!$A$1:$P$688,Charts!AU$23,FALSE) -> 0.20361911 | AV34: =VLOOKUP($AO34,Data!$A$1:$P$688,Charts!AV$23,FALSE) -> 0.381161033 | AW34: =VLOOKUP($AO34,Data!$A$1:$P$688,Charts!AW$23,FALSE) -> 0.2032021766 | AX34: =VLOOKUP($AO34,Data!$A$1:$P$688,Charts!AX$23,FALSE) -> 0.1769712152 | AY34: 0.1500821115 | AZ34: 0 | BA34: 0.02109692016 | BB34: 0.0324400783 | BC34: 0.01823398354 | BD34: 0.177541923 | BE34: =VLOOKUP($AO34,Data!$A$1:$P$688,BD$23,FALSE) -> 1.417669196e+12 | BF34: =VLOOKUP($AO34,Data!$A$1:$P$688,BE$23,FALSE) -> 8.763526662e+12 | BG34: =IFERROR(IF($AP$21=0,BE34/BE$25*100,(100*(BE34*12/$BI34)/BE$25)),IFERROR(IF($AP$21=0, BE34/BE$26*100, 100*(BE34*12/$BI34)/BE$26), IFERROR(IF($AP$21=0, BE34/BE$27*100, 100*(BE34*12/$BI34)/BE$27),IFERROR(IF($AP$21=0, BE34/BE$29*100, 100*(BE34*12/$BI34)/BE$29), IFERROR(IF($AP$21=0, BE34/BE$30*100, 100*(BE34*12/$BI34)/BE$30),IFERROR(IF($AP$21=0, BE34/BE$31*100, 100*(BE34*12/$BI34)/#REF!),IFERROR(IF($AP$21=0, BE34/BE$32*100, 100*(BE34*12/$BI34)/BE$32),IFERROR(IF($AP$21=0, BE34/BE$32*100, 100*(BE34*12/$BI34)/BE$32),IFERROR(IF($AP$21=0, BE34/BE$33*100, 100*(BE34*12/$BI34)/BE$33),IFERROR(IF($AP$21=0, BE34/BE$34*100, 100*(BE34*12/$BI34)/BE$34),IF($AP$21=0, BE34/BE$35*100, 100*(BE34*12/$BI34)/BE$35))))))))))) -> 105.7400032 | BH34: =IFERROR(IF($AP$21=0,BF34/BF$25*100,(100*(BF34*12/$BI34)/BF$25)),IFERROR(IF($AP$21=0, BF34/BF$26*100, 100*(BF34*12/$BI34)/BF$26), IFERROR(IF($AP$21=0, BF34/BF$27*100, 100*(BF34*12/$BI34)/BF$27),IFERROR(IF($AP$21=0, BF34/BF$29*100, 100*(BF34*12/$BI34)/BF$29), IFERROR(IF($AP$21=0, BF34/BF$30*100, 100*(BF34*12/$BI34)/BF$30),IFERROR(IF($AP$21=0, BF34/BF$31*100, 100*(BF34*12/$BI34)/#REF!),IFERROR(IF($AP$21=0, BF34/BF$32*100, 100*(BF34*12/$BI34)/BF$32),IFERROR(IF($AP$21=0, BF34/BF$32*100, 100*(BF34*12/$BI34)/BF$32),IFERROR(IF($AP$21=0, BF34/BF$33*100, 100*(BF34*12/$BI34)/BF$33),IFERROR(IF($AP$21=0, BF34/BF$34*100, 100*(BF34*12/$BI34)/BF$34),IF($AP$21=0, BF34/BF$35*100, 100*(BF34*12/$BI34)/BF$35))))))))))) -> 105.1476956 | BI34: 6 | BJ34: =VLOOKUP($AO34,Data!$A$1:$P$688,Charts!BJ$23,FALSE) -> 0.1597764049
AL35: 202209 | AM35: 2022-09-01 | AN35: 202209 | AO35: Tier 1 capital ratio202209 | AP35: =VLOOKUP($AO35,Data!$A$1:$P$688,Charts!AP$23,FALSE) -> 0.1323149625 | AQ35: =VLOOKUP($AO35,Data!$A$1:$P$688,Charts!AQ$23,FALSE) -> 0.1496346017 | AR35: =VLOOKUP($AO35,Data!$A$1:$P$688,Charts!AR$23,FALSE) -> 0.1685548993 | AS35: =VLOOKUP($AO35,Data!$A$1:$P$688,Charts!AS$23,FALSE) -> 0.2303865208 | AT35: =VLOOKUP($AO35,Data!$A$1:$P$688,Charts!AT$23,FALSE) -> 0.1629132408 | AU35: =VLOOKUP($AO35,Data!$A$1:$P$688,Charts!AU$23,FALSE) -> 0.2033308191 | AV35: =VLOOKUP($AO35,Data!$A$1:$P$688,Charts!AV$23,FALSE) -> 0.3734115055 | AW35: =VLOOKUP($AO35,Data!$A$1:$P$688,Charts!AW$23,FALSE) -> 0.1961930258 | AX35: =VLOOKUP($AO35,Data!$A$1:$P$688,Charts!AX$23,FALSE) -> 0.174744698 | AY35: 0.1496346017 | AZ35: 0 | BA35: 0.0189202976 | BB35: 0.03477591983 | BC35: 0.01731963917 | BD35: 0.1700806864 | BE35: =VLOOKUP($AO35,Data!$A$1:$P$688,BD$23,FALSE) -> 1.413984998e+12 | BF35: =VLOOKUP($AO35,Data!$A$1:$P$688,BE$23,FALSE) -> 8.815503209e+12 | BG35: =IFERROR(IF($AP$21=0,BE35/BE$25*100,(100*(BE35*12/$BI35)/BE$25)),IFERROR(IF($AP$21=0, BE35/BE$26*100, 100*(BE35*12/$BI35)/BE$26), IFERROR(IF($AP$21=0, BE35/BE$27*100, 100*(BE35*12/$BI35)/BE$27),IFERROR(IF($AP$21=0, BE35/BE$29*100, 100*(BE35*12/$BI35)/BE$29), IFERROR(IF($AP$21=0, BE35/BE$30*100, 100*(BE35*12/$BI35)/BE$30),IFERROR(IF($AP$21=0, BE35/BE$31*100, 100*(BE35*12/$BI35)/#REF!),IFERROR(IF($AP$21=0, BE35/BE$32*100, 100*(BE35*12/$BI35)/BE$32),IFERROR(IF($AP$21=0, BE35/BE$32*100, 100*(BE35*12/$BI35)/BE$32),IFERROR(IF($AP$21=0, BE35/BE$33*100, 100*(BE35*12/$BI35)/BE$33),IFERROR(IF($AP$21=0, BE35/BE$34*100, 100*(BE35*12/$BI35)/BE$34),IF($AP$21=0, BE35/BE$35*100, 100*(BE35*12/$BI35)/BE$35))))))))))) -> 105.4652091 | BH35: =IFERROR(IF($AP$21=0,BF35/BF$25*100,(100*(BF35*12/$BI35)/BF$25)),IFERROR(IF($AP$21=0, BF35/BF$26*100, 100*(BF35*12/$BI35)/BF$26), IFERROR(IF($AP$21=0, BF35/BF$27*100, 100*(BF35*12/$BI35)/BF$27),IFERROR(IF($AP$21=0, BF35/BF$29*100, 100*(BF35*12/$BI35)/BF$29), IFERROR(IF($AP$21=0, BF35/BF$30*100, 100*(BF35*12/$BI35)/BF$30),IFERROR(IF($AP$21=0, BF35/BF$31*100, 100*(BF35*12/$BI35)/#REF!),IFERROR(IF($AP$21=0, BF35/BF$32*100, 100*(BF35*12/$BI35)/BF$32),IFERROR(IF($AP$21=0, BF35/BF$32*100, 100*(BF35*12/$BI35)/BF$32),IFERROR(IF($AP$21=0, BF35/BF$33*100, 100*(BF35*12/$BI35)/BF$33),IFERROR(IF($AP$21=0, BF35/BF$34*100, 100*(BF35*12/$BI35)/BF$34),IF($AP$21=0, BF35/BF$35*100, 100*(BF35*12/$BI35)/BF$35))))))))))) -> 105.7713274 | BI35: 9 | BJ35: =VLOOKUP($AO35,Data!$A$1:$P$688,Charts!BJ$23,FALSE) -> 0.1584612985
AL36: 202212 | AM36: 2022-12-01 | AN36: 202212 | AO36: Tier 1 capital ratio202212 | AP36: =VLOOKUP($AO36,Data!$A$1:$P$688,Charts!AP$23,FALSE) -> 0.1377822869 | AQ36: =VLOOKUP($AO36,Data!$A$1:$P$688,Charts!AQ$23,FALSE) -> 0.1572875931 | AR36: =VLOOKUP($AO36,Data!$A$1:$P$688,Charts!AR$23,FALSE) -> 0.1799127332 | AS36: =VLOOKUP($AO36,Data!$A$1:$P$688,Charts!AS$23,FALSE) -> 0.2363027204 | AT36: =VLOOKUP($AO36,Data!$A$1:$P$688,Charts!AT$23,FALSE) -> 0.1691842667 | AU36: =VLOOKUP($AO36,Data!$A$1:$P$688,Charts!AU$23,FALSE) -> 0.2064656841 | AV36: =VLOOKUP($AO36,Data!$A$1:$P$688,Charts!AV$23,FALSE) -> 0.4029680135 | AW36: =VLOOKUP($AO36,Data!$A$1:$P$688,Charts!AW$23,FALSE) -> 0.2155204333 | AX36: =VLOOKUP($AO36,Data!$A$1:$P$688,Charts!AX$23,FALSE) -> 0.1808883288 | AY36: 0.1572875931 | AZ36: 0 | BA36: 0.02262514009 | BB36: 0.0265529509 | BC36: 0.01950530621 | BD36: 0.1965023293 | BE36: =VLOOKUP($AO36,Data!$A$1:$P$688,BD$23,FALSE) -> 1.43645238e+12 | BF36: =VLOOKUP($AO36,Data!$A$1:$P$688,BE$23,FALSE) -> 8.669302444e+12 | BG36: =IFERROR(IF($AP$21=0,BE36/BE$25*100,(100*(BE36*12/$BI36)/BE$25)),IFERROR(IF($AP$21=0, BE36/BE$26*100, 100*(BE36*12/$BI36)/BE$26), IFERROR(IF($AP$21=0, BE36/BE$27*100, 100*(BE36*12/$BI36)/BE$27),IFERROR(IF($AP$21=0, BE36/BE$29*100, 100*(BE36*12/$BI36)/BE$29), IFERROR(IF($AP$21=0, BE36/BE$30*100, 100*(BE36*12/$BI36)/BE$30),IFERROR(IF($AP$21=0, BE36/BE$31*100, 100*(BE36*12/$BI36)/#REF!),IFERROR(IF($AP$21=0, BE36/BE$32*100, 100*(BE36*12/$BI36)/BE$32),IFERROR(IF($AP$21=0, BE36/BE$32*100, 100*(BE36*12/$BI36)/BE$32),IFERROR(IF($AP$21=0, BE36/BE$33*100, 100*(BE36*12/$BI36)/BE$33),IFERROR(IF($AP$21=0, BE36/BE$34*100, 100*(BE36*12/$BI36)/BE$34),IF($AP$21=0, BE36/BE$35*100, 100*(BE36*12/$BI36)/BE$35))))))))))) -> 107.1409886 | BH36: =IFERROR(IF($AP$21=0,BF36/BF$25*100,(100*(BF36*12/$BI36)/BF$25)),IFERROR(IF($AP$21=0, BF36/BF$26*100, 100*(BF36*12/$BI36)/BF$26), IFERROR(IF($AP$21=0, BF36/BF$27*100, 100*(BF36*12/$BI36)/BF$27),IFERROR(IF($AP$21=0, BF36/BF$29*100, 100*(BF36*12/$BI36)/BF$29), IFERROR(IF($AP$21=0, BF36/BF$30*100, 100*(BF36*12/$BI36)/BF$30),IFERROR(IF($AP$21=0, BF36/BF$31*100, 100*(BF36*12/$BI36)/#REF!),IFERROR(IF($AP$21=0, BF36/BF$32*100, 100*(BF36*12/$BI36)/BF$32),IFERROR(IF($AP$21=0, BF36/BF$32*100, 100*(BF36*12/$BI36)/BF$32),IFERROR(IF($AP$21=0, BF36/BF$33*100, 100*(BF36*12/$BI36)/BF$33),IFERROR(IF($AP$21=0, BF36/BF$34*100, 100*(BF36*12/$BI36)/BF$34),IF($AP$21=0, BF36/BF$35*100, 100*(BF36*12/$BI36)/BF$35))))))))))) -> 104.0171622 | BI36: 12 | BJ36: =VLOOKUP($AO36,Data!$A$1:$P$688,Charts!BJ$23,FALSE) -> 0.1641983288
AL37: 202303 | AM37: =IF(AM36<$AL$24,+DATE(YEAR(AM36),MONTH(AM36)+3,DAY(AM36)),"") -> 2023-03-01 | AN37: =+IF(MONTH(AM37)=12,YEAR(AM37)&MONTH(AM37),YEAR(AM37)&0&MONTH(AM37)) -> 202303 | AO37: Tier 1 capital ratio202303 | AP37: =VLOOKUP($AO37,Data!$A$1:$P$688,Charts!AP$23,FALSE) -> 0.1396303806 | AQ37: =VLOOKUP($AO37,Data!$A$1:$P$688,Charts!AQ$23,FALSE) -> 0.1554563893 | AR37: =VLOOKUP($AO37,Data!$A$1:$P$688,Charts!AR$23,FALSE) -> 0.17917808 | AS37: =VLOOKUP($AO37,Data!$A$1:$P$688,Charts!AS$23,FALSE) -> 0.2405501809 | AT37: =VLOOKUP($AO37,Data!$A$1:$P$688,Charts!AT$23,FALSE) -> 0.1718189022 | AU37: =VLOOKUP($AO37,Data!$A$1:$P$688,Charts!AU$23,FALSE) -> 0.207391871 | AV37: =VLOOKUP($AO37,Data!$A$1:$P$688,Charts!AV$23,FALSE) -> 0.4046096566 | AW37: =VLOOKUP($AO37,Data!$A$1:$P$688,Charts!AW$23,FALSE) -> 0.2184281288 | AX37: =VLOOKUP($AO37,Data!$A$1:$P$688,Charts!AX$23,FALSE) -> 0.1823335286 | AY37: 0.1554563893 | AZ37: 0 | BA37: 0.02372169068 | BB37: 0.02821379102 | BC37: 0.0158260087 | BD37: 0.1972177856 | BE37: =VLOOKUP($AO37,Data!$A$1:$P$688,BD$23,FALSE) -> 1.452236834e+12 | BF37: =VLOOKUP($AO37,Data!$A$1:$P$688,BE$23,FALSE) -> 8.664186314e+12 | BG37: =IFERROR(IF($AP$21=0,BE37/BE$25*100,(100*(BE37*12/$BI37)/BE$25)),IFERROR(IF($AP$21=0, BE37/BE$26*100, 100*(BE37*12/$BI37)/BE$26), IFERROR(IF($AP$21=0, BE37/BE$27*100, 100*(BE37*12/$BI37)/BE$27),IFERROR(IF($AP$21=0, BE37/BE$29*100, 100*(BE37*12/$BI37)/BE$29), IFERROR(IF($AP$21=0, BE37/BE$30*100, 100*(BE37*12/$BI37)/BE$30),IFERROR(IF($AP$21=0, BE37/BE$31*100, 100*(BE37*12/$BI37)/#REF!),IFERROR(IF($AP$21=0, BE37/BE$32*100, 100*(BE37*12/$BI37)/BE$32),IFERROR(IF($AP$21=0, BE37/BE$32*100, 100*(BE37*12/$BI37)/BE$32),IFERROR(IF($AP$21=0, BE37/BE$33*100, 100*(BE37*12/$BI37)/BE$33),IFERROR(IF($AP$21=0, BE37/BE$34*100, 100*(BE37*12/$BI37)/BE$34),IF($AP$21=0, BE37/BE$35*100, 100*(BE37*12/$BI37)/BE$35))))))))))) -> 108.3183072 | BH37: =IFERROR(IF($AP$21=0,BF37/BF$25*100,(100*(BF37*12/$BI37)/BF$25)),IFERROR(IF($AP$21=0, BF37/BF$26*100, 100*(BF37*12/$BI37)/BF$26), IFERROR(IF($AP$21=0, BF37/BF$27*100, 100*(BF37*12/$BI37)/BF$27),IFERROR(IF($AP$21=0, BF37/BF$29*100, 100*(BF37*12/$BI37)/BF$29), IFERROR(IF($AP$21=0, BF37/BF$30*100, 100*(BF37*12/$BI37)/BF$30),IFERROR(IF($AP$21=0, BF37/BF$31*100, 100*(BF37*12/$BI37)/#REF!),IFERROR(IF($AP$21=0, BF37/BF$32*100, 100*(BF37*12/$BI37)/BF$32),IFERROR(IF($AP$21=0, BF37/BF$32*100, 100*(BF37*12/$BI37)/BF$32),IFERROR(IF($AP$21=0, BF37/BF$33*100, 100*(BF37*12/$BI37)/BF$33),IFERROR(IF($AP$21=0, BF37/BF$34*100, 100*(BF37*12/$BI37)/BF$34),IF($AP$21=0, BF37/BF$35*100, 100*(BF37*12/$BI37)/BF$35))))))))))) -> 103.9557772 | BI37: 3 | BJ37: =VLOOKUP($AO37,Data!$A$1:$P$688,Charts!BJ$23,FALSE) -> 0.1665952396
AN49: =VLOOKUP(AM21*1,List!$A$1:$I$100,9,FALSE) -> 9 | AO49: Indicator | AP49: Country | AQ49: Country name | AR49: Value | AS49: EU value
AO50: 2 | AQ50: 5 | AR50: 8
AN51: =MAX($AL$25:$AL$46) -> 202303 | AO51: =CONCATENATE(VLOOKUP($AN$21*1,Data!$W$1:$AB$688,AO$50,FALSE),AP51) -> Tier 1 Capital Ratio1 | AP51: 1 | AQ51: =VLOOKUP($AO51,Data!$U$1:$AC$714,AQ$50,FALSE)&IF(AR51="","*","") -> LV | AR51: =IF(ISBLANK(VLOOKUP($AO51,Data!$U$1:$AC$714,AR$50,FALSE)),"",VLOOKUP($AO51,Data!$U$1:$AC$714,AR$50,FALSE)) -> 0.2334368829 | AS51: =VLOOKUP($AO$81,Data!$U$1:$AC$714,$AR$50,FALSE) -> 0.1718189022
AN52: =MAX($AL$25:$AL$46) -> 202303 | AO52: =CONCATENATE(VLOOKUP($AN$21*1,Data!$W$1:$AB$688,AO$50,FALSE),AP52) -> Tier 1 Capital Ratio2 | AP52: 2 | AQ52: =VLOOKUP($AO52,Data!$U$1:$AC$714,AQ$50,FALSE)&IF(AR52="","*","") -> EE | AR52: =IF(ISBLANK(VLOOKUP($AO52,Data!$U$1:$AC$714,AR$50,FALSE)),"",VLOOKUP($AO52,Data!$U$1:$AC$714,AR$50,FALSE)) -> 0.2284796166 | AS52: =VLOOKUP($AO$81,Data!$U$1:$AC$714,$AR$50,FALSE) -> 0.1718189022
AN53: 202303 | AO53: =CONCATENATE(VLOOKUP($AN$21*1,Data!$W$1:$AB$688,AO$50,FALSE),AP53) -> Tier 1 Capital Ratio3 | AP53: 3 | AQ53: =VLOOKUP($AO53,Data!$U$1:$AC$714,AQ$50,FALSE)&IF(AR53="","*","") -> LU | AR53: =IF(ISBLANK(VLOOKUP($AO53,Data!$U$1:$AC$714,AR$50,FALSE)),"",VLOOKUP($AO53,Data!$U$1:$AC$714,AR$50,FALSE)) -> 0.2248531279 | AS53: =VLOOKUP($AO$81,Data!$U$1:$AC$714,$AR$50,FALSE) -> 0.1718189022
AN54: 202303 | AO54: =CONCATENATE(VLOOKUP($AN$21*1,Data!$W$1:$AB$688,AO$50,FALSE),AP54) -> Tier 1 Capital Ratio4 | AP54: 4 | AQ54: =VLOOKUP($AO54,Data!$U$1:$AC$714,AQ$50,FALSE)&IF(AR54="","*","") -> HR | AR54: =IF(ISBLANK(VLOOKUP($AO54,Data!$U$1:$AC$714,AR$50,FALSE)),"",VLOOKUP($AO54,Data!$U$1:$AC$714,AR$50,FALSE)) -> 0.2220458077 | AS54: =VLOOKUP($AO$81,Data!$U$1:$AC$714,$AR$50,FALSE) -> 0.1718189022
AN55: 202303 | AO55: =CONCATENATE(VLOOKUP($AN$21*1,Data!$W$1:$AB$688,AO$50,FALSE),AP55) -> Tier 1 Capital Ratio5 | AP55: 5 | AQ55: =VLOOKUP($AO55,Data!$U$1:$AC$714,AQ$50,FALSE)&IF(AR55="","*","") -> BG | AR55: =IF(ISBLANK(VLOOKUP($AO55,Data!$U$1:$AC$714,AR$50,FALSE)),"",VLOOKUP($AO55,Data!$U$1:$AC$714,AR$50,FALSE)) -> 0.2182493112 | AS55: =VLOOKUP($AO$81,Data!$U$1:$AC$714,$AR$50,FALSE) -> 0.1718189022
AN56: 202303 | AO56: =CONCATENATE(VLOOKUP($AN$21*1,Data!$W$1:$AB$688,AO$50,FALSE),AP56) -> Tier 1 Capital Ratio6 | AP56: 6 | AQ56: =VLOOKUP($AO56,Data!$U$1:$AC$714,AQ$50,FALSE)&IF(AR56="","*","") -> IS | AR56: =IF(ISBLANK(VLOOKUP($AO56,Data!$U$1:$AC$714,AR$50,FALSE)),"",VLOOKUP($AO56,Data!$U$1:$AC$714,AR$50,FALSE)) -> 0.2108073001 | AS56: =VLOOKUP($AO$81,Data!$U$1:$AC$714,$AR$50,FALSE) -> 0.1718189022
AN57: 202303 | AO57: =CONCATENATE(VLOOKUP($AN$21*1,Data!$W$1:$AB$688,AO$50,FALSE),AP57) -> Tier 1 Capital Ratio7 | AP57: 7 | AQ57: =VLOOKUP($AO57,Data!$U$1:$AC$714,AQ$50,FALSE)&IF(AR57="","*","") -> LI | AR57: =IF(ISBLANK(VLOOKUP($AO57,Data!$U$1:$AC$714,AR$50,FALSE)),"",VLOOKUP($AO57,Data!$U$1:$AC$714,AR$50,FALSE)) -> 0.2062695058 | AS57: =VLOOKUP($AO$81,Data!$U$1:$AC$714,$AR$50,FALSE) -> 0.1718189022
AN58: 202303 | AO58: =CONCATENATE(VLOOKUP($AN$21*1,Data!$W$1:$AB$688,AO$50,FALSE),AP58) -> Tier 1 Capital Ratio8 | AP58: 8 | AQ58: =VLOOKUP($AO58,Data!$U$1:$AC$714,AQ$50,FALSE)&IF(AR58="","*","") -> SE | AR58: =IF(ISBLANK(VLOOKUP($AO58,Data!$U$1:$AC$714,AR$50,FALSE)),"",VLOOKUP($AO58,Data!$U$1:$AC$714,AR$50,FALSE)) -> 0.2060193786 | AS58: =VLOOKUP($AO$81,Data!$U$1:$AC$714,$AR$50,FALSE) -> 0.1718189022
AN59: 202303 | AO59: =CONCATENATE(VLOOKUP($AN$21*1,Data!$W$1:$AB$688,AO$50,FALSE),AP59) -> Tier 1 Capital Ratio9 | AP59: 9 | AQ59: =VLOOKUP($AO59,Data!$U$1:$AC$714,AQ$50,FALSE)&IF(AR59="","*","") -> IE | AR59: =IF(ISBLANK(VLOOKUP($AO59,Data!$U$1:$AC$714,AR$50,FALSE)),"",VLOOKUP($AO59,Data!$U$1:$AC$714,AR$50,FALSE)) -> 0.2041366894 | AS59: =VLOOKUP($AO$81,Data!$U$1:$AC$714,$AR$50,FALSE) -> 0.1718189022
AN60: 202303 | AO60: =CONCATENATE(VLOOKUP($AN$21*1,Data!$W$1:$AB$688,AO$50,FALSE),AP60) -> Tier 1 Capital Ratio10 | AP60: 10 | AQ60: =VLOOKUP($AO60,Data!$U$1:$AC$714,AQ$50,FALSE)&IF(AR60="","*","") -> LT | AR60: =IF(ISBLANK(VLOOKUP($AO60,Data!$U$1:$AC$714,AR$50,FALSE)),"",VLOOKUP($AO60,Data!$U$1:$AC$714,AR$50,FALSE)) -> 0.2001062149 | AS60: =VLOOKUP($AO$81,Data!$U$1:$AC$714,$AR$50,FALSE) -> 0.1718189022
AN61: 202303 | AO61: =CONCATENATE(VLOOKUP($AN$21*1,Data!$W$1:$AB$688,AO$50,FALSE),AP61) -> Tier 1 Capital Ratio11 | AP61: 11 | AQ61: =VLOOKUP($AO61,Data!$U$1:$AC$714,AQ$50,FALSE)&IF(AR61="","*","") -> BE | AR61: =IF(ISBLANK(VLOOKUP($AO61,Data!$U$1:$AC$714,AR$50,FALSE)),"",VLOOKUP($AO61,Data!$U$1:$AC$714,AR$50,FALSE)) -> 0.1972237318 | AS61: =VLOOKUP($AO$81,Data!$U$1:$AC$714,$AR$50,FALSE) -> 0.1718189022
AN62: 202303 | AO62: =CONCATENATE(VLOOKUP($AN$21*1,Data!$W$1:$AB$688,AO$50,FALSE),AP62) -> Tier 1 Capital Ratio12 | AP62: 12 | AQ62: =VLOOKUP($AO62,Data!$U$1:$AC$714,AQ$50,FALSE)&IF(AR62="","*","") -> DK | AR62: =IF(ISBLANK(VLOOKUP($AO62,Data!$U$1:$AC$714,AR$50,FALSE)),"",VLOOKUP($AO62,Data!$U$1:$AC$714,AR$50,FALSE)) -> 0.1968961964 | AS62: =VLOOKUP($AO$81,Data!$U$1:$AC$714,$AR$50,FALSE) -> 0.1718189022
AN63: 202303 | AO63: =CONCATENATE(VLOOKUP($AN$21*1,Data!$W$1:$AB$688,AO$50,FALSE),AP63) -> Tier 1 Capital Ratio13 | AP63: 13 | AQ63: =VLOOKUP($AO63,Data!$U$1:$AC$714,AQ$50,FALSE)&IF(AR63="","*","") -> NO | AR63: =IF(ISBLANK(VLOOKUP($AO63,Data!$U$1:$AC$714,AR$50,FALSE)),"",VLOOKUP($AO63,Data!$U$1:$AC$714,AR$50,FALSE)) -> 0.1965267069 | AS63: =VLOOKUP($AO$81,Data!$U$1:$AC$714,$AR$50,FALSE) -> 0.1718189022
AN64: 202303 | AO64: =CONCATENATE(VLOOKUP($AN$21*1,Data!$W$1:$AB$688,AO$50,FALSE),AP64) -> Tier 1 Capital Ratio14 | AP64: 14 | AQ64: =VLOOKUP($AO64,Data!$U$1:$AC$714,AQ$50,FALSE)&IF(AR64="","*","") -> CZ | AR64: =IF(ISBLANK(VLOOKUP($AO64,Data!$U$1:$AC$714,AR$50,FALSE)),"",VLOOKUP($AO64,Data!$U$1:$AC$714,AR$50,FALSE)) -> 0.1945372785 | AS64: =VLOOKUP($AO$81,Data!$U$1:$AC$714,$AR$50,FALSE) -> 0.1718189022
AN65: 202303 | AO65: =CONCATENATE(VLOOKUP($AN$21*1,Data!$W$1:$AB$688,AO$50,FALSE),AP65) -> Tier 1 Capital Ratio15 | AP65: 15 | AQ65: =VLOOKUP($AO65,Data!$U$1:$AC$714,AQ$50,FALSE)&IF(AR65="","*","") -> MT | AR65: =IF(ISBLANK(VLOOKUP($AO65,Data!$U$1:$AC$714,AR$50,FALSE)),"",VLOOKUP($AO65,Data!$U$1:$AC$714,AR$50,FALSE)) -> 0.1926487439 | AS65: =VLOOKUP($AO$81,Data!$U$1:$AC$714,$AR$50,FALSE) -> 0.1718189022
AN66: 202303 | AO66: =CONCATENATE(VLOOKUP($AN$21*1,Data!$W$1:$AB$688,AO$50,FALSE),AP66) -> Tier 1 Capital Ratio16 | AP66: 16 | AQ66: =VLOOKUP($AO66,Data!$U$1:$AC$714,AQ$50,FALSE)&IF(AR66="","*","") -> CY | AR66: =IF(ISBLANK(VLOOKUP($AO66,Data!$U$1:$AC$714,AR$50,FALSE)),"",VLOOKUP($AO66,Data!$U$1:$AC$714,AR$50,FALSE)) -> 0.1915217524 | AS66: =VLOOKUP($AO$81,Data!$U$1:$AC$714,$AR$50,FALSE) -> 0.1718189022
AN67: 202303 | AO67: =CONCATENATE(VLOOKUP($AN$21*1,Data!$W$1:$AB$688,AO$50,FALSE),AP67) -> Tier 1 Capital Ratio17 | AP67: 17 | AQ67: =VLOOKUP($AO67,Data!$U$1:$AC$714,AQ$50,FALSE)&IF(AR67="","*","") -> FI | AR67: =IF(ISBLANK(VLOOKUP($AO67,Data!$U$1:$AC$714,AR$50,FALSE)),"",VLOOKUP($AO67,Data!$U$1:$AC$714,AR$50,FALSE)) -> 0.1861511893 | AS67: =VLOOKUP($AO$81,Data!$U$1:$AC$714,$AR$50,FALSE) -> 0.1718189022
AN68: 202303 | AO68: =CONCATENATE(VLOOKUP($AN$21*1,Data!$W$1:$AB$688,AO$50,FALSE),AP68) -> Tier 1 Capital Ratio18 | AP68: 18 | AQ68: =VLOOKUP($AO68,Data!$U$1:$AC$714,AQ$50,FALSE)&IF(AR68="","*","") -> NL | AR68: =IF(ISBLANK(VLOOKUP($AO68,Data!$U$1:$AC$714,AR$50,FALSE)),"",VLOOKUP($AO68,Data!$U$1:$AC$714,AR$50,FALSE)) -> 0.1784617812 | AS68: =VLOOKUP($AO$81,Data!$U$1:$AC$714,$AR$50,FALSE) -> 0.1718189022
AN69: 202303 | AO69: =CONCATENATE(VLOOKUP($AN$21*1,Data!$W$1:$AB$688,AO$50,FALSE),AP69) -> Tier 1 Capital Ratio19 | AP69: 19 | AQ69: =VLOOKUP($AO69,Data!$U$1:$AC$714,AQ$50,FALSE)&IF(AR69="","*","") -> PL | AR69: =IF(ISBLANK(VLOOKUP($AO69,Data!$U$1:$AC$714,AR$50,FALSE)),"",VLOOKUP($AO69,Data!$U$1:$AC$714,AR$50,FALSE)) -> 0.1745437948 | AS69: =VLOOKUP($AO$81,Data!$U$1:$AC$714,$AR$50,FALSE) -> 0.1718189022
AN70: 202303 | AO70: =CONCATENATE(VLOOKUP($AN$21*1,Data!$W$1:$AB$688,AO$50,FALSE),AP70) -> Tier 1 Capital Ratio20 | AP70: 20 | AQ70: =VLOOKUP($AO70,Data!$U$1:$AC$714,AQ$50,FALSE)&IF(AR70="","*","") -> RO | AR70: =IF(ISBLANK(VLOOKUP($AO70,Data!$U$1:$AC$714,AR$50,FALSE)),"",VLOOKUP($AO70,Data!$U$1:$AC$714,AR$50,FALSE)) -> 0.1743655675 | AS70: =VLOOKUP($AO$81,Data!$U$1:$AC$714,$AR$50,FALSE) -> 0.1718189022
AN71: 202303 | AO71: =CONCATENATE(VLOOKUP($AN$21*1,Data!$W$1:$AB$688,AO$50,FALSE),AP71) -> Tier 1 Capital Ratio21 | AP71: 21 | AQ71: =VLOOKUP($AO71,Data!$U$1:$AC$714,AQ$50,FALSE)&IF(AR71="","*","") -> DE | AR71: =IF(ISBLANK(VLOOKUP($AO71,Data!$U$1:$AC$714,AR$50,FALSE)),"",VLOOKUP($AO71,Data!$U$1:$AC$714,AR$50,FALSE)) -> 0.1740482983 | AS71: =VLOOKUP($AO$81,Data!$U$1:$AC$714,$AR$50,FALSE) -> 0.1718189022
AN72: 202303 | AO72: =CONCATENATE(VLOOKUP($AN$21*1,Data!$W$1:$AB$688,AO$50,FALSE),AP72) -> Tier 1 Capital Ratio22 | AP72: 22 | AQ72: =VLOOKUP($AO72,Data!$U$1:$AC$714,AQ$50,FALSE)&IF(AR72="","*","") -> SK | AR72: =IF(ISBLANK(VLOOKUP($AO72,Data!$U$1:$AC$714,AR$50,FALSE)),"",VLOOKUP($AO72,Data!$U$1:$AC$714,AR$50,FALSE)) -> 0.1729513614 | AS72: =VLOOKUP($AO$81,Data!$U$1:$AC$714,$AR$50,FALSE) -> 0.1718189022
AN73: 202303 | AO73: =CONCATENATE(VLOOKUP($AN$21*1,Data!$W$1:$AB$688,AO$50,FALSE),AP73) -> Tier 1 Capital Ratio23 | AP73: 23 | AQ73: =VLOOKUP($AO73,Data!$U$1:$AC$714,AQ$50,FALSE)&IF(AR73="","*","") -> FR | AR73: =IF(ISBLANK(VLOOKUP($AO73,Data!$U$1:$AC$714,AR$50,FALSE)),"",VLOOKUP($AO73,Data!$U$1:$AC$714,AR$50,FALSE)) -> 0.1727555563 | AS73: =VLOOKUP($AO$81,Data!$U$1:$AC$714,$AR$50,FALSE) -> 0.1718189022
AN74: 202303 | AO74: =CONCATENATE(VLOOKUP($AN$21*1,Data!$W$1:$AB$688,AO$50,FALSE),AP74) -> Tier 1 Capital Ratio24 | AP74: 24 | AQ74: =VLOOKUP($AO74,Data!$U$1:$AC$714,AQ$50,FALSE)&IF(AR74="","*","") -> IT | AR74: =IF(ISBLANK(VLOOKUP($AO74,Data!$U$1:$AC$714,AR$50,FALSE)),"",VLOOKUP($AO74,Data!$U$1:$AC$714,AR$50,FALSE)) -> 0.1704192103 | AS74: =VLOOKUP($AO$81,Data!$U$1:$AC$714,$AR$50,FALSE) -> 0.1718189022
AN75: 202303 | AO75: =CONCATENATE(VLOOKUP($AN$21*1,Data!$W$1:$AB$688,AO$50,FALSE),AP75) -> Tier 1 Capital Ratio25 | AP75: 25 | AQ75: =VLOOKUP($AO75,Data!$U$1:$AC$714,AQ$50,FALSE)&IF(AR75="","*","") -> AT | AR75: =IF(ISBLANK(VLOOKUP($AO75,Data!$U$1:$AC$714,AR$50,FALSE)),"",VLOOKUP($AO75,Data!$U$1:$AC$714,AR$50,FALSE)) -> 0.1660489596 | AS75: =VLOOKUP($AO$81,Data!$U$1:$AC$714,$AR$50,FALSE) -> 0.1718189022
AN76: 202303 | AO76: =CONCATENATE(VLOOKUP($AN$21*1,Data!$W$1:$AB$688,AO$50,FALSE),AP76) -> Tier 1 Capital Ratio26 | AP76: 26 | AQ76: =VLOOKUP($AO76,Data!$U$1:$AC$714,AQ$50,FALSE)&IF(AR76="","*","") -> SI | AR76: =IF(ISBLANK(VLOOKUP($AO76,Data!$U$1:$AC$714,AR$50,FALSE)),"",VLOOKUP($AO76,Data!$U$1:$AC$714,AR$50,FALSE)) -> 0.1625398551 | AS76: =VLOOKUP($AO$81,Data!$U$1:$AC$714,$AR$50,FALSE) -> 0.1718189022
AN77: 202303 | AO77: =CONCATENATE(VLOOKUP($AN$21*1,Data!$W$1:$AB$688,AO$50,FALSE),AP77) -> Tier 1 Capital Ratio27 | AP77: 27 | AQ77: =VLOOKUP($AO77,Data!$U$1:$AC$714,AQ$50,FALSE)&IF(AR77="","*","") -> PT | AR77: =IF(ISBLANK(VLOOKUP($AO77,Data!$U$1:$AC$714,AR$50,FALSE)),"",VLOOKUP($AO77,Data!$U$1:$AC$714,AR$50,FALSE)) -> 0.1590060035 | AS77: =VLOOKUP($AO$81,Data!$U$1:$AC$714,$AR$50,FALSE) -> 0.1718189022
AN78: 202303 | AO78: =CONCATENATE(VLOOKUP($AN$21*1,Data!$W$1:$AB$688,AO$50,FALSE),AP78) -> Tier 1 Capital Ratio28 | AP78: 28 | AQ78: =VLOOKUP($AO78,Data!$U$1:$AC$714,AQ$50,FALSE)&IF(AR78="","*","") -> HU | AR78: =IF(ISBLANK(VLOOKUP($AO78,Data!$U$1:$AC$714,AR$50,FALSE)),"",VLOOKUP($AO78,Data!$U$1:$AC$714,AR$50,FALSE)) -> 0.1514015692 | AS78: =VLOOKUP($AO$81,Data!$U$1:$AC$714,$AR$50,FALSE) -> 0.1718189022
AN79: 202303 | AO79: =CONCATENATE(VLOOKUP($AN$21*1,Data!$W$1:$AB$688,AO$50,FALSE),AP79) -> Tier 1 Capital Ratio29 | AP79: 29 | AQ79: =VLOOKUP($AO79,Data!$U$1:$AC$714,AQ$50,FALSE)&IF(AR79="","*","") -> GR | AR79: =IF(ISBLANK(VLOOKUP($AO79,Data!$U$1:$AC$714,AR$50,FALSE)),"",VLOOKUP($AO79,Data!$U$1:$AC$714,AR$50,FALSE)) -> 0.1446511291 | AS79: =VLOOKUP($AO$81,Data!$U$1:$AC$714,$AR$50,FALSE) -> 0.1718189022
AN80: 202303 | AO80: =CONCATENATE(VLOOKUP($AN$21*1,Data!$W$1:$AB$688,AO$50,FALSE),AP80) -> Tier 1 Capital Ratio30 | AP80: 30 | AQ80: =VLOOKUP($AO80,Data!$U$1:$AC$714,AQ$50,FALSE)&IF(AR80="","*","") -> ES | AR80: =IF(ISBLANK(VLOOKUP($AO80,Data!$U$1:$AC$714,AR$50,FALSE)),"",VLOOKUP($AO80,Data!$U$1:$AC$714,AR$50,FALSE)) -> 0.1431277463 | AS80: =VLOOKUP($AO$81,Data!$U$1:$AC$714,$AR$50,FALSE) -> 0.1718189022
AN81: =MAX($AL$25:$AL$46) -> 202303 | AO81: =CONCATENATE(VLOOKUP($AN$21*1,Data!$W$1:$AB$688,AO$50,FALSE),AP81) -> Tier 1 Capital Ratio99 | AP81: 99 | AQ81: =VLOOKUP($AO81,Data!$U$1:$AC$714,AQ$50,FALSE)&IF(AR81="","*","") -> EU | AR81: =IF(ISBLANK(VLOOKUP($AO81,Data!$U$1:$AC$714,AR$50,FALSE)),"",VLOOKUP($AO81,Data!$U$1:$AC$714,AR$50,FALSE)) -> 0.1718189022 | AS81: =VLOOKUP($AO$81,Data!$U$1:$AC$714,$AR$50,FALSE) -> 0.1718189022

Sheet Assets
D1: =("'"&MID(CELL("filename",$A$1),FIND("]",CELL("filename",$A$1))+1,32)&"'") -> 'Assets' | E1: T01_1 | F1: T01_1 | G1: T01_1 | H1: T01_2 | I1: T01_2 | J1: T01_2 | K1: T01_3 | L1: T01_3 | M1: T01_3 | N1: T01_4 | O1: T01_4 | P1: T01_4 | Q1: T01_5 | R1: T01_5 | S1: T01_5 | T1: T01_6 | U1: T01_6 | V1: T01_6
A2: ='Reference Dates'!$C$8 -> 202303 | E2: =TEXT(E12,"YYYYMM")+0 -> 202203 | F2: 202212 | G2: 202303 | H2: 202203 | I2: 202212 | J2: 202303 | K2: 202203 | L2: 202212 | M2: 202303 | N2: 202203 | O2: 202212 | P2: 202303 | Q2: 202203 | R2: 202212 | S2: 202303 | T2: 202203 | U2: 202212 | V2: 202303
A3: =DATE(LEFT(A2,4),RIGHT(A2,2),1) -> 2023-03-01
D4: Statistical Annex
D5: Asset composition and volumes
B8: CH_1 | D8: Asset composition
D10: % of total assets
E11: Cash balances | H11: Equity instruments | K11: Debt securities | N11: Loans and advances | Q11: Derivatives | T11: Other Assets
E12: =EOMONTH($A$3,-12) -> 2022-03-31 | F12: =EOMONTH($A$3,-3) -> 2022-12-31 | G12: =$A$3 -> 2023-03-01 | H12: =EOMONTH($A$3,-12) -> 2022-03-31 | I12: =EOMONTH($A$3,-3) -> 2022-12-31 | J12: =$A$3 -> 2023-03-01 | K12: =EOMONTH($A$3,-12) -> 2022-03-31 | L12: =EOMONTH($A$3,-3) -> 2022-12-31 | M12: =$A$3 -> 2023-03-01 | N12: =EOMONTH($A$3,-12) -> 2022-03-31 | O12: =EOMONTH($A$3,-3) -> 2022-12-31 | P12: =$A$3 -> 2023-03-01 | Q12: =EOMONTH($A$3,-12) -> 2022-03-31 | R12: =EOMONTH($A$3,-3) -> 2022-12-31 | S12: =$A$3 -> 2023-03-01 | T12: =EOMONTH($A$3,-12) -> 2022-03-31 | U12: =EOMONTH($A$3,-3) -> 2022-12-31 | V12: =$A$3 -> 2023-03-01
B13: AT | D13: =IF(OR(E13="n.a.",F13="n.a.",G13="n.a.",H13="n.a.",I13="n.a.",J13="n.a.",K13="n.a.",L13="n.a.",M13="n.a.",N13="n.a.",O13="n.a.",P13="n.a.",Q13="n.a.",R13="n.a.",S13="n.a.",T13="n.a.",U13="n.a.",V13="n.a."),$B13&"*",$B13) -> AT | E13: =IFERROR(INDEX('Data Annex'!$K$1:$BU$4779,MATCH(Assets!E$1&"|"&Assets!$B13,'Data Annex'!$K$1:$K$4779,0),MATCH(Assets!E$2,'Data Annex'!$K$1:$BU$1,0)),"") -> 0.1826115799 | F13: =IFERROR(INDEX('Data Annex'!$K$1:$BU$4779,MATCH(Assets!F$1&"|"&Assets!$B13,'Data Annex'!$K$1:$K$4779,0),MATCH(Assets!F$2,'Data Annex'!$K$1:$BU$1,0)),"") -> 0.1679533662 | G13: =IFERROR(INDEX('Data Annex'!$K$1:$BU$4779,MATCH(Assets!G$1&"|"&Assets!$B13,'Data Annex'!$K$1:$K$4779,0),MATCH(Assets!G$2,'Data Annex'!$K$1:$BU$1,0)),"") -> 0.1793990841 | H13: =IFERROR(INDEX('Data Annex'!$K$1:$BU$4779,MATCH(Assets!H$1&"|"&Assets!$B13,'Data Annex'!$K$1:$K$4779,0),MATCH(Assets!H$2,'Data Annex'!$K$1:$BU$1,0)),"") -> 0.006491087174 | I13: =IFERROR(INDEX('Data Annex'!$K$1:$BU$4779,MATCH(Assets!I$1&"|"&Assets!$B13,'Data Annex'!$K$1:$K$4779,0),MATCH(Assets!I$2,'Data Annex'!$K$1:$BU$1,0)),"") -> 0.005791228952 | J13: =IFERROR(INDEX('Data Annex'!$K$1:$BU$4779,MATCH(Assets!J$1&"|"&Assets!$B13,'Data Annex'!$K$1:$K$4779,0),MATCH(Assets!J$2,'Data Annex'!$K$1:$BU$1,0)),"") -> 0.005824121289 | K13: =IFERROR(INDEX('Data Annex'!$K$1:$BU$4779,MATCH(Assets!K$1&"|"&Assets!$B13,'Data Annex'!$K$1:$K$4779,0),MATCH(Assets!K$2,'Data Annex'!$K$1:$BU$1,0)),"") -> 0.1315684579 | L13: =IFERROR(INDEX('Data Annex'!$K$1:$BU$4779,MATCH(Assets!L$1&"|"&Assets!$B13,'Data Annex'!$K$1:$K$4779,0),MATCH(Assets!L$2,'Data Annex'!$K$1:$BU$1,0)),"") -> 0.1384603172 | M13: =IFERROR(INDEX('Data Annex'!$K$1:$BU$4779,MATCH(Assets!M$1&"|"&Assets!$B13,'Data Annex'!$K$1:$K$4779,0),MATCH(Assets!M$2,'Data Annex'!$K$1:$BU$1,0)),"") -> 0.1392998172 | N13: =IFERROR(INDEX('Data Annex'!$K$1:$BU$4779,MATCH(Assets!N$1&"|"&Assets!$B13,'Data Annex'!$K$1:$K$4779,0),MATCH(Assets!N$2,'Data Annex'!$K$1:$BU$1,0)),"") -> 0.6312975843 | O13: =IFERROR(INDEX('Data Annex'!$K$1:$BU$4779,MATCH(Assets!O$1&"|"&Assets!$B13,'Data Annex'!$K$1:$K$4779,0),MATCH(Assets!O$2,'Data Annex'!$K$1:$BU$1,0)),"") -> 0.6412786342 | P13: =IFERROR(INDEX('Data Annex'!$K$1:$BU$4779,MATCH(Assets!P$1&"|"&Assets!$B13,'Data Annex'!$K$1:$K$4779,0),MATCH(Assets!P$2,'Data Annex'!$K$1:$BU$1,0)),"") -> 0.6318141811 | Q13: =IFERROR(INDEX('Data Annex'!$K$1:$BU$4779,MATCH(Assets!Q$1&"|"&Assets!$B13,'Data Annex'!$K$1:$K$4779,0),MATCH(Assets!Q$2,'Data Annex'!$K$1:$BU$1,0)),"") -> 0.01474454719 | R13: =IFERROR(INDEX('Data Annex'!$K$1:$BU$4779,MATCH(Assets!R$1&"|"&Assets!$B13,'Data Annex'!$K$1:$K$4779,0),MATCH(Assets!R$2,'Data Annex'!$K$1:$BU$1,0)),"") -> 0.02262903079 | S13: =IFERROR(INDEX('Data Annex'!$K$1:$BU$4779,MATCH(Assets!S$1&"|"&Assets!$B13,'Data Annex'!$K$1:$K$4779,0),MATCH(Assets!S$2,'Data Annex'!$K$1:$BU$1,0)),"") -> 0.01951044811 | T13: =IFERROR(INDEX('Data Annex'!$K$1:$BU$4779,MATCH(Assets!T$1&"|"&Assets!$B13,'Data Annex'!$K$1:$K$4779,0),MATCH(Assets!T$2,'Data Annex'!$K$1:$BU$1,0)),"") -> 0.03328674344 | U13: =IFERROR(INDEX('Data Annex'!$K$1:$BU$4779,MATCH(Assets!U$1&"|"&Assets!$B13,'Data Annex'!$K$1:$K$4779,0),MATCH(Assets!U$2,'Data Annex'!$K$1:$BU$1,0)),"") -> 0.02388742268 | V13: =IFERROR(INDEX('Data Annex'!$K$1:$BU$4779,MATCH(Assets!V$1&"|"&Assets!$B13,'Data Annex'!$K$1:$K$4779,0),MATCH(Assets!V$2,'Data Annex'!$K$1:$BU$1,0)),"") -> 0.0241523481 | W13: =IFERROR(INDEX('Data Annex'!$K$1:$AH$4779,MATCH(Assets!AC$1&"|"&Assets!$B13,'Data Annex'!$K$1:$K$4779,0),MATCH(Assets!AC$2,'Data Annex'!$K$1:$AH$1,0)),"") -> 
B14: BE | D14: =IF(OR(E14="n.a.",F14="n.a.",G14="n.a.",H14="n.a.",I14="n.a.",J14="n.a.",K14="n.a.",L14="n.a.",M14="n.a.",N14="n.a.",O14="n.a.",P14="n.a.",Q14="n.a.",R14="n.a.",S14="n.a.",T14="n.a.",U14="n.a.",V14="n.a."),$B14&"*",$B14) -> BE | E14: =IFERROR(INDEX('Data Annex'!$K$1:$BU$4779,MATCH(Assets!E$1&"|"&Assets!$B14,'Data Annex'!$K$1:$K$4779,0),MATCH(Assets!E$2,'Data Annex'!$K$1:$BU$1,0)),"") -> 0.2089916103 | F14: =IFERROR(INDEX('Data Annex'!$K$1:$BU$4779,MATCH(Assets!F$1&"|"&Assets!$B14,'Data Annex'!$K$1:$K$4779,0),MATCH(Assets!F$2,'Data Annex'!$K$1:$BU$1,0)),"") -> 0.153132807 | G14: =IFERROR(INDEX('Data Annex'!$K$1:$BU$4779,MATCH(Assets!G$1&"|"&Assets!$B14,'Data Annex'!$K$1:$K$4779,0),MATCH(Assets!G$2,'Data Annex'!$K$1:$BU$1,0)),"") -> 0.2196587755 | H14: =IFERROR(INDEX('Data Annex'!$K$1:$BU$4779,MATCH(Assets!H$1&"|"&Assets!$B14,'Data Annex'!$K$1:$K$4779,0),MATCH(Assets!H$2,'Data Annex'!$K$1:$BU$1,0)),"") -> 0.002109046201 | I14: =IFERROR(INDEX('Data Annex'!$K$1:$BU$4779,MATCH(Assets!I$1&"|"&Assets!$B14,'Data Annex'!$K$1:$K$4779,0),MATCH(Assets!I$2,'Data Annex'!$K$1:$BU$1,0)),"") -> 0.002048152629 | J14: =IFERROR(INDEX('Data Annex'!$K$1:$BU$4779,MATCH(Assets!J$1&"|"&Assets!$B14,'Data Annex'!$K$1:$K$4779,0),MATCH(Assets!J$2,'Data Annex'!$K$1:$BU$1,0)),"") -> 0.002920199331 | K14: =IFERROR(INDEX('Data Annex'!$K$1:$BU$4779,MATCH(Assets!K$1&"|"&Assets!$B14,'Data Annex'!$K$1:$K$4779,0),MATCH(Assets!K$2,'Data Annex'!$K$1:$BU$1,0)),"") -> 0.1205418366 | L14: =IFERROR(INDEX('Data Annex'!$K$1:$BU$4779,MATCH(Assets!L$1&"|"&Assets!$B14,'Data Annex'!$K$1:$K$4779,0),MATCH(Assets!L$2,'Data Annex'!$K$1:$BU$1,0)),"") -> 0.1220844459 | M14: =IFERROR(INDEX('Data Annex'!$K$1:$BU$4779,MATCH(Assets!M$1&"|"&Assets!$B14,'Data Annex'!$K$1:$K$4779,0),MATCH(Assets!M$2,'Data Annex'!$K$1:$BU$1,0)),"") -> 0.1227679685 | N14: =IFERROR(INDEX('Data Annex'!$K$1:$BU$4779,MATCH(Assets!N$1&"|"&Assets!$B14,'Data Annex'!$K$1:$K$4779,0),MATCH(Assets!N$2,'Data Annex'!$K$1:$BU$1,0)),"") -> 0.6006857896 | O14: =IFERROR(INDEX('Data Annex'!$K$1:$BU$4779,MATCH(Assets!O$1&"|"&Assets!$B14,'Data Annex'!$K$1:$K$4779,0),MATCH(Assets!O$2,'Data Annex'!$K$1:$BU$1,0)),"") -> 0.6491329077 | P14: =IFERROR(INDEX('Data Annex'!$K$1:$BU$4779,MATCH(Assets!P$1&"|"&Assets!$B14,'Data Annex'!$K$1:$K$4779,0),MATCH(Assets!P$2,'Data Annex'!$K$1:$BU$1,0)),"") -> 0.6015679988 | Q14: =IFERROR(INDEX('Data Annex'!$K$1:$BU$4779,MATCH(Assets!Q$1&"|"&Assets!$B14,'Data Annex'!$K$1:$K$4779,0),MATCH(Assets!Q$2,'Data Annex'!$K$1:$BU$1,0)),"") -> 0.0314523461 | R14: =IFERROR(INDEX('Data Annex'!$K$1:$BU$4779,MATCH(Assets!R$1&"|"&Assets!$B14,'Data Annex'!$K$1:$K$4779,0),MATCH(Assets!R$2,'Data Annex'!$K$1:$BU$1,0)),"") -> 0.04463457578 | S14: =IFERROR(INDEX('Data Annex'!$K$1:$BU$4779,MATCH(Assets!S$1&"|"&Assets!$B14,'Data Annex'!$K$1:$K$4779,0),MATCH(Assets!S$2,'Data Annex'!$K$1:$BU$1,0)),"") -> 0.02635757605 | T14: =IFERROR(INDEX('Data Annex'!$K$1:$BU$4779,MATCH(Assets!T$1&"|"&Assets!$B14,'Data Annex'!$K$1:$K$4779,0),MATCH(Assets!T$2,'Data Annex'!$K$1:$BU$1,0)),"") -> 0.03621937124 | U14: =IFERROR(INDEX('Data Annex'!$K$1:$BU$4779,MATCH(Assets!U$1&"|"&Assets!$B14,'Data Annex'!$K$1:$K$4779,0),MATCH(Assets!U$2,'Data Annex'!$K$1:$BU$1,0)),"") -> 0.02896711091 | V14: =IFERROR(INDEX('Data Annex'!$K$1:$BU$4779,MATCH(Assets!V$1&"|"&Assets!$B14,'Data Annex'!$K$1:$K$4779,0),MATCH(Assets!V$2,'Data Annex'!$K$1:$BU$1,0)),"") -> 0.02672748174 | W14: =IFERROR(INDEX('Data Annex'!$K$1:$AH$4779,MATCH(Assets!AC$1&"|"&Assets!$B14,'Data Annex'!$K$1:$K$4779,0),MATCH(Assets!AC$2,'Data Annex'!$K$1:$AH$1,0)),"") -> 
B15: BG | D15: BG | E15: =IFERROR(INDEX('Data Annex'!$K$1:$BU$4779,MATCH(Assets!E$1&"|"&Assets!$B15,'Data Annex'!$K$1:$K$4779,0),MATCH(Assets!E$2,'Data Annex'!$K$1:$BU$1,0)),"") -> 0.1945400589 | F15: =IFERROR(INDEX('Data Annex'!$K$1:$BU$4779,MATCH(Assets!F$1&"|"&Assets!$B15,'Data Annex'!$K$1:$K$4779,0),MATCH(Assets!F$2,'Data Annex'!$K$1:$BU$1,0)),"") -> 0.2020866242 | G15: =IFERROR(INDEX('Data Annex'!$K$1:$BU$4779,MATCH(Assets!G$1&"|"&Assets!$B15,'Data Annex'!$K$1:$K$4779,0),MATCH(Assets!G$2,'Data Annex'!$K$1:$BU$1,0)),"") -> 0.1808433137 | H15: =IFERROR(INDEX('Data Annex'!$K$1:$BU$4779,MATCH(Assets!H$1&"|"&Assets!$B15,'Data Annex'!$K$1:$K$4779,0),MATCH(Assets!H$2,'Data Annex'!$K$1:$BU$1,0)),"") -> 0.001097193706 | I15: =IFERROR(INDEX('Data Annex'!$K$1:$BU$4779,MATCH(Assets!I$1&"|"&Assets!$B15,'Data Annex'!$K$1:$K$4779,0),MATCH(Assets!I$2,'Data Annex'!$K$1:$BU$1,0)),"") -> 0.0009451662262 | J15: =IFERROR(INDEX('Data Annex'!$K$1:$BU$4779,MATCH(Assets!J$1&"|"&Assets!$B15,'Data Annex'!$K$1:$K$4779,0),MATCH(Assets!J$2,'Data Annex'!$K$1:$BU$1,0)),"") -> 0.001121326407 | K15: =IFERROR(INDEX('Data Annex'!$K$1:$BU$4779,MATCH(Assets!K$1&"|"&Assets!$B15,'Data Annex'!$K$1:$K$4779,0),MATCH(Assets!K$2,'Data Annex'!$K$1:$BU$1,0)),"") -> 0.1548391037 | L15: =IFERROR(INDEX('Data Annex'!$K$1:$BU$4779,MATCH(Assets!L$1&"|"&Assets!$B15,'Data Annex'!$K$1:$K$4779,0),MATCH(Assets!L$2,'Data Annex'!$K$1:$BU$1,0)),"") -> 0.1496037321 | M15: =IFERROR(INDEX('Data Annex'!$K$1:$BU$4779,MATCH(Assets!M$1&"|"&Assets!$B15,'Data Annex'!$K$1:$K$4779,0),MATCH(Assets!M$2,'Data Annex'!$K$1:$BU$1,0)),"") -> 0.1359769946 | N15: =IFERROR(INDEX('Data Annex'!$K$1:$BU$4779,MATCH(Assets!N$1&"|"&Assets!$B15,'Data Annex'!$K$1:$K$4779,0),MATCH(Assets!N$2,'Data Annex'!$K$1:$BU$1,0)),"") -> 0.6229507417 | O15: =IFERROR(INDEX('Data Annex'!$K$1:$BU$4779,MATCH(Assets!O$1&"|"&Assets!$B15,'Data Annex'!$K$1:$K$4779,0),MATCH(Assets!O$2,'Data Annex'!$K$1:$BU$1,0)),"") -> 0.6199739743 | P15: =IFERROR(INDEX('Data Annex'!$K$1:$BU$4779,MATCH(Assets!P$1&"|"&Assets!$B15,'Data Annex'!$K$1:$K$4779,0),MATCH(Assets!P$2,'Data Annex'!$K$1:$BU$1,0)),"") -> 0.6578193492 | Q15: =IFERROR(INDEX('Data Annex'!$K$1:$BU$4779,MATCH(Assets!Q$1&"|"&Assets!$B15,'Data Annex'!$K$1:$K$4779,0),MATCH(Assets!Q$2,'Data Annex'!$K$1:$BU$1,0)),"") -> 0.003042620053 | R15: =IFERROR(INDEX('Data Annex'!$K$1:$BU$4779,MATCH(Assets!R$1&"|"&Assets!$B15,'Data Annex'!$K$1:$K$4779,0),MATCH(Assets!R$2,'Data Annex'!$K$1:$BU$1,0)),"") -> 0.004866394786 | S15: =IFERROR(INDEX('Data Annex'!$K$1:$BU$4779,MATCH(Assets!S$1&"|"&Assets!$B15,'Data Annex'!$K$1:$K$4779,0),MATCH(Assets!S$2,'Data Annex'!$K$1:$BU$1,0)),"") -> 0.004563795569 | T15: =IFERROR(INDEX('Data Annex'!$K$1:$BU$4779,MATCH(Assets!T$1&"|"&Assets!$B15,'Data Annex'!$K$1:$K$4779,0),MATCH(Assets!T$2,'Data Annex'!$K$1:$BU$1,0)),"") -> 0.02353028196 | U15: =IFERROR(INDEX('Data Annex'!$K$1:$BU$4779,MATCH(Assets!U$1&"|"&Assets!$B15,'Data Annex'!$K$1:$K$4779,0),MATCH(Assets!U$2,'Data Annex'!$K$1:$BU$1,0)),"") -> 0.02252410847 | V15: =IFERROR(INDEX('Data Annex'!$K$1:$BU$4779,MATCH(Assets!V$1&"|"&Assets!$B15,'Data Annex'!$K$1:$K$4779,0),MATCH(Assets!V$2,'Data Annex'!$K$1:$BU$1,0)),"") -> 0.01967522056 | W15: =IFERROR(INDEX('Data Annex'!$K$1:$AH$4779,MATCH(Assets!AC$1&"|"&Assets!$B15,'Data Annex'!$K$1:$K$4779,0),MATCH(Assets!AC$2,'Data Annex'!$K$1:$AH$1,0)),"") -> 
B16: CY | D16: CY | E16: =IFERROR(INDEX('Data Annex'!$K$1:$BU$4779,MATCH(Assets!E$1&"|"&Assets!$B16,'Data Annex'!$K$1:$K$4779,0),MATCH(Assets!E$2,'Data Annex'!$K$1:$BU$1,0)),"") -> 0.3910709238 | F16: =IFERROR(INDEX('Data Annex'!$K$1:$BU$4779,MATCH(Assets!F$1&"|"&Assets!$B16,'Data Annex'!$K$1:$K$4779,0),MATCH(Assets!F$2,'Data Annex'!$K$1:$BU$1,0)),"") -> 0.4095779879 | G16: =IFERROR(INDEX('Data Annex'!$K$1:$BU$4779,MATCH(Assets!G$1&"|"&Assets!$B16,'Data Annex'!$K$1:$K$4779,0),MATCH(Assets!G$2,'Data Annex'!$K$1:$BU$1,0)),"") -> 0.4024078189 | H16: =IFERROR(INDEX('Data Annex'!$K$1:$BU$4779,MATCH(Assets!H$1&"|"&Assets!$B16,'Data Annex'!$K$1:$K$4779,0),MATCH(Assets!H$2,'Data Annex'!$K$1:$BU$1,0)),"") -> 0.001334883976 | I16: =IFERROR(INDEX('Data Annex'!$K$1:$BU$4779,MATCH(Assets!I$1&"|"&Assets!$B16,'Data Annex'!$K$1:$K$4779,0),MATCH(Assets!I$2,'Data Annex'!$K$1:$BU$1,0)),"") -> 0.001209735077 | J16: =IFERROR(INDEX('Data Annex'!$K$1:$BU$4779,MATCH(Assets!J$1&"|"&Assets!$B16,'Data Annex'!$K$1:$K$4779,0),MATCH(Assets!J$2,'Data Annex'!$K$1:$BU$1,0)),"") -> 0.001162674679 | K16: =IFERROR(INDEX('Data Annex'!$K$1:$BU$4779,MATCH(Assets!K$1&"|"&Assets!$B16,'Data Annex'!$K$1:$K$4779,0),MATCH(Assets!K$2,'Data Annex'!$K$1:$BU$1,0)),"") -> 0.1449973904 | L16: =IFERROR(INDEX('Data Annex'!$K$1:$BU$4779,MATCH(Assets!L$1&"|"&Assets!$B16,'Data Annex'!$K$1:$K$4779,0),MATCH(Assets!L$2,'Data Annex'!$K$1:$BU$1,0)),"") -> 0.1561084301 | M16: =IFERROR(INDEX('Data Annex'!$K$1:$BU$4779,MATCH(Assets!M$1&"|"&Assets!$B16,'Data Annex'!$K$1:$K$4779,0),MATCH(Assets!M$2,'Data Annex'!$K$1:$BU$1,0)),"") -> 0.1676508397 | N16: =IFERROR(INDEX('Data Annex'!$K$1:$BU$4779,MATCH(Assets!N$1&"|"&Assets!$B16,'Data Annex'!$K$1:$K$4779,0),MATCH(Assets!N$2,'Data Annex'!$K$1:$BU$1,0)),"") -> 0.384626225 | O16: =IFERROR(INDEX('Data Annex'!$K$1:$BU$4779,MATCH(Assets!O$1&"|"&Assets!$B16,'Data Annex'!$K$1:$K$4779,0),MATCH(Assets!O$2,'Data Annex'!$K$1:$BU$1,0)),"") -> 0.3682615975 | P16: =IFERROR(INDEX('Data Annex'!$K$1:$BU$4779,MATCH(Assets!P$1&"|"&Assets!$B16,'Data Annex'!$K$1:$K$4779,0),MATCH(Assets!P$2,'Data Annex'!$K$1:$BU$1,0)),"") -> 0.3708731377 | Q16: =IFERROR(INDEX('Data Annex'!$K$1:$BU$4779,MATCH(Assets!Q$1&"|"&Assets!$B16,'Data Annex'!$K$1:$K$4779,0),MATCH(Assets!Q$2,'Data Annex'!$K$1:$BU$1,0)),"") -> 0.0002753668635 | R16: =IFERROR(INDEX('Data Annex'!$K$1:$BU$4779,MATCH(Assets!R$1&"|"&Assets!$B16,'Data Annex'!$K$1:$K$4779,0),MATCH(Assets!R$2,'Data Annex'!$K$1:$BU$1,0)),"") -> 0.00107646136 | S16: =IFERROR(INDEX('Data Annex'!$K$1:$BU$4779,MATCH(Assets!S$1&"|"&Assets!$B16,'Data Annex'!$K$1:$K$4779,0),MATCH(Assets!S$2,'Data Annex'!$K$1:$BU$1,0)),"") -> 0.0010375477 | T16: =IFERROR(INDEX('Data Annex'!$K$1:$BU$4779,MATCH(Assets!T$1&"|"&Assets!$B16,'Data Annex'!$K$1:$K$4779,0),MATCH(Assets!T$2,'Data Annex'!$K$1:$BU$1,0)),"") -> 0.07769520999 | U16: =IFERROR(INDEX('Data Annex'!$K$1:$BU$4779,MATCH(Assets!U$1&"|"&Assets!$B16,'Data Annex'!$K$1:$K$4779,0),MATCH(Assets!U$2,'Data Annex'!$K$1:$BU$1,0)),"") -> 0.06376578802 | V16: =IFERROR(INDEX('Data Annex'!$K$1:$BU$4779,MATCH(Assets!V$1&"|"&Assets!$B16,'Data Annex'!$K$1:$K$4779,0),MATCH(Assets!V$2,'Data Annex'!$K$1:$BU$1,0)),"") -> 0.05686798132 | W16: =IFERROR(INDEX('Data Annex'!$K$1:$AH$4779,MATCH(Assets!AC$1&"|"&Assets!$B16,'Data Annex'!$K$1:$K$4779,0),MATCH(Assets!AC$2,'Data Annex'!$K$1:$AH$1,0)),"") -> 
B17: CZ | D17: CZ | E17: =IFERROR(INDEX('Data Annex'!$K$1:$BU$4779,MATCH(Assets!E$1&"|"&Assets!$B17,'Data Annex'!$K$1:$K$4779,0),MATCH(Assets!E$2,'Data Annex'!$K$1:$BU$1,0)),"") -> 0.09378216149 | F17: =IFERROR(INDEX('Data Annex'!$K$1:$BU$4779,MATCH(Assets!F$1&"|"&Assets!$B17,'Data Annex'!$K$1:$K$4779,0),MATCH(Assets!F$2,'Data Annex'!$K$1:$BU$1,0)),"") -> 0.02090904062 | G17: =IFERROR(INDEX('Data Annex'!$K$1:$BU$4779,MATCH(Assets!G$1&"|"&Assets!$B17,'Data Annex'!$K$1:$K$4779,0),MATCH(Assets!G$2,'Data Annex'!$K$1:$BU$1,0)),"") -> 0.01879908141 | H17: =IFERROR(INDEX('Data Annex'!$K$1:$BU$4779,MATCH(Assets!H$1&"|"&Assets!$B17,'Data Annex'!$K$1:$K$4779,0),MATCH(Assets!H$2,'Data Annex'!$K$1:$BU$1,0)),"") -> 0.0003761918644 | I17: =IFERROR(INDEX('Data Annex'!$K$1:$BU$4779,MATCH(Assets!I$1&"|"&Assets!$B17,'Data Annex'!$K$1:$K$4779,0),MATCH(Assets!I$2,'Data Annex'!$K$1:$BU$1,0)),"") -> 0.000386962364 | J17: =IFERROR(INDEX('Data Annex'!$K$1:$BU$4779,MATCH(Assets!J$1&"|"&Assets!$B17,'Data Annex'!$K$1:$K$4779,0),MATCH(Assets!J$2,'Data Annex'!$K$1:$BU$1,0)),"") -> 0.0003425336161 | K17: =IFERROR(INDEX('Data Annex'!$K$1:$BU$4779,MATCH(Assets!K$1&"|"&Assets!$B17,'Data Annex'!$K$1:$K$4779,0),MATCH(Assets!K$2,'Data Annex'!$K$1:$BU$1,0)),"") -> 0.1501707218 | L17: =IFERROR(INDEX('Data Annex'!$K$1:$BU$4779,MATCH(Assets!L$1&"|"&Assets!$B17,'Data Annex'!$K$1:$K$4779,0),MATCH(Assets!L$2,'Data Annex'!$K$1:$BU$1,0)),"") -> 0.1778883378 | M17: =IFERROR(INDEX('Data Annex'!$K$1:$BU$4779,MATCH(Assets!M$1&"|"&Assets!$B17,'Data Annex'!$K$1:$K$4779,0),MATCH(Assets!M$2,'Data Annex'!$K$1:$BU$1,0)),"") -> 0.1722123764 | N17: =IFERROR(INDEX('Data Annex'!$K$1:$BU$4779,MATCH(Assets!N$1&"|"&Assets!$B17,'Data Annex'!$K$1:$K$4779,0),MATCH(Assets!N$2,'Data Annex'!$K$1:$BU$1,0)),"") -> 0.7141074461 | O17: =IFERROR(INDEX('Data Annex'!$K$1:$BU$4779,MATCH(Assets!O$1&"|"&Assets!$B17,'Data Annex'!$K$1:$K$4779,0),MATCH(Assets!O$2,'Data Annex'!$K$1:$BU$1,0)),"") -> 0.7421238091 | P17: =IFERROR(INDEX('Data Annex'!$K$1:$BU$4779,MATCH(Assets!P$1&"|"&Assets!$B17,'Data Annex'!$K$1:$K$4779,0),MATCH(Assets!P$2,'Data Annex'!$K$1:$BU$1,0)),"") -> 0.7568915311 | Q17: =IFERROR(INDEX('Data Annex'!$K$1:$BU$4779,MATCH(Assets!Q$1&"|"&Assets!$B17,'Data Annex'!$K$1:$K$4779,0),MATCH(Assets!Q$2,'Data Annex'!$K$1:$BU$1,0)),"") -> 0.03032151577 | R17: =IFERROR(INDEX('Data Annex'!$K$1:$BU$4779,MATCH(Assets!R$1&"|"&Assets!$B17,'Data Annex'!$K$1:$K$4779,0),MATCH(Assets!R$2,'Data Annex'!$K$1:$BU$1,0)),"") -> 0.04620410993 | S17: =IFERROR(INDEX('Data Annex'!$K$1:$BU$4779,MATCH(Assets!S$1&"|"&Assets!$B17,'Data Annex'!$K$1:$K$4779,0),MATCH(Assets!S$2,'Data Annex'!$K$1:$BU$1,0)),"") -> 0.03905166269 | T17: =IFERROR(INDEX('Data Annex'!$K$1:$BU$4779,MATCH(Assets!T$1&"|"&Assets!$B17,'Data Annex'!$K$1:$K$4779,0),MATCH(Assets!T$2,'Data Annex'!$K$1:$BU$1,0)),"") -> 0.01124196307 | U17: =IFERROR(INDEX('Data Annex'!$K$1:$BU$4779,MATCH(Assets!U$1&"|"&Assets!$B17,'Data Annex'!$K$1:$K$4779,0),MATCH(Assets!U$2,'Data Annex'!$K$1:$BU$1,0)),"") -> 0.01248774018 | V17: =IFERROR(INDEX('Data Annex'!$K$1:$BU$4779,MATCH(Assets!V$1&"|"&Assets!$B17,'Data Annex'!$K$1:$K$4779,0),MATCH(Assets!V$2,'Data Annex'!$K$1:$BU$1,0)),"") -> 0.01270281485 | W17: =IFERROR(INDEX('Data Annex'!$K$1:$AH$4779,MATCH(Assets!AC$1&"|"&Assets!$B17,'Data Annex'!$K$1:$K$4779,0),MATCH(Assets!AC$2,'Data Annex'!$K$1:$AH$1,0)),"") -> 
B18: DE | D18: DE | E18: =IFERROR(INDEX('Data Annex'!$K$1:$BU$4779,MATCH(Assets!E$1&"|"&Assets!$B18,'Data Annex'!$K$1:$K$4779,0),MATCH(Assets!E$2,'Data Annex'!$K$1:$BU$1,0)),"") -> 0.1859071793 | F18: =IFERROR(INDEX('Data Annex'!$K$1:$BU$4779,MATCH(Assets!F$1&"|"&Assets!$B18,'Data Annex'!$K$1:$K$4779,0),MATCH(Assets!F$2,'Data Annex'!$K$1:$BU$1,0)),"") -> 0.1596438741 | G18: =IFERROR(INDEX('Data Annex'!$K$1:$BU$4779,MATCH(Assets!G$1&"|"&Assets!$B18,'Data Annex'!$K$1:$K$4779,0),MATCH(Assets!G$2,'Data Annex'!$K$1:$BU$1,0)),"") -> 0.1775780631 | H18: =IFERROR(INDEX('Data Annex'!$K$1:$BU$4779,MATCH(Assets!H$1&"|"&Assets!$B18,'Data Annex'!$K$1:$K$4779,0),MATCH(Assets!H$2,'Data Annex'!$K$1:$BU$1,0)),"") -> 0.005279725654 | I18: =IFERROR(INDEX('Data Annex'!$K$1:$BU$4779,MATCH(Assets!I$1&"|"&Assets!$B18,'Data Annex'!$K$1:$K$4779,0),MATCH(Assets!I$2,'Data Annex'!$K$1:$BU$1,0)),"") -> 0.004697076634 | J18: =IFERROR(INDEX('Data Annex'!$K$1:$BU$4779,MATCH(Assets!J$1&"|"&Assets!$B18,'Data Annex'!$K$1:$K$4779,0),MATCH(Assets!J$2,'Data Annex'!$K$1:$BU$1,0)),"") -> 0.004662362066 | K18: =IFERROR(INDEX('Data Annex'!$K$1:$BU$4779,MATCH(Assets!K$1&"|"&Assets!$B18,'Data Annex'!$K$1:$K$4779,0),MATCH(Assets!K$2,'Data Annex'!$K$1:$BU$1,0)),"") -> 0.1180226068 | L18: =IFERROR(INDEX('Data Annex'!$K$1:$BU$4779,MATCH(Assets!L$1&"|"&Assets!$B18,'Data Annex'!$K$1:$K$4779,0),MATCH(Assets!L$2,'Data Annex'!$K$1:$BU$1,0)),"") -> 0.1141589937 | M18: =IFERROR(INDEX('Data Annex'!$K$1:$BU$4779,MATCH(Assets!M$1&"|"&Assets!$B18,'Data Annex'!$K$1:$K$4779,0),MATCH(Assets!M$2,'Data Annex'!$K$1:$BU$1,0)),"") -> 0.1167445034 | N18: =IFERROR(INDEX('Data Annex'!$K$1:$BU$4779,MATCH(Assets!N$1&"|"&Assets!$B18,'Data Annex'!$K$1:$K$4779,0),MATCH(Assets!N$2,'Data Annex'!$K$1:$BU$1,0)),"") -> 0.5573600895 | O18: =IFERROR(INDEX('Data Annex'!$K$1:$BU$4779,MATCH(Assets!O$1&"|"&Assets!$B18,'Data Annex'!$K$1:$K$4779,0),MATCH(Assets!O$2,'Data Annex'!$K$1:$BU$1,0)),"") -> 0.578663357 | P18: =IFERROR(INDEX('Data Annex'!$K$1:$BU$4779,MATCH(Assets!P$1&"|"&Assets!$B18,'Data Annex'!$K$1:$K$4779,0),MATCH(Assets!P$2,'Data Annex'!$K$1:$BU$1,0)),"") -> 0.5801789344 | Q18: =IFERROR(INDEX('Data Annex'!$K$1:$BU$4779,MATCH(Assets!Q$1&"|"&Assets!$B18,'Data Annex'!$K$1:$K$4779,0),MATCH(Assets!Q$2,'Data Annex'!$K$1:$BU$1,0)),"") -> 0.110790188 | R18: =IFERROR(INDEX('Data Annex'!$K$1:$BU$4779,MATCH(Assets!R$1&"|"&Assets!$B18,'Data Annex'!$K$1:$K$4779,0),MATCH(Assets!R$2,'Data Annex'!$K$1:$BU$1,0)),"") -> 0.1225443087 | S18: =IFERROR(INDEX('Data Annex'!$K$1:$BU$4779,MATCH(Assets!S$1&"|"&Assets!$B18,'Data Annex'!$K$1:$K$4779,0),MATCH(Assets!S$2,'Data Annex'!$K$1:$BU$1,0)),"") -> 0.09999198709 | T18: =IFERROR(INDEX('Data Annex'!$K$1:$BU$4779,MATCH(Assets!T$1&"|"&Assets!$B18,'Data Annex'!$K$1:$K$4779,0),MATCH(Assets!T$2,'Data Annex'!$K$1:$BU$1,0)),"") -> 0.02264021096 | U18: =IFERROR(INDEX('Data Annex'!$K$1:$BU$4779,MATCH(Assets!U$1&"|"&Assets!$B18,'Data Annex'!$K$1:$K$4779,0),MATCH(Assets!U$2,'Data Annex'!$K$1:$BU$1,0)),"") -> 0.02029239012 | V18: =IFERROR(INDEX('Data Annex'!$K$1:$BU$4779,MATCH(Assets!V$1&"|"&Assets!$B18,'Data Annex'!$K$1:$K$4779,0),MATCH(Assets!V$2,'Data Annex'!$K$1:$BU$1,0)),"") -> 0.02084414996 | W18: =IFERROR(INDEX('Data Annex'!$K$1:$AH$4779,MATCH(Assets!AC$1&"|"&Assets!$B18,'Data Annex'!$K$1:$K$4779,0),MATCH(Assets!AC$2,'Data Annex'!$K$1:$AH$1,0)),"") -> 
B19: DK | D19: DK | E19: =IFERROR(INDEX('Data Annex'!$K$1:$BU$4779,MATCH(Assets!E$1&"|"&Assets!$B19,'Data Annex'!$K$1:$K$4779,0),MATCH(Assets!E$2,'Data Annex'!$K$1:$BU$1,0)),"") -> 0.06120203082 | F19: =IFERROR(INDEX('Data Annex'!$K$1:$BU$4779,MATCH(Assets!F$1&"|"&Assets!$B19,'Data Annex'!$K$1:$K$4779,0),MATCH(Assets!F$2,'Data Annex'!$K$1:$BU$1,0)),"") -> 0.05272256244 | G19: =IFERROR(INDEX('Data Annex'!$K$1:$BU$4779,MATCH(Assets!G$1&"|"&Assets!$B19,'Data Annex'!$K$1:$K$4779,0),MATCH(Assets!G$2,'Data Annex'!$K$1:$BU$1,0)),"") -> 0.07491915035 | H19: =IFERROR(INDEX('Data Annex'!$K$1:$BU$4779,MATCH(Assets!H$1&"|"&Assets!$B19,'Data Annex'!$K$1:$K$4779,0),MATCH(Assets!H$2,'Data Annex'!$K$1:$BU$1,0)),"") -> 0.003585913677 | I19: =IFERROR(INDEX('Data Annex'!$K$1:$BU$4779,MATCH(Assets!I$1&"|"&Assets!$B19,'Data Annex'!$K$1:$K$4779,0),MATCH(Assets!I$2,'Data Annex'!$K$1:$BU$1,0)),"") -> 0.003496231456 | J19: =IFERROR(INDEX('Data Annex'!$K$1:$BU$4779,MATCH(Assets!J$1&"|"&Assets!$B19,'Data Annex'!$K$1:$K$4779,0),MATCH(Assets!J$2,'Data Annex'!$K$1:$BU$1,0)),"") -> 0.003969931452 | K19: =IFERROR(INDEX('Data Annex'!$K$1:$BU$4779,MATCH(Assets!K$1&"|"&Assets!$B19,'Data Annex'!$K$1:$K$4779,0),MATCH(Assets!K$2,'Data Annex'!$K$1:$BU$1,0)),"") -> 0.1303542204 | L19: =IFERROR(INDEX('Data Annex'!$K$1:$BU$4779,MATCH(Assets!L$1&"|"&Assets!$B19,'Data Annex'!$K$1:$K$4779,0),MATCH(Assets!L$2,'Data Annex'!$K$1:$BU$1,0)),"") -> 0.1194982936 | M19: =IFERROR(INDEX('Data Annex'!$K$1:$BU$4779,MATCH(Assets!M$1&"|"&Assets!$B19,'Data Annex'!$K$1:$K$4779,0),MATCH(Assets!M$2,'Data Annex'!$K$1:$BU$1,0)),"") -> 0.1174589014 | N19: =IFERROR(INDEX('Data Annex'!$K$1:$BU$4779,MATCH(Assets!N$1&"|"&Assets!$B19,'Data Annex'!$K$1:$K$4779,0),MATCH(Assets!N$2,'Data Annex'!$K$1:$BU$1,0)),"") -> 0.7161111489 | O19: =IFERROR(INDEX('Data Annex'!$K$1:$BU$4779,MATCH(Assets!O$1&"|"&Assets!$B19,'Data Annex'!$K$1:$K$4779,0),MATCH(Assets!O$2,'Data Annex'!$K$1:$BU$1,0)),"") -> 0.7162264039 | P19: =IFERROR(INDEX('Data Annex'!$K$1:$BU$4779,MATCH(Assets!P$1&"|"&Assets!$B19,'Data Annex'!$K$1:$K$4779,0),MATCH(Assets!P$2,'Data Annex'!$K$1:$BU$1,0)),"") -> 0.7074414075 | Q19: =IFERROR(INDEX('Data Annex'!$K$1:$BU$4779,MATCH(Assets!Q$1&"|"&Assets!$B19,'Data Annex'!$K$1:$K$4779,0),MATCH(Assets!Q$2,'Data Annex'!$K$1:$BU$1,0)),"") -> 0.06500255091 | R19: =IFERROR(INDEX('Data Annex'!$K$1:$BU$4779,MATCH(Assets!R$1&"|"&Assets!$B19,'Data Annex'!$K$1:$K$4779,0),MATCH(Assets!R$2,'Data Annex'!$K$1:$BU$1,0)),"") -> 0.08409246049 | S19: =IFERROR(INDEX('Data Annex'!$K$1:$BU$4779,MATCH(Assets!S$1&"|"&Assets!$B19,'Data Annex'!$K$1:$K$4779,0),MATCH(Assets!S$2,'Data Annex'!$K$1:$BU$1,0)),"") -> 0.07273420304 | T19: =IFERROR(INDEX('Data Annex'!$K$1:$BU$4779,MATCH(Assets!T$1&"|"&Assets!$B19,'Data Annex'!$K$1:$K$4779,0),MATCH(Assets!T$2,'Data Annex'!$K$1:$BU$1,0)),"") -> 0.02374413525 | U19: =IFERROR(INDEX('Data Annex'!$K$1:$BU$4779,MATCH(Assets!U$1&"|"&Assets!$B19,'Data Annex'!$K$1:$K$4779,0),MATCH(Assets!U$2,'Data Annex'!$K$1:$BU$1,0)),"") -> 0.02396404808 | V19: =IFERROR(INDEX('Data Annex'!$K$1:$BU$4779,MATCH(Assets!V$1&"|"&Assets!$B19,'Data Annex'!$K$1:$K$4779,0),MATCH(Assets!V$2,'Data Annex'!$K$1:$BU$1,0)),"") -> 0.02347640627 | W19: =IFERROR(INDEX('Data Annex'!$K$1:$AH$4779,MATCH(Assets!AC$1&"|"&Assets!$B19,'Data Annex'!$K$1:$K$4779,0),MATCH(Assets!AC$2,'Data Annex'!$K$1:$AH$1,0)),"") -> 
B20: EE | D20: EE | E20: =IFERROR(INDEX('Data Annex'!$K$1:$BU$4779,MATCH(Assets!E$1&"|"&Assets!$B20,'Data Annex'!$K$1:$K$4779,0),MATCH(Assets!E$2,'Data Annex'!$K$1:$BU$1,0)),"") -> 0.2577233491 | F20: =IFERROR(INDEX('Data Annex'!$K$1:$BU$4779,MATCH(Assets!F$1&"|"&Assets!$B20,'Data Annex'!$K$1:$K$4779,0),MATCH(Assets!F$2,'Data Annex'!$K$1:$BU$1,0)),"") -> 0.2006889816 | G20: =IFERROR(INDEX('Data Annex'!$K$1:$BU$4779,MATCH(Assets!G$1&"|"&Assets!$B20,'Data Annex'!$K$1:$K$4779,0),MATCH(Assets!G$2,'Data Annex'!$K$1:$BU$1,0)),"") -> 0.2280057399 | H20: =IFERROR(INDEX('Data Annex'!$K$1:$BU$4779,MATCH(Assets!H$1&"|"&Assets!$B20,'Data Annex'!$K$1:$K$4779,0),MATCH(Assets!H$2,'Data Annex'!$K$1:$BU$1,0)),"") -> 0.0002360818558 | I20: =IFERROR(INDEX('Data Annex'!$K$1:$BU$4779,MATCH(Assets!I$1&"|"&Assets!$B20,'Data Annex'!$K$1:$K$4779,0),MATCH(Assets!I$2,'Data Annex'!$K$1:$BU$1,0)),"") -> 0.0003044403553 | J20: =IFERROR(INDEX('Data Annex'!$K$1:$BU$4779,MATCH(Assets!J$1&"|"&Assets!$B20,'Data Annex'!$K$1:$K$4779,0),MATCH(Assets!J$2,'Data Annex'!$K$1:$BU$1,0)),"") -> 0.0002986616488 | K20: =IFERROR(INDEX('Data Annex'!$K$1:$BU$4779,MATCH(Assets!K$1&"|"&Assets!$B20,'Data Annex'!$K$1:$K$4779,0),MATCH(Assets!K$2,'Data Annex'!$K$1:$BU$1,0)),"") -> 0.07913542503 | L20: =IFERROR(INDEX('Data Annex'!$K$1:$BU$4779,MATCH(Assets!L$1&"|"&Assets!$B20,'Data Annex'!$K$1:$K$4779,0),MATCH(Assets!L$2,'Data Annex'!$K$1:$BU$1,0)),"") -> 0.04842473103 | M20: =IFERROR(INDEX('Data Annex'!$K$1:$BU$4779,MATCH(Assets!M$1&"|"&Assets!$B20,'Data Annex'!$K$1:$K$4779,0),MATCH(Assets!M$2,'Data Annex'!$K$1:$BU$1,0)),"") -> 0.04710568384 | N20: =IFERROR(INDEX('Data Annex'!$K$1:$BU$4779,MATCH(Assets!N$1&"|"&Assets!$B20,'Data Annex'!$K$1:$K$4779,0),MATCH(Assets!N$2,'Data Annex'!$K$1:$BU$1,0)),"") -> 0.6513513098 | O20: =IFERROR(INDEX('Data Annex'!$K$1:$BU$4779,MATCH(Assets!O$1&"|"&Assets!$B20,'Data Annex'!$K$1:$K$4779,0),MATCH(Assets!O$2,'Data Annex'!$K$1:$BU$1,0)),"") -> 0.7352484429 | P20: =IFERROR(INDEX('Data Annex'!$K$1:$BU$4779,MATCH(Assets!P$1&"|"&Assets!$B20,'Data Annex'!$K$1:$K$4779,0),MATCH(Assets!P$2,'Data Annex'!$K$1:$BU$1,0)),"") -> 0.7106022063 | Q20: =IFERROR(INDEX('Data Annex'!$K$1:$BU$4779,MATCH(Assets!Q$1&"|"&Assets!$B20,'Data Annex'!$K$1:$K$4779,0),MATCH(Assets!Q$2,'Data Annex'!$K$1:$BU$1,0)),"") -> 0.004248041596 | R20: =IFERROR(INDEX('Data Annex'!$K$1:$BU$4779,MATCH(Assets!R$1&"|"&Assets!$B20,'Data Annex'!$K$1:$K$4779,0),MATCH(Assets!R$2,'Data Annex'!$K$1:$BU$1,0)),"") -> 0.004631304302 | S20: =IFERROR(INDEX('Data Annex'!$K$1:$BU$4779,MATCH(Assets!S$1&"|"&Assets!$B20,'Data Annex'!$K$1:$K$4779,0),MATCH(Assets!S$2,'Data Annex'!$K$1:$BU$1,0)),"") -> 0.004325738099 | T20: =IFERROR(INDEX('Data Annex'!$K$1:$BU$4779,MATCH(Assets!T$1&"|"&Assets!$B20,'Data Annex'!$K$1:$K$4779,0),MATCH(Assets!T$2,'Data Annex'!$K$1:$BU$1,0)),"") -> 0.007305792624 | U20: =IFERROR(INDEX('Data Annex'!$K$1:$BU$4779,MATCH(Assets!U$1&"|"&Assets!$B20,'Data Annex'!$K$1:$K$4779,0),MATCH(Assets!U$2,'Data Annex'!$K$1:$BU$1,0)),"") -> 0.01070209978 | V20: =IFERROR(INDEX('Data Annex'!$K$1:$BU$4779,MATCH(Assets!V$1&"|"&Assets!$B20,'Data Annex'!$K$1:$K$4779,0),MATCH(Assets!V$2,'Data Annex'!$K$1:$BU$1,0)),"") -> 0.009661970198 | W20: =IFERROR(INDEX('Data Annex'!$K$1:$AH$4779,MATCH(Assets!AC$1&"|"&Assets!$B20,'Data Annex'!$K$1:$K$4779,0),MATCH(Assets!AC$2,'Data Annex'!$K$1:$AH$1,0)),"") -> 
B21: ES | D21: ES | E21: =IFERROR(INDEX('Data Annex'!$K$1:$BU$4779,MATCH(Assets!E$1&"|"&Assets!$B21,'Data Annex'!$K$1:$K$4779,0),MATCH(Assets!E$2,'Data Annex'!$K$1:$BU$1,0)),"") -> 0.1359819715 | F21: =IFERROR(INDEX('Data Annex'!$K$1:$BU$4779,MATCH(Assets!F$1&"|"&Assets!$B21,'Data Annex'!$K$1:$K$4779,0),MATCH(Assets!F$2,'Data Annex'!$K$1:$BU$1,0)),"") -> 0.1102749807 | G21: =IFERROR(INDEX('Data Annex'!$K$1:$BU$4779,MATCH(Assets!G$1&"|"&Assets!$B21,'Data Annex'!$K$1:$K$4779,0),MATCH(Assets!G$2,'Data Annex'!$K$1:$BU$1,0)),"") -> 0.1090803149 | H21: =IFERROR(INDEX('Data Annex'!$K$1:$BU$4779,MATCH(Assets!H$1&"|"&Assets!$B21,'Data Annex'!$K$1:$K$4779,0),MATCH(Assets!H$2,'Data Annex'!$K$1:$BU$1,0)),"") -> 0.009866895401 | I21: =IFERROR(INDEX('Data Annex'!$K$1:$BU$4779,MATCH(Assets!I$1&"|"&Assets!$B21,'Data Annex'!$K$1:$K$4779,0),MATCH(Assets!I$2,'Data Annex'!$K$1:$BU$1,0)),"") -> 0.00685005157 | J21: =IFERROR(INDEX('Data Annex'!$K$1:$BU$4779,MATCH(Assets!J$1&"|"&Assets!$B21,'Data Annex'!$K$1:$K$4779,0),MATCH(Assets!J$2,'Data Annex'!$K$1:$BU$1,0)),"") -> 0.007919007447 | K21: =IFERROR(INDEX('Data Annex'!$K$1:$BU$4779,MATCH(Assets!K$1&"|"&Assets!$B21,'Data Annex'!$K$1:$K$4779,0),MATCH(Assets!K$2,'Data Annex'!$K$1:$BU$1,0)),"") -> 0.1269174176 | L21: =IFERROR(INDEX('Data Annex'!$K$1:$BU$4779,MATCH(Assets!L$1&"|"&Assets!$B21,'Data Annex'!$K$1:$K$4779,0),MATCH(Assets!L$2,'Data Annex'!$K$1:$BU$1,0)),"") -> 0.1331565864 | M21: =IFERROR(INDEX('Data Annex'!$K$1:$BU$4779,MATCH(Assets!M$1&"|"&Assets!$B21,'Data Annex'!$K$1:$K$4779,0),MATCH(Assets!M$2,'Data Annex'!$K$1:$BU$1,0)),"") -> 0.1384354225 | N21: =IFERROR(INDEX('Data Annex'!$K$1:$BU$4779,MATCH(Assets!N$1&"|"&Assets!$B21,'Data Annex'!$K$1:$K$4779,0),MATCH(Assets!N$2,'Data Annex'!$K$1:$BU$1,0)),"") -> 0.6330556307 | O21: =IFERROR(INDEX('Data Annex'!$K$1:$BU$4779,MATCH(Assets!O$1&"|"&Assets!$B21,'Data Annex'!$K$1:$K$4779,0),MATCH(Assets!O$2,'Data Annex'!$K$1:$BU$1,0)),"") -> 0.6503665832 | P21: =IFERROR(INDEX('Data Annex'!$K$1:$BU$4779,MATCH(Assets!P$1&"|"&Assets!$B21,'Data Annex'!$K$1:$K$4779,0),MATCH(Assets!P$2,'Data Annex'!$K$1:$BU$1,0)),"") -> 0.6484273099 | Q21: =IFERROR(INDEX('Data Annex'!$K$1:$BU$4779,MATCH(Assets!Q$1&"|"&Assets!$B21,'Data Annex'!$K$1:$K$4779,0),MATCH(Assets!Q$2,'Data Annex'!$K$1:$BU$1,0)),"") -> 0.03344292293 | R21: =IFERROR(INDEX('Data Annex'!$K$1:$BU$4779,MATCH(Assets!R$1&"|"&Assets!$B21,'Data Annex'!$K$1:$K$4779,0),MATCH(Assets!R$2,'Data Annex'!$K$1:$BU$1,0)),"") -> 0.04072296179 | S21: =IFERROR(INDEX('Data Annex'!$K$1:$BU$4779,MATCH(Assets!S$1&"|"&Assets!$B21,'Data Annex'!$K$1:$K$4779,0),MATCH(Assets!S$2,'Data Annex'!$K$1:$BU$1,0)),"") -> 0.038831131 | T21: =IFERROR(INDEX('Data Annex'!$K$1:$BU$4779,MATCH(Assets!T$1&"|"&Assets!$B21,'Data Annex'!$K$1:$K$4779,0),MATCH(Assets!T$2,'Data Annex'!$K$1:$BU$1,0)),"") -> 0.06073516239 | U21: =IFERROR(INDEX('Data Annex'!$K$1:$BU$4779,MATCH(Assets!U$1&"|"&Assets!$B21,'Data Annex'!$K$1:$K$4779,0),MATCH(Assets!U$2,'Data Annex'!$K$1:$BU$1,0)),"") -> 0.05862883631 | V21: =IFERROR(INDEX('Data Annex'!$K$1:$BU$4779,MATCH(Assets!V$1&"|"&Assets!$B21,'Data Annex'!$K$1:$K$4779,0),MATCH(Assets!V$2,'Data Annex'!$K$1:$BU$1,0)),"") -> 0.05730681374 | W21: =IFERROR(INDEX('Data Annex'!$K$1:$AH$4779,MATCH(Assets!AC$1&"|"&Assets!$B21,'Data Annex'!$K$1:$K$4779,0),MATCH(Assets!AC$2,'Data Annex'!$K$1:$AH$1,0)),"") -> 
B22: FI | D22: FI | E22: =IFERROR(INDEX('Data Annex'!$K$1:$BU$4779,MATCH(Assets!E$1&"|"&Assets!$B22,'Data Annex'!$K$1:$K$4779,0),MATCH(Assets!E$2,'Data Annex'!$K$1:$BU$1,0)),"") -> 0.14742942 | F22: =IFERROR(INDEX('Data Annex'!$K$1:$BU$4779,MATCH(Assets!F$1&"|"&Assets!$B22,'Data Annex'!$K$1:$K$4779,0),MATCH(Assets!F$2,'Data Annex'!$K$1:$BU$1,0)),"") -> 0.1451929718 | G22: =IFERROR(INDEX('Data Annex'!$K$1:$BU$4779,MATCH(Assets!G$1&"|"&Assets!$B22,'Data Annex'!$K$1:$K$4779,0),MATCH(Assets!G$2,'Data Annex'!$K$1:$BU$1,0)),"") -> 0.1241222922 | H22: =IFERROR(INDEX('Data Annex'!$K$1:$BU$4779,MATCH(Assets!H$1&"|"&Assets!$B22,'Data Annex'!$K$1:$K$4779,0),MATCH(Assets!H$2,'Data Annex'!$K$1:$BU$1,0)),"") -> 0.01558950965 | I22: =IFERROR(INDEX('Data Annex'!$K$1:$BU$4779,MATCH(Assets!I$1&"|"&Assets!$B22,'Data Annex'!$K$1:$K$4779,0),MATCH(Assets!I$2,'Data Annex'!$K$1:$BU$1,0)),"") -> 0.009406423533 | J22: =IFERROR(INDEX('Data Annex'!$K$1:$BU$4779,MATCH(Assets!J$1&"|"&Assets!$B22,'Data Annex'!$K$1:$K$4779,0),MATCH(Assets!J$2,'Data Annex'!$K$1:$BU$1,0)),"") -> 0.01366230324 | K22: =IFERROR(INDEX('Data Annex'!$K$1:$BU$4779,MATCH(Assets!K$1&"|"&Assets!$B22,'Data Annex'!$K$1:$K$4779,0),MATCH(Assets!K$2,'Data Annex'!$K$1:$BU$1,0)),"") -> 0.109346635 | L22: =IFERROR(INDEX('Data Annex'!$K$1:$BU$4779,MATCH(Assets!L$1&"|"&Assets!$B22,'Data Annex'!$K$1:$K$4779,0),MATCH(Assets!L$2,'Data Annex'!$K$1:$BU$1,0)),"") -> 0.1009124548 | M22: =IFERROR(INDEX('Data Annex'!$K$1:$BU$4779,MATCH(Assets!M$1&"|"&Assets!$B22,'Data Annex'!$K$1:$K$4779,0),MATCH(Assets!M$2,'Data Annex'!$K$1:$BU$1,0)),"") -> 0.1135179968 | N22: =IFERROR(INDEX('Data Annex'!$K$1:$BU$4779,MATCH(Assets!N$1&"|"&Assets!$B22,'Data Annex'!$K$1:$K$4779,0),MATCH(Assets!N$2,'Data Annex'!$K$1:$BU$1,0)),"") -> 0.6608238746 | O22: =IFERROR(INDEX('Data Annex'!$K$1:$BU$4779,MATCH(Assets!O$1&"|"&Assets!$B22,'Data Annex'!$K$1:$K$4779,0),MATCH(Assets!O$2,'Data Annex'!$K$1:$BU$1,0)),"") -> 0.6690742928 | P22: =IFERROR(INDEX('Data Annex'!$K$1:$BU$4779,MATCH(Assets!P$1&"|"&Assets!$B22,'Data Annex'!$K$1:$K$4779,0),MATCH(Assets!P$2,'Data Annex'!$K$1:$BU$1,0)),"") -> 0.6811329425 | Q22: =IFERROR(INDEX('Data Annex'!$K$1:$BU$4779,MATCH(Assets!Q$1&"|"&Assets!$B22,'Data Annex'!$K$1:$K$4779,0),MATCH(Assets!Q$2,'Data Annex'!$K$1:$BU$1,0)),"") -> 0.04713954017 | R22: =IFERROR(INDEX('Data Annex'!$K$1:$BU$4779,MATCH(Assets!R$1&"|"&Assets!$B22,'Data Annex'!$K$1:$K$4779,0),MATCH(Assets!R$2,'Data Annex'!$K$1:$BU$1,0)),"") -> 0.05920252817 | S22: =IFERROR(INDEX('Data Annex'!$K$1:$BU$4779,MATCH(Assets!S$1&"|"&Assets!$B22,'Data Annex'!$K$1:$K$4779,0),MATCH(Assets!S$2,'Data Annex'!$K$1:$BU$1,0)),"") -> 0.05246485725 | T22: =IFERROR(INDEX('Data Annex'!$K$1:$BU$4779,MATCH(Assets!T$1&"|"&Assets!$B22,'Data Annex'!$K$1:$K$4779,0),MATCH(Assets!T$2,'Data Annex'!$K$1:$BU$1,0)),"") -> 0.01967102062 | U22: =IFERROR(INDEX('Data Annex'!$K$1:$BU$4779,MATCH(Assets!U$1&"|"&Assets!$B22,'Data Annex'!$K$1:$K$4779,0),MATCH(Assets!U$2,'Data Annex'!$K$1:$BU$1,0)),"") -> 0.01621132894 | V22: =IFERROR(INDEX('Data Annex'!$K$1:$BU$4779,MATCH(Assets!V$1&"|"&Assets!$B22,'Data Annex'!$K$1:$K$4779,0),MATCH(Assets!V$2,'Data Annex'!$K$1:$BU$1,0)),"") -> 0.01509960799 | W22: =IFERROR(INDEX('Data Annex'!$K$1:$AH$4779,MATCH(Assets!AC$1&"|"&Assets!$B22,'Data Annex'!$K$1:$K$4779,0),MATCH(Assets!AC$2,'Data Annex'!$K$1:$AH$1,0)),"") -> 
B23: FR | D23: FR | E23: =IFERROR(INDEX('Data Annex'!$K$1:$BU$4779,MATCH(Assets!E$1&"|"&Assets!$B23,'Data Annex'!$K$1:$K$4779,0),MATCH(Assets!E$2,'Data Annex'!$K$1:$BU$1,0)),"") -> 0.1513479494 | F23: =IFERROR(INDEX('Data Annex'!$K$1:$BU$4779,MATCH(Assets!F$1&"|"&Assets!$B23,'Data Annex'!$K$1:$K$4779,0),MATCH(Assets!F$2,'Data Annex'!$K$1:$BU$1,0)),"") -> 0.1393089683 | G23: =IFERROR(INDEX('Data Annex'!$K$1:$BU$4779,MATCH(Assets!G$1&"|"&Assets!$B23,'Data Annex'!$K$1:$K$4779,0),MATCH(Assets!G$2,'Data Annex'!$K$1:$BU$1,0)),"") -> 0.1375409563 | H23: =IFERROR(INDEX('Data Annex'!$K$1:$BU$4779,MATCH(Assets!H$1&"|"&Assets!$B23,'Data Annex'!$K$1:$K$4779,0),MATCH(Assets!H$2,'Data Annex'!$K$1:$BU$1,0)),"") -> 0.02956091185 | I23: =IFERROR(INDEX('Data Annex'!$K$1:$BU$4779,MATCH(Assets!I$1&"|"&Assets!$B23,'Data Annex'!$K$1:$K$4779,0),MATCH(Assets!I$2,'Data Annex'!$K$1:$BU$1,0)),"") -> 0.02581712285 | J23: =IFERROR(INDEX('Data Annex'!$K$1:$BU$4779,MATCH(Assets!J$1&"|"&Assets!$B23,'Data Annex'!$K$1:$K$4779,0),MATCH(Assets!J$2,'Data Annex'!$K$1:$BU$1,0)),"") -> 0.02894649412 | K23: =IFERROR(INDEX('Data Annex'!$K$1:$BU$4779,MATCH(Assets!K$1&"|"&Assets!$B23,'Data Annex'!$K$1:$K$4779,0),MATCH(Assets!K$2,'Data Annex'!$K$1:$BU$1,0)),"") -> 0.0933915729 | L23: =IFERROR(INDEX('Data Annex'!$K$1:$BU$4779,MATCH(Assets!L$1&"|"&Assets!$B23,'Data Annex'!$K$1:$K$4779,0),MATCH(Assets!L$2,'Data Annex'!$K$1:$BU$1,0)),"") -> 0.08264590678 | M23: =IFERROR(INDEX('Data Annex'!$K$1:$BU$4779,MATCH(Assets!M$1&"|"&Assets!$B23,'Data Annex'!$K$1:$K$4779,0),MATCH(Assets!M$2,'Data Annex'!$K$1:$BU$1,0)),"") -> 0.09149755378 | N23: =IFERROR(INDEX('Data Annex'!$K$1:$BU$4779,MATCH(Assets!N$1&"|"&Assets!$B23,'Data Annex'!$K$1:$K$4779,0),MATCH(Assets!N$2,'Data Annex'!$K$1:$BU$1,0)),"") -> 0.5807730217 | O23: =IFERROR(INDEX('Data Annex'!$K$1:$BU$4779,MATCH(Assets!O$1&"|"&Assets!$B23,'Data Annex'!$K$1:$K$4779,0),MATCH(Assets!O$2,'Data Annex'!$K$1:$BU$1,0)),"") -> 0.5897680668 | P23: =IFERROR(INDEX('Data Annex'!$K$1:$BU$4779,MATCH(Assets!P$1&"|"&Assets!$B23,'Data Annex'!$K$1:$K$4779,0),MATCH(Assets!P$2,'Data Annex'!$K$1:$BU$1,0)),"") -> 0.6078519895 | Q23: =IFERROR(INDEX('Data Annex'!$K$1:$BU$4779,MATCH(Assets!Q$1&"|"&Assets!$B23,'Data Annex'!$K$1:$K$4779,0),MATCH(Assets!Q$2,'Data Annex'!$K$1:$BU$1,0)),"") -> 0.06903596541 | R23: =IFERROR(INDEX('Data Annex'!$K$1:$BU$4779,MATCH(Assets!R$1&"|"&Assets!$B23,'Data Annex'!$K$1:$K$4779,0),MATCH(Assets!R$2,'Data Annex'!$K$1:$BU$1,0)),"") -> 0.08674130909 | S23: =IFERROR(INDEX('Data Annex'!$K$1:$BU$4779,MATCH(Assets!S$1&"|"&Assets!$B23,'Data Annex'!$K$1:$K$4779,0),MATCH(Assets!S$2,'Data Annex'!$K$1:$BU$1,0)),"") -> 0.07503173811 | T23: =IFERROR(INDEX('Data Annex'!$K$1:$BU$4779,MATCH(Assets!T$1&"|"&Assets!$B23,'Data Annex'!$K$1:$K$4779,0),MATCH(Assets!T$2,'Data Annex'!$K$1:$BU$1,0)),"") -> 0.07589057887 | U23: =IFERROR(INDEX('Data Annex'!$K$1:$BU$4779,MATCH(Assets!U$1&"|"&Assets!$B23,'Data Annex'!$K$1:$K$4779,0),MATCH(Assets!U$2,'Data Annex'!$K$1:$BU$1,0)),"") -> 0.075718626 | V23: =IFERROR(INDEX('Data Annex'!$K$1:$BU$4779,MATCH(Assets!V$1&"|"&Assets!$B23,'Data Annex'!$K$1:$K$4779,0),MATCH(Assets!V$2,'Data Annex'!$K$1:$BU$1,0)),"") -> 0.05913126829 | W23: =IFERROR(INDEX('Data Annex'!$K$1:$AH$4779,MATCH(Assets!AC$1&"|"&Assets!$B23,'Data Annex'!$K$1:$K$4779,0),MATCH(Assets!AC$2,'Data Annex'!$K$1:$AH$1,0)),"") -> 
B24: GR | D24: GR | E24: =IFERROR(INDEX('Data Annex'!$K$1:$BU$4779,MATCH(Assets!E$1&"|"&Assets!$B24,'Data Annex'!$K$1:$K$4779,0),MATCH(Assets!E$2,'Data Annex'!$K$1:$BU$1,0)),"") -> 0.1937414811 | F24: =IFERROR(INDEX('Data Annex'!$K$1:$BU$4779,MATCH(Assets!F$1&"|"&Assets!$B24,'Data Annex'!$K$1:$K$4779,0),MATCH(Assets!F$2,'Data Annex'!$K$1:$BU$1,0)),"") -> 0.1718779448 | G24: =IFERROR(INDEX('Data Annex'!$K$1:$BU$4779,MATCH(Assets!G$1&"|"&Assets!$B24,'Data Annex'!$K$1:$K$4779,0),MATCH(Assets!G$2,'Data Annex'!$K$1:$BU$1,0)),"") -> 0.1439820503 | H24: =IFERROR(INDEX('Data Annex'!$K$1:$BU$4779,MATCH(Assets!H$1&"|"&Assets!$B24,'Data Annex'!$K$1:$K$4779,0),MATCH(Assets!H$2,'Data Annex'!$K$1:$BU$1,0)),"") -> 0.002686802666 | I24: =IFERROR(INDEX('Data Annex'!$K$1:$BU$4779,MATCH(Assets!I$1&"|"&Assets!$B24,'Data Annex'!$K$1:$K$4779,0),MATCH(Assets!I$2,'Data Annex'!$K$1:$BU$1,0)),"") -> 0.003308701003 | J24: =IFERROR(INDEX('Data Annex'!$K$1:$BU$4779,MATCH(Assets!J$1&"|"&Assets!$B24,'Data Annex'!$K$1:$K$4779,0),MATCH(Assets!J$2,'Data Annex'!$K$1:$BU$1,0)),"") -> 0.003594416417 | K24: =IFERROR(INDEX('Data Annex'!$K$1:$BU$4779,MATCH(Assets!K$1&"|"&Assets!$B24,'Data Annex'!$K$1:$K$4779,0),MATCH(Assets!K$2,'Data Annex'!$K$1:$BU$1,0)),"") -> 0.1555695649 | L24: =IFERROR(INDEX('Data Annex'!$K$1:$BU$4779,MATCH(Assets!L$1&"|"&Assets!$B24,'Data Annex'!$K$1:$K$4779,0),MATCH(Assets!L$2,'Data Annex'!$K$1:$BU$1,0)),"") -> 0.1635988092 | M24: =IFERROR(INDEX('Data Annex'!$K$1:$BU$4779,MATCH(Assets!M$1&"|"&Assets!$B24,'Data Annex'!$K$1:$K$4779,0),MATCH(Assets!M$2,'Data Annex'!$K$1:$BU$1,0)),"") -> 0.1799387347 | N24: =IFERROR(INDEX('Data Annex'!$K$1:$BU$4779,MATCH(Assets!N$1&"|"&Assets!$B24,'Data Annex'!$K$1:$K$4779,0),MATCH(Assets!N$2,'Data Annex'!$K$1:$BU$1,0)),"") -> 0.4871820308 | O24: =IFERROR(INDEX('Data Annex'!$K$1:$BU$4779,MATCH(Assets!O$1&"|"&Assets!$B24,'Data Annex'!$K$1:$K$4779,0),MATCH(Assets!O$2,'Data Annex'!$K$1:$BU$1,0)),"") -> 0.5054110136 | P24: =IFERROR(INDEX('Data Annex'!$K$1:$BU$4779,MATCH(Assets!P$1&"|"&Assets!$B24,'Data Annex'!$K$1:$K$4779,0),MATCH(Assets!P$2,'Data Annex'!$K$1:$BU$1,0)),"") -> 0.504234428 | Q24: =IFERROR(INDEX('Data Annex'!$K$1:$BU$4779,MATCH(Assets!Q$1&"|"&Assets!$B24,'Data Annex'!$K$1:$K$4779,0),MATCH(Assets!Q$2,'Data Annex'!$K$1:$BU$1,0)),"") -> 0.02180633311 | R24: =IFERROR(INDEX('Data Annex'!$K$1:$BU$4779,MATCH(Assets!R$1&"|"&Assets!$B24,'Data Annex'!$K$1:$K$4779,0),MATCH(Assets!R$2,'Data Annex'!$K$1:$BU$1,0)),"") -> 0.0227802154 | S24: =IFERROR(INDEX('Data Annex'!$K$1:$BU$4779,MATCH(Assets!S$1&"|"&Assets!$B24,'Data Annex'!$K$1:$K$4779,0),MATCH(Assets!S$2,'Data Annex'!$K$1:$BU$1,0)),"") -> 0.02307077425 | T24: =IFERROR(INDEX('Data Annex'!$K$1:$BU$4779,MATCH(Assets!T$1&"|"&Assets!$B24,'Data Annex'!$K$1:$K$4779,0),MATCH(Assets!T$2,'Data Annex'!$K$1:$BU$1,0)),"") -> 0.1390137874 | U24: =IFERROR(INDEX('Data Annex'!$K$1:$BU$4779,MATCH(Assets!U$1&"|"&Assets!$B24,'Data Annex'!$K$1:$K$4779,0),MATCH(Assets!U$2,'Data Annex'!$K$1:$BU$1,0)),"") -> 0.133023316 | V24: =IFERROR(INDEX('Data Annex'!$K$1:$BU$4779,MATCH(Assets!V$1&"|"&Assets!$B24,'Data Annex'!$K$1:$K$4779,0),MATCH(Assets!V$2,'Data Annex'!$K$1:$BU$1,0)),"") -> 0.1451795964 | W24: =IFERROR(INDEX('Data Annex'!$K$1:$AH$4779,MATCH(Assets!AC$1&"|"&Assets!$B24,'Data Annex'!$K$1:$K$4779,0),MATCH(Assets!AC$2,'Data Annex'!$K$1:$AH$1,0)),"") -> 
B25: HR | D25: HR | E25: =IFERROR(INDEX('Data Annex'!$K$1:$BU$4779,MATCH(Assets!E$1&"|"&Assets!$B25,'Data Annex'!$K$1:$K$4779,0),MATCH(Assets!E$2,'Data Annex'!$K$1:$BU$1,0)),"") -> 0.2273111064 | F25: =IFERROR(INDEX('Data Annex'!$K$1:$BU$4779,MATCH(Assets!F$1&"|"&Assets!$B25,'Data Annex'!$K$1:$K$4779,0),MATCH(Assets!F$2,'Data Annex'!$K$1:$BU$1,0)),"") -> 0.2757800127 | G25: =IFERROR(INDEX('Data Annex'!$K$1:$BU$4779,MATCH(Assets!G$1&"|"&Assets!$B25,'Data Annex'!$K$1:$K$4779,0),MATCH(Assets!G$2,'Data Annex'!$K$1:$BU$1,0)),"") -> 0.2226115518 | H25: =IFERROR(INDEX('Data Annex'!$K$1:$BU$4779,MATCH(Assets!H$1&"|"&Assets!$B25,'Data Annex'!$K$1:$K$4779,0),MATCH(Assets!H$2,'Data Annex'!$K$1:$BU$1,0)),"") -> 0.001288478886 | I25: =IFERROR(INDEX('Data Annex'!$K$1:$BU$4779,MATCH(Assets!I$1&"|"&Assets!$B25,'Data Annex'!$K$1:$K$4779,0),MATCH(Assets!I$2,'Data Annex'!$K$1:$BU$1,0)),"") -> 0.0006669274786 | J25: =IFERROR(INDEX('Data Annex'!$K$1:$BU$4779,MATCH(Assets!J$1&"|"&Assets!$B25,'Data Annex'!$K$1:$K$4779,0),MATCH(Assets!J$2,'Data Annex'!$K$1:$BU$1,0)),"") -> 0.000697161323 | K25: =IFERROR(INDEX('Data Annex'!$K$1:$BU$4779,MATCH(Assets!K$1&"|"&Assets!$B25,'Data Annex'!$K$1:$K$4779,0),MATCH(Assets!K$2,'Data Annex'!$K$1:$BU$1,0)),"") -> 0.1156632966 | L25: =IFERROR(INDEX('Data Annex'!$K$1:$BU$4779,MATCH(Assets!L$1&"|"&Assets!$B25,'Data Annex'!$K$1:$K$4779,0),MATCH(Assets!L$2,'Data Annex'!$K$1:$BU$1,0)),"") -> 0.1080974164 | M25: =IFERROR(INDEX('Data Annex'!$K$1:$BU$4779,MATCH(Assets!M$1&"|"&Assets!$B25,'Data Annex'!$K$1:$K$4779,0),MATCH(Assets!M$2,'Data Annex'!$K$1:$BU$1,0)),"") -> 0.1202562479 | N25: =IFERROR(INDEX('Data Annex'!$K$1:$BU$4779,MATCH(Assets!N$1&"|"&Assets!$B25,'Data Annex'!$K$1:$K$4779,0),MATCH(Assets!N$2,'Data Annex'!$K$1:$BU$1,0)),"") -> 0.6302477924 | O25: =IFERROR(INDEX('Data Annex'!$K$1:$BU$4779,MATCH(Assets!O$1&"|"&Assets!$B25,'Data Annex'!$K$1:$K$4779,0),MATCH(Assets!O$2,'Data Annex'!$K$1:$BU$1,0)),"") -> 0.5896183406 | P25: =IFERROR(INDEX('Data Annex'!$K$1:$BU$4779,MATCH(Assets!P$1&"|"&Assets!$B25,'Data Annex'!$K$1:$K$4779,0),MATCH(Assets!P$2,'Data Annex'!$K$1:$BU$1,0)),"") -> 0.6317356335 | Q25: =IFERROR(INDEX('Data Annex'!$K$1:$BU$4779,MATCH(Assets!Q$1&"|"&Assets!$B25,'Data Annex'!$K$1:$K$4779,0),MATCH(Assets!Q$2,'Data Annex'!$K$1:$BU$1,0)),"") -> 0.004200063955 | R25: =IFERROR(INDEX('Data Annex'!$K$1:$BU$4779,MATCH(Assets!R$1&"|"&Assets!$B25,'Data Annex'!$K$1:$K$4779,0),MATCH(Assets!R$2,'Data Annex'!$K$1:$BU$1,0)),"") -> 0.006317582242 | S25: =IFERROR(INDEX('Data Annex'!$K$1:$BU$4779,MATCH(Assets!S$1&"|"&Assets!$B25,'Data Annex'!$K$1:$K$4779,0),MATCH(Assets!S$2,'Data Annex'!$K$1:$BU$1,0)),"") -> 0.005422425101 | T25: =IFERROR(INDEX('Data Annex'!$K$1:$BU$4779,MATCH(Assets!T$1&"|"&Assets!$B25,'Data Annex'!$K$1:$K$4779,0),MATCH(Assets!T$2,'Data Annex'!$K$1:$BU$1,0)),"") -> 0.02128926174 | U25: =IFERROR(INDEX('Data Annex'!$K$1:$BU$4779,MATCH(Assets!U$1&"|"&Assets!$B25,'Data Annex'!$K$1:$K$4779,0),MATCH(Assets!U$2,'Data Annex'!$K$1:$BU$1,0)),"") -> 0.01951972065 | V25: =IFERROR(INDEX('Data Annex'!$K$1:$BU$4779,MATCH(Assets!V$1&"|"&Assets!$B25,'Data Annex'!$K$1:$K$4779,0),MATCH(Assets!V$2,'Data Annex'!$K$1:$BU$1,0)),"") -> 0.01927698036 | W25: =IFERROR(INDEX('Data Annex'!$K$1:$AH$4779,MATCH(Assets!AC$1&"|"&Assets!$B25,'Data Annex'!$K$1:$K$4779,0),MATCH(Assets!AC$2,'Data Annex'!$K$1:$AH$1,0)),"") -> 
B26: HU | D26: HU | E26: =IFERROR(INDEX('Data Annex'!$K$1:$BU$4779,MATCH(Assets!E$1&"|"&Assets!$B26,'Data Annex'!$K$1:$K$4779,0),MATCH(Assets!E$2,'Data Annex'!$K$1:$BU$1,0)),"") -> 0.07411306848 | F26: =IFERROR(INDEX('Data Annex'!$K$1:$BU$4779,MATCH(Assets!F$1&"|"&Assets!$B26,'Data Annex'!$K$1:$K$4779,0),MATCH(Assets!F$2,'Data Annex'!$K$1:$BU$1,0)),"") -> 0.1347272468 | G26: =IFERROR(INDEX('Data Annex'!$K$1:$BU$4779,MATCH(Assets!G$1&"|"&Assets!$B26,'Data Annex'!$K$1:$K$4779,0),MATCH(Assets!G$2,'Data Annex'!$K$1:$BU$1,0)),"") -> 0.1585916845 | H26: =IFERROR(INDEX('Data Annex'!$K$1:$BU$4779,MATCH(Assets!H$1&"|"&Assets!$B26,'Data Annex'!$K$1:$K$4779,0),MATCH(Assets!H$2,'Data Annex'!$K$1:$BU$1,0)),"") -> 0.002506396433 | I26: =IFERROR(INDEX('Data Annex'!$K$1:$BU$4779,MATCH(Assets!I$1&"|"&Assets!$B26,'Data Annex'!$K$1:$K$4779,0),MATCH(Assets!I$2,'Data Annex'!$K$1:$BU$1,0)),"") -> 0.002364372932 | J26: =IFERROR(INDEX('Data Annex'!$K$1:$BU$4779,MATCH(Assets!J$1&"|"&Assets!$B26,'Data Annex'!$K$1:$K$4779,0),MATCH(Assets!J$2,'Data Annex'!$K$1:$BU$1,0)),"") -> 0.002323545869 | K26: =IFERROR(INDEX('Data Annex'!$K$1:$BU$4779,MATCH(Assets!K$1&"|"&Assets!$B26,'Data Annex'!$K$1:$K$4779,0),MATCH(Assets!K$2,'Data Annex'!$K$1:$BU$1,0)),"") -> 0.235869189 | L26: =IFERROR(INDEX('Data Annex'!$K$1:$BU$4779,MATCH(Assets!L$1&"|"&Assets!$B26,'Data Annex'!$K$1:$K$4779,0),MATCH(Assets!L$2,'Data Annex'!$K$1:$BU$1,0)),"") -> 0.2228175864 | M26: =IFERROR(INDEX('Data Annex'!$K$1:$BU$4779,MATCH(Assets!M$1&"|"&Assets!$B26,'Data Annex'!$K$1:$K$4779,0),MATCH(Assets!M$2,'Data Annex'!$K$1:$BU$1,0)),"") -> 0.2304668156 | N26: =IFERROR(INDEX('Data Annex'!$K$1:$BU$4779,MATCH(Assets!N$1&"|"&Assets!$B26,'Data Annex'!$K$1:$K$4779,0),MATCH(Assets!N$2,'Data Annex'!$K$1:$BU$1,0)),"") -> 0.6353575499 | O26: =IFERROR(INDEX('Data Annex'!$K$1:$BU$4779,MATCH(Assets!O$1&"|"&Assets!$B26,'Data Annex'!$K$1:$K$4779,0),MATCH(Assets!O$2,'Data Annex'!$K$1:$BU$1,0)),"") -> 0.5816524785 | P26: =IFERROR(INDEX('Data Annex'!$K$1:$BU$4779,MATCH(Assets!P$1&"|"&Assets!$B26,'Data Annex'!$K$1:$K$4779,0),MATCH(Assets!P$2,'Data Annex'!$K$1:$BU$1,0)),"") -> 0.5587936128 | Q26: =IFERROR(INDEX('Data Annex'!$K$1:$BU$4779,MATCH(Assets!Q$1&"|"&Assets!$B26,'Data Annex'!$K$1:$K$4779,0),MATCH(Assets!Q$2,'Data Annex'!$K$1:$BU$1,0)),"") -> 0.02377328237 | R26: =IFERROR(INDEX('Data Annex'!$K$1:$BU$4779,MATCH(Assets!R$1&"|"&Assets!$B26,'Data Annex'!$K$1:$K$4779,0),MATCH(Assets!R$2,'Data Annex'!$K$1:$BU$1,0)),"") -> 0.03119798651 | S26: =IFERROR(INDEX('Data Annex'!$K$1:$BU$4779,MATCH(Assets!S$1&"|"&Assets!$B26,'Data Annex'!$K$1:$K$4779,0),MATCH(Assets!S$2,'Data Annex'!$K$1:$BU$1,0)),"") -> 0.02065709687 | T26: =IFERROR(INDEX('Data Annex'!$K$1:$BU$4779,MATCH(Assets!T$1&"|"&Assets!$B26,'Data Annex'!$K$1:$K$4779,0),MATCH(Assets!T$2,'Data Annex'!$K$1:$BU$1,0)),"") -> 0.02838051386 | U26: =IFERROR(INDEX('Data Annex'!$K$1:$BU$4779,MATCH(Assets!U$1&"|"&Assets!$B26,'Data Annex'!$K$1:$K$4779,0),MATCH(Assets!U$2,'Data Annex'!$K$1:$BU$1,0)),"") -> 0.02724032877 | V26: =IFERROR(INDEX('Data Annex'!$K$1:$BU$4779,MATCH(Assets!V$1&"|"&Assets!$B26,'Data Annex'!$K$1:$K$4779,0),MATCH(Assets!V$2,'Data Annex'!$K$1:$BU$1,0)),"") -> 0.02916724434 | W26: =IFERROR(INDEX('Data Annex'!$K$1:$AH$4779,MATCH(Assets!AC$1&"|"&Assets!$B26,'Data Annex'!$K$1:$K$4779,0),MATCH(Assets!AC$2,'Data Annex'!$K$1:$AH$1,0)),"") -> 
B27: IE | D27: IE | E27: =IFERROR(INDEX('Data Annex'!$K$1:$BU$4779,MATCH(Assets!E$1&"|"&Assets!$B27,'Data Annex'!$K$1:$K$4779,0),MATCH(Assets!E$2,'Data Annex'!$K$1:$BU$1,0)),"") -> 0.2929113337 | F27: =IFERROR(INDEX('Data Annex'!$K$1:$BU$4779,MATCH(Assets!F$1&"|"&Assets!$B27,'Data Annex'!$K$1:$K$4779,0),MATCH(Assets!F$2,'Data Annex'!$K$1:$BU$1,0)),"") -> 0.2785426421 | G27: =IFERROR(INDEX('Data Annex'!$K$1:$BU$4779,MATCH(Assets!G$1&"|"&Assets!$B27,'Data Annex'!$K$1:$K$4779,0),MATCH(Assets!G$2,'Data Annex'!$K$1:$BU$1,0)),"") -> 0.2635444671 | H27: =IFERROR(INDEX('Data Annex'!$K$1:$BU$4779,MATCH(Assets!H$1&"|"&Assets!$B27,'Data Annex'!$K$1:$K$4779,0),MATCH(Assets!H$2,'Data Annex'!$K$1:$BU$1,0)),"") -> 0.001528167962 | I27: =IFERROR(INDEX('Data Annex'!$K$1:$BU$4779,MATCH(Assets!I$1&"|"&Assets!$B27,'Data Annex'!$K$1:$K$4779,0),MATCH(Assets!I$2,'Data Annex'!$K$1:$BU$1,0)),"") -> 0.001523496449 | J27: =IFERROR(INDEX('Data Annex'!$K$1:$BU$4779,MATCH(Assets!J$1&"|"&Assets!$B27,'Data Annex'!$K$1:$K$4779,0),MATCH(Assets!J$2,'Data Annex'!$K$1:$BU$1,0)),"") -> 0.001539946046 | K27: =IFERROR(INDEX('Data Annex'!$K$1:$BU$4779,MATCH(Assets!K$1&"|"&Assets!$B27,'Data Annex'!$K$1:$K$4779,0),MATCH(Assets!K$2,'Data Annex'!$K$1:$BU$1,0)),"") -> 0.1092484492 | L27: =IFERROR(INDEX('Data Annex'!$K$1:$BU$4779,MATCH(Assets!L$1&"|"&Assets!$B27,'Data Annex'!$K$1:$K$4779,0),MATCH(Assets!L$2,'Data Annex'!$K$1:$BU$1,0)),"") -> 0.1083346872 | M27: =IFERROR(INDEX('Data Annex'!$K$1:$BU$4779,MATCH(Assets!M$1&"|"&Assets!$B27,'Data Annex'!$K$1:$K$4779,0),MATCH(Assets!M$2,'Data Annex'!$K$1:$BU$1,0)),"") -> 0.1191191325 | N27: =IFERROR(INDEX('Data Annex'!$K$1:$BU$4779,MATCH(Assets!N$1&"|"&Assets!$B27,'Data Annex'!$K$1:$K$4779,0),MATCH(Assets!N$2,'Data Annex'!$K$1:$BU$1,0)),"") -> 0.4917740154 | O27: =IFERROR(INDEX('Data Annex'!$K$1:$BU$4779,MATCH(Assets!O$1&"|"&Assets!$B27,'Data Annex'!$K$1:$K$4779,0),MATCH(Assets!O$2,'Data Annex'!$K$1:$BU$1,0)),"") -> 0.4849072805 | P27: =IFERROR(INDEX('Data Annex'!$K$1:$BU$4779,MATCH(Assets!P$1&"|"&Assets!$B27,'Data Annex'!$K$1:$K$4779,0),MATCH(Assets!P$2,'Data Annex'!$K$1:$BU$1,0)),"") -> 0.4870847289 | Q27: =IFERROR(INDEX('Data Annex'!$K$1:$BU$4779,MATCH(Assets!Q$1&"|"&Assets!$B27,'Data Annex'!$K$1:$K$4779,0),MATCH(Assets!Q$2,'Data Annex'!$K$1:$BU$1,0)),"") -> 0.05146932052 | R27: =IFERROR(INDEX('Data Annex'!$K$1:$BU$4779,MATCH(Assets!R$1&"|"&Assets!$B27,'Data Annex'!$K$1:$K$4779,0),MATCH(Assets!R$2,'Data Annex'!$K$1:$BU$1,0)),"") -> 0.07489959187 | S27: =IFERROR(INDEX('Data Annex'!$K$1:$BU$4779,MATCH(Assets!S$1&"|"&Assets!$B27,'Data Annex'!$K$1:$K$4779,0),MATCH(Assets!S$2,'Data Annex'!$K$1:$BU$1,0)),"") -> 0.07008900011 | T27: =IFERROR(INDEX('Data Annex'!$K$1:$BU$4779,MATCH(Assets!T$1&"|"&Assets!$B27,'Data Annex'!$K$1:$K$4779,0),MATCH(Assets!T$2,'Data Annex'!$K$1:$BU$1,0)),"") -> 0.0530687132 | U27: =IFERROR(INDEX('Data Annex'!$K$1:$BU$4779,MATCH(Assets!U$1&"|"&Assets!$B27,'Data Annex'!$K$1:$K$4779,0),MATCH(Assets!U$2,'Data Annex'!$K$1:$BU$1,0)),"") -> 0.05179230184 | V27: =IFERROR(INDEX('Data Annex'!$K$1:$BU$4779,MATCH(Assets!V$1&"|"&Assets!$B27,'Data Annex'!$K$1:$K$4779,0),MATCH(Assets!V$2,'Data Annex'!$K$1:$BU$1,0)),"") -> 0.05862272536 | W27: =IFERROR(INDEX('Data Annex'!$K$1:$AH$4779,MATCH(Assets!AC$1&"|"&Assets!$B27,'Data Annex'!$K$1:$K$4779,0),MATCH(Assets!AC$2,'Data Annex'!$K$1:$AH$1,0)),"") -> 
B28: IS | D28: IS | E28: =IFERROR(INDEX('Data Annex'!$K$1:$BU$4779,MATCH(Assets!E$1&"|"&Assets!$B28,'Data Annex'!$K$1:$K$4779,0),MATCH(Assets!E$2,'Data Annex'!$K$1:$BU$1,0)),"") -> 0.07369892088 | F28: =IFERROR(INDEX('Data Annex'!$K$1:$BU$4779,MATCH(Assets!F$1&"|"&Assets!$B28,'Data Annex'!$K$1:$K$4779,0),MATCH(Assets!F$2,'Data Annex'!$K$1:$BU$1,0)),"") -> 0.07804427047 | G28: =IFERROR(INDEX('Data Annex'!$K$1:$BU$4779,MATCH(Assets!G$1&"|"&Assets!$B28,'Data Annex'!$K$1:$K$4779,0),MATCH(Assets!G$2,'Data Annex'!$K$1:$BU$1,0)),"") -> 0.0834253779 | H28: =IFERROR(INDEX('Data Annex'!$K$1:$BU$4779,MATCH(Assets!H$1&"|"&Assets!$B28,'Data Annex'!$K$1:$K$4779,0),MATCH(Assets!H$2,'Data Annex'!$K$1:$BU$1,0)),"") -> 0.02689709527 | I28: =IFERROR(INDEX('Data Annex'!$K$1:$BU$4779,MATCH(Assets!I$1&"|"&Assets!$B28,'Data Annex'!$K$1:$K$4779,0),MATCH(Assets!I$2,'Data Annex'!$K$1:$BU$1,0)),"") -> 0.0159083668 | J28: =IFERROR(INDEX('Data Annex'!$K$1:$BU$4779,MATCH(Assets!J$1&"|"&Assets!$B28,'Data Annex'!$K$1:$K$4779,0),MATCH(Assets!J$2,'Data Annex'!$K$1:$BU$1,0)),"") -> 0.01496071721 | K28: =IFERROR(INDEX('Data Annex'!$K$1:$BU$4779,MATCH(Assets!K$1&"|"&Assets!$B28,'Data Annex'!$K$1:$K$4779,0),MATCH(Assets!K$2,'Data Annex'!$K$1:$BU$1,0)),"") -> 0.08391694191 | L28: =IFERROR(INDEX('Data Annex'!$K$1:$BU$4779,MATCH(Assets!L$1&"|"&Assets!$B28,'Data Annex'!$K$1:$K$4779,0),MATCH(Assets!L$2,'Data Annex'!$K$1:$BU$1,0)),"") -> 0.08255203616 | M28: =IFERROR(INDEX('Data Annex'!$K$1:$BU$4779,MATCH(Assets!M$1&"|"&Assets!$B28,'Data Annex'!$K$1:$K$4779,0),MATCH(Assets!M$2,'Data Annex'!$K$1:$BU$1,0)),"") -> 0.08000116209 | N28: =IFERROR(INDEX('Data Annex'!$K$1:$BU$4779,MATCH(Assets!N$1&"|"&Assets!$B28,'Data Annex'!$K$1:$K$4779,0),MATCH(Assets!N$2,'Data Annex'!$K$1:$BU$1,0)),"") -> 0.7842169521 | O28: =IFERROR(INDEX('Data Annex'!$K$1:$BU$4779,MATCH(Assets!O$1&"|"&Assets!$B28,'Data Annex'!$K$1:$K$4779,0),MATCH(Assets!O$2,'Data Annex'!$K$1:$BU$1,0)),"") -> 0.8033914678 | P28: =IFERROR(INDEX('Data Annex'!$K$1:$BU$4779,MATCH(Assets!P$1&"|"&Assets!$B28,'Data Annex'!$K$1:$K$4779,0),MATCH(Assets!P$2,'Data Annex'!$K$1:$BU$1,0)),"") -> 0.7974712337 | Q28: =IFERROR(INDEX('Data Annex'!$K$1:$BU$4779,MATCH(Assets!Q$1&"|"&Assets!$B28,'Data Annex'!$K$1:$K$4779,0),MATCH(Assets!Q$2,'Data Annex'!$K$1:$BU$1,0)),"") -> 0.001856154471 | R28: =IFERROR(INDEX('Data Annex'!$K$1:$BU$4779,MATCH(Assets!R$1&"|"&Assets!$B28,'Data Annex'!$K$1:$K$4779,0),MATCH(Assets!R$2,'Data Annex'!$K$1:$BU$1,0)),"") -> 0.004157442542 | S28: =IFERROR(INDEX('Data Annex'!$K$1:$BU$4779,MATCH(Assets!S$1&"|"&Assets!$B28,'Data Annex'!$K$1:$K$4779,0),MATCH(Assets!S$2,'Data Annex'!$K$1:$BU$1,0)),"") -> 0.003451327158 | T28: =IFERROR(INDEX('Data Annex'!$K$1:$BU$4779,MATCH(Assets!T$1&"|"&Assets!$B28,'Data Annex'!$K$1:$K$4779,0),MATCH(Assets!T$2,'Data Annex'!$K$1:$BU$1,0)),"") -> 0.02941393541 | U28: =IFERROR(INDEX('Data Annex'!$K$1:$BU$4779,MATCH(Assets!U$1&"|"&Assets!$B28,'Data Annex'!$K$1:$K$4779,0),MATCH(Assets!U$2,'Data Annex'!$K$1:$BU$1,0)),"") -> 0.01594641627 | V28: =IFERROR(INDEX('Data Annex'!$K$1:$BU$4779,MATCH(Assets!V$1&"|"&Assets!$B28,'Data Annex'!$K$1:$K$4779,0),MATCH(Assets!V$2,'Data Annex'!$K$1:$BU$1,0)),"") -> 0.0206901819 | W28: =IFERROR(INDEX('Data Annex'!$K$1:$AH$4779,MATCH(Assets!AC$1&"|"&Assets!$B28,'Data Annex'!$K$1:$K$4779,0),MATCH(Assets!AC$2,'Data Annex'!$K$1:$AH$1,0)),"") -> 
B29: IT | D29: IT | E29: =IFERROR(INDEX('Data Annex'!$K$1:$BU$4779,MATCH(Assets!E$1&"|"&Assets!$B29,'Data Annex'!$K$1:$K$4779,0),MATCH(Assets!E$2,'Data Annex'!$K$1:$BU$1,0)),"") -> 0.1537556538 | F29: =IFERROR(INDEX('Data Annex'!$K$1:$BU$4779,MATCH(Assets!F$1&"|"&Assets!$B29,'Data Annex'!$K$1:$K$4779,0),MATCH(Assets!F$2,'Data Annex'!$K$1:$BU$1,0)),"") -> 0.1200651956 | G29: =IFERROR(INDEX('Data Annex'!$K$1:$BU$4779,MATCH(Assets!G$1&"|"&Assets!$B29,'Data Annex'!$K$1:$K$4779,0),MATCH(Assets!G$2,'Data Annex'!$K$1:$BU$1,0)),"") -> 0.1204856808 | H29: =IFERROR(INDEX('Data Annex'!$K$1:$BU$4779,MATCH(Assets!H$1&"|"&Assets!$B29,'Data Annex'!$K$1:$K$4779,0),MATCH(Assets!H$2,'Data Annex'!$K$1:$BU$1,0)),"") -> 0.01183088195 | I29: =IFERROR(INDEX('Data Annex'!$K$1:$BU$4779,MATCH(Assets!I$1&"|"&Assets!$B29,'Data Annex'!$K$1:$K$4779,0),MATCH(Assets!I$2,'Data Annex'!$K$1:$BU$1,0)),"") -> 0.01011351247 | J29: =IFERROR(INDEX('Data Annex'!$K$1:$BU$4779,MATCH(Assets!J$1&"|"&Assets!$B29,'Data Annex'!$K$1:$K$4779,0),MATCH(Assets!J$2,'Data Annex'!$K$1:$BU$1,0)),"") -> 0.01005085738 | K29: =IFERROR(INDEX('Data Annex'!$K$1:$BU$4779,MATCH(Assets!K$1&"|"&Assets!$B29,'Data Annex'!$K$1:$K$4779,0),MATCH(Assets!K$2,'Data Annex'!$K$1:$BU$1,0)),"") -> 0.2046524817 | L29: =IFERROR(INDEX('Data Annex'!$K$1:$BU$4779,MATCH(Assets!L$1&"|"&Assets!$B29,'Data Annex'!$K$1:$K$4779,0),MATCH(Assets!L$2,'Data Annex'!$K$1:$BU$1,0)),"") -> 0.2011279188 | M29: =IFERROR(INDEX('Data Annex'!$K$1:$BU$4779,MATCH(Assets!M$1&"|"&Assets!$B29,'Data Annex'!$K$1:$K$4779,0),MATCH(Assets!M$2,'Data Annex'!$K$1:$BU$1,0)),"") -> 0.2053137165 | N29: =IFERROR(INDEX('Data Annex'!$K$1:$BU$4779,MATCH(Assets!N$1&"|"&Assets!$B29,'Data Annex'!$K$1:$K$4779,0),MATCH(Assets!N$2,'Data Annex'!$K$1:$BU$1,0)),"") -> 0.5467889563 | O29: =IFERROR(INDEX('Data Annex'!$K$1:$BU$4779,MATCH(Assets!O$1&"|"&Assets!$B29,'Data Annex'!$K$1:$K$4779,0),MATCH(Assets!O$2,'Data Annex'!$K$1:$BU$1,0)),"") -> 0.5747993003 | P29: =IFERROR(INDEX('Data Annex'!$K$1:$BU$4779,MATCH(Assets!P$1&"|"&Assets!$B29,'Data Annex'!$K$1:$K$4779,0),MATCH(Assets!P$2,'Data Annex'!$K$1:$BU$1,0)),"") -> 0.5743737106 | Q29: =IFERROR(INDEX('Data Annex'!$K$1:$BU$4779,MATCH(Assets!Q$1&"|"&Assets!$B29,'Data Annex'!$K$1:$K$4779,0),MATCH(Assets!Q$2,'Data Annex'!$K$1:$BU$1,0)),"") -> 0.0293153569 | R29: =IFERROR(INDEX('Data Annex'!$K$1:$BU$4779,MATCH(Assets!R$1&"|"&Assets!$B29,'Data Annex'!$K$1:$K$4779,0),MATCH(Assets!R$2,'Data Annex'!$K$1:$BU$1,0)),"") -> 0.03874366753 | S29: =IFERROR(INDEX('Data Annex'!$K$1:$BU$4779,MATCH(Assets!S$1&"|"&Assets!$B29,'Data Annex'!$K$1:$K$4779,0),MATCH(Assets!S$2,'Data Annex'!$K$1:$BU$1,0)),"") -> 0.03447359148 | T29: =IFERROR(INDEX('Data Annex'!$K$1:$BU$4779,MATCH(Assets!T$1&"|"&Assets!$B29,'Data Annex'!$K$1:$K$4779,0),MATCH(Assets!T$2,'Data Annex'!$K$1:$BU$1,0)),"") -> 0.05365666935 | U29: =IFERROR(INDEX('Data Annex'!$K$1:$BU$4779,MATCH(Assets!U$1&"|"&Assets!$B29,'Data Annex'!$K$1:$K$4779,0),MATCH(Assets!U$2,'Data Annex'!$K$1:$BU$1,0)),"") -> 0.05515040536 | V29: =IFERROR(INDEX('Data Annex'!$K$1:$BU$4779,MATCH(Assets!V$1&"|"&Assets!$B29,'Data Annex'!$K$1:$K$4779,0),MATCH(Assets!V$2,'Data Annex'!$K$1:$BU$1,0)),"") -> 0.05530244321 | W29: =IFERROR(INDEX('Data Annex'!$K$1:$AH$4779,MATCH(Assets!AC$1&"|"&Assets!$B29,'Data Annex'!$K$1:$K$4779,0),MATCH(Assets!AC$2,'Data Annex'!$K$1:$AH$1,0)),"") -> 
B30: LI | D30: LI* | E30: =IFERROR(INDEX('Data Annex'!$K$1:$BU$4779,MATCH(Assets!E$1&"|"&Assets!$B30,'Data Annex'!$K$1:$K$4779,0),MATCH(Assets!E$2,'Data Annex'!$K$1:$BU$1,0)),"") -> n.a. | F30: =IFERROR(INDEX('Data Annex'!$K$1:$BU$4779,MATCH(Assets!F$1&"|"&Assets!$B30,'Data Annex'!$K$1:$K$4779,0),MATCH(Assets!F$2,'Data Annex'!$K$1:$BU$1,0)),"") -> 0.1388412774 | G30: =IFERROR(INDEX('Data Annex'!$K$1:$BU$4779,MATCH(Assets!G$1&"|"&Assets!$B30,'Data Annex'!$K$1:$K$4779,0),MATCH(Assets!G$2,'Data Annex'!$K$1:$BU$1,0)),"") -> 0.1418041475 | H30: =IFERROR(INDEX('Data Annex'!$K$1:$BU$4779,MATCH(Assets!H$1&"|"&Assets!$B30,'Data Annex'!$K$1:$K$4779,0),MATCH(Assets!H$2,'Data Annex'!$K$1:$BU$1,0)),"") -> n.a. | I30: =IFERROR(INDEX('Data Annex'!$K$1:$BU$4779,MATCH(Assets!I$1&"|"&Assets!$B30,'Data Annex'!$K$1:$K$4779,0),MATCH(Assets!I$2,'Data Annex'!$K$1:$BU$1,0)),"") -> 0.05350351509 | J30: =IFERROR(INDEX('Data Annex'!$K$1:$BU$4779,MATCH(Assets!J$1&"|"&Assets!$B30,'Data Annex'!$K$1:$K$4779,0),MATCH(Assets!J$2,'Data Annex'!$K$1:$BU$1,0)),"") -> 0.05429482052 | K30: =IFERROR(INDEX('Data Annex'!$K$1:$BU$4779,MATCH(Assets!K$1&"|"&Assets!$B30,'Data Annex'!$K$1:$K$4779,0),MATCH(Assets!K$2,'Data Annex'!$K$1:$BU$1,0)),"") -> n.a. | L30: =IFERROR(INDEX('Data Annex'!$K$1:$BU$4779,MATCH(Assets!L$1&"|"&Assets!$B30,'Data Annex'!$K$1:$K$4779,0),MATCH(Assets!L$2,'Data Annex'!$K$1:$BU$1,0)),"") -> 0.1897706631 | M30: =IFERROR(INDEX('Data Annex'!$K$1:$BU$4779,MATCH(Assets!M$1&"|"&Assets!$B30,'Data Annex'!$K$1:$K$4779,0),MATCH(Assets!M$2,'Data Annex'!$K$1:$BU$1,0)),"") -> 0.1769648277 | N30: =IFERROR(INDEX('Data Annex'!$K$1:$BU$4779,MATCH(Assets!N$1&"|"&Assets!$B30,'Data Annex'!$K$1:$K$4779,0),MATCH(Assets!N$2,'Data Annex'!$K$1:$BU$1,0)),"") -> n.a. | O30: =IFERROR(INDEX('Data Annex'!$K$1:$BU$4779,MATCH(Assets!O$1&"|"&Assets!$B30,'Data Annex'!$K$1:$K$4779,0),MATCH(Assets!O$2,'Data Annex'!$K$1:$BU$1,0)),"") -> 0.5597892051 | P30: =IFERROR(INDEX('Data Annex'!$K$1:$BU$4779,MATCH(Assets!P$1&"|"&Assets!$B30,'Data Annex'!$K$1:$K$4779,0),MATCH(Assets!P$2,'Data Annex'!$K$1:$BU$1,0)),"") -> 0.5740802498 | Q30: =IFERROR(INDEX('Data Annex'!$K$1:$BU$4779,MATCH(Assets!Q$1&"|"&Assets!$B30,'Data Annex'!$K$1:$K$4779,0),MATCH(Assets!Q$2,'Data Annex'!$K$1:$BU$1,0)),"") -> n.a. | R30: =IFERROR(INDEX('Data Annex'!$K$1:$BU$4779,MATCH(Assets!R$1&"|"&Assets!$B30,'Data Annex'!$K$1:$K$4779,0),MATCH(Assets!R$2,'Data Annex'!$K$1:$BU$1,0)),"") -> 0.01963809187 | S30: =IFERROR(INDEX('Data Annex'!$K$1:$BU$4779,MATCH(Assets!S$1&"|"&Assets!$B30,'Data Annex'!$K$1:$K$4779,0),MATCH(Assets!S$2,'Data Annex'!$K$1:$BU$1,0)),"") -> 0.01399672098 | T30: =IFERROR(INDEX('Data Annex'!$K$1:$BU$4779,MATCH(Assets!T$1&"|"&Assets!$B30,'Data Annex'!$K$1:$K$4779,0),MATCH(Assets!T$2,'Data Annex'!$K$1:$BU$1,0)),"") -> n.a. | U30: =IFERROR(INDEX('Data Annex'!$K$1:$BU$4779,MATCH(Assets!U$1&"|"&Assets!$B30,'Data Annex'!$K$1:$K$4779,0),MATCH(Assets!U$2,'Data Annex'!$K$1:$BU$1,0)),"") -> 0.03845724673 | V30: =IFERROR(INDEX('Data Annex'!$K$1:$BU$4779,MATCH(Assets!V$1&"|"&Assets!$B30,'Data Annex'!$K$1:$K$4779,0),MATCH(Assets!V$2,'Data Annex'!$K$1:$BU$1,0)),"") -> 0.03885923351
B31: LT | D31: LT | E31: =IFERROR(INDEX('Data Annex'!$K$1:$BU$4779,MATCH(Assets!E$1&"|"&Assets!$B31,'Data Annex'!$K$1:$K$4779,0),MATCH(Assets!E$2,'Data Annex'!$K$1:$BU$1,0)),"") -> 0.4142460883 | F31: =IFERROR(INDEX('Data Annex'!$K$1:$BU$4779,MATCH(Assets!F$1&"|"&Assets!$B31,'Data Annex'!$K$1:$K$4779,0),MATCH(Assets!F$2,'Data Annex'!$K$1:$BU$1,0)),"") -> 0.5056065908 | G31: =IFERROR(INDEX('Data Annex'!$K$1:$BU$4779,MATCH(Assets!G$1&"|"&Assets!$B31,'Data Annex'!$K$1:$K$4779,0),MATCH(Assets!G$2,'Data Annex'!$K$1:$BU$1,0)),"") -> 0.4966151281 | H31: =IFERROR(INDEX('Data Annex'!$K$1:$BU$4779,MATCH(Assets!H$1&"|"&Assets!$B31,'Data Annex'!$K$1:$K$4779,0),MATCH(Assets!H$2,'Data Annex'!$K$1:$BU$1,0)),"") -> 0.0004546242632 | I31: =IFERROR(INDEX('Data Annex'!$K$1:$BU$4779,MATCH(Assets!I$1&"|"&Assets!$B31,'Data Annex'!$K$1:$K$4779,0),MATCH(Assets!I$2,'Data Annex'!$K$1:$BU$1,0)),"") -> 0.0001766392483 | J31: =IFERROR(INDEX('Data Annex'!$K$1:$BU$4779,MATCH(Assets!J$1&"|"&Assets!$B31,'Data Annex'!$K$1:$K$4779,0),MATCH(Assets!J$2,'Data Annex'!$K$1:$BU$1,0)),"") -> 0.000141257512 | K31: =IFERROR(INDEX('Data Annex'!$K$1:$BU$4779,MATCH(Assets!K$1&"|"&Assets!$B31,'Data Annex'!$K$1:$K$4779,0),MATCH(Assets!K$2,'Data Annex'!$K$1:$BU$1,0)),"") -> 0.1054669045 | L31: =IFERROR(INDEX('Data Annex'!$K$1:$BU$4779,MATCH(Assets!L$1&"|"&Assets!$B31,'Data Annex'!$K$1:$K$4779,0),MATCH(Assets!L$2,'Data Annex'!$K$1:$BU$1,0)),"") -> 0.1113266101 | M31: =IFERROR(INDEX('Data Annex'!$K$1:$BU$4779,MATCH(Assets!M$1&"|"&Assets!$B31,'Data Annex'!$K$1:$K$4779,0),MATCH(Assets!M$2,'Data Annex'!$K$1:$BU$1,0)),"") -> 0.1216904277 | N31: =IFERROR(INDEX('Data Annex'!$K$1:$BU$4779,MATCH(Assets!N$1&"|"&Assets!$B31,'Data Annex'!$K$1:$K$4779,0),MATCH(Assets!N$2,'Data Annex'!$K$1:$BU$1,0)),"") -> 0.4718094031 | O31: =IFERROR(INDEX('Data Annex'!$K$1:$BU$4779,MATCH(Assets!O$1&"|"&Assets!$B31,'Data Annex'!$K$1:$K$4779,0),MATCH(Assets!O$2,'Data Annex'!$K$1:$BU$1,0)),"") -> 0.3617863172 | P31: =IFERROR(INDEX('Data Annex'!$K$1:$BU$4779,MATCH(Assets!P$1&"|"&Assets!$B31,'Data Annex'!$K$1:$K$4779,0),MATCH(Assets!P$2,'Data Annex'!$K$1:$BU$1,0)),"") -> 0.3650648041 | Q31: =IFERROR(INDEX('Data Annex'!$K$1:$BU$4779,MATCH(Assets!Q$1&"|"&Assets!$B31,'Data Annex'!$K$1:$K$4779,0),MATCH(Assets!Q$2,'Data Annex'!$K$1:$BU$1,0)),"") -> 0.00101990559 | R31: =IFERROR(INDEX('Data Annex'!$K$1:$BU$4779,MATCH(Assets!R$1&"|"&Assets!$B31,'Data Annex'!$K$1:$K$4779,0),MATCH(Assets!R$2,'Data Annex'!$K$1:$BU$1,0)),"") -> 0.0008472057509 | S31: =IFERROR(INDEX('Data Annex'!$K$1:$BU$4779,MATCH(Assets!S$1&"|"&Assets!$B31,'Data Annex'!$K$1:$K$4779,0),MATCH(Assets!S$2,'Data Annex'!$K$1:$BU$1,0)),"") -> 0.001086566638 | T31: =IFERROR(INDEX('Data Annex'!$K$1:$BU$4779,MATCH(Assets!T$1&"|"&Assets!$B31,'Data Annex'!$K$1:$K$4779,0),MATCH(Assets!T$2,'Data Annex'!$K$1:$BU$1,0)),"") -> 0.007003074259 | U31: =IFERROR(INDEX('Data Annex'!$K$1:$BU$4779,MATCH(Assets!U$1&"|"&Assets!$B31,'Data Annex'!$K$1:$K$4779,0),MATCH(Assets!U$2,'Data Annex'!$K$1:$BU$1,0)),"") -> 0.0202566044 | V31: =IFERROR(INDEX('Data Annex'!$K$1:$BU$4779,MATCH(Assets!V$1&"|"&Assets!$B31,'Data Annex'!$K$1:$K$4779,0),MATCH(Assets!V$2,'Data Annex'!$K$1:$BU$1,0)),"") -> 0.01540181588 | W31: =IFERROR(INDEX('Data Annex'!$K$1:$AH$4779,MATCH(Assets!AC$1&"|"&Assets!$B31,'Data Annex'!$K$1:$K$4779,0),MATCH(Assets!AC$2,'Data Annex'!$K$1:$AH$1,0)),"") -> 
B32: LU | D32: LU | E32: =IFERROR(INDEX('Data Annex'!$K$1:$BU$4779,MATCH(Assets!E$1&"|"&Assets!$B32,'Data Annex'!$K$1:$K$4779,0),MATCH(Assets!E$2,'Data Annex'!$K$1:$BU$1,0)),"") -> 0.2632306916 | F32: =IFERROR(INDEX('Data Annex'!$K$1:$BU$4779,MATCH(Assets!F$1&"|"&Assets!$B32,'Data Annex'!$K$1:$K$4779,0),MATCH(Assets!F$2,'Data Annex'!$K$1:$BU$1,0)),"") -> 0.2883732224 | G32: =IFERROR(INDEX('Data Annex'!$K$1:$BU$4779,MATCH(Assets!G$1&"|"&Assets!$B32,'Data Annex'!$K$1:$K$4779,0),MATCH(Assets!G$2,'Data Annex'!$K$1:$BU$1,0)),"") -> 0.2746273224 | H32: =IFERROR(INDEX('Data Annex'!$K$1:$BU$4779,MATCH(Assets!H$1&"|"&Assets!$B32,'Data Annex'!$K$1:$K$4779,0),MATCH(Assets!H$2,'Data Annex'!$K$1:$BU$1,0)),"") -> 0.005596209061 | I32: =IFERROR(INDEX('Data Annex'!$K$1:$BU$4779,MATCH(Assets!I$1&"|"&Assets!$B32,'Data Annex'!$K$1:$K$4779,0),MATCH(Assets!I$2,'Data Annex'!$K$1:$BU$1,0)),"") -> 0.005477932016 | J32: =IFERROR(INDEX('Data Annex'!$K$1:$BU$4779,MATCH(Assets!J$1&"|"&Assets!$B32,'Data Annex'!$K$1:$K$4779,0),MATCH(Assets!J$2,'Data Annex'!$K$1:$BU$1,0)),"") -> 0.006643106614 | K32: =IFERROR(INDEX('Data Annex'!$K$1:$BU$4779,MATCH(Assets!K$1&"|"&Assets!$B32,'Data Annex'!$K$1:$K$4779,0),MATCH(Assets!K$2,'Data Annex'!$K$1:$BU$1,0)),"") -> 0.1228461093 | L32: =IFERROR(INDEX('Data Annex'!$K$1:$BU$4779,MATCH(Assets!L$1&"|"&Assets!$B32,'Data Annex'!$K$1:$K$4779,0),MATCH(Assets!L$2,'Data Annex'!$K$1:$BU$1,0)),"") -> 0.1299751746 | M32: =IFERROR(INDEX('Data Annex'!$K$1:$BU$4779,MATCH(Assets!M$1&"|"&Assets!$B32,'Data Annex'!$K$1:$K$4779,0),MATCH(Assets!M$2,'Data Annex'!$K$1:$BU$1,0)),"") -> 0.1364279155 | N32: =IFERROR(INDEX('Data Annex'!$K$1:$BU$4779,MATCH(Assets!N$1&"|"&Assets!$B32,'Data Annex'!$K$1:$K$4779,0),MATCH(Assets!N$2,'Data Annex'!$K$1:$BU$1,0)),"") -> 0.5718617714 | O32: =IFERROR(INDEX('Data Annex'!$K$1:$BU$4779,MATCH(Assets!O$1&"|"&Assets!$B32,'Data Annex'!$K$1:$K$4779,0),MATCH(Assets!O$2,'Data Annex'!$K$1:$BU$1,0)),"") -> 0.5343343642 | P32: =IFERROR(INDEX('Data Annex'!$K$1:$BU$4779,MATCH(Assets!P$1&"|"&Assets!$B32,'Data Annex'!$K$1:$K$4779,0),MATCH(Assets!P$2,'Data Annex'!$K$1:$BU$1,0)),"") -> 0.5354032658 | Q32: =IFERROR(INDEX('Data Annex'!$K$1:$BU$4779,MATCH(Assets!Q$1&"|"&Assets!$B32,'Data Annex'!$K$1:$K$4779,0),MATCH(Assets!Q$2,'Data Annex'!$K$1:$BU$1,0)),"") -> 0.01063474175 | R32: =IFERROR(INDEX('Data Annex'!$K$1:$BU$4779,MATCH(Assets!R$1&"|"&Assets!$B32,'Data Annex'!$K$1:$K$4779,0),MATCH(Assets!R$2,'Data Annex'!$K$1:$BU$1,0)),"") -> 0.01783420485 | S32: =IFERROR(INDEX('Data Annex'!$K$1:$BU$4779,MATCH(Assets!S$1&"|"&Assets!$B32,'Data Annex'!$K$1:$K$4779,0),MATCH(Assets!S$2,'Data Annex'!$K$1:$BU$1,0)),"") -> 0.01712876478 | T32: =IFERROR(INDEX('Data Annex'!$K$1:$BU$4779,MATCH(Assets!T$1&"|"&Assets!$B32,'Data Annex'!$K$1:$K$4779,0),MATCH(Assets!T$2,'Data Annex'!$K$1:$BU$1,0)),"") -> 0.02583047685 | U32: =IFERROR(INDEX('Data Annex'!$K$1:$BU$4779,MATCH(Assets!U$1&"|"&Assets!$B32,'Data Annex'!$K$1:$K$4779,0),MATCH(Assets!U$2,'Data Annex'!$K$1:$BU$1,0)),"") -> 0.02400510191 | V32: =IFERROR(INDEX('Data Annex'!$K$1:$BU$4779,MATCH(Assets!V$1&"|"&Assets!$B32,'Data Annex'!$K$1:$K$4779,0),MATCH(Assets!V$2,'Data Annex'!$K$1:$BU$1,0)),"") -> 0.02976962491 | W32: =IFERROR(INDEX('Data Annex'!$K$1:$AH$4779,MATCH(Assets!AC$1&"|"&Assets!$B32,'Data Annex'!$K$1:$K$4779,0),MATCH(Assets!AC$2,'Data Annex'!$K$1:$AH$1,0)),"") -> 
B33: LV | D33: LV | E33: =IFERROR(INDEX('Data Annex'!$K$1:$BU$4779,MATCH(Assets!E$1&"|"&Assets!$B33,'Data Annex'!$K$1:$K$4779,0),MATCH(Assets!E$2,'Data Annex'!$K$1:$BU$1,0)),"") -> 0.3508862421 | F33: =IFERROR(INDEX('Data Annex'!$K$1:$BU$4779,MATCH(Assets!F$1&"|"&Assets!$B33,'Data Annex'!$K$1:$K$4779,0),MATCH(Assets!F$2,'Data Annex'!$K$1:$BU$1,0)),"") -> 0.29704862 | G33: =IFERROR(INDEX('Data Annex'!$K$1:$BU$4779,MATCH(Assets!G$1&"|"&Assets!$B33,'Data Annex'!$K$1:$K$4779,0),MATCH(Assets!G$2,'Data Annex'!$K$1:$BU$1,0)),"") -> 0.2920744363 | H33: =IFERROR(INDEX('Data Annex'!$K$1:$BU$4779,MATCH(Assets!H$1&"|"&Assets!$B33,'Data Annex'!$K$1:$K$4779,0),MATCH(Assets!H$2,'Data Annex'!$K$1:$BU$1,0)),"") -> 0.0001112070509 | I33: =IFERROR(INDEX('Data Annex'!$K$1:$BU$4779,MATCH(Assets!I$1&"|"&Assets!$B33,'Data Annex'!$K$1:$K$4779,0),MATCH(Assets!I$2,'Data Annex'!$K$1:$BU$1,0)),"") -> 9.071736242e-05 | J33: =IFERROR(INDEX('Data Annex'!$K$1:$BU$4779,MATCH(Assets!J$1&"|"&Assets!$B33,'Data Annex'!$K$1:$K$4779,0),MATCH(Assets!J$2,'Data Annex'!$K$1:$BU$1,0)),"") -> 8.567900969e-05 | K33: =IFERROR(INDEX('Data Annex'!$K$1:$BU$4779,MATCH(Assets!K$1&"|"&Assets!$B33,'Data Annex'!$K$1:$K$4779,0),MATCH(Assets!K$2,'Data Annex'!$K$1:$BU$1,0)),"") -> 0.1104328506 | L33: =IFERROR(INDEX('Data Annex'!$K$1:$BU$4779,MATCH(Assets!L$1&"|"&Assets!$B33,'Data Annex'!$K$1:$K$4779,0),MATCH(Assets!L$2,'Data Annex'!$K$1:$BU$1,0)),"") -> 0.06779498645 | M33: =IFERROR(INDEX('Data Annex'!$K$1:$BU$4779,MATCH(Assets!M$1&"|"&Assets!$B33,'Data Annex'!$K$1:$K$4779,0),MATCH(Assets!M$2,'Data Annex'!$K$1:$BU$1,0)),"") -> 0.06918874564 | N33: =IFERROR(INDEX('Data Annex'!$K$1:$BU$4779,MATCH(Assets!N$1&"|"&Assets!$B33,'Data Annex'!$K$1:$K$4779,0),MATCH(Assets!N$2,'Data Annex'!$K$1:$BU$1,0)),"") -> 0.5273364049 | O33: =IFERROR(INDEX('Data Annex'!$K$1:$BU$4779,MATCH(Assets!O$1&"|"&Assets!$B33,'Data Annex'!$K$1:$K$4779,0),MATCH(Assets!O$2,'Data Annex'!$K$1:$BU$1,0)),"") -> 0.623278317 | P33: =IFERROR(INDEX('Data Annex'!$K$1:$BU$4779,MATCH(Assets!P$1&"|"&Assets!$B33,'Data Annex'!$K$1:$K$4779,0),MATCH(Assets!P$2,'Data Annex'!$K$1:$BU$1,0)),"") -> 0.6270938572 | Q33: =IFERROR(INDEX('Data Annex'!$K$1:$BU$4779,MATCH(Assets!Q$1&"|"&Assets!$B33,'Data Annex'!$K$1:$K$4779,0),MATCH(Assets!Q$2,'Data Annex'!$K$1:$BU$1,0)),"") -> 0.001231437497 | R33: =IFERROR(INDEX('Data Annex'!$K$1:$BU$4779,MATCH(Assets!R$1&"|"&Assets!$B33,'Data Annex'!$K$1:$K$4779,0),MATCH(Assets!R$2,'Data Annex'!$K$1:$BU$1,0)),"") -> 0.001784337529 | S33: =IFERROR(INDEX('Data Annex'!$K$1:$BU$4779,MATCH(Assets!S$1&"|"&Assets!$B33,'Data Annex'!$K$1:$K$4779,0),MATCH(Assets!S$2,'Data Annex'!$K$1:$BU$1,0)),"") -> 0.001500283937 | T33: =IFERROR(INDEX('Data Annex'!$K$1:$BU$4779,MATCH(Assets!T$1&"|"&Assets!$B33,'Data Annex'!$K$1:$K$4779,0),MATCH(Assets!T$2,'Data Annex'!$K$1:$BU$1,0)),"") -> 0.01000185784 | U33: =IFERROR(INDEX('Data Annex'!$K$1:$BU$4779,MATCH(Assets!U$1&"|"&Assets!$B33,'Data Annex'!$K$1:$K$4779,0),MATCH(Assets!U$2,'Data Annex'!$K$1:$BU$1,0)),"") -> 0.01000302163 | V33: =IFERROR(INDEX('Data Annex'!$K$1:$BU$4779,MATCH(Assets!V$1&"|"&Assets!$B33,'Data Annex'!$K$1:$K$4779,0),MATCH(Assets!V$2,'Data Annex'!$K$1:$BU$1,0)),"") -> 0.01005699785 | W33: =IFERROR(INDEX('Data Annex'!$K$1:$AH$4779,MATCH(Assets!AC$1&"|"&Assets!$B33,'Data Annex'!$K$1:$K$4779,0),MATCH(Assets!AC$2,'Data Annex'!$K$1:$AH$1,0)),"") -> 
B34: MT | D34: MT | E34: =IFERROR(INDEX('Data Annex'!$K$1:$BU$4779,MATCH(Assets!E$1&"|"&Assets!$B34,'Data Annex'!$K$1:$K$4779,0),MATCH(Assets!E$2,'Data Annex'!$K$1:$BU$1,0)),"") -> 0.2570154317 | F34: =IFERROR(INDEX('Data Annex'!$K$1:$BU$4779,MATCH(Assets!F$1&"|"&Assets!$B34,'Data Annex'!$K$1:$K$4779,0),MATCH(Assets!F$2,'Data Annex'!$K$1:$BU$1,0)),"") -> 0.2090957876 | G34: =IFERROR(INDEX('Data Annex'!$K$1:$BU$4779,MATCH(Assets!G$1&"|"&Assets!$B34,'Data Annex'!$K$1:$K$4779,0),MATCH(Assets!G$2,'Data Annex'!$K$1:$BU$1,0)),"") -> 0.1805943903 | H34: =IFERROR(INDEX('Data Annex'!$K$1:$BU$4779,MATCH(Assets!H$1&"|"&Assets!$B34,'Data Annex'!$K$1:$K$4779,0),MATCH(Assets!H$2,'Data Annex'!$K$1:$BU$1,0)),"") -> 0.001995114597 | I34: =IFERROR(INDEX('Data Annex'!$K$1:$BU$4779,MATCH(Assets!I$1&"|"&Assets!$B34,'Data Annex'!$K$1:$K$4779,0),MATCH(Assets!I$2,'Data Annex'!$K$1:$BU$1,0)),"") -> 0.002336677679 | J34: =IFERROR(INDEX('Data Annex'!$K$1:$BU$4779,MATCH(Assets!J$1&"|"&Assets!$B34,'Data Annex'!$K$1:$K$4779,0),MATCH(Assets!J$2,'Data Annex'!$K$1:$BU$1,0)),"") -> 0.002106523484 | K34: =IFERROR(INDEX('Data Annex'!$K$1:$BU$4779,MATCH(Assets!K$1&"|"&Assets!$B34,'Data Annex'!$K$1:$K$4779,0),MATCH(Assets!K$2,'Data Annex'!$K$1:$BU$1,0)),"") -> 0.251592482 | L34: =IFERROR(INDEX('Data Annex'!$K$1:$BU$4779,MATCH(Assets!L$1&"|"&Assets!$B34,'Data Annex'!$K$1:$K$4779,0),MATCH(Assets!L$2,'Data Annex'!$K$1:$BU$1,0)),"") -> 0.2839981912 | M34: =IFERROR(INDEX('Data Annex'!$K$1:$BU$4779,MATCH(Assets!M$1&"|"&Assets!$B34,'Data Annex'!$K$1:$K$4779,0),MATCH(Assets!M$2,'Data Annex'!$K$1:$BU$1,0)),"") -> 0.2930204465 | N34: =IFERROR(INDEX('Data Annex'!$K$1:$BU$4779,MATCH(Assets!N$1&"|"&Assets!$B34,'Data Annex'!$K$1:$K$4779,0),MATCH(Assets!N$2,'Data Annex'!$K$1:$BU$1,0)),"") -> 0.461665824 | O34: =IFERROR(INDEX('Data Annex'!$K$1:$BU$4779,MATCH(Assets!O$1&"|"&Assets!$B34,'Data Annex'!$K$1:$K$4779,0),MATCH(Assets!O$2,'Data Annex'!$K$1:$BU$1,0)),"") -> 0.4723436013 | P34: =IFERROR(INDEX('Data Annex'!$K$1:$BU$4779,MATCH(Assets!P$1&"|"&Assets!$B34,'Data Annex'!$K$1:$K$4779,0),MATCH(Assets!P$2,'Data Annex'!$K$1:$BU$1,0)),"") -> 0.4924346813 | Q34: =IFERROR(INDEX('Data Annex'!$K$1:$BU$4779,MATCH(Assets!Q$1&"|"&Assets!$B34,'Data Annex'!$K$1:$K$4779,0),MATCH(Assets!Q$2,'Data Annex'!$K$1:$BU$1,0)),"") -> 0.005045991387 | R34: =IFERROR(INDEX('Data Annex'!$K$1:$BU$4779,MATCH(Assets!R$1&"|"&Assets!$B34,'Data Annex'!$K$1:$K$4779,0),MATCH(Assets!R$2,'Data Annex'!$K$1:$BU$1,0)),"") -> 0.01595009204 | S34: =IFERROR(INDEX('Data Annex'!$K$1:$BU$4779,MATCH(Assets!S$1&"|"&Assets!$B34,'Data Annex'!$K$1:$K$4779,0),MATCH(Assets!S$2,'Data Annex'!$K$1:$BU$1,0)),"") -> 0.01497498675 | T34: =IFERROR(INDEX('Data Annex'!$K$1:$BU$4779,MATCH(Assets!T$1&"|"&Assets!$B34,'Data Annex'!$K$1:$K$4779,0),MATCH(Assets!T$2,'Data Annex'!$K$1:$BU$1,0)),"") -> 0.02268515632 | U34: =IFERROR(INDEX('Data Annex'!$K$1:$BU$4779,MATCH(Assets!U$1&"|"&Assets!$B34,'Data Annex'!$K$1:$K$4779,0),MATCH(Assets!U$2,'Data Annex'!$K$1:$BU$1,0)),"") -> 0.01627565015 | V34: =IFERROR(INDEX('Data Annex'!$K$1:$BU$4779,MATCH(Assets!V$1&"|"&Assets!$B34,'Data Annex'!$K$1:$K$4779,0),MATCH(Assets!V$2,'Data Annex'!$K$1:$BU$1,0)),"") -> 0.01686897173 | W34: =IFERROR(INDEX('Data Annex'!$K$1:$AH$4779,MATCH(Assets!AC$1&"|"&Assets!$B34,'Data Annex'!$K$1:$K$4779,0),MATCH(Assets!AC$2,'Data Annex'!$K$1:$AH$1,0)),"") -> 
B35: NL | D35: NL | E35: =IFERROR(INDEX('Data Annex'!$K$1:$BU$4779,MATCH(Assets!E$1&"|"&Assets!$B35,'Data Annex'!$K$1:$K$4779,0),MATCH(Assets!E$2,'Data Annex'!$K$1:$BU$1,0)),"") -> 0.1760689109 | F35: =IFERROR(INDEX('Data Annex'!$K$1:$BU$4779,MATCH(Assets!F$1&"|"&Assets!$B35,'Data Annex'!$K$1:$K$4779,0),MATCH(Assets!F$2,'Data Annex'!$K$1:$BU$1,0)),"") -> 0.1393030055 | G35: =IFERROR(INDEX('Data Annex'!$K$1:$BU$4779,MATCH(Assets!G$1&"|"&Assets!$B35,'Data Annex'!$K$1:$K$4779,0),MATCH(Assets!G$2,'Data Annex'!$K$1:$BU$1,0)),"") -> 0.1699676766 | H35: =IFERROR(INDEX('Data Annex'!$K$1:$BU$4779,MATCH(Assets!H$1&"|"&Assets!$B35,'Data Annex'!$K$1:$K$4779,0),MATCH(Assets!H$2,'Data Annex'!$K$1:$BU$1,0)),"") -> 0.008145385478 | I35: =IFERROR(INDEX('Data Annex'!$K$1:$BU$4779,MATCH(Assets!I$1&"|"&Assets!$B35,'Data Annex'!$K$1:$K$4779,0),MATCH(Assets!I$2,'Data Annex'!$K$1:$BU$1,0)),"") -> 0.007601845105 | J35: =IFERROR(INDEX('Data Annex'!$K$1:$BU$4779,MATCH(Assets!J$1&"|"&Assets!$B35,'Data Annex'!$K$1:$K$4779,0),MATCH(Assets!J$2,'Data Annex'!$K$1:$BU$1,0)),"") -> 0.007341277003 | K35: =IFERROR(INDEX('Data Annex'!$K$1:$BU$4779,MATCH(Assets!K$1&"|"&Assets!$B35,'Data Annex'!$K$1:$K$4779,0),MATCH(Assets!K$2,'Data Annex'!$K$1:$BU$1,0)),"") -> 0.07036740159 | L35: =IFERROR(INDEX('Data Annex'!$K$1:$BU$4779,MATCH(Assets!L$1&"|"&Assets!$B35,'Data Annex'!$K$1:$K$4779,0),MATCH(Assets!L$2,'Data Annex'!$K$1:$BU$1,0)),"") -> 0.07369954387 | M35: =IFERROR(INDEX('Data Annex'!$K$1:$BU$4779,MATCH(Assets!M$1&"|"&Assets!$B35,'Data Annex'!$K$1:$K$4779,0),MATCH(Assets!M$2,'Data Annex'!$K$1:$BU$1,0)),"") -> 0.07328804143 | N35: =IFERROR(INDEX('Data Annex'!$K$1:$BU$4779,MATCH(Assets!N$1&"|"&Assets!$B35,'Data Annex'!$K$1:$K$4779,0),MATCH(Assets!N$2,'Data Annex'!$K$1:$BU$1,0)),"") -> 0.693663088 | O35: =IFERROR(INDEX('Data Annex'!$K$1:$BU$4779,MATCH(Assets!O$1&"|"&Assets!$B35,'Data Annex'!$K$1:$K$4779,0),MATCH(Assets!O$2,'Data Annex'!$K$1:$BU$1,0)),"") -> 0.7380754688 | P35: =IFERROR(INDEX('Data Annex'!$K$1:$BU$4779,MATCH(Assets!P$1&"|"&Assets!$B35,'Data Annex'!$K$1:$K$4779,0),MATCH(Assets!P$2,'Data Annex'!$K$1:$BU$1,0)),"") -> 0.713479012 | Q35: =IFERROR(INDEX('Data Annex'!$K$1:$BU$4779,MATCH(Assets!Q$1&"|"&Assets!$B35,'Data Annex'!$K$1:$K$4779,0),MATCH(Assets!Q$2,'Data Annex'!$K$1:$BU$1,0)),"") -> 0.02506630851 | R35: =IFERROR(INDEX('Data Annex'!$K$1:$BU$4779,MATCH(Assets!R$1&"|"&Assets!$B35,'Data Annex'!$K$1:$K$4779,0),MATCH(Assets!R$2,'Data Annex'!$K$1:$BU$1,0)),"") -> 0.03386047203 | S35: =IFERROR(INDEX('Data Annex'!$K$1:$BU$4779,MATCH(Assets!S$1&"|"&Assets!$B35,'Data Annex'!$K$1:$K$4779,0),MATCH(Assets!S$2,'Data Annex'!$K$1:$BU$1,0)),"") -> 0.02773447011 | T35: =IFERROR(INDEX('Data Annex'!$K$1:$BU$4779,MATCH(Assets!T$1&"|"&Assets!$B35,'Data Annex'!$K$1:$K$4779,0),MATCH(Assets!T$2,'Data Annex'!$K$1:$BU$1,0)),"") -> 0.02668890551 | U35: =IFERROR(INDEX('Data Annex'!$K$1:$BU$4779,MATCH(Assets!U$1&"|"&Assets!$B35,'Data Annex'!$K$1:$K$4779,0),MATCH(Assets!U$2,'Data Annex'!$K$1:$BU$1,0)),"") -> 0.007459664678 | V35: =IFERROR(INDEX('Data Annex'!$K$1:$BU$4779,MATCH(Assets!V$1&"|"&Assets!$B35,'Data Annex'!$K$1:$K$4779,0),MATCH(Assets!V$2,'Data Annex'!$K$1:$BU$1,0)),"") -> 0.008189522824 | W35: =IFERROR(INDEX('Data Annex'!$K$1:$AH$4779,MATCH(Assets!AC$1&"|"&Assets!$B35,'Data Annex'!$K$1:$K$4779,0),MATCH(Assets!AC$2,'Data Annex'!$K$1:$AH$1,0)),"") -> 
B36: NO | D36: NO* | E36: =IFERROR(INDEX('Data Annex'!$K$1:$BU$4779,MATCH(Assets!E$1&"|"&Assets!$B36,'Data Annex'!$K$1:$K$4779,0),MATCH(Assets!E$2,'Data Annex'!$K$1:$BU$1,0)),"") -> n.a. | F36: =IFERROR(INDEX('Data Annex'!$K$1:$BU$4779,MATCH(Assets!F$1&"|"&Assets!$B36,'Data Annex'!$K$1:$K$4779,0),MATCH(Assets!F$2,'Data Annex'!$K$1:$BU$1,0)),"") -> 0.08944965782 | G36: =IFERROR(INDEX('Data Annex'!$K$1:$BU$4779,MATCH(Assets!G$1&"|"&Assets!$B36,'Data Annex'!$K$1:$K$4779,0),MATCH(Assets!G$2,'Data Annex'!$K$1:$BU$1,0)),"") -> 0.1484923098 | H36: =IFERROR(INDEX('Data Annex'!$K$1:$BU$4779,MATCH(Assets!H$1&"|"&Assets!$B36,'Data Annex'!$K$1:$K$4779,0),MATCH(Assets!H$2,'Data Annex'!$K$1:$BU$1,0)),"") -> n.a. | I36: =IFERROR(INDEX('Data Annex'!$K$1:$BU$4779,MATCH(Assets!I$1&"|"&Assets!$B36,'Data Annex'!$K$1:$K$4779,0),MATCH(Assets!I$2,'Data Annex'!$K$1:$BU$1,0)),"") -> 0.00309125633 | J36: =IFERROR(INDEX('Data Annex'!$K$1:$BU$4779,MATCH(Assets!J$1&"|"&Assets!$B36,'Data Annex'!$K$1:$K$4779,0),MATCH(Assets!J$2,'Data Annex'!$K$1:$BU$1,0)),"") -> 0.003161635245 | K36: =IFERROR(INDEX('Data Annex'!$K$1:$BU$4779,MATCH(Assets!K$1&"|"&Assets!$B36,'Data Annex'!$K$1:$K$4779,0),MATCH(Assets!K$2,'Data Annex'!$K$1:$BU$1,0)),"") -> n.a. | L36: =IFERROR(INDEX('Data Annex'!$K$1:$BU$4779,MATCH(Assets!L$1&"|"&Assets!$B36,'Data Annex'!$K$1:$K$4779,0),MATCH(Assets!L$2,'Data Annex'!$K$1:$BU$1,0)),"") -> 0.1211266905 | M36: =IFERROR(INDEX('Data Annex'!$K$1:$BU$4779,MATCH(Assets!M$1&"|"&Assets!$B36,'Data Annex'!$K$1:$K$4779,0),MATCH(Assets!M$2,'Data Annex'!$K$1:$BU$1,0)),"") -> 0.104578946 | N36: =IFERROR(INDEX('Data Annex'!$K$1:$BU$4779,MATCH(Assets!N$1&"|"&Assets!$B36,'Data Annex'!$K$1:$K$4779,0),MATCH(Assets!N$2,'Data Annex'!$K$1:$BU$1,0)),"") -> n.a. | O36: =IFERROR(INDEX('Data Annex'!$K$1:$BU$4779,MATCH(Assets!O$1&"|"&Assets!$B36,'Data Annex'!$K$1:$K$4779,0),MATCH(Assets!O$2,'Data Annex'!$K$1:$BU$1,0)),"") -> 0.7028616656 | P36: =IFERROR(INDEX('Data Annex'!$K$1:$BU$4779,MATCH(Assets!P$1&"|"&Assets!$B36,'Data Annex'!$K$1:$K$4779,0),MATCH(Assets!P$2,'Data Annex'!$K$1:$BU$1,0)),"") -> 0.6658565298 | Q36: =IFERROR(INDEX('Data Annex'!$K$1:$BU$4779,MATCH(Assets!Q$1&"|"&Assets!$B36,'Data Annex'!$K$1:$K$4779,0),MATCH(Assets!Q$2,'Data Annex'!$K$1:$BU$1,0)),"") -> n.a. | R36: =IFERROR(INDEX('Data Annex'!$K$1:$BU$4779,MATCH(Assets!R$1&"|"&Assets!$B36,'Data Annex'!$K$1:$K$4779,0),MATCH(Assets!R$2,'Data Annex'!$K$1:$BU$1,0)),"") -> 0.05965756748 | S36: =IFERROR(INDEX('Data Annex'!$K$1:$BU$4779,MATCH(Assets!S$1&"|"&Assets!$B36,'Data Annex'!$K$1:$K$4779,0),MATCH(Assets!S$2,'Data Annex'!$K$1:$BU$1,0)),"") -> 0.05193826292 | T36: =IFERROR(INDEX('Data Annex'!$K$1:$BU$4779,MATCH(Assets!T$1&"|"&Assets!$B36,'Data Annex'!$K$1:$K$4779,0),MATCH(Assets!T$2,'Data Annex'!$K$1:$BU$1,0)),"") -> n.a. | U36: =IFERROR(INDEX('Data Annex'!$K$1:$BU$4779,MATCH(Assets!U$1&"|"&Assets!$B36,'Data Annex'!$K$1:$K$4779,0),MATCH(Assets!U$2,'Data Annex'!$K$1:$BU$1,0)),"") -> 0.02381316234 | V36: =IFERROR(INDEX('Data Annex'!$K$1:$BU$4779,MATCH(Assets!V$1&"|"&Assets!$B36,'Data Annex'!$K$1:$K$4779,0),MATCH(Assets!V$2,'Data Annex'!$K$1:$BU$1,0)),"") -> 0.02597231623 | W36: =IFERROR(INDEX('Data Annex'!$K$1:$AH$4779,MATCH(Assets!AC$1&"|"&Assets!$B36,'Data Annex'!$K$1:$K$4779,0),MATCH(Assets!AC$2,'Data Annex'!$K$1:$AH$1,0)),"") -> 
B37: PL | D37: PL | E37: =IFERROR(INDEX('Data Annex'!$K$1:$BU$4779,MATCH(Assets!E$1&"|"&Assets!$B37,'Data Annex'!$K$1:$K$4779,0),MATCH(Assets!E$2,'Data Annex'!$K$1:$BU$1,0)),"") -> 0.04203664388 | F37: =IFERROR(INDEX('Data Annex'!$K$1:$BU$4779,MATCH(Assets!F$1&"|"&Assets!$B37,'Data Annex'!$K$1:$K$4779,0),MATCH(Assets!F$2,'Data Annex'!$K$1:$BU$1,0)),"") -> 0.04377952216 | G37: =IFERROR(INDEX('Data Annex'!$K$1:$BU$4779,MATCH(Assets!G$1&"|"&Assets!$B37,'Data Annex'!$K$1:$K$4779,0),MATCH(Assets!G$2,'Data Annex'!$K$1:$BU$1,0)),"") -> 0.04953876335 | H37: =IFERROR(INDEX('Data Annex'!$K$1:$BU$4779,MATCH(Assets!H$1&"|"&Assets!$B37,'Data Annex'!$K$1:$K$4779,0),MATCH(Assets!H$2,'Data Annex'!$K$1:$BU$1,0)),"") -> 0.001329030817 | I37: =IFERROR(INDEX('Data Annex'!$K$1:$BU$4779,MATCH(Assets!I$1&"|"&Assets!$B37,'Data Annex'!$K$1:$K$4779,0),MATCH(Assets!I$2,'Data Annex'!$K$1:$BU$1,0)),"") -> 0.001244712738 | J37: =IFERROR(INDEX('Data Annex'!$K$1:$BU$4779,MATCH(Assets!J$1&"|"&Assets!$B37,'Data Annex'!$K$1:$K$4779,0),MATCH(Assets!J$2,'Data Annex'!$K$1:$BU$1,0)),"") -> 0.001260622327 | K37: =IFERROR(INDEX('Data Annex'!$K$1:$BU$4779,MATCH(Assets!K$1&"|"&Assets!$B37,'Data Annex'!$K$1:$K$4779,0),MATCH(Assets!K$2,'Data Annex'!$K$1:$BU$1,0)),"") -> 0.2803207429 | L37: =IFERROR(INDEX('Data Annex'!$K$1:$BU$4779,MATCH(Assets!L$1&"|"&Assets!$B37,'Data Annex'!$K$1:$K$4779,0),MATCH(Assets!L$2,'Data Annex'!$K$1:$BU$1,0)),"") -> 0.2814243214 | M37: =IFERROR(INDEX('Data Annex'!$K$1:$BU$4779,MATCH(Assets!M$1&"|"&Assets!$B37,'Data Annex'!$K$1:$K$4779,0),MATCH(Assets!M$2,'Data Annex'!$K$1:$BU$1,0)),"") -> 0.2958998747 | N37: =IFERROR(INDEX('Data Annex'!$K$1:$BU$4779,MATCH(Assets!N$1&"|"&Assets!$B37,'Data Annex'!$K$1:$K$4779,0),MATCH(Assets!N$2,'Data Annex'!$K$1:$BU$1,0)),"") -> 0.6039718491 | O37: =IFERROR(INDEX('Data Annex'!$K$1:$BU$4779,MATCH(Assets!O$1&"|"&Assets!$B37,'Data Annex'!$K$1:$K$4779,0),MATCH(Assets!O$2,'Data Annex'!$K$1:$BU$1,0)),"") -> 0.6018132792 | P37: =IFERROR(INDEX('Data Annex'!$K$1:$BU$4779,MATCH(Assets!P$1&"|"&Assets!$B37,'Data Annex'!$K$1:$K$4779,0),MATCH(Assets!P$2,'Data Annex'!$K$1:$BU$1,0)),"") -> 0.5887533555 | Q37: =IFERROR(INDEX('Data Annex'!$K$1:$BU$4779,MATCH(Assets!Q$1&"|"&Assets!$B37,'Data Annex'!$K$1:$K$4779,0),MATCH(Assets!Q$2,'Data Annex'!$K$1:$BU$1,0)),"") -> 0.03752436816 | R37: =IFERROR(INDEX('Data Annex'!$K$1:$BU$4779,MATCH(Assets!R$1&"|"&Assets!$B37,'Data Annex'!$K$1:$K$4779,0),MATCH(Assets!R$2,'Data Annex'!$K$1:$BU$1,0)),"") -> 0.03792481513 | S37: =IFERROR(INDEX('Data Annex'!$K$1:$BU$4779,MATCH(Assets!S$1&"|"&Assets!$B37,'Data Annex'!$K$1:$K$4779,0),MATCH(Assets!S$2,'Data Annex'!$K$1:$BU$1,0)),"") -> 0.03227070048 | T37: =IFERROR(INDEX('Data Annex'!$K$1:$BU$4779,MATCH(Assets!T$1&"|"&Assets!$B37,'Data Annex'!$K$1:$K$4779,0),MATCH(Assets!T$2,'Data Annex'!$K$1:$BU$1,0)),"") -> 0.0348173651 | U37: =IFERROR(INDEX('Data Annex'!$K$1:$BU$4779,MATCH(Assets!U$1&"|"&Assets!$B37,'Data Annex'!$K$1:$K$4779,0),MATCH(Assets!U$2,'Data Annex'!$K$1:$BU$1,0)),"") -> 0.03381334931 | V37: =IFERROR(INDEX('Data Annex'!$K$1:$BU$4779,MATCH(Assets!V$1&"|"&Assets!$B37,'Data Annex'!$K$1:$K$4779,0),MATCH(Assets!V$2,'Data Annex'!$K$1:$BU$1,0)),"") -> 0.03227668368 | W37: =IFERROR(INDEX('Data Annex'!$K$1:$AH$4779,MATCH(Assets!AC$1&"|"&Assets!$B37,'Data Annex'!$K$1:$K$4779,0),MATCH(Assets!AC$2,'Data Annex'!$K$1:$AH$1,0)),"") -> 
B38: PT | D38: PT | E38: =IFERROR(INDEX('Data Annex'!$K$1:$BU$4779,MATCH(Assets!E$1&"|"&Assets!$B38,'Data Annex'!$K$1:$K$4779,0),MATCH(Assets!E$2,'Data Annex'!$K$1:$BU$1,0)),"") -> 0.1587928647 | F38: =IFERROR(INDEX('Data Annex'!$K$1:$BU$4779,MATCH(Assets!F$1&"|"&Assets!$B38,'Data Annex'!$K$1:$K$4779,0),MATCH(Assets!F$2,'Data Annex'!$K$1:$BU$1,0)),"") -> 0.1481971508 | G38: =IFERROR(INDEX('Data Annex'!$K$1:$BU$4779,MATCH(Assets!G$1&"|"&Assets!$B38,'Data Annex'!$K$1:$K$4779,0),MATCH(Assets!G$2,'Data Annex'!$K$1:$BU$1,0)),"") -> 0.1241316386 | H38: =IFERROR(INDEX('Data Annex'!$K$1:$BU$4779,MATCH(Assets!H$1&"|"&Assets!$B38,'Data Annex'!$K$1:$K$4779,0),MATCH(Assets!H$2,'Data Annex'!$K$1:$BU$1,0)),"") -> 0.01004815005 | I38: =IFERROR(INDEX('Data Annex'!$K$1:$BU$4779,MATCH(Assets!I$1&"|"&Assets!$B38,'Data Annex'!$K$1:$K$4779,0),MATCH(Assets!I$2,'Data Annex'!$K$1:$BU$1,0)),"") -> 0.008067637128 | J38: =IFERROR(INDEX('Data Annex'!$K$1:$BU$4779,MATCH(Assets!J$1&"|"&Assets!$B38,'Data Annex'!$K$1:$K$4779,0),MATCH(Assets!J$2,'Data Annex'!$K$1:$BU$1,0)),"") -> 0.009195533579 | K38: =IFERROR(INDEX('Data Annex'!$K$1:$BU$4779,MATCH(Assets!K$1&"|"&Assets!$B38,'Data Annex'!$K$1:$K$4779,0),MATCH(Assets!K$2,'Data Annex'!$K$1:$BU$1,0)),"") -> 0.2037371019 | L38: =IFERROR(INDEX('Data Annex'!$K$1:$BU$4779,MATCH(Assets!L$1&"|"&Assets!$B38,'Data Annex'!$K$1:$K$4779,0),MATCH(Assets!L$2,'Data Annex'!$K$1:$BU$1,0)),"") -> 0.2010112669 | M38: =IFERROR(INDEX('Data Annex'!$K$1:$BU$4779,MATCH(Assets!M$1&"|"&Assets!$B38,'Data Annex'!$K$1:$K$4779,0),MATCH(Assets!M$2,'Data Annex'!$K$1:$BU$1,0)),"") -> 0.2183352164 | N38: =IFERROR(INDEX('Data Annex'!$K$1:$BU$4779,MATCH(Assets!N$1&"|"&Assets!$B38,'Data Annex'!$K$1:$K$4779,0),MATCH(Assets!N$2,'Data Annex'!$K$1:$BU$1,0)),"") -> 0.5643629675 | O38: =IFERROR(INDEX('Data Annex'!$K$1:$BU$4779,MATCH(Assets!O$1&"|"&Assets!$B38,'Data Annex'!$K$1:$K$4779,0),MATCH(Assets!O$2,'Data Annex'!$K$1:$BU$1,0)),"") -> 0.5846676298 | P38: =IFERROR(INDEX('Data Annex'!$K$1:$BU$4779,MATCH(Assets!P$1&"|"&Assets!$B38,'Data Annex'!$K$1:$K$4779,0),MATCH(Assets!P$2,'Data Annex'!$K$1:$BU$1,0)),"") -> 0.589666155 | Q38: =IFERROR(INDEX('Data Annex'!$K$1:$BU$4779,MATCH(Assets!Q$1&"|"&Assets!$B38,'Data Annex'!$K$1:$K$4779,0),MATCH(Assets!Q$2,'Data Annex'!$K$1:$BU$1,0)),"") -> 0.00748928243 | R38: =IFERROR(INDEX('Data Annex'!$K$1:$BU$4779,MATCH(Assets!R$1&"|"&Assets!$B38,'Data Annex'!$K$1:$K$4779,0),MATCH(Assets!R$2,'Data Annex'!$K$1:$BU$1,0)),"") -> 0.008928453394 | S38: =IFERROR(INDEX('Data Annex'!$K$1:$BU$4779,MATCH(Assets!S$1&"|"&Assets!$B38,'Data Annex'!$K$1:$K$4779,0),MATCH(Assets!S$2,'Data Annex'!$K$1:$BU$1,0)),"") -> 0.00925033879 | T38: =IFERROR(INDEX('Data Annex'!$K$1:$BU$4779,MATCH(Assets!T$1&"|"&Assets!$B38,'Data Annex'!$K$1:$K$4779,0),MATCH(Assets!T$2,'Data Annex'!$K$1:$BU$1,0)),"") -> 0.05556963341 | U38: =IFERROR(INDEX('Data Annex'!$K$1:$BU$4779,MATCH(Assets!U$1&"|"&Assets!$B38,'Data Annex'!$K$1:$K$4779,0),MATCH(Assets!U$2,'Data Annex'!$K$1:$BU$1,0)),"") -> 0.04912786203 | V38: =IFERROR(INDEX('Data Annex'!$K$1:$BU$4779,MATCH(Assets!V$1&"|"&Assets!$B38,'Data Annex'!$K$1:$K$4779,0),MATCH(Assets!V$2,'Data Annex'!$K$1:$BU$1,0)),"") -> 0.04942111768 | W38: =IFERROR(INDEX('Data Annex'!$K$1:$AH$4779,MATCH(Assets!AC$1&"|"&Assets!$B38,'Data Annex'!$K$1:$K$4779,0),MATCH(Assets!AC$2,'Data Annex'!$K$1:$AH$1,0)),"") -> 
B39: RO | D39: RO | E39: =IFERROR(INDEX('Data Annex'!$K$1:$BU$4779,MATCH(Assets!E$1&"|"&Assets!$B39,'Data Annex'!$K$1:$K$4779,0),MATCH(Assets!E$2,'Data Annex'!$K$1:$BU$1,0)),"") -> 0.1298540239 | F39: =IFERROR(INDEX('Data Annex'!$K$1:$BU$4779,MATCH(Assets!F$1&"|"&Assets!$B39,'Data Annex'!$K$1:$K$4779,0),MATCH(Assets!F$2,'Data Annex'!$K$1:$BU$1,0)),"") -> 0.1254791243 | G39: =IFERROR(INDEX('Data Annex'!$K$1:$BU$4779,MATCH(Assets!G$1&"|"&Assets!$B39,'Data Annex'!$K$1:$K$4779,0),MATCH(Assets!G$2,'Data Annex'!$K$1:$BU$1,0)),"") -> 0.1305339962 | H39: =IFERROR(INDEX('Data Annex'!$K$1:$BU$4779,MATCH(Assets!H$1&"|"&Assets!$B39,'Data Annex'!$K$1:$K$4779,0),MATCH(Assets!H$2,'Data Annex'!$K$1:$BU$1,0)),"") -> 0.001284795037 | I39: =IFERROR(INDEX('Data Annex'!$K$1:$BU$4779,MATCH(Assets!I$1&"|"&Assets!$B39,'Data Annex'!$K$1:$K$4779,0),MATCH(Assets!I$2,'Data Annex'!$K$1:$BU$1,0)),"") -> 0.001518481788 | J39: =IFERROR(INDEX('Data Annex'!$K$1:$BU$4779,MATCH(Assets!J$1&"|"&Assets!$B39,'Data Annex'!$K$1:$K$4779,0),MATCH(Assets!J$2,'Data Annex'!$K$1:$BU$1,0)),"") -> 0.001555835434 | K39: =IFERROR(INDEX('Data Annex'!$K$1:$BU$4779,MATCH(Assets!K$1&"|"&Assets!$B39,'Data Annex'!$K$1:$K$4779,0),MATCH(Assets!K$2,'Data Annex'!$K$1:$BU$1,0)),"") -> 0.3056018471 | L39: =IFERROR(INDEX('Data Annex'!$K$1:$BU$4779,MATCH(Assets!L$1&"|"&Assets!$B39,'Data Annex'!$K$1:$K$4779,0),MATCH(Assets!L$2,'Data Annex'!$K$1:$BU$1,0)),"") -> 0.2843248433 | M39: =IFERROR(INDEX('Data Annex'!$K$1:$BU$4779,MATCH(Assets!M$1&"|"&Assets!$B39,'Data Annex'!$K$1:$K$4779,0),MATCH(Assets!M$2,'Data Annex'!$K$1:$BU$1,0)),"") -> 0.3003625176 | N39: =IFERROR(INDEX('Data Annex'!$K$1:$BU$4779,MATCH(Assets!N$1&"|"&Assets!$B39,'Data Annex'!$K$1:$K$4779,0),MATCH(Assets!N$2,'Data Annex'!$K$1:$BU$1,0)),"") -> 0.5389368377 | O39: =IFERROR(INDEX('Data Annex'!$K$1:$BU$4779,MATCH(Assets!O$1&"|"&Assets!$B39,'Data Annex'!$K$1:$K$4779,0),MATCH(Assets!O$2,'Data Annex'!$K$1:$BU$1,0)),"") -> 0.5599391226 | P39: =IFERROR(INDEX('Data Annex'!$K$1:$BU$4779,MATCH(Assets!P$1&"|"&Assets!$B39,'Data Annex'!$K$1:$K$4779,0),MATCH(Assets!P$2,'Data Annex'!$K$1:$BU$1,0)),"") -> 0.5398523117 | Q39: =IFERROR(INDEX('Data Annex'!$K$1:$BU$4779,MATCH(Assets!Q$1&"|"&Assets!$B39,'Data Annex'!$K$1:$K$4779,0),MATCH(Assets!Q$2,'Data Annex'!$K$1:$BU$1,0)),"") -> 0.0009422567839 | R39: =IFERROR(INDEX('Data Annex'!$K$1:$BU$4779,MATCH(Assets!R$1&"|"&Assets!$B39,'Data Annex'!$K$1:$K$4779,0),MATCH(Assets!R$2,'Data Annex'!$K$1:$BU$1,0)),"") -> 0.001837069574 | S39: =IFERROR(INDEX('Data Annex'!$K$1:$BU$4779,MATCH(Assets!S$1&"|"&Assets!$B39,'Data Annex'!$K$1:$K$4779,0),MATCH(Assets!S$2,'Data Annex'!$K$1:$BU$1,0)),"") -> 0.001649471463 | T39: =IFERROR(INDEX('Data Annex'!$K$1:$BU$4779,MATCH(Assets!T$1&"|"&Assets!$B39,'Data Annex'!$K$1:$K$4779,0),MATCH(Assets!T$2,'Data Annex'!$K$1:$BU$1,0)),"") -> 0.02338023949 | U39: =IFERROR(INDEX('Data Annex'!$K$1:$BU$4779,MATCH(Assets!U$1&"|"&Assets!$B39,'Data Annex'!$K$1:$K$4779,0),MATCH(Assets!U$2,'Data Annex'!$K$1:$BU$1,0)),"") -> 0.02690135846 | V39: =IFERROR(INDEX('Data Annex'!$K$1:$BU$4779,MATCH(Assets!V$1&"|"&Assets!$B39,'Data Annex'!$K$1:$K$4779,0),MATCH(Assets!V$2,'Data Annex'!$K$1:$BU$1,0)),"") -> 0.02604586761
B40: SE | D40: SE | E40: =IFERROR(INDEX('Data Annex'!$K$1:$BU$4779,MATCH(Assets!E$1&"|"&Assets!$B40,'Data Annex'!$K$1:$K$4779,0),MATCH(Assets!E$2,'Data Annex'!$K$1:$BU$1,0)),"") -> 0.1469404071 | F40: =IFERROR(INDEX('Data Annex'!$K$1:$BU$4779,MATCH(Assets!F$1&"|"&Assets!$B40,'Data Annex'!$K$1:$K$4779,0),MATCH(Assets!F$2,'Data Annex'!$K$1:$BU$1,0)),"") -> 0.1234345243 | G40: =IFERROR(INDEX('Data Annex'!$K$1:$BU$4779,MATCH(Assets!G$1&"|"&Assets!$B40,'Data Annex'!$K$1:$K$4779,0),MATCH(Assets!G$2,'Data Annex'!$K$1:$BU$1,0)),"") -> 0.1178842647 | H40: =IFERROR(INDEX('Data Annex'!$K$1:$BU$4779,MATCH(Assets!H$1&"|"&Assets!$B40,'Data Annex'!$K$1:$K$4779,0),MATCH(Assets!H$2,'Data Annex'!$K$1:$BU$1,0)),"") -> 0.01021692925 | I40: =IFERROR(INDEX('Data Annex'!$K$1:$BU$4779,MATCH(Assets!I$1&"|"&Assets!$B40,'Data Annex'!$K$1:$K$4779,0),MATCH(Assets!I$2,'Data Annex'!$K$1:$BU$1,0)),"") -> 0.005702254089 | J40: =IFERROR(INDEX('Data Annex'!$K$1:$BU$4779,MATCH(Assets!J$1&"|"&Assets!$B40,'Data Annex'!$K$1:$K$4779,0),MATCH(Assets!J$2,'Data Annex'!$K$1:$BU$1,0)),"") -> 0.007124873718 | K40: =IFERROR(INDEX('Data Annex'!$K$1:$BU$4779,MATCH(Assets!K$1&"|"&Assets!$B40,'Data Annex'!$K$1:$K$4779,0),MATCH(Assets!K$2,'Data Annex'!$K$1:$BU$1,0)),"") -> 0.0845909282 | L40: =IFERROR(INDEX('Data Annex'!$K$1:$BU$4779,MATCH(Assets!L$1&"|"&Assets!$B40,'Data Annex'!$K$1:$K$4779,0),MATCH(Assets!L$2,'Data Annex'!$K$1:$BU$1,0)),"") -> 0.07591296024 | M40: =IFERROR(INDEX('Data Annex'!$K$1:$BU$4779,MATCH(Assets!M$1&"|"&Assets!$B40,'Data Annex'!$K$1:$K$4779,0),MATCH(Assets!M$2,'Data Annex'!$K$1:$BU$1,0)),"") -> 0.117582106 | N40: =IFERROR(INDEX('Data Annex'!$K$1:$BU$4779,MATCH(Assets!N$1&"|"&Assets!$B40,'Data Annex'!$K$1:$K$4779,0),MATCH(Assets!N$2,'Data Annex'!$K$1:$BU$1,0)),"") -> 0.6932335994 | O40: =IFERROR(INDEX('Data Annex'!$K$1:$BU$4779,MATCH(Assets!O$1&"|"&Assets!$B40,'Data Annex'!$K$1:$K$4779,0),MATCH(Assets!O$2,'Data Annex'!$K$1:$BU$1,0)),"") -> 0.7381521982 | P40: =IFERROR(INDEX('Data Annex'!$K$1:$BU$4779,MATCH(Assets!P$1&"|"&Assets!$B40,'Data Annex'!$K$1:$K$4779,0),MATCH(Assets!P$2,'Data Annex'!$K$1:$BU$1,0)),"") -> 0.7059341583 | Q40: =IFERROR(INDEX('Data Annex'!$K$1:$BU$4779,MATCH(Assets!Q$1&"|"&Assets!$B40,'Data Annex'!$K$1:$K$4779,0),MATCH(Assets!Q$2,'Data Annex'!$K$1:$BU$1,0)),"") -> 0.02185566968 | R40: =IFERROR(INDEX('Data Annex'!$K$1:$BU$4779,MATCH(Assets!R$1&"|"&Assets!$B40,'Data Annex'!$K$1:$K$4779,0),MATCH(Assets!R$2,'Data Annex'!$K$1:$BU$1,0)),"") -> 0.02892283122 | S40: =IFERROR(INDEX('Data Annex'!$K$1:$BU$4779,MATCH(Assets!S$1&"|"&Assets!$B40,'Data Annex'!$K$1:$K$4779,0),MATCH(Assets!S$2,'Data Annex'!$K$1:$BU$1,0)),"") -> 0.02384199069 | T40: =IFERROR(INDEX('Data Annex'!$K$1:$BU$4779,MATCH(Assets!T$1&"|"&Assets!$B40,'Data Annex'!$K$1:$K$4779,0),MATCH(Assets!T$2,'Data Annex'!$K$1:$BU$1,0)),"") -> 0.04316246639 | U40: =IFERROR(INDEX('Data Annex'!$K$1:$BU$4779,MATCH(Assets!U$1&"|"&Assets!$B40,'Data Annex'!$K$1:$K$4779,0),MATCH(Assets!U$2,'Data Annex'!$K$1:$BU$1,0)),"") -> 0.0278752319 | V40: =IFERROR(INDEX('Data Annex'!$K$1:$BU$4779,MATCH(Assets!V$1&"|"&Assets!$B40,'Data Annex'!$K$1:$K$4779,0),MATCH(Assets!V$2,'Data Annex'!$K$1:$BU$1,0)),"") -> 0.02763260664
B41: SI | D41: SI | E41: =IFERROR(INDEX('Data Annex'!$K$1:$BU$4779,MATCH(Assets!E$1&"|"&Assets!$B41,'Data Annex'!$K$1:$K$4779,0),MATCH(Assets!E$2,'Data Annex'!$K$1:$BU$1,0)),"") -> 0.215010874 | F41: =IFERROR(INDEX('Data Annex'!$K$1:$BU$4779,MATCH(Assets!F$1&"|"&Assets!$B41,'Data Annex'!$K$1:$K$4779,0),MATCH(Assets!F$2,'Data Annex'!$K$1:$BU$1,0)),"") -> 0.2065596698 | G41: =IFERROR(INDEX('Data Annex'!$K$1:$BU$4779,MATCH(Assets!G$1&"|"&Assets!$B41,'Data Annex'!$K$1:$K$4779,0),MATCH(Assets!G$2,'Data Annex'!$K$1:$BU$1,0)),"") -> 0.2153616717 | H41: =IFERROR(INDEX('Data Annex'!$K$1:$BU$4779,MATCH(Assets!H$1&"|"&Assets!$B41,'Data Annex'!$K$1:$K$4779,0),MATCH(Assets!H$2,'Data Annex'!$K$1:$BU$1,0)),"") -> 0.005689077759 | I41: =IFERROR(INDEX('Data Annex'!$K$1:$BU$4779,MATCH(Assets!I$1&"|"&Assets!$B41,'Data Annex'!$K$1:$K$4779,0),MATCH(Assets!I$2,'Data Annex'!$K$1:$BU$1,0)),"") -> 0.005109610637 | J41: =IFERROR(INDEX('Data Annex'!$K$1:$BU$4779,MATCH(Assets!J$1&"|"&Assets!$B41,'Data Annex'!$K$1:$K$4779,0),MATCH(Assets!J$2,'Data Annex'!$K$1:$BU$1,0)),"") -> 0.005156464459 | K41: =IFERROR(INDEX('Data Annex'!$K$1:$BU$4779,MATCH(Assets!K$1&"|"&Assets!$B41,'Data Annex'!$K$1:$K$4779,0),MATCH(Assets!K$2,'Data Annex'!$K$1:$BU$1,0)),"") -> 0.201420346 | L41: =IFERROR(INDEX('Data Annex'!$K$1:$BU$4779,MATCH(Assets!L$1&"|"&Assets!$B41,'Data Annex'!$K$1:$K$4779,0),MATCH(Assets!L$2,'Data Annex'!$K$1:$BU$1,0)),"") -> 0.1903205315 | M41: =IFERROR(INDEX('Data Annex'!$K$1:$BU$4779,MATCH(Assets!M$1&"|"&Assets!$B41,'Data Annex'!$K$1:$K$4779,0),MATCH(Assets!M$2,'Data Annex'!$K$1:$BU$1,0)),"") -> 0.18251124 | N41: =IFERROR(INDEX('Data Annex'!$K$1:$BU$4779,MATCH(Assets!N$1&"|"&Assets!$B41,'Data Annex'!$K$1:$K$4779,0),MATCH(Assets!N$2,'Data Annex'!$K$1:$BU$1,0)),"") -> 0.5530224335 | O41: =IFERROR(INDEX('Data Annex'!$K$1:$BU$4779,MATCH(Assets!O$1&"|"&Assets!$B41,'Data Annex'!$K$1:$K$4779,0),MATCH(Assets!O$2,'Data Annex'!$K$1:$BU$1,0)),"") -> 0.5736142008 | P41: =IFERROR(INDEX('Data Annex'!$K$1:$BU$4779,MATCH(Assets!P$1&"|"&Assets!$B41,'Data Annex'!$K$1:$K$4779,0),MATCH(Assets!P$2,'Data Annex'!$K$1:$BU$1,0)),"") -> 0.5741340756 | Q41: =IFERROR(INDEX('Data Annex'!$K$1:$BU$4779,MATCH(Assets!Q$1&"|"&Assets!$B41,'Data Annex'!$K$1:$K$4779,0),MATCH(Assets!Q$2,'Data Annex'!$K$1:$BU$1,0)),"") -> 0.0006225552555 | R41: =IFERROR(INDEX('Data Annex'!$K$1:$BU$4779,MATCH(Assets!R$1&"|"&Assets!$B41,'Data Annex'!$K$1:$K$4779,0),MATCH(Assets!R$2,'Data Annex'!$K$1:$BU$1,0)),"") -> 0.002385908356 | S41: =IFERROR(INDEX('Data Annex'!$K$1:$BU$4779,MATCH(Assets!S$1&"|"&Assets!$B41,'Data Annex'!$K$1:$K$4779,0),MATCH(Assets!S$2,'Data Annex'!$K$1:$BU$1,0)),"") -> 0.002230817815 | T41: =IFERROR(INDEX('Data Annex'!$K$1:$BU$4779,MATCH(Assets!T$1&"|"&Assets!$B41,'Data Annex'!$K$1:$K$4779,0),MATCH(Assets!T$2,'Data Annex'!$K$1:$BU$1,0)),"") -> 0.02423473673 | U41: =IFERROR(INDEX('Data Annex'!$K$1:$BU$4779,MATCH(Assets!U$1&"|"&Assets!$B41,'Data Annex'!$K$1:$K$4779,0),MATCH(Assets!U$2,'Data Annex'!$K$1:$BU$1,0)),"") -> 0.02201007883 | V41: =IFERROR(INDEX('Data Annex'!$K$1:$BU$4779,MATCH(Assets!V$1&"|"&Assets!$B41,'Data Annex'!$K$1:$K$4779,0),MATCH(Assets!V$2,'Data Annex'!$K$1:$BU$1,0)),"") -> 0.02060570791
B42: SK | D42: SK | E42: =IFERROR(INDEX('Data Annex'!$K$1:$BU$4779,MATCH(Assets!E$1&"|"&Assets!$B42,'Data Annex'!$K$1:$K$4779,0),MATCH(Assets!E$2,'Data Annex'!$K$1:$BU$1,0)),"") -> 0.1322295008 | F42: =IFERROR(INDEX('Data Annex'!$K$1:$BU$4779,MATCH(Assets!F$1&"|"&Assets!$B42,'Data Annex'!$K$1:$K$4779,0),MATCH(Assets!F$2,'Data Annex'!$K$1:$BU$1,0)),"") -> 0.1243693578 | G42: =IFERROR(INDEX('Data Annex'!$K$1:$BU$4779,MATCH(Assets!G$1&"|"&Assets!$B42,'Data Annex'!$K$1:$K$4779,0),MATCH(Assets!G$2,'Data Annex'!$K$1:$BU$1,0)),"") -> 0.1287699653 | H42: =IFERROR(INDEX('Data Annex'!$K$1:$BU$4779,MATCH(Assets!H$1&"|"&Assets!$B42,'Data Annex'!$K$1:$K$4779,0),MATCH(Assets!H$2,'Data Annex'!$K$1:$BU$1,0)),"") -> 0.0003661229259 | I42: =IFERROR(INDEX('Data Annex'!$K$1:$BU$4779,MATCH(Assets!I$1&"|"&Assets!$B42,'Data Annex'!$K$1:$K$4779,0),MATCH(Assets!I$2,'Data Annex'!$K$1:$BU$1,0)),"") -> 0.0002775492105 | J42: =IFERROR(INDEX('Data Annex'!$K$1:$BU$4779,MATCH(Assets!J$1&"|"&Assets!$B42,'Data Annex'!$K$1:$K$4779,0),MATCH(Assets!J$2,'Data Annex'!$K$1:$BU$1,0)),"") -> 0.0002815566795 | K42: =IFERROR(INDEX('Data Annex'!$K$1:$BU$4779,MATCH(Assets!K$1&"|"&Assets!$B42,'Data Annex'!$K$1:$K$4779,0),MATCH(Assets!K$2,'Data Annex'!$K$1:$BU$1,0)),"") -> 0.1258023165 | L42: =IFERROR(INDEX('Data Annex'!$K$1:$BU$4779,MATCH(Assets!L$1&"|"&Assets!$B42,'Data Annex'!$K$1:$K$4779,0),MATCH(Assets!L$2,'Data Annex'!$K$1:$BU$1,0)),"") -> 0.1287348562 | M42: =IFERROR(INDEX('Data Annex'!$K$1:$BU$4779,MATCH(Assets!M$1&"|"&Assets!$B42,'Data Annex'!$K$1:$K$4779,0),MATCH(Assets!M$2,'Data Annex'!$K$1:$BU$1,0)),"") -> 0.1265971985 | N42: =IFERROR(INDEX('Data Annex'!$K$1:$BU$4779,MATCH(Assets!N$1&"|"&Assets!$B42,'Data Annex'!$K$1:$K$4779,0),MATCH(Assets!N$2,'Data Annex'!$K$1:$BU$1,0)),"") -> 0.7221510818 | O42: =IFERROR(INDEX('Data Annex'!$K$1:$BU$4779,MATCH(Assets!O$1&"|"&Assets!$B42,'Data Annex'!$K$1:$K$4779,0),MATCH(Assets!O$2,'Data Annex'!$K$1:$BU$1,0)),"") -> 0.7257954833 | P42: =IFERROR(INDEX('Data Annex'!$K$1:$BU$4779,MATCH(Assets!P$1&"|"&Assets!$B42,'Data Annex'!$K$1:$K$4779,0),MATCH(Assets!P$2,'Data Annex'!$K$1:$BU$1,0)),"") -> 0.7210602335 | Q42: =IFERROR(INDEX('Data Annex'!$K$1:$BU$4779,MATCH(Assets!Q$1&"|"&Assets!$B42,'Data Annex'!$K$1:$K$4779,0),MATCH(Assets!Q$2,'Data Annex'!$K$1:$BU$1,0)),"") -> 0.003735120827 | R42: =IFERROR(INDEX('Data Annex'!$K$1:$BU$4779,MATCH(Assets!R$1&"|"&Assets!$B42,'Data Annex'!$K$1:$K$4779,0),MATCH(Assets!R$2,'Data Annex'!$K$1:$BU$1,0)),"") -> 0.008405040506 | S42: =IFERROR(INDEX('Data Annex'!$K$1:$BU$4779,MATCH(Assets!S$1&"|"&Assets!$B42,'Data Annex'!$K$1:$K$4779,0),MATCH(Assets!S$2,'Data Annex'!$K$1:$BU$1,0)),"") -> 0.007904538287 | T42: =IFERROR(INDEX('Data Annex'!$K$1:$BU$4779,MATCH(Assets!T$1&"|"&Assets!$B42,'Data Annex'!$K$1:$K$4779,0),MATCH(Assets!T$2,'Data Annex'!$K$1:$BU$1,0)),"") -> 0.01571585714 | U42: =IFERROR(INDEX('Data Annex'!$K$1:$BU$4779,MATCH(Assets!U$1&"|"&Assets!$B42,'Data Annex'!$K$1:$K$4779,0),MATCH(Assets!U$2,'Data Annex'!$K$1:$BU$1,0)),"") -> 0.01241771298 | V42: =IFERROR(INDEX('Data Annex'!$K$1:$BU$4779,MATCH(Assets!V$1&"|"&Assets!$B42,'Data Annex'!$K$1:$K$4779,0),MATCH(Assets!V$2,'Data Annex'!$K$1:$BU$1,0)),"") -> 0.01538650776
B43: EU | D43: EU/EEA | E43: =IFERROR(INDEX('Data Annex'!$K$1:$BU$4779,MATCH(Assets!E$1&"|"&Assets!$B43,'Data Annex'!$K$1:$K$4779,0),MATCH(Assets!E$2,'Data Annex'!$K$1:$BU$1,0)),"") -> 0.1588205246 | F43: =IFERROR(INDEX('Data Annex'!$K$1:$BU$4779,MATCH(Assets!F$1&"|"&Assets!$B43,'Data Annex'!$K$1:$K$4779,0),MATCH(Assets!F$2,'Data Annex'!$K$1:$BU$1,0)),"") -> 0.1372232185 | G43: =IFERROR(INDEX('Data Annex'!$K$1:$BU$4779,MATCH(Assets!G$1&"|"&Assets!$B43,'Data Annex'!$K$1:$K$4779,0),MATCH(Assets!G$2,'Data Annex'!$K$1:$BU$1,0)),"") -> 0.1442061767 | H43: =IFERROR(INDEX('Data Annex'!$K$1:$BU$4779,MATCH(Assets!H$1&"|"&Assets!$B43,'Data Annex'!$K$1:$K$4779,0),MATCH(Assets!H$2,'Data Annex'!$K$1:$BU$1,0)),"") -> 0.01520135322 | I43: =IFERROR(INDEX('Data Annex'!$K$1:$BU$4779,MATCH(Assets!I$1&"|"&Assets!$B43,'Data Annex'!$K$1:$K$4779,0),MATCH(Assets!I$2,'Data Annex'!$K$1:$BU$1,0)),"") -> 0.01291522662 | J43: =IFERROR(INDEX('Data Annex'!$K$1:$BU$4779,MATCH(Assets!J$1&"|"&Assets!$B43,'Data Annex'!$K$1:$K$4779,0),MATCH(Assets!J$2,'Data Annex'!$K$1:$BU$1,0)),"") -> 0.01418417923 | K43: =IFERROR(INDEX('Data Annex'!$K$1:$BU$4779,MATCH(Assets!K$1&"|"&Assets!$B43,'Data Annex'!$K$1:$K$4779,0),MATCH(Assets!K$2,'Data Annex'!$K$1:$BU$1,0)),"") -> 0.1193740073 | L43: =IFERROR(INDEX('Data Annex'!$K$1:$BU$4779,MATCH(Assets!L$1&"|"&Assets!$B43,'Data Annex'!$K$1:$K$4779,0),MATCH(Assets!L$2,'Data Annex'!$K$1:$BU$1,0)),"") -> 0.1159986061 | M43: =IFERROR(INDEX('Data Annex'!$K$1:$BU$4779,MATCH(Assets!M$1&"|"&Assets!$B43,'Data Annex'!$K$1:$K$4779,0),MATCH(Assets!M$2,'Data Annex'!$K$1:$BU$1,0)),"") -> 0.1221951394 | N43: =IFERROR(INDEX('Data Annex'!$K$1:$BU$4779,MATCH(Assets!N$1&"|"&Assets!$B43,'Data Annex'!$K$1:$K$4779,0),MATCH(Assets!N$2,'Data Annex'!$K$1:$BU$1,0)),"") -> 0.5987844258 | O43: =IFERROR(INDEX('Data Annex'!$K$1:$BU$4779,MATCH(Assets!O$1&"|"&Assets!$B43,'Data Annex'!$K$1:$K$4779,0),MATCH(Assets!O$2,'Data Annex'!$K$1:$BU$1,0)),"") -> 0.6177441043 | P43: =IFERROR(INDEX('Data Annex'!$K$1:$BU$4779,MATCH(Assets!P$1&"|"&Assets!$B43,'Data Annex'!$K$1:$K$4779,0),MATCH(Assets!P$2,'Data Annex'!$K$1:$BU$1,0)),"") -> 0.6187818772 | Q43: =IFERROR(INDEX('Data Annex'!$K$1:$BU$4779,MATCH(Assets!Q$1&"|"&Assets!$B43,'Data Annex'!$K$1:$K$4779,0),MATCH(Assets!Q$2,'Data Annex'!$K$1:$BU$1,0)),"") -> 0.05529627331 | R43: =IFERROR(INDEX('Data Annex'!$K$1:$BU$4779,MATCH(Assets!R$1&"|"&Assets!$B43,'Data Annex'!$K$1:$K$4779,0),MATCH(Assets!R$2,'Data Annex'!$K$1:$BU$1,0)),"") -> 0.06716133463 | S43: =IFERROR(INDEX('Data Annex'!$K$1:$BU$4779,MATCH(Assets!S$1&"|"&Assets!$B43,'Data Annex'!$K$1:$K$4779,0),MATCH(Assets!S$2,'Data Annex'!$K$1:$BU$1,0)),"") -> 0.05748478539 | T43: =IFERROR(INDEX('Data Annex'!$K$1:$BU$4779,MATCH(Assets!T$1&"|"&Assets!$B43,'Data Annex'!$K$1:$K$4779,0),MATCH(Assets!T$2,'Data Annex'!$K$1:$BU$1,0)),"") -> 0.05252341588 | U43: =IFERROR(INDEX('Data Annex'!$K$1:$BU$4779,MATCH(Assets!U$1&"|"&Assets!$B43,'Data Annex'!$K$1:$K$4779,0),MATCH(Assets!U$2,'Data Annex'!$K$1:$BU$1,0)),"") -> 0.04895750982 | V43: =IFERROR(INDEX('Data Annex'!$K$1:$BU$4779,MATCH(Assets!V$1&"|"&Assets!$B43,'Data Annex'!$K$1:$K$4779,0),MATCH(Assets!V$2,'Data Annex'!$K$1:$BU$1,0)),"") -> 0.04314784201
F46: T02_1 | G46: T02_1 | H46: T02_1 | I46: T02_2 | J46: T02_2 | K46: T02_2 | O46: T03_1 | P46: T03_1 | Q46: T03_1 | R46: T03_2 | S46: T03_2 | T46: T03_2 | U46: T03_3 | V46: T03_3 | W46: T03_3
F47: =TEXT(F52,"YYYYMM")+0 -> 202203 | G47: 202212 | H47: 202303 | I47: 202203 | J47: 202212 | K47: 202303 | O47: =TEXT(O52,"YYYYMM")+0 -> 202203 | P47: 202212 | Q47: 202303 | R47: 202203 | S47: 202212 | T47: 202303 | U47: 202203 | V47: 202212 | W47: 202303
D48: Assets | M48: Financial Assets
D50: Volumes bn EUR | M50: % of total financial assets
F51: Total Assets | I51: Total Financial Assets | O51: Share of financial assets valued at (amortised) cost | R51: Share of financial assets at fair value through OCI | U51: Share of financial assets at fair value through profit&loss
F52: =EOMONTH($A$3,-12) -> 2022-03-31 | G52: =EOMONTH($A$3,-3) -> 2022-12-31 | H52: =$A$3 -> 2023-03-01 | I52: =EOMONTH($A$3,-12) -> 2022-03-31 | J52: =EOMONTH($A$3,-3) -> 2022-12-31 | K52: =$A$3 -> 2023-03-01 | O52: =EOMONTH($A$3,-12) -> 2022-03-31 | P52: =EOMONTH($A$3,-3) -> 2022-12-31 | Q52: =$A$3 -> 2023-03-01 | R52: =EOMONTH($A$3,-12) -> 2022-03-31 | S52: =EOMONTH($A$3,-3) -> 2022-12-31 | T52: =$A$3 -> 2023-03-01 | U52: =EOMONTH($A$3,-12) -> 2022-03-31 | V52: =EOMONTH($A$3,-3) -> 2022-12-31 | W52: =$A$3 -> 2023-03-01
B53: AT | D53: =IF(OR(F53="n.a.",G53="n.a.",H53="n.a.",I53="n.a.",J53="n.a.",K53="n.a."),$B53&"*",$B53) -> AT | F53: =IFERROR(INDEX('Data Annex'!$K$1:$BU$4779,MATCH(Assets!F$46&"|"&Assets!$B53,'Data Annex'!$K$1:$K$4779,0),MATCH(Assets!F$47,'Data Annex'!$K$1:$BU$1,0)),"") -> 772.6108548 | G53: =IFERROR(INDEX('Data Annex'!$K$1:$BU$4779,MATCH(Assets!G$46&"|"&Assets!$B53,'Data Annex'!$K$1:$K$4779,0),MATCH(Assets!G$47,'Data Annex'!$K$1:$BU$1,0)),"") -> 772.3256731 | H53: =IFERROR(INDEX('Data Annex'!$K$1:$BU$4779,MATCH(Assets!H$46&"|"&Assets!$B53,'Data Annex'!$K$1:$K$4779,0),MATCH(Assets!H$47,'Data Annex'!$K$1:$BU$1,0)),"") -> 806.6956444 | I53: =IFERROR(INDEX('Data Annex'!$K$1:$BU$4779,MATCH(Assets!I$46&"|"&Assets!$B53,'Data Annex'!$K$1:$K$4779,0),MATCH(Assets!I$47,'Data Annex'!$K$1:$BU$1,0)),"") -> 746.8931555 | J53: =IFERROR(INDEX('Data Annex'!$K$1:$BU$4779,MATCH(Assets!J$46&"|"&Assets!$B53,'Data Annex'!$K$1:$K$4779,0),MATCH(Assets!J$47,'Data Annex'!$K$1:$BU$1,0)),"") -> 753.8768033 | K53: =IFERROR(INDEX('Data Annex'!$K$1:$BU$4779,MATCH(Assets!K$46&"|"&Assets!$B53,'Data Annex'!$K$1:$K$4779,0),MATCH(Assets!K$47,'Data Annex'!$K$1:$BU$1,0)),"") -> 787.2120504 | L53: =K53/H53 -> 0.9758476519 | M53: =+D53 -> AT | O53: =IFERROR(INDEX('Data Annex'!$K$1:$BU$4779,MATCH(Assets!O$46&"|"&Assets!$B53,'Data Annex'!$K$1:$K$4779,0),MATCH(Assets!O$47,'Data Annex'!$K$1:$BU$1,0)),"") -> 0.9211921696 | P53: =IFERROR(INDEX('Data Annex'!$K$1:$BU$4779,MATCH(Assets!P$46&"|"&Assets!$B53,'Data Annex'!$K$1:$K$4779,0),MATCH(Assets!P$47,'Data Annex'!$K$1:$BU$1,0)),"") -> 0.9167359508 | Q53: =IFERROR(INDEX('Data Annex'!$K$1:$BU$4779,MATCH(Assets!Q$46&"|"&Assets!$B53,'Data Annex'!$K$1:$K$4779,0),MATCH(Assets!Q$47,'Data Annex'!$K$1:$BU$1,0)),"") -> 0.9213232916 | R53: =IFERROR(INDEX('Data Annex'!$K$1:$BU$4779,MATCH(Assets!R$46&"|"&Assets!$B53,'Data Annex'!$K$1:$K$4779,0),MATCH(Assets!R$47,'Data Annex'!$K$1:$BU$1,0)),"") -> 0.0439822455 | S53: =IFERROR(INDEX('Data Annex'!$K$1:$BU$4779,MATCH(Assets!S$46&"|"&Assets!$B53,'Data Annex'!$K$1:$K$4779,0),MATCH(Assets!S$47,'Data Annex'!$K$1:$BU$1,0)),"") -> 0.04072992222 | T53: =IFERROR(INDEX('Data Annex'!$K$1:$BU$4779,MATCH(Assets!T$46&"|"&Assets!$B53,'Data Annex'!$K$1:$K$4779,0),MATCH(Assets!T$47,'Data Annex'!$K$1:$BU$1,0)),"") -> 0.04059420211 | U53: =IFERROR(INDEX('Data Annex'!$K$1:$BU$4779,MATCH(Assets!U$46&"|"&Assets!$B53,'Data Annex'!$K$1:$K$4779,0),MATCH(Assets!U$47,'Data Annex'!$K$1:$BU$1,0)),"") -> 0.03482558493 | V53: =IFERROR(INDEX('Data Annex'!$K$1:$BU$4779,MATCH(Assets!V$46&"|"&Assets!$B53,'Data Annex'!$K$1:$K$4779,0),MATCH(Assets!V$47,'Data Annex'!$K$1:$BU$1,0)),"") -> 0.042534127 | W53: =IFERROR(INDEX('Data Annex'!$K$1:$BU$4779,MATCH(Assets!W$46&"|"&Assets!$B53,'Data Annex'!$K$1:$K$4779,0),MATCH(Assets!W$47,'Data Annex'!$K$1:$BU$1,0)),"") -> 0.03808250629
B54: BE | D54: =IF(OR(F54="n.a.",G54="n.a.",H54="n.a.",I54="n.a.",J54="n.a.",K54="n.a."),$B54&"*",$B54) -> BE | F54: =IFERROR(INDEX('Data Annex'!$K$1:$BU$4779,MATCH(Assets!F$46&"|"&Assets!$B54,'Data Annex'!$K$1:$K$4779,0),MATCH(Assets!F$47,'Data Annex'!$K$1:$BU$1,0)),"") -> 1273.168748 | G54: =IFERROR(INDEX('Data Annex'!$K$1:$BU$4779,MATCH(Assets!G$46&"|"&Assets!$B54,'Data Annex'!$K$1:$K$4779,0),MATCH(Assets!G$47,'Data Annex'!$K$1:$BU$1,0)),"") -> 1199.121062 | H54: =IFERROR(INDEX('Data Annex'!$K$1:$BU$4779,MATCH(Assets!H$46&"|"&Assets!$B54,'Data Annex'!$K$1:$K$4779,0),MATCH(Assets!H$47,'Data Annex'!$K$1:$BU$1,0)),"") -> 1200.819429 | I54: =IFERROR(INDEX('Data Annex'!$K$1:$BU$4779,MATCH(Assets!I$46&"|"&Assets!$B54,'Data Annex'!$K$1:$K$4779,0),MATCH(Assets!I$47,'Data Annex'!$K$1:$BU$1,0)),"") -> 1227.055377 | J54: =IFERROR(INDEX('Data Annex'!$K$1:$BU$4779,MATCH(Assets!J$46&"|"&Assets!$B54,'Data Annex'!$K$1:$K$4779,0),MATCH(Assets!J$47,'Data Annex'!$K$1:$BU$1,0)),"") -> 1164.38599 | K54: =IFERROR(INDEX('Data Annex'!$K$1:$BU$4779,MATCH(Assets!K$46&"|"&Assets!$B54,'Data Annex'!$K$1:$K$4779,0),MATCH(Assets!K$47,'Data Annex'!$K$1:$BU$1,0)),"") -> 1168.72455 | L54: 0.9732725183 | M54: BE | O54: =IFERROR(INDEX('Data Annex'!$K$1:$BU$4779,MATCH(Assets!O$46&"|"&Assets!$B54,'Data Annex'!$K$1:$K$4779,0),MATCH(Assets!O$47,'Data Annex'!$K$1:$BU$1,0)),"") -> 0.9284419991 | P54: =IFERROR(INDEX('Data Annex'!$K$1:$BU$4779,MATCH(Assets!P$46&"|"&Assets!$B54,'Data Annex'!$K$1:$K$4779,0),MATCH(Assets!P$47,'Data Annex'!$K$1:$BU$1,0)),"") -> 0.9200457706 | Q54: =IFERROR(INDEX('Data Annex'!$K$1:$BU$4779,MATCH(Assets!Q$46&"|"&Assets!$B54,'Data Annex'!$K$1:$K$4779,0),MATCH(Assets!Q$47,'Data Annex'!$K$1:$BU$1,0)),"") -> 0.9297606352 | R54: =IFERROR(INDEX('Data Annex'!$K$1:$BU$4779,MATCH(Assets!R$46&"|"&Assets!$B54,'Data Annex'!$K$1:$K$4779,0),MATCH(Assets!R$47,'Data Annex'!$K$1:$BU$1,0)),"") -> 0.02738957039 | S54: =IFERROR(INDEX('Data Annex'!$K$1:$BU$4779,MATCH(Assets!S$46&"|"&Assets!$B54,'Data Annex'!$K$1:$K$4779,0),MATCH(Assets!S$47,'Data Annex'!$K$1:$BU$1,0)),"") -> 0.02550235443 | T54: =IFERROR(INDEX('Data Annex'!$K$1:$BU$4779,MATCH(Assets!T$46&"|"&Assets!$B54,'Data Annex'!$K$1:$K$4779,0),MATCH(Assets!T$47,'Data Annex'!$K$1:$BU$1,0)),"") -> 0.0328497627 | U54: =IFERROR(INDEX('Data Annex'!$K$1:$BU$4779,MATCH(Assets!U$46&"|"&Assets!$B54,'Data Annex'!$K$1:$K$4779,0),MATCH(Assets!U$47,'Data Annex'!$K$1:$BU$1,0)),"") -> 0.0441684305 | V54: =IFERROR(INDEX('Data Annex'!$K$1:$BU$4779,MATCH(Assets!V$46&"|"&Assets!$B54,'Data Annex'!$K$1:$K$4779,0),MATCH(Assets!V$47,'Data Annex'!$K$1:$BU$1,0)),"") -> 0.05445187499 | W54: =IFERROR(INDEX('Data Annex'!$K$1:$BU$4779,MATCH(Assets!W$46&"|"&Assets!$B54,'Data Annex'!$K$1:$K$4779,0),MATCH(Assets!W$47,'Data Annex'!$K$1:$BU$1,0)),"") -> 0.03738960206
B55: BG | D55: BG | F55: =IFERROR(INDEX('Data Annex'!$K$1:$BU$4779,MATCH(Assets!F$46&"|"&Assets!$B55,'Data Annex'!$K$1:$K$4779,0),MATCH(Assets!F$47,'Data Annex'!$K$1:$BU$1,0)),"") -> 34.9360635 | G55: =IFERROR(INDEX('Data Annex'!$K$1:$BU$4779,MATCH(Assets!G$46&"|"&Assets!$B55,'Data Annex'!$K$1:$K$4779,0),MATCH(Assets!G$47,'Data Annex'!$K$1:$BU$1,0)),"") -> 38.85573167 | H55: =IFERROR(INDEX('Data Annex'!$K$1:$BU$4779,MATCH(Assets!H$46&"|"&Assets!$B55,'Data Annex'!$K$1:$K$4779,0),MATCH(Assets!H$47,'Data Annex'!$K$1:$BU$1,0)),"") -> 40.44019736 | I55: =IFERROR(INDEX('Data Annex'!$K$1:$BU$4779,MATCH(Assets!I$46&"|"&Assets!$B55,'Data Annex'!$K$1:$K$4779,0),MATCH(Assets!I$47,'Data Annex'!$K$1:$BU$1,0)),"") -> 34.11400808 | J55: =IFERROR(INDEX('Data Annex'!$K$1:$BU$4779,MATCH(Assets!J$46&"|"&Assets!$B55,'Data Annex'!$K$1:$K$4779,0),MATCH(Assets!J$47,'Data Annex'!$K$1:$BU$1,0)),"") -> 37.98054096 | K55: =IFERROR(INDEX('Data Annex'!$K$1:$BU$4779,MATCH(Assets!K$46&"|"&Assets!$B55,'Data Annex'!$K$1:$K$4779,0),MATCH(Assets!K$47,'Data Annex'!$K$1:$BU$1,0)),"") -> 39.64452756 | L55: 0.9803247794 | M55: BG | O55: =IFERROR(INDEX('Data Annex'!$K$1:$BU$4779,MATCH(Assets!O$46&"|"&Assets!$B55,'Data Annex'!$K$1:$K$4779,0),MATCH(Assets!O$47,'Data Annex'!$K$1:$BU$1,0)),"") -> 0.9238119677 | P55: =IFERROR(INDEX('Data Annex'!$K$1:$BU$4779,MATCH(Assets!P$46&"|"&Assets!$B55,'Data Annex'!$K$1:$K$4779,0),MATCH(Assets!P$47,'Data Annex'!$K$1:$BU$1,0)),"") -> 0.9359891345 | Q55: =IFERROR(INDEX('Data Annex'!$K$1:$BU$4779,MATCH(Assets!Q$46&"|"&Assets!$B55,'Data Annex'!$K$1:$K$4779,0),MATCH(Assets!Q$47,'Data Annex'!$K$1:$BU$1,0)),"") -> 0.9473572067 | R55: =IFERROR(INDEX('Data Annex'!$K$1:$BU$4779,MATCH(Assets!R$46&"|"&Assets!$B55,'Data Annex'!$K$1:$K$4779,0),MATCH(Assets!R$47,'Data Annex'!$K$1:$BU$1,0)),"") -> 0.07176625146 | S55: =IFERROR(INDEX('Data Annex'!$K$1:$BU$4779,MATCH(Assets!S$46&"|"&Assets!$B55,'Data Annex'!$K$1:$K$4779,0),MATCH(Assets!S$47,'Data Annex'!$K$1:$BU$1,0)),"") -> 0.05794482086 | T55: =IFERROR(INDEX('Data Annex'!$K$1:$BU$4779,MATCH(Assets!T$46&"|"&Assets!$B55,'Data Annex'!$K$1:$K$4779,0),MATCH(Assets!T$47,'Data Annex'!$K$1:$BU$1,0)),"") -> 0.0467367952 | U55: =IFERROR(INDEX('Data Annex'!$K$1:$BU$4779,MATCH(Assets!U$46&"|"&Assets!$B55,'Data Annex'!$K$1:$K$4779,0),MATCH(Assets!U$47,'Data Annex'!$K$1:$BU$1,0)),"") -> 0.004421780836 | V55: =IFERROR(INDEX('Data Annex'!$K$1:$BU$4779,MATCH(Assets!V$46&"|"&Assets!$B55,'Data Annex'!$K$1:$K$4779,0),MATCH(Assets!V$47,'Data Annex'!$K$1:$BU$1,0)),"") -> 0.006066044606 | W55: =IFERROR(INDEX('Data Annex'!$K$1:$BU$4779,MATCH(Assets!W$46&"|"&Assets!$B55,'Data Annex'!$K$1:$K$4779,0),MATCH(Assets!W$47,'Data Annex'!$K$1:$BU$1,0)),"") -> 0.005905998118
B56: CY | D56: CY | F56: =IFERROR(INDEX('Data Annex'!$K$1:$BU$4779,MATCH(Assets!F$46&"|"&Assets!$B56,'Data Annex'!$K$1:$K$4779,0),MATCH(Assets!F$47,'Data Annex'!$K$1:$BU$1,0)),"") -> 43.25028382 | G56: =IFERROR(INDEX('Data Annex'!$K$1:$BU$4779,MATCH(Assets!G$46&"|"&Assets!$B56,'Data Annex'!$K$1:$K$4779,0),MATCH(Assets!G$47,'Data Annex'!$K$1:$BU$1,0)),"") -> 44.89768217 | H56: =IFERROR(INDEX('Data Annex'!$K$1:$BU$4779,MATCH(Assets!H$46&"|"&Assets!$B56,'Data Annex'!$K$1:$K$4779,0),MATCH(Assets!H$47,'Data Annex'!$K$1:$BU$1,0)),"") -> 45.22708884 | I56: =IFERROR(INDEX('Data Annex'!$K$1:$BU$4779,MATCH(Assets!I$46&"|"&Assets!$B56,'Data Annex'!$K$1:$K$4779,0),MATCH(Assets!I$47,'Data Annex'!$K$1:$BU$1,0)),"") -> 39.88994394 | J56: =IFERROR(INDEX('Data Annex'!$K$1:$BU$4779,MATCH(Assets!J$46&"|"&Assets!$B56,'Data Annex'!$K$1:$K$4779,0),MATCH(Assets!J$47,'Data Annex'!$K$1:$BU$1,0)),"") -> 42.03474609 | K56: =IFERROR(INDEX('Data Annex'!$K$1:$BU$4779,MATCH(Assets!K$46&"|"&Assets!$B56,'Data Annex'!$K$1:$K$4779,0),MATCH(Assets!K$47,'Data Annex'!$K$1:$BU$1,0)),"") -> 42.6551156 | L56: 0.9431320187 | M56: CY | O56: =IFERROR(INDEX('Data Annex'!$K$1:$BU$4779,MATCH(Assets!O$46&"|"&Assets!$B56,'Data Annex'!$K$1:$K$4779,0),MATCH(Assets!O$47,'Data Annex'!$K$1:$BU$1,0)),"") -> 0.9715718963 | P56: =IFERROR(INDEX('Data Annex'!$K$1:$BU$4779,MATCH(Assets!P$46&"|"&Assets!$B56,'Data Annex'!$K$1:$K$4779,0),MATCH(Assets!P$47,'Data Annex'!$K$1:$BU$1,0)),"") -> 0.9795706515 | Q56: =IFERROR(INDEX('Data Annex'!$K$1:$BU$4779,MATCH(Assets!Q$46&"|"&Assets!$B56,'Data Annex'!$K$1:$K$4779,0),MATCH(Assets!Q$47,'Data Annex'!$K$1:$BU$1,0)),"") -> 0.9811082087 | R56: =IFERROR(INDEX('Data Annex'!$K$1:$BU$4779,MATCH(Assets!R$46&"|"&Assets!$B56,'Data Annex'!$K$1:$K$4779,0),MATCH(Assets!R$47,'Data Annex'!$K$1:$BU$1,0)),"") -> 0.02011084714 | S56: =IFERROR(INDEX('Data Annex'!$K$1:$BU$4779,MATCH(Assets!S$46&"|"&Assets!$B56,'Data Annex'!$K$1:$K$4779,0),MATCH(Assets!S$47,'Data Annex'!$K$1:$BU$1,0)),"") -> 0.01327773142 | T56: =IFERROR(INDEX('Data Annex'!$K$1:$BU$4779,MATCH(Assets!T$46&"|"&Assets!$B56,'Data Annex'!$K$1:$K$4779,0),MATCH(Assets!T$47,'Data Annex'!$K$1:$BU$1,0)),"") -> 0.01209764151 | U56: =IFERROR(INDEX('Data Annex'!$K$1:$BU$4779,MATCH(Assets!U$46&"|"&Assets!$B56,'Data Annex'!$K$1:$K$4779,0),MATCH(Assets!U$47,'Data Annex'!$K$1:$BU$1,0)),"") -> 0.008317256563 | V56: =IFERROR(INDEX('Data Annex'!$K$1:$BU$4779,MATCH(Assets!V$46&"|"&Assets!$B56,'Data Annex'!$K$1:$K$4779,0),MATCH(Assets!V$47,'Data Annex'!$K$1:$BU$1,0)),"") -> 0.007151617078 | W56: =IFERROR(INDEX('Data Annex'!$K$1:$BU$4779,MATCH(Assets!W$46&"|"&Assets!$B56,'Data Annex'!$K$1:$K$4779,0),MATCH(Assets!W$47,'Data Annex'!$K$1:$BU$1,0)),"") -> 0.006794149821
B57: CZ | D57: CZ | F57: =IFERROR(INDEX('Data Annex'!$K$1:$BU$4779,MATCH(Assets!F$46&"|"&Assets!$B57,'Data Annex'!$K$1:$K$4779,0),MATCH(Assets!F$47,'Data Annex'!$K$1:$BU$1,0)),"") -> 224.5024952 | G57: =IFERROR(INDEX('Data Annex'!$K$1:$BU$4779,MATCH(Assets!G$46&"|"&Assets!$B57,'Data Annex'!$K$1:$K$4779,0),MATCH(Assets!G$47,'Data Annex'!$K$1:$BU$1,0)),"") -> 196.9470137 | H57: =IFERROR(INDEX('Data Annex'!$K$1:$BU$4779,MATCH(Assets!H$46&"|"&Assets!$B57,'Data Annex'!$K$1:$K$4779,0),MATCH(Assets!H$47,'Data Annex'!$K$1:$BU$1,0)),"") -> 223.2730625 | I57: =IFERROR(INDEX('Data Annex'!$K$1:$BU$4779,MATCH(Assets!I$46&"|"&Assets!$B57,'Data Annex'!$K$1:$K$4779,0),MATCH(Assets!I$47,'Data Annex'!$K$1:$BU$1,0)),"") -> 221.9786465 | J57: =IFERROR(INDEX('Data Annex'!$K$1:$BU$4779,MATCH(Assets!J$46&"|"&Assets!$B57,'Data Annex'!$K$1:$K$4779,0),MATCH(Assets!J$47,'Data Annex'!$K$1:$BU$1,0)),"") -> 194.4875906 | K57: =IFERROR(INDEX('Data Annex'!$K$1:$BU$4779,MATCH(Assets!K$46&"|"&Assets!$B57,'Data Annex'!$K$1:$K$4779,0),MATCH(Assets!K$47,'Data Annex'!$K$1:$BU$1,0)),"") -> 220.4368662 | L57: 0.9872971852 | M57: CZ | O57: =IFERROR(INDEX('Data Annex'!$K$1:$BU$4779,MATCH(Assets!O$46&"|"&Assets!$B57,'Data Annex'!$K$1:$K$4779,0),MATCH(Assets!O$47,'Data Annex'!$K$1:$BU$1,0)),"") -> 0.9433809383 | P57: =IFERROR(INDEX('Data Annex'!$K$1:$BU$4779,MATCH(Assets!P$46&"|"&Assets!$B57,'Data Annex'!$K$1:$K$4779,0),MATCH(Assets!P$47,'Data Annex'!$K$1:$BU$1,0)),"") -> 0.9298772738 | Q57: =IFERROR(INDEX('Data Annex'!$K$1:$BU$4779,MATCH(Assets!Q$46&"|"&Assets!$B57,'Data Annex'!$K$1:$K$4779,0),MATCH(Assets!Q$47,'Data Annex'!$K$1:$BU$1,0)),"") -> 0.9336681027 | R57: =IFERROR(INDEX('Data Annex'!$K$1:$BU$4779,MATCH(Assets!R$46&"|"&Assets!$B57,'Data Annex'!$K$1:$K$4779,0),MATCH(Assets!R$47,'Data Annex'!$K$1:$BU$1,0)),"") -> 0.01724881809 | S57: =IFERROR(INDEX('Data Annex'!$K$1:$BU$4779,MATCH(Assets!S$46&"|"&Assets!$B57,'Data Annex'!$K$1:$K$4779,0),MATCH(Assets!S$47,'Data Annex'!$K$1:$BU$1,0)),"") -> 0.02009717757 | T57: =IFERROR(INDEX('Data Annex'!$K$1:$BU$4779,MATCH(Assets!T$46&"|"&Assets!$B57,'Data Annex'!$K$1:$K$4779,0),MATCH(Assets!T$47,'Data Annex'!$K$1:$BU$1,0)),"") -> 0.01887007879 | U57: =IFERROR(INDEX('Data Annex'!$K$1:$BU$4779,MATCH(Assets!U$46&"|"&Assets!$B57,'Data Annex'!$K$1:$K$4779,0),MATCH(Assets!U$47,'Data Annex'!$K$1:$BU$1,0)),"") -> 0.03937024364 | V57: =IFERROR(INDEX('Data Annex'!$K$1:$BU$4779,MATCH(Assets!V$46&"|"&Assets!$B57,'Data Annex'!$K$1:$K$4779,0),MATCH(Assets!V$47,'Data Annex'!$K$1:$BU$1,0)),"") -> 0.0500255486 | W57: =IFERROR(INDEX('Data Annex'!$K$1:$BU$4779,MATCH(Assets!W$46&"|"&Assets!$B57,'Data Annex'!$K$1:$K$4779,0),MATCH(Assets!W$47,'Data Annex'!$K$1:$BU$1,0)),"") -> 0.04746181851
B58: DE | D58: DE | F58: =IFERROR(INDEX('Data Annex'!$K$1:$BU$4779,MATCH(Assets!F$46&"|"&Assets!$B58,'Data Annex'!$K$1:$K$4779,0),MATCH(Assets!F$47,'Data Annex'!$K$1:$BU$1,0)),"") -> 4070.03157 | G58: =IFERROR(INDEX('Data Annex'!$K$1:$BU$4779,MATCH(Assets!G$46&"|"&Assets!$B58,'Data Annex'!$K$1:$K$4779,0),MATCH(Assets!G$47,'Data Annex'!$K$1:$BU$1,0)),"") -> 3934.303253 | H58: =IFERROR(INDEX('Data Annex'!$K$1:$BU$4779,MATCH(Assets!H$46&"|"&Assets!$B58,'Data Annex'!$K$1:$K$4779,0),MATCH(Assets!H$47,'Data Annex'!$K$1:$BU$1,0)),"") -> 4021.726415 | I58: =IFERROR(INDEX('Data Annex'!$K$1:$BU$4779,MATCH(Assets!I$46&"|"&Assets!$B58,'Data Annex'!$K$1:$K$4779,0),MATCH(Assets!I$47,'Data Annex'!$K$1:$BU$1,0)),"") -> 3977.885196 | J58: =IFERROR(INDEX('Data Annex'!$K$1:$BU$4779,MATCH(Assets!J$46&"|"&Assets!$B58,'Data Annex'!$K$1:$K$4779,0),MATCH(Assets!J$47,'Data Annex'!$K$1:$BU$1,0)),"") -> 3854.466837 | K58: =IFERROR(INDEX('Data Annex'!$K$1:$BU$4779,MATCH(Assets!K$46&"|"&Assets!$B58,'Data Annex'!$K$1:$K$4779,0),MATCH(Assets!K$47,'Data Annex'!$K$1:$BU$1,0)),"") -> 3937.896947 | L58: 0.97915585 | M58: DE | O58: =IFERROR(INDEX('Data Annex'!$K$1:$BU$4779,MATCH(Assets!O$46&"|"&Assets!$B58,'Data Annex'!$K$1:$K$4779,0),MATCH(Assets!O$47,'Data Annex'!$K$1:$BU$1,0)),"") -> 0.7414708687 | P58: =IFERROR(INDEX('Data Annex'!$K$1:$BU$4779,MATCH(Assets!P$46&"|"&Assets!$B58,'Data Annex'!$K$1:$K$4779,0),MATCH(Assets!P$47,'Data Annex'!$K$1:$BU$1,0)),"") -> 0.7361417226 | Q58: =IFERROR(INDEX('Data Annex'!$K$1:$BU$4779,MATCH(Assets!Q$46&"|"&Assets!$B58,'Data Annex'!$K$1:$K$4779,0),MATCH(Assets!Q$47,'Data Annex'!$K$1:$BU$1,0)),"") -> 0.7544563915 | R58: =IFERROR(INDEX('Data Annex'!$K$1:$BU$4779,MATCH(Assets!R$46&"|"&Assets!$B58,'Data Annex'!$K$1:$K$4779,0),MATCH(Assets!R$47,'Data Annex'!$K$1:$BU$1,0)),"") -> 0.0493204303 | S58: =IFERROR(INDEX('Data Annex'!$K$1:$BU$4779,MATCH(Assets!S$46&"|"&Assets!$B58,'Data Annex'!$K$1:$K$4779,0),MATCH(Assets!S$47,'Data Annex'!$K$1:$BU$1,0)),"") -> 0.04955768537 | T58: =IFERROR(INDEX('Data Annex'!$K$1:$BU$4779,MATCH(Assets!T$46&"|"&Assets!$B58,'Data Annex'!$K$1:$K$4779,0),MATCH(Assets!T$47,'Data Annex'!$K$1:$BU$1,0)),"") -> 0.04883796662 | U58: =IFERROR(INDEX('Data Annex'!$K$1:$BU$4779,MATCH(Assets!U$46&"|"&Assets!$B58,'Data Annex'!$K$1:$K$4779,0),MATCH(Assets!U$47,'Data Annex'!$K$1:$BU$1,0)),"") -> 0.209208701 | V58: =IFERROR(INDEX('Data Annex'!$K$1:$BU$4779,MATCH(Assets!V$46&"|"&Assets!$B58,'Data Annex'!$K$1:$K$4779,0),MATCH(Assets!V$47,'Data Annex'!$K$1:$BU$1,0)),"") -> 0.214300592 | W58: =IFERROR(INDEX('Data Annex'!$K$1:$BU$4779,MATCH(Assets!W$46&"|"&Assets!$B58,'Data Annex'!$K$1:$K$4779,0),MATCH(Assets!W$47,'Data Annex'!$K$1:$BU$1,0)),"") -> 0.1967056419
B59: DK | D59: DK | F59: =IFERROR(INDEX('Data Annex'!$K$1:$BU$4779,MATCH(Assets!F$46&"|"&Assets!$B59,'Data Annex'!$K$1:$K$4779,0),MATCH(Assets!F$47,'Data Annex'!$K$1:$BU$1,0)),"") -> 768.9921556 | G59: =IFERROR(INDEX('Data Annex'!$K$1:$BU$4779,MATCH(Assets!G$46&"|"&Assets!$B59,'Data Annex'!$K$1:$K$4779,0),MATCH(Assets!G$47,'Data Annex'!$K$1:$BU$1,0)),"") -> 760.0865553 | H59: =IFERROR(INDEX('Data Annex'!$K$1:$BU$4779,MATCH(Assets!H$46&"|"&Assets!$B59,'Data Annex'!$K$1:$K$4779,0),MATCH(Assets!H$47,'Data Annex'!$K$1:$BU$1,0)),"") -> 767.0675188 | I59: =IFERROR(INDEX('Data Annex'!$K$1:$BU$4779,MATCH(Assets!I$46&"|"&Assets!$B59,'Data Annex'!$K$1:$K$4779,0),MATCH(Assets!I$47,'Data Annex'!$K$1:$BU$1,0)),"") -> 750.7331018 | J59: =IFERROR(INDEX('Data Annex'!$K$1:$BU$4779,MATCH(Assets!J$46&"|"&Assets!$B59,'Data Annex'!$K$1:$K$4779,0),MATCH(Assets!J$47,'Data Annex'!$K$1:$BU$1,0)),"") -> 741.8718046 | K59: =IFERROR(INDEX('Data Annex'!$K$1:$BU$4779,MATCH(Assets!K$46&"|"&Assets!$B59,'Data Annex'!$K$1:$K$4779,0),MATCH(Assets!K$47,'Data Annex'!$K$1:$BU$1,0)),"") -> 749.0595301 | L59: 0.9765235937 | M59: DK | O59: =IFERROR(INDEX('Data Annex'!$K$1:$BU$4779,MATCH(Assets!O$46&"|"&Assets!$B59,'Data Annex'!$K$1:$K$4779,0),MATCH(Assets!O$47,'Data Annex'!$K$1:$BU$1,0)),"") -> 0.3423091987 | P59: =IFERROR(INDEX('Data Annex'!$K$1:$BU$4779,MATCH(Assets!P$46&"|"&Assets!$B59,'Data Annex'!$K$1:$K$4779,0),MATCH(Assets!P$47,'Data Annex'!$K$1:$BU$1,0)),"") -> 0.3513789559 | Q59: =IFERROR(INDEX('Data Annex'!$K$1:$BU$4779,MATCH(Assets!Q$46&"|"&Assets!$B59,'Data Annex'!$K$1:$K$4779,0),MATCH(Assets!Q$47,'Data Annex'!$K$1:$BU$1,0)),"") -> 0.3658522365 | R59: =IFERROR(INDEX('Data Annex'!$K$1:$BU$4779,MATCH(Assets!R$46&"|"&Assets!$B59,'Data Annex'!$K$1:$K$4779,0),MATCH(Assets!R$47,'Data Annex'!$K$1:$BU$1,0)),"") -> 0.02182960188 | S59: =IFERROR(INDEX('Data Annex'!$K$1:$BU$4779,MATCH(Assets!S$46&"|"&Assets!$B59,'Data Annex'!$K$1:$K$4779,0),MATCH(Assets!S$47,'Data Annex'!$K$1:$BU$1,0)),"") -> 0.02117620653 | T59: =IFERROR(INDEX('Data Annex'!$K$1:$BU$4779,MATCH(Assets!T$46&"|"&Assets!$B59,'Data Annex'!$K$1:$K$4779,0),MATCH(Assets!T$47,'Data Annex'!$K$1:$BU$1,0)),"") -> 0.02009243369 | U59: =IFERROR(INDEX('Data Annex'!$K$1:$BU$4779,MATCH(Assets!U$46&"|"&Assets!$B59,'Data Annex'!$K$1:$K$4779,0),MATCH(Assets!U$47,'Data Annex'!$K$1:$BU$1,0)),"") -> 0.6358611995 | V59: =IFERROR(INDEX('Data Annex'!$K$1:$BU$4779,MATCH(Assets!V$46&"|"&Assets!$B59,'Data Annex'!$K$1:$K$4779,0),MATCH(Assets!V$47,'Data Annex'!$K$1:$BU$1,0)),"") -> 0.6274448376 | W59: =IFERROR(INDEX('Data Annex'!$K$1:$BU$4779,MATCH(Assets!W$46&"|"&Assets!$B59,'Data Annex'!$K$1:$K$4779,0),MATCH(Assets!W$47,'Data Annex'!$K$1:$BU$1,0)),"") -> 0.6140553298
B60: EE | D60: EE | F60: =IFERROR(INDEX('Data Annex'!$K$1:$BU$4779,MATCH(Assets!F$46&"|"&Assets!$B60,'Data Annex'!$K$1:$K$4779,0),MATCH(Assets!F$47,'Data Annex'!$K$1:$BU$1,0)),"") -> 43.49230052 | G60: =IFERROR(INDEX('Data Annex'!$K$1:$BU$4779,MATCH(Assets!G$46&"|"&Assets!$B60,'Data Annex'!$K$1:$K$4779,0),MATCH(Assets!G$47,'Data Annex'!$K$1:$BU$1,0)),"") -> 43.07146208 | H60: =IFERROR(INDEX('Data Annex'!$K$1:$BU$4779,MATCH(Assets!H$46&"|"&Assets!$B60,'Data Annex'!$K$1:$K$4779,0),MATCH(Assets!H$47,'Data Annex'!$K$1:$BU$1,0)),"") -> 43.92981145 | I60: =IFERROR(INDEX('Data Annex'!$K$1:$BU$4779,MATCH(Assets!I$46&"|"&Assets!$B60,'Data Annex'!$K$1:$K$4779,0),MATCH(Assets!I$47,'Data Annex'!$K$1:$BU$1,0)),"") -> 43.1745548 | J60: =IFERROR(INDEX('Data Annex'!$K$1:$BU$4779,MATCH(Assets!J$46&"|"&Assets!$B60,'Data Annex'!$K$1:$K$4779,0),MATCH(Assets!J$47,'Data Annex'!$K$1:$BU$1,0)),"") -> 42.610507 | K60: =IFERROR(INDEX('Data Annex'!$K$1:$BU$4779,MATCH(Assets!K$46&"|"&Assets!$B60,'Data Annex'!$K$1:$K$4779,0),MATCH(Assets!K$47,'Data Annex'!$K$1:$BU$1,0)),"") -> 43.50536292 | L60: 0.9903380298 | M60: EE | O60: =IFERROR(INDEX('Data Annex'!$K$1:$BU$4779,MATCH(Assets!O$46&"|"&Assets!$B60,'Data Annex'!$K$1:$K$4779,0),MATCH(Assets!O$47,'Data Annex'!$K$1:$BU$1,0)),"") -> 0.9284228023 | P60: =IFERROR(INDEX('Data Annex'!$K$1:$BU$4779,MATCH(Assets!P$46&"|"&Assets!$B60,'Data Annex'!$K$1:$K$4779,0),MATCH(Assets!P$47,'Data Annex'!$K$1:$BU$1,0)),"") -> 0.9794331854 | Q60: =IFERROR(INDEX('Data Annex'!$K$1:$BU$4779,MATCH(Assets!Q$46&"|"&Assets!$B60,'Data Annex'!$K$1:$K$4779,0),MATCH(Assets!Q$47,'Data Annex'!$K$1:$BU$1,0)),"") -> 0.9801369738 | R60: =IFERROR(INDEX('Data Annex'!$K$1:$BU$4779,MATCH(Assets!R$46&"|"&Assets!$B60,'Data Annex'!$K$1:$K$4779,0),MATCH(Assets!R$47,'Data Annex'!$K$1:$BU$1,0)),"") -> 4.343092173e-05 | S60: =IFERROR(INDEX('Data Annex'!$K$1:$BU$4779,MATCH(Assets!S$46&"|"&Assets!$B60,'Data Annex'!$K$1:$K$4779,0),MATCH(Assets!S$47,'Data Annex'!$K$1:$BU$1,0)),"") -> 7.535694307e-05 | T60: =IFERROR(INDEX('Data Annex'!$K$1:$BU$4779,MATCH(Assets!T$46&"|"&Assets!$B60,'Data Annex'!$K$1:$K$4779,0),MATCH(Assets!T$47,'Data Annex'!$K$1:$BU$1,0)),"") -> 7.404719013e-05 | U60: =IFERROR(INDEX('Data Annex'!$K$1:$BU$4779,MATCH(Assets!U$46&"|"&Assets!$B60,'Data Annex'!$K$1:$K$4779,0),MATCH(Assets!U$47,'Data Annex'!$K$1:$BU$1,0)),"") -> 0.07153376681 | V60: =IFERROR(INDEX('Data Annex'!$K$1:$BU$4779,MATCH(Assets!V$46&"|"&Assets!$B60,'Data Annex'!$K$1:$K$4779,0),MATCH(Assets!V$47,'Data Annex'!$K$1:$BU$1,0)),"") -> 0.02049145769 | W60: =IFERROR(INDEX('Data Annex'!$K$1:$BU$4779,MATCH(Assets!W$46&"|"&Assets!$B60,'Data Annex'!$K$1:$K$4779,0),MATCH(Assets!W$47,'Data Annex'!$K$1:$BU$1,0)),"") -> 0.01978897896
B61: ES | D61: ES | F61: =IFERROR(INDEX('Data Annex'!$K$1:$BU$4779,MATCH(Assets!F$46&"|"&Assets!$B61,'Data Annex'!$K$1:$K$4779,0),MATCH(Assets!F$47,'Data Annex'!$K$1:$BU$1,0)),"") -> 3656.068603 | G61: =IFERROR(INDEX('Data Annex'!$K$1:$BU$4779,MATCH(Assets!G$46&"|"&Assets!$B61,'Data Annex'!$K$1:$K$4779,0),MATCH(Assets!G$47,'Data Annex'!$K$1:$BU$1,0)),"") -> 3650.771167 | H61: =IFERROR(INDEX('Data Annex'!$K$1:$BU$4779,MATCH(Assets!H$46&"|"&Assets!$B61,'Data Annex'!$K$1:$K$4779,0),MATCH(Assets!H$47,'Data Annex'!$K$1:$BU$1,0)),"") -> 3704.890625 | I61: =IFERROR(INDEX('Data Annex'!$K$1:$BU$4779,MATCH(Assets!I$46&"|"&Assets!$B61,'Data Annex'!$K$1:$K$4779,0),MATCH(Assets!I$47,'Data Annex'!$K$1:$BU$1,0)),"") -> 3434.016682 | J61: =IFERROR(INDEX('Data Annex'!$K$1:$BU$4779,MATCH(Assets!J$46&"|"&Assets!$B61,'Data Annex'!$K$1:$K$4779,0),MATCH(Assets!J$47,'Data Annex'!$K$1:$BU$1,0)),"") -> 3436.730703 | K61: =IFERROR(INDEX('Data Annex'!$K$1:$BU$4779,MATCH(Assets!K$46&"|"&Assets!$B61,'Data Annex'!$K$1:$K$4779,0),MATCH(Assets!K$47,'Data Annex'!$K$1:$BU$1,0)),"") -> 3492.575149 | L61: 0.9426931865 | M61: ES | O61: =IFERROR(INDEX('Data Annex'!$K$1:$BU$4779,MATCH(Assets!O$46&"|"&Assets!$B61,'Data Annex'!$K$1:$K$4779,0),MATCH(Assets!O$47,'Data Annex'!$K$1:$BU$1,0)),"") -> 0.8579686786 | P61: =IFERROR(INDEX('Data Annex'!$K$1:$BU$4779,MATCH(Assets!P$46&"|"&Assets!$B61,'Data Annex'!$K$1:$K$4779,0),MATCH(Assets!P$47,'Data Annex'!$K$1:$BU$1,0)),"") -> 0.8623066684 | Q61: =IFERROR(INDEX('Data Annex'!$K$1:$BU$4779,MATCH(Assets!Q$46&"|"&Assets!$B61,'Data Annex'!$K$1:$K$4779,0),MATCH(Assets!Q$47,'Data Annex'!$K$1:$BU$1,0)),"") -> 0.858439451 | R61: =IFERROR(INDEX('Data Annex'!$K$1:$BU$4779,MATCH(Assets!R$46&"|"&Assets!$B61,'Data Annex'!$K$1:$K$4779,0),MATCH(Assets!R$47,'Data Annex'!$K$1:$BU$1,0)),"") -> 0.05079537979 | S61: =IFERROR(INDEX('Data Annex'!$K$1:$BU$4779,MATCH(Assets!S$46&"|"&Assets!$B61,'Data Annex'!$K$1:$K$4779,0),MATCH(Assets!S$47,'Data Annex'!$K$1:$BU$1,0)),"") -> 0.04311764279 | T61: =IFERROR(INDEX('Data Annex'!$K$1:$BU$4779,MATCH(Assets!T$46&"|"&Assets!$B61,'Data Annex'!$K$1:$K$4779,0),MATCH(Assets!T$47,'Data Annex'!$K$1:$BU$1,0)),"") -> 0.04188193345 | U61: =IFERROR(INDEX('Data Annex'!$K$1:$BU$4779,MATCH(Assets!U$46&"|"&Assets!$B61,'Data Annex'!$K$1:$K$4779,0),MATCH(Assets!U$47,'Data Annex'!$K$1:$BU$1,0)),"") -> 0.09123594165 | V61: =IFERROR(INDEX('Data Annex'!$K$1:$BU$4779,MATCH(Assets!V$46&"|"&Assets!$B61,'Data Annex'!$K$1:$K$4779,0),MATCH(Assets!V$47,'Data Annex'!$K$1:$BU$1,0)),"") -> 0.09457568881 | W61: =IFERROR(INDEX('Data Annex'!$K$1:$BU$4779,MATCH(Assets!W$46&"|"&Assets!$B61,'Data Annex'!$K$1:$K$4779,0),MATCH(Assets!W$47,'Data Annex'!$K$1:$BU$1,0)),"") -> 0.0996786155
B62: FI | D62: FI | F62: =IFERROR(INDEX('Data Annex'!$K$1:$BU$4779,MATCH(Assets!F$46&"|"&Assets!$B62,'Data Annex'!$K$1:$K$4779,0),MATCH(Assets!F$47,'Data Annex'!$K$1:$BU$1,0)),"") -> 761.965171 | G62: =IFERROR(INDEX('Data Annex'!$K$1:$BU$4779,MATCH(Assets!G$46&"|"&Assets!$B62,'Data Annex'!$K$1:$K$4779,0),MATCH(Assets!G$47,'Data Annex'!$K$1:$BU$1,0)),"") -> 733.029499 | H62: =IFERROR(INDEX('Data Annex'!$K$1:$BU$4779,MATCH(Assets!H$46&"|"&Assets!$B62,'Data Annex'!$K$1:$K$4779,0),MATCH(Assets!H$47,'Data Annex'!$K$1:$BU$1,0)),"") -> 721.5892386 | I62: =IFERROR(INDEX('Data Annex'!$K$1:$BU$4779,MATCH(Assets!I$46&"|"&Assets!$B62,'Data Annex'!$K$1:$K$4779,0),MATCH(Assets!I$47,'Data Annex'!$K$1:$BU$1,0)),"") -> 746.9765384 | J62: =IFERROR(INDEX('Data Annex'!$K$1:$BU$4779,MATCH(Assets!J$46&"|"&Assets!$B62,'Data Annex'!$K$1:$K$4779,0),MATCH(Assets!J$47,'Data Annex'!$K$1:$BU$1,0)),"") -> 721.1461167 | K62: =IFERROR(INDEX('Data Annex'!$K$1:$BU$4779,MATCH(Assets!K$46&"|"&Assets!$B62,'Data Annex'!$K$1:$K$4779,0),MATCH(Assets!K$47,'Data Annex'!$K$1:$BU$1,0)),"") -> 710.693524 | L62: 0.984900392 | M62: FI | O62: =IFERROR(INDEX('Data Annex'!$K$1:$BU$4779,MATCH(Assets!O$46&"|"&Assets!$B62,'Data Annex'!$K$1:$K$4779,0),MATCH(Assets!O$47,'Data Annex'!$K$1:$BU$1,0)),"") -> 0.6990610643 | P62: =IFERROR(INDEX('Data Annex'!$K$1:$BU$4779,MATCH(Assets!P$46&"|"&Assets!$B62,'Data Annex'!$K$1:$K$4779,0),MATCH(Assets!P$47,'Data Annex'!$K$1:$BU$1,0)),"") -> 0.7193180477 | Q62: =IFERROR(INDEX('Data Annex'!$K$1:$BU$4779,MATCH(Assets!Q$46&"|"&Assets!$B62,'Data Annex'!$K$1:$K$4779,0),MATCH(Assets!Q$47,'Data Annex'!$K$1:$BU$1,0)),"") -> 0.6988521936 | R62: =IFERROR(INDEX('Data Annex'!$K$1:$BU$4779,MATCH(Assets!R$46&"|"&Assets!$B62,'Data Annex'!$K$1:$K$4779,0),MATCH(Assets!R$47,'Data Annex'!$K$1:$BU$1,0)),"") -> 0.06283662961 | S62: =IFERROR(INDEX('Data Annex'!$K$1:$BU$4779,MATCH(Assets!S$46&"|"&Assets!$B62,'Data Annex'!$K$1:$K$4779,0),MATCH(Assets!S$47,'Data Annex'!$K$1:$BU$1,0)),"") -> 0.06165284961 | T62: =IFERROR(INDEX('Data Annex'!$K$1:$BU$4779,MATCH(Assets!T$46&"|"&Assets!$B62,'Data Annex'!$K$1:$K$4779,0),MATCH(Assets!T$47,'Data Annex'!$K$1:$BU$1,0)),"") -> 0.06588371443 | U62: =IFERROR(INDEX('Data Annex'!$K$1:$BU$4779,MATCH(Assets!U$46&"|"&Assets!$B62,'Data Annex'!$K$1:$K$4779,0),MATCH(Assets!U$47,'Data Annex'!$K$1:$BU$1,0)),"") -> 0.2381023061 | V62: =IFERROR(INDEX('Data Annex'!$K$1:$BU$4779,MATCH(Assets!V$46&"|"&Assets!$B62,'Data Annex'!$K$1:$K$4779,0),MATCH(Assets!V$47,'Data Annex'!$K$1:$BU$1,0)),"") -> 0.2190291027 | W62: =IFERROR(INDEX('Data Annex'!$K$1:$BU$4779,MATCH(Assets!W$46&"|"&Assets!$B62,'Data Annex'!$K$1:$K$4779,0),MATCH(Assets!W$47,'Data Annex'!$K$1:$BU$1,0)),"") -> 0.2352640919
B63: FR | D63: FR | F63: =IFERROR(INDEX('Data Annex'!$K$1:$BU$4779,MATCH(Assets!F$46&"|"&Assets!$B63,'Data Annex'!$K$1:$K$4779,0),MATCH(Assets!F$47,'Data Annex'!$K$1:$BU$1,0)),"") -> 9095.453138 | G63: =IFERROR(INDEX('Data Annex'!$K$1:$BU$4779,MATCH(Assets!G$46&"|"&Assets!$B63,'Data Annex'!$K$1:$K$4779,0),MATCH(Assets!G$47,'Data Annex'!$K$1:$BU$1,0)),"") -> 8893.226129 | H63: =IFERROR(INDEX('Data Annex'!$K$1:$BU$4779,MATCH(Assets!H$46&"|"&Assets!$B63,'Data Annex'!$K$1:$K$4779,0),MATCH(Assets!H$47,'Data Annex'!$K$1:$BU$1,0)),"") -> 9043.694259 | I63: =IFERROR(INDEX('Data Annex'!$K$1:$BU$4779,MATCH(Assets!I$46&"|"&Assets!$B63,'Data Annex'!$K$1:$K$4779,0),MATCH(Assets!I$47,'Data Annex'!$K$1:$BU$1,0)),"") -> 8405.193934 | J63: =IFERROR(INDEX('Data Annex'!$K$1:$BU$4779,MATCH(Assets!J$46&"|"&Assets!$B63,'Data Annex'!$K$1:$K$4779,0),MATCH(Assets!J$47,'Data Annex'!$K$1:$BU$1,0)),"") -> 8219.843267 | K63: =IFERROR(INDEX('Data Annex'!$K$1:$BU$4779,MATCH(Assets!K$46&"|"&Assets!$B63,'Data Annex'!$K$1:$K$4779,0),MATCH(Assets!K$47,'Data Annex'!$K$1:$BU$1,0)),"") -> 8508.929147 | L63: 0.9408687317 | M63: FR | O63: =IFERROR(INDEX('Data Annex'!$K$1:$BU$4779,MATCH(Assets!O$46&"|"&Assets!$B63,'Data Annex'!$K$1:$K$4779,0),MATCH(Assets!O$47,'Data Annex'!$K$1:$BU$1,0)),"") -> 0.7414021447 | P63: =IFERROR(INDEX('Data Annex'!$K$1:$BU$4779,MATCH(Assets!P$46&"|"&Assets!$B63,'Data Annex'!$K$1:$K$4779,0),MATCH(Assets!P$47,'Data Annex'!$K$1:$BU$1,0)),"") -> 0.7585822353 | Q63: =IFERROR(INDEX('Data Annex'!$K$1:$BU$4779,MATCH(Assets!Q$46&"|"&Assets!$B63,'Data Annex'!$K$1:$K$4779,0),MATCH(Assets!Q$47,'Data Annex'!$K$1:$BU$1,0)),"") -> 0.74136866 | R63: =IFERROR(INDEX('Data Annex'!$K$1:$BU$4779,MATCH(Assets!R$46&"|"&Assets!$B63,'Data Annex'!$K$1:$K$4779,0),MATCH(Assets!R$47,'Data Annex'!$K$1:$BU$1,0)),"") -> 0.03140440651 | S63: =IFERROR(INDEX('Data Annex'!$K$1:$BU$4779,MATCH(Assets!S$46&"|"&Assets!$B63,'Data Annex'!$K$1:$K$4779,0),MATCH(Assets!S$47,'Data Annex'!$K$1:$BU$1,0)),"") -> 0.02988009312 | T63: =IFERROR(INDEX('Data Annex'!$K$1:$BU$4779,MATCH(Assets!T$46&"|"&Assets!$B63,'Data Annex'!$K$1:$K$4779,0),MATCH(Assets!T$47,'Data Annex'!$K$1:$BU$1,0)),"") -> 0.02990712084 | U63: =IFERROR(INDEX('Data Annex'!$K$1:$BU$4779,MATCH(Assets!U$46&"|"&Assets!$B63,'Data Annex'!$K$1:$K$4779,0),MATCH(Assets!U$47,'Data Annex'!$K$1:$BU$1,0)),"") -> 0.2271934488 | V63: =IFERROR(INDEX('Data Annex'!$K$1:$BU$4779,MATCH(Assets!V$46&"|"&Assets!$B63,'Data Annex'!$K$1:$K$4779,0),MATCH(Assets!V$47,'Data Annex'!$K$1:$BU$1,0)),"") -> 0.2115376716 | W63: =IFERROR(INDEX('Data Annex'!$K$1:$BU$4779,MATCH(Assets!W$46&"|"&Assets!$B63,'Data Annex'!$K$1:$K$4779,0),MATCH(Assets!W$47,'Data Annex'!$K$1:$BU$1,0)),"") -> 0.2287242191
B64: GR | D64: GR | F64: =IFERROR(INDEX('Data Annex'!$K$1:$BU$4779,MATCH(Assets!F$46&"|"&Assets!$B64,'Data Annex'!$K$1:$K$4779,0),MATCH(Assets!F$47,'Data Annex'!$K$1:$BU$1,0)),"") -> 309.6531571 | G64: =IFERROR(INDEX('Data Annex'!$K$1:$BU$4779,MATCH(Assets!G$46&"|"&Assets!$B64,'Data Annex'!$K$1:$K$4779,0),MATCH(Assets!G$47,'Data Annex'!$K$1:$BU$1,0)),"") -> 312.5411505 | H64: =IFERROR(INDEX('Data Annex'!$K$1:$BU$4779,MATCH(Assets!H$46&"|"&Assets!$B64,'Data Annex'!$K$1:$K$4779,0),MATCH(Assets!H$47,'Data Annex'!$K$1:$BU$1,0)),"") -> 304.7581979 | I64: =IFERROR(INDEX('Data Annex'!$K$1:$BU$4779,MATCH(Assets!I$46&"|"&Assets!$B64,'Data Annex'!$K$1:$K$4779,0),MATCH(Assets!I$47,'Data Annex'!$K$1:$BU$1,0)),"") -> 266.6070989 | J64: =IFERROR(INDEX('Data Annex'!$K$1:$BU$4779,MATCH(Assets!J$46&"|"&Assets!$B64,'Data Annex'!$K$1:$K$4779,0),MATCH(Assets!J$47,'Data Annex'!$K$1:$BU$1,0)),"") -> 270.9658903 | K64: =IFERROR(INDEX('Data Annex'!$K$1:$BU$4779,MATCH(Assets!K$46&"|"&Assets!$B64,'Data Annex'!$K$1:$K$4779,0),MATCH(Assets!K$47,'Data Annex'!$K$1:$BU$1,0)),"") -> 260.5135258 | L64: 0.8548204036 | M64: GR | O64: =IFERROR(INDEX('Data Annex'!$K$1:$BU$4779,MATCH(Assets!O$46&"|"&Assets!$B64,'Data Annex'!$K$1:$K$4779,0),MATCH(Assets!O$47,'Data Annex'!$K$1:$BU$1,0)),"") -> 0.923167493 | P64: =IFERROR(INDEX('Data Annex'!$K$1:$BU$4779,MATCH(Assets!P$46&"|"&Assets!$B64,'Data Annex'!$K$1:$K$4779,0),MATCH(Assets!P$47,'Data Annex'!$K$1:$BU$1,0)),"") -> 0.9311848076 | Q64: =IFERROR(INDEX('Data Annex'!$K$1:$BU$4779,MATCH(Assets!Q$46&"|"&Assets!$B64,'Data Annex'!$K$1:$K$4779,0),MATCH(Assets!Q$47,'Data Annex'!$K$1:$BU$1,0)),"") -> 0.9249237372 | R64: =IFERROR(INDEX('Data Annex'!$K$1:$BU$4779,MATCH(Assets!R$46&"|"&Assets!$B64,'Data Annex'!$K$1:$K$4779,0),MATCH(Assets!R$47,'Data Annex'!$K$1:$BU$1,0)),"") -> 0.04203881055 | S64: =IFERROR(INDEX('Data Annex'!$K$1:$BU$4779,MATCH(Assets!S$46&"|"&Assets!$B64,'Data Annex'!$K$1:$K$4779,0),MATCH(Assets!S$47,'Data Annex'!$K$1:$BU$1,0)),"") -> 0.03277486737 | T64: =IFERROR(INDEX('Data Annex'!$K$1:$BU$4779,MATCH(Assets!T$46&"|"&Assets!$B64,'Data Annex'!$K$1:$K$4779,0),MATCH(Assets!T$47,'Data Annex'!$K$1:$BU$1,0)),"") -> 0.03579214518 | U64: =IFERROR(INDEX('Data Annex'!$K$1:$BU$4779,MATCH(Assets!U$46&"|"&Assets!$B64,'Data Annex'!$K$1:$K$4779,0),MATCH(Assets!U$47,'Data Annex'!$K$1:$BU$1,0)),"") -> 0.03479369645 | V64: =IFERROR(INDEX('Data Annex'!$K$1:$BU$4779,MATCH(Assets!V$46&"|"&Assets!$B64,'Data Annex'!$K$1:$K$4779,0),MATCH(Assets!V$47,'Data Annex'!$K$1:$BU$1,0)),"") -> 0.03604032502 | W64: =IFERROR(INDEX('Data Annex'!$K$1:$BU$4779,MATCH(Assets!W$46&"|"&Assets!$B64,'Data Annex'!$K$1:$K$4779,0),MATCH(Assets!W$47,'Data Annex'!$K$1:$BU$1,0)),"") -> 0.03928411761
B65: HR | D65: HR | F65: =IFERROR(INDEX('Data Annex'!$K$1:$BU$4779,MATCH(Assets!F$46&"|"&Assets!$B65,'Data Annex'!$K$1:$K$4779,0),MATCH(Assets!F$47,'Data Annex'!$K$1:$BU$1,0)),"") -> 52.95880834 | G65: =IFERROR(INDEX('Data Annex'!$K$1:$BU$4779,MATCH(Assets!G$46&"|"&Assets!$B65,'Data Annex'!$K$1:$K$4779,0),MATCH(Assets!G$47,'Data Annex'!$K$1:$BU$1,0)),"") -> 59.51400986 | H65: =IFERROR(INDEX('Data Annex'!$K$1:$BU$4779,MATCH(Assets!H$46&"|"&Assets!$B65,'Data Annex'!$K$1:$K$4779,0),MATCH(Assets!H$47,'Data Annex'!$K$1:$BU$1,0)),"") -> 56.84889098 | I65: =IFERROR(INDEX('Data Annex'!$K$1:$BU$4779,MATCH(Assets!I$46&"|"&Assets!$B65,'Data Annex'!$K$1:$K$4779,0),MATCH(Assets!I$47,'Data Annex'!$K$1:$BU$1,0)),"") -> 51.83135441 | J65: =IFERROR(INDEX('Data Annex'!$K$1:$BU$4779,MATCH(Assets!J$46&"|"&Assets!$B65,'Data Annex'!$K$1:$K$4779,0),MATCH(Assets!J$47,'Data Annex'!$K$1:$BU$1,0)),"") -> 58.35231302 | K65: =IFERROR(INDEX('Data Annex'!$K$1:$BU$4779,MATCH(Assets!K$46&"|"&Assets!$B65,'Data Annex'!$K$1:$K$4779,0),MATCH(Assets!K$47,'Data Annex'!$K$1:$BU$1,0)),"") -> 55.75301603 | L65: 0.9807230196 | M65: HR | O65: =IFERROR(INDEX('Data Annex'!$K$1:$BU$4779,MATCH(Assets!O$46&"|"&Assets!$B65,'Data Annex'!$K$1:$K$4779,0),MATCH(Assets!O$47,'Data Annex'!$K$1:$BU$1,0)),"") -> 0.906850622 | P65: =IFERROR(INDEX('Data Annex'!$K$1:$BU$4779,MATCH(Assets!P$46&"|"&Assets!$B65,'Data Annex'!$K$1:$K$4779,0),MATCH(Assets!P$47,'Data Annex'!$K$1:$BU$1,0)),"") -> 0.9304596143 | Q65: =IFERROR(INDEX('Data Annex'!$K$1:$BU$4779,MATCH(Assets!Q$46&"|"&Assets!$B65,'Data Annex'!$K$1:$K$4779,0),MATCH(Assets!Q$47,'Data Annex'!$K$1:$BU$1,0)),"") -> 0.9279602089 | R65: =IFERROR(INDEX('Data Annex'!$K$1:$BU$4779,MATCH(Assets!R$46&"|"&Assets!$B65,'Data Annex'!$K$1:$K$4779,0),MATCH(Assets!R$47,'Data Annex'!$K$1:$BU$1,0)),"") -> 0.08553017552 | S65: =IFERROR(INDEX('Data Annex'!$K$1:$BU$4779,MATCH(Assets!S$46&"|"&Assets!$B65,'Data Annex'!$K$1:$K$4779,0),MATCH(Assets!S$47,'Data Annex'!$K$1:$BU$1,0)),"") -> 0.06125776388 | T65: =IFERROR(INDEX('Data Annex'!$K$1:$BU$4779,MATCH(Assets!T$46&"|"&Assets!$B65,'Data Annex'!$K$1:$K$4779,0),MATCH(Assets!T$47,'Data Annex'!$K$1:$BU$1,0)),"") -> 0.06447750353 | U65: =IFERROR(INDEX('Data Annex'!$K$1:$BU$4779,MATCH(Assets!U$46&"|"&Assets!$B65,'Data Annex'!$K$1:$K$4779,0),MATCH(Assets!U$47,'Data Annex'!$K$1:$BU$1,0)),"") -> 0.007619202471 | V65: =IFERROR(INDEX('Data Annex'!$K$1:$BU$4779,MATCH(Assets!V$46&"|"&Assets!$B65,'Data Annex'!$K$1:$K$4779,0),MATCH(Assets!V$47,'Data Annex'!$K$1:$BU$1,0)),"") -> 0.008282621797 | W65: =IFERROR(INDEX('Data Annex'!$K$1:$BU$4779,MATCH(Assets!W$46&"|"&Assets!$B65,'Data Annex'!$K$1:$K$4779,0),MATCH(Assets!W$47,'Data Annex'!$K$1:$BU$1,0)),"") -> 0.007562287547
B66: HU | D66: HU | F66: =IFERROR(INDEX('Data Annex'!$K$1:$BU$4779,MATCH(Assets!F$46&"|"&Assets!$B66,'Data Annex'!$K$1:$K$4779,0),MATCH(Assets!F$47,'Data Annex'!$K$1:$BU$1,0)),"") -> 132.1521653 | G66: =IFERROR(INDEX('Data Annex'!$K$1:$BU$4779,MATCH(Assets!G$46&"|"&Assets!$B66,'Data Annex'!$K$1:$K$4779,0),MATCH(Assets!G$47,'Data Annex'!$K$1:$BU$1,0)),"") -> 135.6627322 | H66: =IFERROR(INDEX('Data Annex'!$K$1:$BU$4779,MATCH(Assets!H$46&"|"&Assets!$B66,'Data Annex'!$K$1:$K$4779,0),MATCH(Assets!H$47,'Data Annex'!$K$1:$BU$1,0)),"") -> 137.5875536 | I66: =IFERROR(INDEX('Data Annex'!$K$1:$BU$4779,MATCH(Assets!I$46&"|"&Assets!$B66,'Data Annex'!$K$1:$K$4779,0),MATCH(Assets!I$47,'Data Annex'!$K$1:$BU$1,0)),"") -> 128.401619 | J66: =IFERROR(INDEX('Data Annex'!$K$1:$BU$4779,MATCH(Assets!J$46&"|"&Assets!$B66,'Data Annex'!$K$1:$K$4779,0),MATCH(Assets!J$47,'Data Annex'!$K$1:$BU$1,0)),"") -> 131.9672347 | K66: =IFERROR(INDEX('Data Annex'!$K$1:$BU$4779,MATCH(Assets!K$46&"|"&Assets!$B66,'Data Annex'!$K$1:$K$4779,0),MATCH(Assets!K$47,'Data Annex'!$K$1:$BU$1,0)),"") -> 133.5745038 | L66: 0.9708327557 | M66: HU | O66: =IFERROR(INDEX('Data Annex'!$K$1:$BU$4779,MATCH(Assets!O$46&"|"&Assets!$B66,'Data Annex'!$K$1:$K$4779,0),MATCH(Assets!O$47,'Data Annex'!$K$1:$BU$1,0)),"") -> 0.8708036012 | P66: =IFERROR(INDEX('Data Annex'!$K$1:$BU$4779,MATCH(Assets!P$46&"|"&Assets!$B66,'Data Annex'!$K$1:$K$4779,0),MATCH(Assets!P$47,'Data Annex'!$K$1:$BU$1,0)),"") -> 0.8752715743 | Q66: =IFERROR(INDEX('Data Annex'!$K$1:$BU$4779,MATCH(Assets!Q$46&"|"&Assets!$B66,'Data Annex'!$K$1:$K$4779,0),MATCH(Assets!Q$47,'Data Annex'!$K$1:$BU$1,0)),"") -> 0.8848926743 | R66: =IFERROR(INDEX('Data Annex'!$K$1:$BU$4779,MATCH(Assets!R$46&"|"&Assets!$B66,'Data Annex'!$K$1:$K$4779,0),MATCH(Assets!R$47,'Data Annex'!$K$1:$BU$1,0)),"") -> 0.0625188446 | S66: =IFERROR(INDEX('Data Annex'!$K$1:$BU$4779,MATCH(Assets!S$46&"|"&Assets!$B66,'Data Annex'!$K$1:$K$4779,0),MATCH(Assets!S$47,'Data Annex'!$K$1:$BU$1,0)),"") -> 0.04996406183 | T66: =IFERROR(INDEX('Data Annex'!$K$1:$BU$4779,MATCH(Assets!T$46&"|"&Assets!$B66,'Data Annex'!$K$1:$K$4779,0),MATCH(Assets!T$47,'Data Annex'!$K$1:$BU$1,0)),"") -> 0.05200808012 | U66: =IFERROR(INDEX('Data Annex'!$K$1:$BU$4779,MATCH(Assets!U$46&"|"&Assets!$B66,'Data Annex'!$K$1:$K$4779,0),MATCH(Assets!U$47,'Data Annex'!$K$1:$BU$1,0)),"") -> 0.0666775542 | V66: =IFERROR(INDEX('Data Annex'!$K$1:$BU$4779,MATCH(Assets!V$46&"|"&Assets!$B66,'Data Annex'!$K$1:$K$4779,0),MATCH(Assets!V$47,'Data Annex'!$K$1:$BU$1,0)),"") -> 0.07476436391 | W66: =IFERROR(INDEX('Data Annex'!$K$1:$BU$4779,MATCH(Assets!W$46&"|"&Assets!$B66,'Data Annex'!$K$1:$K$4779,0),MATCH(Assets!W$47,'Data Annex'!$K$1:$BU$1,0)),"") -> 0.0630992456
B67: IE | D67: IE | F67: =IFERROR(INDEX('Data Annex'!$K$1:$BU$4779,MATCH(Assets!F$46&"|"&Assets!$B67,'Data Annex'!$K$1:$K$4779,0),MATCH(Assets!F$47,'Data Annex'!$K$1:$BU$1,0)),"") -> 348.5218956 | G67: =IFERROR(INDEX('Data Annex'!$K$1:$BU$4779,MATCH(Assets!G$46&"|"&Assets!$B67,'Data Annex'!$K$1:$K$4779,0),MATCH(Assets!G$47,'Data Annex'!$K$1:$BU$1,0)),"") -> 381.8632855 | H67: =IFERROR(INDEX('Data Annex'!$K$1:$BU$4779,MATCH(Assets!H$46&"|"&Assets!$B67,'Data Annex'!$K$1:$K$4779,0),MATCH(Assets!H$47,'Data Annex'!$K$1:$BU$1,0)),"") -> 390.9617409 | I67: =IFERROR(INDEX('Data Annex'!$K$1:$BU$4779,MATCH(Assets!I$46&"|"&Assets!$B67,'Data Annex'!$K$1:$K$4779,0),MATCH(Assets!I$47,'Data Annex'!$K$1:$BU$1,0)),"") -> 330.0262871 | J67: =IFERROR(INDEX('Data Annex'!$K$1:$BU$4779,MATCH(Assets!J$46&"|"&Assets!$B67,'Data Annex'!$K$1:$K$4779,0),MATCH(Assets!J$47,'Data Annex'!$K$1:$BU$1,0)),"") -> 362.0857069 | K67: =IFERROR(INDEX('Data Annex'!$K$1:$BU$4779,MATCH(Assets!K$46&"|"&Assets!$B67,'Data Annex'!$K$1:$K$4779,0),MATCH(Assets!K$47,'Data Annex'!$K$1:$BU$1,0)),"") -> 368.0424981 | L67: 0.9413772746 | M67: IE | O67: =IFERROR(INDEX('Data Annex'!$K$1:$BU$4779,MATCH(Assets!O$46&"|"&Assets!$B67,'Data Annex'!$K$1:$K$4779,0),MATCH(Assets!O$47,'Data Annex'!$K$1:$BU$1,0)),"") -> 0.8471192961 | P67: =IFERROR(INDEX('Data Annex'!$K$1:$BU$4779,MATCH(Assets!P$46&"|"&Assets!$B67,'Data Annex'!$K$1:$K$4779,0),MATCH(Assets!P$47,'Data Annex'!$K$1:$BU$1,0)),"") -> 0.7959153358 | Q67: =IFERROR(INDEX('Data Annex'!$K$1:$BU$4779,MATCH(Assets!Q$46&"|"&Assets!$B67,'Data Annex'!$K$1:$K$4779,0),MATCH(Assets!Q$47,'Data Annex'!$K$1:$BU$1,0)),"") -> 0.798057765 | R67: =IFERROR(INDEX('Data Annex'!$K$1:$BU$4779,MATCH(Assets!R$46&"|"&Assets!$B67,'Data Annex'!$K$1:$K$4779,0),MATCH(Assets!R$47,'Data Annex'!$K$1:$BU$1,0)),"") -> 0.0782806079 | S67: =IFERROR(INDEX('Data Annex'!$K$1:$BU$4779,MATCH(Assets!S$46&"|"&Assets!$B67,'Data Annex'!$K$1:$K$4779,0),MATCH(Assets!S$47,'Data Annex'!$K$1:$BU$1,0)),"") -> 0.06785908771 | T67: =IFERROR(INDEX('Data Annex'!$K$1:$BU$4779,MATCH(Assets!T$46&"|"&Assets!$B67,'Data Annex'!$K$1:$K$4779,0),MATCH(Assets!T$47,'Data Annex'!$K$1:$BU$1,0)),"") -> 0.06581273407 | U67: =IFERROR(INDEX('Data Annex'!$K$1:$BU$4779,MATCH(Assets!U$46&"|"&Assets!$B67,'Data Annex'!$K$1:$K$4779,0),MATCH(Assets!U$47,'Data Annex'!$K$1:$BU$1,0)),"") -> 0.07460009604 | V67: =IFERROR(INDEX('Data Annex'!$K$1:$BU$4779,MATCH(Assets!V$46&"|"&Assets!$B67,'Data Annex'!$K$1:$K$4779,0),MATCH(Assets!V$47,'Data Annex'!$K$1:$BU$1,0)),"") -> 0.1362255765 | W67: =IFERROR(INDEX('Data Annex'!$K$1:$BU$4779,MATCH(Assets!W$46&"|"&Assets!$B67,'Data Annex'!$K$1:$K$4779,0),MATCH(Assets!W$47,'Data Annex'!$K$1:$BU$1,0)),"") -> 0.1361295009
B68: IS | D68: IS | F68: =IFERROR(INDEX('Data Annex'!$K$1:$BU$4779,MATCH(Assets!F$46&"|"&Assets!$B68,'Data Annex'!$K$1:$K$4779,0),MATCH(Assets!F$47,'Data Annex'!$K$1:$BU$1,0)),"") -> 31.83811183 | G68: =IFERROR(INDEX('Data Annex'!$K$1:$BU$4779,MATCH(Assets!G$46&"|"&Assets!$B68,'Data Annex'!$K$1:$K$4779,0),MATCH(Assets!G$47,'Data Annex'!$K$1:$BU$1,0)),"") -> 31.83375359 | H68: =IFERROR(INDEX('Data Annex'!$K$1:$BU$4779,MATCH(Assets!H$46&"|"&Assets!$B68,'Data Annex'!$K$1:$K$4779,0),MATCH(Assets!H$47,'Data Annex'!$K$1:$BU$1,0)),"") -> 33.50754242 | I68: =IFERROR(INDEX('Data Annex'!$K$1:$BU$4779,MATCH(Assets!I$46&"|"&Assets!$B68,'Data Annex'!$K$1:$K$4779,0),MATCH(Assets!I$47,'Data Annex'!$K$1:$BU$1,0)),"") -> 30.90162766 | J68: =IFERROR(INDEX('Data Annex'!$K$1:$BU$4779,MATCH(Assets!J$46&"|"&Assets!$B68,'Data Annex'!$K$1:$K$4779,0),MATCH(Assets!J$47,'Data Annex'!$K$1:$BU$1,0)),"") -> 31.3261193 | K68: =IFERROR(INDEX('Data Annex'!$K$1:$BU$4779,MATCH(Assets!K$46&"|"&Assets!$B68,'Data Annex'!$K$1:$K$4779,0),MATCH(Assets!K$47,'Data Annex'!$K$1:$BU$1,0)),"") -> 32.81426527 | L68: 0.9793098181 | M68: IS | O68: =IFERROR(INDEX('Data Annex'!$K$1:$BU$4779,MATCH(Assets!O$46&"|"&Assets!$B68,'Data Annex'!$K$1:$K$4779,0),MATCH(Assets!O$47,'Data Annex'!$K$1:$BU$1,0)),"") -> 0.8770264491 | P68: =IFERROR(INDEX('Data Annex'!$K$1:$BU$4779,MATCH(Assets!P$46&"|"&Assets!$B68,'Data Annex'!$K$1:$K$4779,0),MATCH(Assets!P$47,'Data Annex'!$K$1:$BU$1,0)),"") -> 0.8914982412 | Q68: =IFERROR(INDEX('Data Annex'!$K$1:$BU$4779,MATCH(Assets!Q$46&"|"&Assets!$B68,'Data Annex'!$K$1:$K$4779,0),MATCH(Assets!Q$47,'Data Annex'!$K$1:$BU$1,0)),"") -> 0.8957965003 | R68: =IFERROR(INDEX('Data Annex'!$K$1:$BU$4779,MATCH(Assets!R$46&"|"&Assets!$B68,'Data Annex'!$K$1:$K$4779,0),MATCH(Assets!R$47,'Data Annex'!$K$1:$BU$1,0)),"") -> 0.01901261441 | S68: =IFERROR(INDEX('Data Annex'!$K$1:$BU$4779,MATCH(Assets!S$46&"|"&Assets!$B68,'Data Annex'!$K$1:$K$4779,0),MATCH(Assets!S$47,'Data Annex'!$K$1:$BU$1,0)),"") -> 0.02440131101 | T68: =IFERROR(INDEX('Data Annex'!$K$1:$BU$4779,MATCH(Assets!T$46&"|"&Assets!$B68,'Data Annex'!$K$1:$K$4779,0),MATCH(Assets!T$47,'Data Annex'!$K$1:$BU$1,0)),"") -> 0.02534891967 | U68: =IFERROR(INDEX('Data Annex'!$K$1:$BU$4779,MATCH(Assets!U$46&"|"&Assets!$B68,'Data Annex'!$K$1:$K$4779,0),MATCH(Assets!U$47,'Data Annex'!$K$1:$BU$1,0)),"") -> 0.1039609365 | V68: =IFERROR(INDEX('Data Annex'!$K$1:$BU$4779,MATCH(Assets!V$46&"|"&Assets!$B68,'Data Annex'!$K$1:$K$4779,0),MATCH(Assets!V$47,'Data Annex'!$K$1:$BU$1,0)),"") -> 0.08410044774 | W68: =IFERROR(INDEX('Data Annex'!$K$1:$BU$4779,MATCH(Assets!W$46&"|"&Assets!$B68,'Data Annex'!$K$1:$K$4779,0),MATCH(Assets!W$47,'Data Annex'!$K$1:$BU$1,0)),"") -> 0.07885458003
B69: IT | D69: IT | F69: =IFERROR(INDEX('Data Annex'!$K$1:$BU$4779,MATCH(Assets!F$46&"|"&Assets!$B69,'Data Annex'!$K$1:$K$4779,0),MATCH(Assets!F$47,'Data Annex'!$K$1:$BU$1,0)),"") -> 2849.698897 | G69: =IFERROR(INDEX('Data Annex'!$K$1:$BU$4779,MATCH(Assets!G$46&"|"&Assets!$B69,'Data Annex'!$K$1:$K$4779,0),MATCH(Assets!G$47,'Data Annex'!$K$1:$BU$1,0)),"") -> 2668.250435 | H69: =IFERROR(INDEX('Data Annex'!$K$1:$BU$4779,MATCH(Assets!H$46&"|"&Assets!$B69,'Data Annex'!$K$1:$K$4779,0),MATCH(Assets!H$47,'Data Annex'!$K$1:$BU$1,0)),"") -> 2693.27406 | I69: =IFERROR(INDEX('Data Annex'!$K$1:$BU$4779,MATCH(Assets!I$46&"|"&Assets!$B69,'Data Annex'!$K$1:$K$4779,0),MATCH(Assets!I$47,'Data Annex'!$K$1:$BU$1,0)),"") -> 2696.793545 | J69: =IFERROR(INDEX('Data Annex'!$K$1:$BU$4779,MATCH(Assets!J$46&"|"&Assets!$B69,'Data Annex'!$K$1:$K$4779,0),MATCH(Assets!J$47,'Data Annex'!$K$1:$BU$1,0)),"") -> 2521.095342 | K69: =IFERROR(INDEX('Data Annex'!$K$1:$BU$4779,MATCH(Assets!K$46&"|"&Assets!$B69,'Data Annex'!$K$1:$K$4779,0),MATCH(Assets!K$47,'Data Annex'!$K$1:$BU$1,0)),"") -> 2544.329424 | L69: 0.9446975568 | M69: IT | O69: =IFERROR(INDEX('Data Annex'!$K$1:$BU$4779,MATCH(Assets!O$46&"|"&Assets!$B69,'Data Annex'!$K$1:$K$4779,0),MATCH(Assets!O$47,'Data Annex'!$K$1:$BU$1,0)),"") -> 0.860279476 | P69: =IFERROR(INDEX('Data Annex'!$K$1:$BU$4779,MATCH(Assets!P$46&"|"&Assets!$B69,'Data Annex'!$K$1:$K$4779,0),MATCH(Assets!P$47,'Data Annex'!$K$1:$BU$1,0)),"") -> 0.8676553987 | Q69: =IFERROR(INDEX('Data Annex'!$K$1:$BU$4779,MATCH(Assets!Q$46&"|"&Assets!$B69,'Data Annex'!$K$1:$K$4779,0),MATCH(Assets!Q$47,'Data Annex'!$K$1:$BU$1,0)),"") -> 0.8678565438 | R69: =IFERROR(INDEX('Data Annex'!$K$1:$BU$4779,MATCH(Assets!R$46&"|"&Assets!$B69,'Data Annex'!$K$1:$K$4779,0),MATCH(Assets!R$47,'Data Annex'!$K$1:$BU$1,0)),"") -> 0.07021337951 | S69: =IFERROR(INDEX('Data Annex'!$K$1:$BU$4779,MATCH(Assets!S$46&"|"&Assets!$B69,'Data Annex'!$K$1:$K$4779,0),MATCH(Assets!S$47,'Data Annex'!$K$1:$BU$1,0)),"") -> 0.06298145071 | T69: =IFERROR(INDEX('Data Annex'!$K$1:$BU$4779,MATCH(Assets!T$46&"|"&Assets!$B69,'Data Annex'!$K$1:$K$4779,0),MATCH(Assets!T$47,'Data Annex'!$K$1:$BU$1,0)),"") -> 0.06499393762 | U69: =IFERROR(INDEX('Data Annex'!$K$1:$BU$4779,MATCH(Assets!U$46&"|"&Assets!$B69,'Data Annex'!$K$1:$K$4779,0),MATCH(Assets!U$47,'Data Annex'!$K$1:$BU$1,0)),"") -> 0.06950714449 | V69: =IFERROR(INDEX('Data Annex'!$K$1:$BU$4779,MATCH(Assets!V$46&"|"&Assets!$B69,'Data Annex'!$K$1:$K$4779,0),MATCH(Assets!V$47,'Data Annex'!$K$1:$BU$1,0)),"") -> 0.06936315057 | W69: =IFERROR(INDEX('Data Annex'!$K$1:$BU$4779,MATCH(Assets!W$46&"|"&Assets!$B69,'Data Annex'!$K$1:$K$4779,0),MATCH(Assets!W$47,'Data Annex'!$K$1:$BU$1,0)),"") -> 0.06714951856
B70: LI | D70: LI* | F70: =IFERROR(INDEX('Data Annex'!$K$1:$BU$4779,MATCH(Assets!F$46&"|"&Assets!$B70,'Data Annex'!$K$1:$K$4779,0),MATCH(Assets!F$47,'Data Annex'!$K$1:$BU$1,0)),"") -> n.a. | G70: =IFERROR(INDEX('Data Annex'!$K$1:$BU$4779,MATCH(Assets!G$46&"|"&Assets!$B70,'Data Annex'!$K$1:$K$4779,0),MATCH(Assets!G$47,'Data Annex'!$K$1:$BU$1,0)),"") -> 100.4865525 | H70: =IFERROR(INDEX('Data Annex'!$K$1:$BU$4779,MATCH(Assets!H$46&"|"&Assets!$B70,'Data Annex'!$K$1:$K$4779,0),MATCH(Assets!H$47,'Data Annex'!$K$1:$BU$1,0)),"") -> 97.94918282 | I70: =IFERROR(INDEX('Data Annex'!$K$1:$BU$4779,MATCH(Assets!I$46&"|"&Assets!$B70,'Data Annex'!$K$1:$K$4779,0),MATCH(Assets!I$47,'Data Annex'!$K$1:$BU$1,0)),"") -> n.a. | J70: =IFERROR(INDEX('Data Annex'!$K$1:$BU$4779,MATCH(Assets!J$46&"|"&Assets!$B70,'Data Annex'!$K$1:$K$4779,0),MATCH(Assets!J$47,'Data Annex'!$K$1:$BU$1,0)),"") -> 96.62211629 | K70: =IFERROR(INDEX('Data Annex'!$K$1:$BU$4779,MATCH(Assets!K$46&"|"&Assets!$B70,'Data Annex'!$K$1:$K$4779,0),MATCH(Assets!K$47,'Data Annex'!$K$1:$BU$1,0)),"") -> 94.14295265 | M70: LI* | O70: =IFERROR(INDEX('Data Annex'!$K$1:$BU$4779,MATCH(Assets!O$46&"|"&Assets!$B70,'Data Annex'!$K$1:$K$4779,0),MATCH(Assets!O$47,'Data Annex'!$K$1:$BU$1,0)),"") -> n.a. | P70: =IFERROR(INDEX('Data Annex'!$K$1:$BU$4779,MATCH(Assets!P$46&"|"&Assets!$B70,'Data Annex'!$K$1:$K$4779,0),MATCH(Assets!P$47,'Data Annex'!$K$1:$BU$1,0)),"") -> 0.8339356438 | Q70: =IFERROR(INDEX('Data Annex'!$K$1:$BU$4779,MATCH(Assets!Q$46&"|"&Assets!$B70,'Data Annex'!$K$1:$K$4779,0),MATCH(Assets!Q$47,'Data Annex'!$K$1:$BU$1,0)),"") -> 0.8433104882 | R70: =IFERROR(INDEX('Data Annex'!$K$1:$BU$4779,MATCH(Assets!R$46&"|"&Assets!$B70,'Data Annex'!$K$1:$K$4779,0),MATCH(Assets!R$47,'Data Annex'!$K$1:$BU$1,0)),"") -> n.a. | S70: =IFERROR(INDEX('Data Annex'!$K$1:$BU$4779,MATCH(Assets!S$46&"|"&Assets!$B70,'Data Annex'!$K$1:$K$4779,0),MATCH(Assets!S$47,'Data Annex'!$K$1:$BU$1,0)),"") -> 0.1268561533 | T70: =IFERROR(INDEX('Data Annex'!$K$1:$BU$4779,MATCH(Assets!T$46&"|"&Assets!$B70,'Data Annex'!$K$1:$K$4779,0),MATCH(Assets!T$47,'Data Annex'!$K$1:$BU$1,0)),"") -> 0.1221059469 | U70: =IFERROR(INDEX('Data Annex'!$K$1:$BU$4779,MATCH(Assets!U$46&"|"&Assets!$B70,'Data Annex'!$K$1:$K$4779,0),MATCH(Assets!U$47,'Data Annex'!$K$1:$BU$1,0)),"") -> n.a. | V70: =IFERROR(INDEX('Data Annex'!$K$1:$BU$4779,MATCH(Assets!V$46&"|"&Assets!$B70,'Data Annex'!$K$1:$K$4779,0),MATCH(Assets!V$47,'Data Annex'!$K$1:$BU$1,0)),"") -> 0.03920820296 | W70: =IFERROR(INDEX('Data Annex'!$K$1:$BU$4779,MATCH(Assets!W$46&"|"&Assets!$B70,'Data Annex'!$K$1:$K$4779,0),MATCH(Assets!W$47,'Data Annex'!$K$1:$BU$1,0)),"") -> 0.03458356487
B71: LT | D71: LT | F71: =IFERROR(INDEX('Data Annex'!$K$1:$BU$4779,MATCH(Assets!F$46&"|"&Assets!$B71,'Data Annex'!$K$1:$K$4779,0),MATCH(Assets!F$47,'Data Annex'!$K$1:$BU$1,0)),"") -> 20.423459 | G71: =IFERROR(INDEX('Data Annex'!$K$1:$BU$4779,MATCH(Assets!G$46&"|"&Assets!$B71,'Data Annex'!$K$1:$K$4779,0),MATCH(Assets!G$47,'Data Annex'!$K$1:$BU$1,0)),"") -> 30.78591 | H71: =IFERROR(INDEX('Data Annex'!$K$1:$BU$4779,MATCH(Assets!H$46&"|"&Assets!$B71,'Data Annex'!$K$1:$K$4779,0),MATCH(Assets!H$47,'Data Annex'!$K$1:$BU$1,0)),"") -> 31.177103 | I71: =IFERROR(INDEX('Data Annex'!$K$1:$BU$4779,MATCH(Assets!I$46&"|"&Assets!$B71,'Data Annex'!$K$1:$K$4779,0),MATCH(Assets!I$47,'Data Annex'!$K$1:$BU$1,0)),"") -> 20.280432 | J71: =IFERROR(INDEX('Data Annex'!$K$1:$BU$4779,MATCH(Assets!J$46&"|"&Assets!$B71,'Data Annex'!$K$1:$K$4779,0),MATCH(Assets!J$47,'Data Annex'!$K$1:$BU$1,0)),"") -> 30.162291 | K71: =IFERROR(INDEX('Data Annex'!$K$1:$BU$4779,MATCH(Assets!K$46&"|"&Assets!$B71,'Data Annex'!$K$1:$K$4779,0),MATCH(Assets!K$47,'Data Annex'!$K$1:$BU$1,0)),"") -> 30.696918 | L71: 0.984598152 | M71: LT | O71: =IFERROR(INDEX('Data Annex'!$K$1:$BU$4779,MATCH(Assets!O$46&"|"&Assets!$B71,'Data Annex'!$K$1:$K$4779,0),MATCH(Assets!O$47,'Data Annex'!$K$1:$BU$1,0)),"") -> 0.9287973747 | P71: =IFERROR(INDEX('Data Annex'!$K$1:$BU$4779,MATCH(Assets!P$46&"|"&Assets!$B71,'Data Annex'!$K$1:$K$4779,0),MATCH(Assets!P$47,'Data Annex'!$K$1:$BU$1,0)),"") -> 0.9537740353 | Q71: =IFERROR(INDEX('Data Annex'!$K$1:$BU$4779,MATCH(Assets!Q$46&"|"&Assets!$B71,'Data Annex'!$K$1:$K$4779,0),MATCH(Assets!Q$47,'Data Annex'!$K$1:$BU$1,0)),"") -> 0.954452333 | R71: =IFERROR(INDEX('Data Annex'!$K$1:$BU$4779,MATCH(Assets!R$46&"|"&Assets!$B71,'Data Annex'!$K$1:$K$4779,0),MATCH(Assets!R$47,'Data Annex'!$K$1:$BU$1,0)),"") -> 0.006024773042 | S71: =IFERROR(INDEX('Data Annex'!$K$1:$BU$4779,MATCH(Assets!S$46&"|"&Assets!$B71,'Data Annex'!$K$1:$K$4779,0),MATCH(Assets!S$47,'Data Annex'!$K$1:$BU$1,0)),"") -> 0.002827901899 | T71: =IFERROR(INDEX('Data Annex'!$K$1:$BU$4779,MATCH(Assets!T$46&"|"&Assets!$B71,'Data Annex'!$K$1:$K$4779,0),MATCH(Assets!T$47,'Data Annex'!$K$1:$BU$1,0)),"") -> 0.002482301318 | U71: =IFERROR(INDEX('Data Annex'!$K$1:$BU$4779,MATCH(Assets!U$46&"|"&Assets!$B71,'Data Annex'!$K$1:$K$4779,0),MATCH(Assets!U$47,'Data Annex'!$K$1:$BU$1,0)),"") -> 0.06517785223 | V71: =IFERROR(INDEX('Data Annex'!$K$1:$BU$4779,MATCH(Assets!V$46&"|"&Assets!$B71,'Data Annex'!$K$1:$K$4779,0),MATCH(Assets!V$47,'Data Annex'!$K$1:$BU$1,0)),"") -> 0.04339806283 | W71: =IFERROR(INDEX('Data Annex'!$K$1:$BU$4779,MATCH(Assets!W$46&"|"&Assets!$B71,'Data Annex'!$K$1:$K$4779,0),MATCH(Assets!W$47,'Data Annex'!$K$1:$BU$1,0)),"") -> 0.04306536572
B72: LU | D72: LU | F72: =IFERROR(INDEX('Data Annex'!$K$1:$BU$4779,MATCH(Assets!F$46&"|"&Assets!$B72,'Data Annex'!$K$1:$K$4779,0),MATCH(Assets!F$47,'Data Annex'!$K$1:$BU$1,0)),"") -> 202.0294184 | G72: =IFERROR(INDEX('Data Annex'!$K$1:$BU$4779,MATCH(Assets!G$46&"|"&Assets!$B72,'Data Annex'!$K$1:$K$4779,0),MATCH(Assets!G$47,'Data Annex'!$K$1:$BU$1,0)),"") -> 193.7930364 | H72: =IFERROR(INDEX('Data Annex'!$K$1:$BU$4779,MATCH(Assets!H$46&"|"&Assets!$B72,'Data Annex'!$K$1:$K$4779,0),MATCH(Assets!H$47,'Data Annex'!$K$1:$BU$1,0)),"") -> 191.0468957 | I72: =IFERROR(INDEX('Data Annex'!$K$1:$BU$4779,MATCH(Assets!I$46&"|"&Assets!$B72,'Data Annex'!$K$1:$K$4779,0),MATCH(Assets!I$47,'Data Annex'!$K$1:$BU$1,0)),"") -> 196.8109022 | J72: =IFERROR(INDEX('Data Annex'!$K$1:$BU$4779,MATCH(Assets!J$46&"|"&Assets!$B72,'Data Annex'!$K$1:$K$4779,0),MATCH(Assets!J$47,'Data Annex'!$K$1:$BU$1,0)),"") -> 189.1410148 | K72: =IFERROR(INDEX('Data Annex'!$K$1:$BU$4779,MATCH(Assets!K$46&"|"&Assets!$B72,'Data Annex'!$K$1:$K$4779,0),MATCH(Assets!K$47,'Data Annex'!$K$1:$BU$1,0)),"") -> 185.3595012 | L72: 0.9702303751 | M72: LU | O72: =IFERROR(INDEX('Data Annex'!$K$1:$BU$4779,MATCH(Assets!O$46&"|"&Assets!$B72,'Data Annex'!$K$1:$K$4779,0),MATCH(Assets!O$47,'Data Annex'!$K$1:$BU$1,0)),"") -> 0.9401166523 | P72: =IFERROR(INDEX('Data Annex'!$K$1:$BU$4779,MATCH(Assets!P$46&"|"&Assets!$B72,'Data Annex'!$K$1:$K$4779,0),MATCH(Assets!P$47,'Data Annex'!$K$1:$BU$1,0)),"") -> 0.9404116938 | Q72: =IFERROR(INDEX('Data Annex'!$K$1:$BU$4779,MATCH(Assets!Q$46&"|"&Assets!$B72,'Data Annex'!$K$1:$K$4779,0),MATCH(Assets!Q$47,'Data Annex'!$K$1:$BU$1,0)),"") -> 0.934909109 | R72: =IFERROR(INDEX('Data Annex'!$K$1:$BU$4779,MATCH(Assets!R$46&"|"&Assets!$B72,'Data Annex'!$K$1:$K$4779,0),MATCH(Assets!R$47,'Data Annex'!$K$1:$BU$1,0)),"") -> 0.04141240614 | S72: =IFERROR(INDEX('Data Annex'!$K$1:$BU$4779,MATCH(Assets!S$46&"|"&Assets!$B72,'Data Annex'!$K$1:$K$4779,0),MATCH(Assets!S$47,'Data Annex'!$K$1:$BU$1,0)),"") -> 0.03429716428 | T72: =IFERROR(INDEX('Data Annex'!$K$1:$BU$4779,MATCH(Assets!T$46&"|"&Assets!$B72,'Data Annex'!$K$1:$K$4779,0),MATCH(Assets!T$47,'Data Annex'!$K$1:$BU$1,0)),"") -> 0.03906122241 | U72: =IFERROR(INDEX('Data Annex'!$K$1:$BU$4779,MATCH(Assets!U$46&"|"&Assets!$B72,'Data Annex'!$K$1:$K$4779,0),MATCH(Assets!U$47,'Data Annex'!$K$1:$BU$1,0)),"") -> 0.01847094157 | V72: =IFERROR(INDEX('Data Annex'!$K$1:$BU$4779,MATCH(Assets!V$46&"|"&Assets!$B72,'Data Annex'!$K$1:$K$4779,0),MATCH(Assets!V$47,'Data Annex'!$K$1:$BU$1,0)),"") -> 0.02529114195 | W72: =IFERROR(INDEX('Data Annex'!$K$1:$BU$4779,MATCH(Assets!W$46&"|"&Assets!$B72,'Data Annex'!$K$1:$K$4779,0),MATCH(Assets!W$47,'Data Annex'!$K$1:$BU$1,0)),"") -> 0.0260296686
B73: LV | D73: LV | F73: =IFERROR(INDEX('Data Annex'!$K$1:$BU$4779,MATCH(Assets!F$46&"|"&Assets!$B73,'Data Annex'!$K$1:$K$4779,0),MATCH(Assets!F$47,'Data Annex'!$K$1:$BU$1,0)),"") -> 48.58813229 | G73: =IFERROR(INDEX('Data Annex'!$K$1:$BU$4779,MATCH(Assets!G$46&"|"&Assets!$B73,'Data Annex'!$K$1:$K$4779,0),MATCH(Assets!G$47,'Data Annex'!$K$1:$BU$1,0)),"") -> 51.38371449 | H73: =IFERROR(INDEX('Data Annex'!$K$1:$BU$4779,MATCH(Assets!H$46&"|"&Assets!$B73,'Data Annex'!$K$1:$K$4779,0),MATCH(Assets!H$47,'Data Annex'!$K$1:$BU$1,0)),"") -> 50.87434666 | I73: =IFERROR(INDEX('Data Annex'!$K$1:$BU$4779,MATCH(Assets!I$46&"|"&Assets!$B73,'Data Annex'!$K$1:$K$4779,0),MATCH(Assets!I$47,'Data Annex'!$K$1:$BU$1,0)),"") -> 48.1021607 | J73: =IFERROR(INDEX('Data Annex'!$K$1:$BU$4779,MATCH(Assets!J$46&"|"&Assets!$B73,'Data Annex'!$K$1:$K$4779,0),MATCH(Assets!J$47,'Data Annex'!$K$1:$BU$1,0)),"") -> 50.86972209 | K73: =IFERROR(INDEX('Data Annex'!$K$1:$BU$4779,MATCH(Assets!K$46&"|"&Assets!$B73,'Data Annex'!$K$1:$K$4779,0),MATCH(Assets!K$47,'Data Annex'!$K$1:$BU$1,0)),"") -> 50.36270346 | L73: 0.9899430022 | M73: LV | O73: =IFERROR(INDEX('Data Annex'!$K$1:$BU$4779,MATCH(Assets!O$46&"|"&Assets!$B73,'Data Annex'!$K$1:$K$4779,0),MATCH(Assets!O$47,'Data Annex'!$K$1:$BU$1,0)),"") -> 0.9160061498 | P73: =IFERROR(INDEX('Data Annex'!$K$1:$BU$4779,MATCH(Assets!P$46&"|"&Assets!$B73,'Data Annex'!$K$1:$K$4779,0),MATCH(Assets!P$47,'Data Annex'!$K$1:$BU$1,0)),"") -> 0.9565591169 | Q73: =IFERROR(INDEX('Data Annex'!$K$1:$BU$4779,MATCH(Assets!Q$46&"|"&Assets!$B73,'Data Annex'!$K$1:$K$4779,0),MATCH(Assets!Q$47,'Data Annex'!$K$1:$BU$1,0)),"") -> 0.9566089354 | R73: =IFERROR(INDEX('Data Annex'!$K$1:$BU$4779,MATCH(Assets!R$46&"|"&Assets!$B73,'Data Annex'!$K$1:$K$4779,0),MATCH(Assets!R$47,'Data Annex'!$K$1:$BU$1,0)),"") -> 0.004201708009 | S73: =IFERROR(INDEX('Data Annex'!$K$1:$BU$4779,MATCH(Assets!S$46&"|"&Assets!$B73,'Data Annex'!$K$1:$K$4779,0),MATCH(Assets!S$47,'Data Annex'!$K$1:$BU$1,0)),"") -> 0.003544761905 | T73: =IFERROR(INDEX('Data Annex'!$K$1:$BU$4779,MATCH(Assets!T$46&"|"&Assets!$B73,'Data Annex'!$K$1:$K$4779,0),MATCH(Assets!T$47,'Data Annex'!$K$1:$BU$1,0)),"") -> 0.003328808053 | U73: =IFERROR(INDEX('Data Annex'!$K$1:$BU$4779,MATCH(Assets!U$46&"|"&Assets!$B73,'Data Annex'!$K$1:$K$4779,0),MATCH(Assets!U$47,'Data Annex'!$K$1:$BU$1,0)),"") -> 0.07979214217 | V73: =IFERROR(INDEX('Data Annex'!$K$1:$BU$4779,MATCH(Assets!V$46&"|"&Assets!$B73,'Data Annex'!$K$1:$K$4779,0),MATCH(Assets!V$47,'Data Annex'!$K$1:$BU$1,0)),"") -> 0.03989612123 | W73: =IFERROR(INDEX('Data Annex'!$K$1:$BU$4779,MATCH(Assets!W$46&"|"&Assets!$B73,'Data Annex'!$K$1:$K$4779,0),MATCH(Assets!W$47,'Data Annex'!$K$1:$BU$1,0)),"") -> 0.04006225651
B74: MT | D74: MT | F74: =IFERROR(INDEX('Data Annex'!$K$1:$BU$4779,MATCH(Assets!F$46&"|"&Assets!$B74,'Data Annex'!$K$1:$K$4779,0),MATCH(Assets!F$47,'Data Annex'!$K$1:$BU$1,0)),"") -> 25.28821398 | G74: =IFERROR(INDEX('Data Annex'!$K$1:$BU$4779,MATCH(Assets!G$46&"|"&Assets!$B74,'Data Annex'!$K$1:$K$4779,0),MATCH(Assets!G$47,'Data Annex'!$K$1:$BU$1,0)),"") -> 25.870214 | H74: =IFERROR(INDEX('Data Annex'!$K$1:$BU$4779,MATCH(Assets!H$46&"|"&Assets!$B74,'Data Annex'!$K$1:$K$4779,0),MATCH(Assets!H$47,'Data Annex'!$K$1:$BU$1,0)),"") -> 25.83735534 | I74: =IFERROR(INDEX('Data Annex'!$K$1:$BU$4779,MATCH(Assets!I$46&"|"&Assets!$B74,'Data Annex'!$K$1:$K$4779,0),MATCH(Assets!I$47,'Data Annex'!$K$1:$BU$1,0)),"") -> 24.71454689 | J74: =IFERROR(INDEX('Data Annex'!$K$1:$BU$4779,MATCH(Assets!J$46&"|"&Assets!$B74,'Data Annex'!$K$1:$K$4779,0),MATCH(Assets!J$47,'Data Annex'!$K$1:$BU$1,0)),"") -> 25.44915945 | K74: =IFERROR(INDEX('Data Annex'!$K$1:$BU$4779,MATCH(Assets!K$46&"|"&Assets!$B74,'Data Annex'!$K$1:$K$4779,0),MATCH(Assets!K$47,'Data Annex'!$K$1:$BU$1,0)),"") -> 25.40150572 | L74: 0.9831310283 | M74: MT | O74: =IFERROR(INDEX('Data Annex'!$K$1:$BU$4779,MATCH(Assets!O$46&"|"&Assets!$B74,'Data Annex'!$K$1:$K$4779,0),MATCH(Assets!O$47,'Data Annex'!$K$1:$BU$1,0)),"") -> 0.8913679086 | P74: =IFERROR(INDEX('Data Annex'!$K$1:$BU$4779,MATCH(Assets!P$46&"|"&Assets!$B74,'Data Annex'!$K$1:$K$4779,0),MATCH(Assets!P$47,'Data Annex'!$K$1:$BU$1,0)),"") -> 0.931213525 | Q74: =IFERROR(INDEX('Data Annex'!$K$1:$BU$4779,MATCH(Assets!Q$46&"|"&Assets!$B74,'Data Annex'!$K$1:$K$4779,0),MATCH(Assets!Q$47,'Data Annex'!$K$1:$BU$1,0)),"") -> 0.941229421 | R74: =IFERROR(INDEX('Data Annex'!$K$1:$BU$4779,MATCH(Assets!R$46&"|"&Assets!$B74,'Data Annex'!$K$1:$K$4779,0),MATCH(Assets!R$47,'Data Annex'!$K$1:$BU$1,0)),"") -> 0.09815962619 | S74: =IFERROR(INDEX('Data Annex'!$K$1:$BU$4779,MATCH(Assets!S$46&"|"&Assets!$B74,'Data Annex'!$K$1:$K$4779,0),MATCH(Assets!S$47,'Data Annex'!$K$1:$BU$1,0)),"") -> 0.04790630382 | T74: =IFERROR(INDEX('Data Annex'!$K$1:$BU$4779,MATCH(Assets!T$46&"|"&Assets!$B74,'Data Annex'!$K$1:$K$4779,0),MATCH(Assets!T$47,'Data Annex'!$K$1:$BU$1,0)),"") -> 0.03902104214 | U74: =IFERROR(INDEX('Data Annex'!$K$1:$BU$4779,MATCH(Assets!U$46&"|"&Assets!$B74,'Data Annex'!$K$1:$K$4779,0),MATCH(Assets!U$47,'Data Annex'!$K$1:$BU$1,0)),"") -> 0.01047246518 | V74: =IFERROR(INDEX('Data Annex'!$K$1:$BU$4779,MATCH(Assets!V$46&"|"&Assets!$B74,'Data Annex'!$K$1:$K$4779,0),MATCH(Assets!V$47,'Data Annex'!$K$1:$BU$1,0)),"") -> 0.02088017121 | W74: =IFERROR(INDEX('Data Annex'!$K$1:$BU$4779,MATCH(Assets!W$46&"|"&Assets!$B74,'Data Annex'!$K$1:$K$4779,0),MATCH(Assets!W$47,'Data Annex'!$K$1:$BU$1,0)),"") -> 0.01974953691
B75: NL | D75: NL | F75: =IFERROR(INDEX('Data Annex'!$K$1:$BU$4779,MATCH(Assets!F$46&"|"&Assets!$B75,'Data Annex'!$K$1:$K$4779,0),MATCH(Assets!F$47,'Data Annex'!$K$1:$BU$1,0)),"") -> 2377.38093 | G75: =IFERROR(INDEX('Data Annex'!$K$1:$BU$4779,MATCH(Assets!G$46&"|"&Assets!$B75,'Data Annex'!$K$1:$K$4779,0),MATCH(Assets!G$47,'Data Annex'!$K$1:$BU$1,0)),"") -> 2197.097264 | H75: =IFERROR(INDEX('Data Annex'!$K$1:$BU$4779,MATCH(Assets!H$46&"|"&Assets!$B75,'Data Annex'!$K$1:$K$4779,0),MATCH(Assets!H$47,'Data Annex'!$K$1:$BU$1,0)),"") -> 2337.07086 | I75: =IFERROR(INDEX('Data Annex'!$K$1:$BU$4779,MATCH(Assets!I$46&"|"&Assets!$B75,'Data Annex'!$K$1:$K$4779,0),MATCH(Assets!I$47,'Data Annex'!$K$1:$BU$1,0)),"") -> 2313.931235 | J75: =IFERROR(INDEX('Data Annex'!$K$1:$BU$4779,MATCH(Assets!J$46&"|"&Assets!$B75,'Data Annex'!$K$1:$K$4779,0),MATCH(Assets!J$47,'Data Annex'!$K$1:$BU$1,0)),"") -> 2180.707655 | K75: =IFERROR(INDEX('Data Annex'!$K$1:$BU$4779,MATCH(Assets!K$46&"|"&Assets!$B75,'Data Annex'!$K$1:$K$4779,0),MATCH(Assets!K$47,'Data Annex'!$K$1:$BU$1,0)),"") -> 2317.931365 | L75: 0.9918104772 | M75: NL | O75: =IFERROR(INDEX('Data Annex'!$K$1:$BU$4779,MATCH(Assets!O$46&"|"&Assets!$B75,'Data Annex'!$K$1:$K$4779,0),MATCH(Assets!O$47,'Data Annex'!$K$1:$BU$1,0)),"") -> 0.8853088406 | P75: =IFERROR(INDEX('Data Annex'!$K$1:$BU$4779,MATCH(Assets!P$46&"|"&Assets!$B75,'Data Annex'!$K$1:$K$4779,0),MATCH(Assets!P$47,'Data Annex'!$K$1:$BU$1,0)),"") -> 0.8840826926 | Q75: =IFERROR(INDEX('Data Annex'!$K$1:$BU$4779,MATCH(Assets!Q$46&"|"&Assets!$B75,'Data Annex'!$K$1:$K$4779,0),MATCH(Assets!Q$47,'Data Annex'!$K$1:$BU$1,0)),"") -> 0.8776744653 | R75: =IFERROR(INDEX('Data Annex'!$K$1:$BU$4779,MATCH(Assets!R$46&"|"&Assets!$B75,'Data Annex'!$K$1:$K$4779,0),MATCH(Assets!R$47,'Data Annex'!$K$1:$BU$1,0)),"") -> 0.04019652412 | S75: =IFERROR(INDEX('Data Annex'!$K$1:$BU$4779,MATCH(Assets!S$46&"|"&Assets!$B75,'Data Annex'!$K$1:$K$4779,0),MATCH(Assets!S$47,'Data Annex'!$K$1:$BU$1,0)),"") -> 0.04204970849 | T75: =IFERROR(INDEX('Data Annex'!$K$1:$BU$4779,MATCH(Assets!T$46&"|"&Assets!$B75,'Data Annex'!$K$1:$K$4779,0),MATCH(Assets!T$47,'Data Annex'!$K$1:$BU$1,0)),"") -> 0.04224575429 | U75: =IFERROR(INDEX('Data Annex'!$K$1:$BU$4779,MATCH(Assets!U$46&"|"&Assets!$B75,'Data Annex'!$K$1:$K$4779,0),MATCH(Assets!U$47,'Data Annex'!$K$1:$BU$1,0)),"") -> 0.07449463525 | V75: =IFERROR(INDEX('Data Annex'!$K$1:$BU$4779,MATCH(Assets!V$46&"|"&Assets!$B75,'Data Annex'!$K$1:$K$4779,0),MATCH(Assets!V$47,'Data Annex'!$K$1:$BU$1,0)),"") -> 0.07386759892 | W75: =IFERROR(INDEX('Data Annex'!$K$1:$BU$4779,MATCH(Assets!W$46&"|"&Assets!$B75,'Data Annex'!$K$1:$K$4779,0),MATCH(Assets!W$47,'Data Annex'!$K$1:$BU$1,0)),"") -> 0.0800797804
B76: NO | D76: NO* | F76: =IFERROR(INDEX('Data Annex'!$K$1:$BU$4779,MATCH(Assets!F$46&"|"&Assets!$B76,'Data Annex'!$K$1:$K$4779,0),MATCH(Assets!F$47,'Data Annex'!$K$1:$BU$1,0)),"") -> n.a. | G76: =IFERROR(INDEX('Data Annex'!$K$1:$BU$4779,MATCH(Assets!G$46&"|"&Assets!$B76,'Data Annex'!$K$1:$K$4779,0),MATCH(Assets!G$47,'Data Annex'!$K$1:$BU$1,0)),"") -> 340.3082606 | H76: =IFERROR(INDEX('Data Annex'!$K$1:$BU$4779,MATCH(Assets!H$46&"|"&Assets!$B76,'Data Annex'!$K$1:$K$4779,0),MATCH(Assets!H$47,'Data Annex'!$K$1:$BU$1,0)),"") -> 342.6149306 | I76: =IFERROR(INDEX('Data Annex'!$K$1:$BU$4779,MATCH(Assets!I$46&"|"&Assets!$B76,'Data Annex'!$K$1:$K$4779,0),MATCH(Assets!I$47,'Data Annex'!$K$1:$BU$1,0)),"") -> n.a. | J76: =IFERROR(INDEX('Data Annex'!$K$1:$BU$4779,MATCH(Assets!J$46&"|"&Assets!$B76,'Data Annex'!$K$1:$K$4779,0),MATCH(Assets!J$47,'Data Annex'!$K$1:$BU$1,0)),"") -> 332.2044447 | K76: =IFERROR(INDEX('Data Annex'!$K$1:$BU$4779,MATCH(Assets!K$46&"|"&Assets!$B76,'Data Annex'!$K$1:$K$4779,0),MATCH(Assets!K$47,'Data Annex'!$K$1:$BU$1,0)),"") -> 333.7164273 | L76: 0.9740276838 | M76: NO* | O76: =IFERROR(INDEX('Data Annex'!$K$1:$BU$4779,MATCH(Assets!O$46&"|"&Assets!$B76,'Data Annex'!$K$1:$K$4779,0),MATCH(Assets!O$47,'Data Annex'!$K$1:$BU$1,0)),"") -> n.a. | P76: =IFERROR(INDEX('Data Annex'!$K$1:$BU$4779,MATCH(Assets!P$46&"|"&Assets!$B76,'Data Annex'!$K$1:$K$4779,0),MATCH(Assets!P$47,'Data Annex'!$K$1:$BU$1,0)),"") -> 0.7700755984 | Q76: =IFERROR(INDEX('Data Annex'!$K$1:$BU$4779,MATCH(Assets!Q$46&"|"&Assets!$B76,'Data Annex'!$K$1:$K$4779,0),MATCH(Assets!Q$47,'Data Annex'!$K$1:$BU$1,0)),"") -> 0.7988219601 | R76: =IFERROR(INDEX('Data Annex'!$K$1:$BU$4779,MATCH(Assets!R$46&"|"&Assets!$B76,'Data Annex'!$K$1:$K$4779,0),MATCH(Assets!R$47,'Data Annex'!$K$1:$BU$1,0)),"") -> n.a. | S76: =IFERROR(INDEX('Data Annex'!$K$1:$BU$4779,MATCH(Assets!S$46&"|"&Assets!$B76,'Data Annex'!$K$1:$K$4779,0),MATCH(Assets!S$47,'Data Annex'!$K$1:$BU$1,0)),"") -> 0.06990307922 | T76: =IFERROR(INDEX('Data Annex'!$K$1:$BU$4779,MATCH(Assets!T$46&"|"&Assets!$B76,'Data Annex'!$K$1:$K$4779,0),MATCH(Assets!T$47,'Data Annex'!$K$1:$BU$1,0)),"") -> 0.06996559095 | U76: =IFERROR(INDEX('Data Annex'!$K$1:$BU$4779,MATCH(Assets!U$46&"|"&Assets!$B76,'Data Annex'!$K$1:$K$4779,0),MATCH(Assets!U$47,'Data Annex'!$K$1:$BU$1,0)),"") -> n.a. | V76: =IFERROR(INDEX('Data Annex'!$K$1:$BU$4779,MATCH(Assets!V$46&"|"&Assets!$B76,'Data Annex'!$K$1:$K$4779,0),MATCH(Assets!V$47,'Data Annex'!$K$1:$BU$1,0)),"") -> 0.1600213224 | W76: =IFERROR(INDEX('Data Annex'!$K$1:$BU$4779,MATCH(Assets!W$46&"|"&Assets!$B76,'Data Annex'!$K$1:$K$4779,0),MATCH(Assets!W$47,'Data Annex'!$K$1:$BU$1,0)),"") -> 0.1312124489
B77: PL | D77: =IF(OR(F77="n.a.",G77="n.a.",H77="n.a.",I77="n.a.",J77="n.a.",K77="n.a."),$B77&"*",$B77) -> PL | F77: =IFERROR(INDEX('Data Annex'!$K$1:$BU$4779,MATCH(Assets!F$46&"|"&Assets!$B77,'Data Annex'!$K$1:$K$4779,0),MATCH(Assets!F$47,'Data Annex'!$K$1:$BU$1,0)),"") -> 201.3991245 | G77: =IFERROR(INDEX('Data Annex'!$K$1:$BU$4779,MATCH(Assets!G$46&"|"&Assets!$B77,'Data Annex'!$K$1:$K$4779,0),MATCH(Assets!G$47,'Data Annex'!$K$1:$BU$1,0)),"") -> 207.0313561 | H77: =IFERROR(INDEX('Data Annex'!$K$1:$BU$4779,MATCH(Assets!H$46&"|"&Assets!$B77,'Data Annex'!$K$1:$K$4779,0),MATCH(Assets!H$47,'Data Annex'!$K$1:$BU$1,0)),"") -> 212.6788764 | I77: =IFERROR(INDEX('Data Annex'!$K$1:$BU$4779,MATCH(Assets!I$46&"|"&Assets!$B77,'Data Annex'!$K$1:$K$4779,0),MATCH(Assets!I$47,'Data Annex'!$K$1:$BU$1,0)),"") -> 194.3869376 | J77: =IFERROR(INDEX('Data Annex'!$K$1:$BU$4779,MATCH(Assets!J$46&"|"&Assets!$B77,'Data Annex'!$K$1:$K$4779,0),MATCH(Assets!J$47,'Data Annex'!$K$1:$BU$1,0)),"") -> 200.0309326 | K77: =IFERROR(INDEX('Data Annex'!$K$1:$BU$4779,MATCH(Assets!K$46&"|"&Assets!$B77,'Data Annex'!$K$1:$K$4779,0),MATCH(Assets!K$47,'Data Annex'!$K$1:$BU$1,0)),"") -> 205.8143076 | L77: 0.9677233163 | M77: PL | O77: =IFERROR(INDEX('Data Annex'!$K$1:$BU$4779,MATCH(Assets!O$46&"|"&Assets!$B77,'Data Annex'!$K$1:$K$4779,0),MATCH(Assets!O$47,'Data Annex'!$K$1:$BU$1,0)),"") -> 0.7935921482 | P77: =IFERROR(INDEX('Data Annex'!$K$1:$BU$4779,MATCH(Assets!P$46&"|"&Assets!$B77,'Data Annex'!$K$1:$K$4779,0),MATCH(Assets!P$47,'Data Annex'!$K$1:$BU$1,0)),"") -> 0.8189914215 | Q77: =IFERROR(INDEX('Data Annex'!$K$1:$BU$4779,MATCH(Assets!Q$46&"|"&Assets!$B77,'Data Annex'!$K$1:$K$4779,0),MATCH(Assets!Q$47,'Data Annex'!$K$1:$BU$1,0)),"") -> 0.8246945754 | R77: =IFERROR(INDEX('Data Annex'!$K$1:$BU$4779,MATCH(Assets!R$46&"|"&Assets!$B77,'Data Annex'!$K$1:$K$4779,0),MATCH(Assets!R$47,'Data Annex'!$K$1:$BU$1,0)),"") -> 0.1593607495 | S77: =IFERROR(INDEX('Data Annex'!$K$1:$BU$4779,MATCH(Assets!S$46&"|"&Assets!$B77,'Data Annex'!$K$1:$K$4779,0),MATCH(Assets!S$47,'Data Annex'!$K$1:$BU$1,0)),"") -> 0.1349057369 | T77: =IFERROR(INDEX('Data Annex'!$K$1:$BU$4779,MATCH(Assets!T$46&"|"&Assets!$B77,'Data Annex'!$K$1:$K$4779,0),MATCH(Assets!T$47,'Data Annex'!$K$1:$BU$1,0)),"") -> 0.1341236774 | U77: =IFERROR(INDEX('Data Annex'!$K$1:$BU$4779,MATCH(Assets!U$46&"|"&Assets!$B77,'Data Annex'!$K$1:$K$4779,0),MATCH(Assets!U$47,'Data Annex'!$K$1:$BU$1,0)),"") -> 0.04704710232 | V77: =IFERROR(INDEX('Data Annex'!$K$1:$BU$4779,MATCH(Assets!V$46&"|"&Assets!$B77,'Data Annex'!$K$1:$K$4779,0),MATCH(Assets!V$47,'Data Annex'!$K$1:$BU$1,0)),"") -> 0.04610284156 | W77: =IFERROR(INDEX('Data Annex'!$K$1:$BU$4779,MATCH(Assets!W$46&"|"&Assets!$B77,'Data Annex'!$K$1:$K$4779,0),MATCH(Assets!W$47,'Data Annex'!$K$1:$BU$1,0)),"") -> 0.04118174728
B78: PT | D78: PT | F78: =IFERROR(INDEX('Data Annex'!$K$1:$BU$4779,MATCH(Assets!F$46&"|"&Assets!$B78,'Data Annex'!$K$1:$K$4779,0),MATCH(Assets!F$47,'Data Annex'!$K$1:$BU$1,0)),"") -> 301.0749613 | G78: =IFERROR(INDEX('Data Annex'!$K$1:$BU$4779,MATCH(Assets!G$46&"|"&Assets!$B78,'Data Annex'!$K$1:$K$4779,0),MATCH(Assets!G$47,'Data Annex'!$K$1:$BU$1,0)),"") -> 294.3619669 | H78: =IFERROR(INDEX('Data Annex'!$K$1:$BU$4779,MATCH(Assets!H$46&"|"&Assets!$B78,'Data Annex'!$K$1:$K$4779,0),MATCH(Assets!H$47,'Data Annex'!$K$1:$BU$1,0)),"") -> 287.6530126 | I78: =IFERROR(INDEX('Data Annex'!$K$1:$BU$4779,MATCH(Assets!I$46&"|"&Assets!$B78,'Data Annex'!$K$1:$K$4779,0),MATCH(Assets!I$47,'Data Annex'!$K$1:$BU$1,0)),"") -> 284.344336 | J78: =IFERROR(INDEX('Data Annex'!$K$1:$BU$4779,MATCH(Assets!J$46&"|"&Assets!$B78,'Data Annex'!$K$1:$K$4779,0),MATCH(Assets!J$47,'Data Annex'!$K$1:$BU$1,0)),"") -> 279.9005928 | K78: =IFERROR(INDEX('Data Annex'!$K$1:$BU$4779,MATCH(Assets!K$46&"|"&Assets!$B78,'Data Annex'!$K$1:$K$4779,0),MATCH(Assets!K$47,'Data Annex'!$K$1:$BU$1,0)),"") -> 273.4368792 | L78: 0.9505788823 | M78: PT | O78: =IFERROR(INDEX('Data Annex'!$K$1:$BU$4779,MATCH(Assets!O$46&"|"&Assets!$B78,'Data Annex'!$K$1:$K$4779,0),MATCH(Assets!O$47,'Data Annex'!$K$1:$BU$1,0)),"") -> 0.8843365051 | P78: =IFERROR(INDEX('Data Annex'!$K$1:$BU$4779,MATCH(Assets!P$46&"|"&Assets!$B78,'Data Annex'!$K$1:$K$4779,0),MATCH(Assets!P$47,'Data Annex'!$K$1:$BU$1,0)),"") -> 0.9171273813 | Q78: =IFERROR(INDEX('Data Annex'!$K$1:$BU$4779,MATCH(Assets!Q$46&"|"&Assets!$B78,'Data Annex'!$K$1:$K$4779,0),MATCH(Assets!Q$47,'Data Annex'!$K$1:$BU$1,0)),"") -> 0.9102185133 | R78: =IFERROR(INDEX('Data Annex'!$K$1:$BU$4779,MATCH(Assets!R$46&"|"&Assets!$B78,'Data Annex'!$K$1:$K$4779,0),MATCH(Assets!R$47,'Data Annex'!$K$1:$BU$1,0)),"") -> 0.08747139653 | S78: =IFERROR(INDEX('Data Annex'!$K$1:$BU$4779,MATCH(Assets!S$46&"|"&Assets!$B78,'Data Annex'!$K$1:$K$4779,0),MATCH(Assets!S$47,'Data Annex'!$K$1:$BU$1,0)),"") -> 0.05954792083 | T78: =IFERROR(INDEX('Data Annex'!$K$1:$BU$4779,MATCH(Assets!T$46&"|"&Assets!$B78,'Data Annex'!$K$1:$K$4779,0),MATCH(Assets!T$47,'Data Annex'!$K$1:$BU$1,0)),"") -> 0.06270731766 | U78: =IFERROR(INDEX('Data Annex'!$K$1:$BU$4779,MATCH(Assets!U$46&"|"&Assets!$B78,'Data Annex'!$K$1:$K$4779,0),MATCH(Assets!U$47,'Data Annex'!$K$1:$BU$1,0)),"") -> 0.02819209836 | V78: =IFERROR(INDEX('Data Annex'!$K$1:$BU$4779,MATCH(Assets!V$46&"|"&Assets!$B78,'Data Annex'!$K$1:$K$4779,0),MATCH(Assets!V$47,'Data Annex'!$K$1:$BU$1,0)),"") -> 0.02332469785 | W78: =IFERROR(INDEX('Data Annex'!$K$1:$BU$4779,MATCH(Assets!W$46&"|"&Assets!$B78,'Data Annex'!$K$1:$K$4779,0),MATCH(Assets!W$47,'Data Annex'!$K$1:$BU$1,0)),"") -> 0.027074169
B79: RO | D79: RO | F79: =IFERROR(INDEX('Data Annex'!$K$1:$BU$4779,MATCH(Assets!F$46&"|"&Assets!$B79,'Data Annex'!$K$1:$K$4779,0),MATCH(Assets!F$47,'Data Annex'!$K$1:$BU$1,0)),"") -> 58.86449028 | G79: =IFERROR(INDEX('Data Annex'!$K$1:$BU$4779,MATCH(Assets!G$46&"|"&Assets!$B79,'Data Annex'!$K$1:$K$4779,0),MATCH(Assets!G$47,'Data Annex'!$K$1:$BU$1,0)),"") -> 63.32142321 | H79: =IFERROR(INDEX('Data Annex'!$K$1:$BU$4779,MATCH(Assets!H$46&"|"&Assets!$B79,'Data Annex'!$K$1:$K$4779,0),MATCH(Assets!H$47,'Data Annex'!$K$1:$BU$1,0)),"") -> 64.91611406 | I79: =IFERROR(INDEX('Data Annex'!$K$1:$BU$4779,MATCH(Assets!I$46&"|"&Assets!$B79,'Data Annex'!$K$1:$K$4779,0),MATCH(Assets!I$47,'Data Annex'!$K$1:$BU$1,0)),"") -> 57.4882244 | J79: =IFERROR(INDEX('Data Annex'!$K$1:$BU$4779,MATCH(Assets!J$46&"|"&Assets!$B79,'Data Annex'!$K$1:$K$4779,0),MATCH(Assets!J$47,'Data Annex'!$K$1:$BU$1,0)),"") -> 61.61799091 | K79: =IFERROR(INDEX('Data Annex'!$K$1:$BU$4779,MATCH(Assets!K$46&"|"&Assets!$B79,'Data Annex'!$K$1:$K$4779,0),MATCH(Assets!K$47,'Data Annex'!$K$1:$BU$1,0)),"") -> 63.22531755 | L79: 0.9739541324 | M79: RO | O79: =IFERROR(INDEX('Data Annex'!$K$1:$BU$4779,MATCH(Assets!O$46&"|"&Assets!$B79,'Data Annex'!$K$1:$K$4779,0),MATCH(Assets!O$47,'Data Annex'!$K$1:$BU$1,0)),"") -> 0.7414650883 | P79: =IFERROR(INDEX('Data Annex'!$K$1:$BU$4779,MATCH(Assets!P$46&"|"&Assets!$B79,'Data Annex'!$K$1:$K$4779,0),MATCH(Assets!P$47,'Data Annex'!$K$1:$BU$1,0)),"") -> 0.7674404425 | Q79: =IFERROR(INDEX('Data Annex'!$K$1:$BU$4779,MATCH(Assets!Q$46&"|"&Assets!$B79,'Data Annex'!$K$1:$K$4779,0),MATCH(Assets!Q$47,'Data Annex'!$K$1:$BU$1,0)),"") -> 0.7613924329 | R79: =IFERROR(INDEX('Data Annex'!$K$1:$BU$4779,MATCH(Assets!R$46&"|"&Assets!$B79,'Data Annex'!$K$1:$K$4779,0),MATCH(Assets!R$47,'Data Annex'!$K$1:$BU$1,0)),"") -> 0.2467744716 | S79: =IFERROR(INDEX('Data Annex'!$K$1:$BU$4779,MATCH(Assets!S$46&"|"&Assets!$B79,'Data Annex'!$K$1:$K$4779,0),MATCH(Assets!S$47,'Data Annex'!$K$1:$BU$1,0)),"") -> 0.2183169018 | T79: =IFERROR(INDEX('Data Annex'!$K$1:$BU$4779,MATCH(Assets!T$46&"|"&Assets!$B79,'Data Annex'!$K$1:$K$4779,0),MATCH(Assets!T$47,'Data Annex'!$K$1:$BU$1,0)),"") -> 0.2264254223 | U79: =IFERROR(INDEX('Data Annex'!$K$1:$BU$4779,MATCH(Assets!U$46&"|"&Assets!$B79,'Data Annex'!$K$1:$K$4779,0),MATCH(Assets!U$47,'Data Annex'!$K$1:$BU$1,0)),"") -> 0.01176044014 | V79: =IFERROR(INDEX('Data Annex'!$K$1:$BU$4779,MATCH(Assets!V$46&"|"&Assets!$B79,'Data Annex'!$K$1:$K$4779,0),MATCH(Assets!V$47,'Data Annex'!$K$1:$BU$1,0)),"") -> 0.0142426557 | W79: =IFERROR(INDEX('Data Annex'!$K$1:$BU$4779,MATCH(Assets!W$46&"|"&Assets!$B79,'Data Annex'!$K$1:$K$4779,0),MATCH(Assets!W$47,'Data Annex'!$K$1:$BU$1,0)),"") -> 0.01218214482
B80: SE | D80: SE | F80: =IFERROR(INDEX('Data Annex'!$K$1:$BU$4779,MATCH(Assets!F$46&"|"&Assets!$B80,'Data Annex'!$K$1:$K$4779,0),MATCH(Assets!F$47,'Data Annex'!$K$1:$BU$1,0)),"") -> 1047.500954 | G80: =IFERROR(INDEX('Data Annex'!$K$1:$BU$4779,MATCH(Assets!G$46&"|"&Assets!$B80,'Data Annex'!$K$1:$K$4779,0),MATCH(Assets!G$47,'Data Annex'!$K$1:$BU$1,0)),"") -> 951.8729539 | H80: =IFERROR(INDEX('Data Annex'!$K$1:$BU$4779,MATCH(Assets!H$46&"|"&Assets!$B80,'Data Annex'!$K$1:$K$4779,0),MATCH(Assets!H$47,'Data Annex'!$K$1:$BU$1,0)),"") -> 992.0387287 | I80: =IFERROR(INDEX('Data Annex'!$K$1:$BU$4779,MATCH(Assets!I$46&"|"&Assets!$B80,'Data Annex'!$K$1:$K$4779,0),MATCH(Assets!I$47,'Data Annex'!$K$1:$BU$1,0)),"") -> 1002.288229 | J80: =IFERROR(INDEX('Data Annex'!$K$1:$BU$4779,MATCH(Assets!J$46&"|"&Assets!$B80,'Data Annex'!$K$1:$K$4779,0),MATCH(Assets!J$47,'Data Annex'!$K$1:$BU$1,0)),"") -> 925.3392745 | K80: =IFERROR(INDEX('Data Annex'!$K$1:$BU$4779,MATCH(Assets!K$46&"|"&Assets!$B80,'Data Annex'!$K$1:$K$4779,0),MATCH(Assets!K$47,'Data Annex'!$K$1:$BU$1,0)),"") -> 964.6261127 | L80: 0.9723673934 | M80: SE | O80: =IFERROR(INDEX('Data Annex'!$K$1:$BU$4779,MATCH(Assets!O$46&"|"&Assets!$B80,'Data Annex'!$K$1:$K$4779,0),MATCH(Assets!O$47,'Data Annex'!$K$1:$BU$1,0)),"") -> 0.8699071887 | P80: =IFERROR(INDEX('Data Annex'!$K$1:$BU$4779,MATCH(Assets!P$46&"|"&Assets!$B80,'Data Annex'!$K$1:$K$4779,0),MATCH(Assets!P$47,'Data Annex'!$K$1:$BU$1,0)),"") -> 0.8763501349 | Q80: =IFERROR(INDEX('Data Annex'!$K$1:$BU$4779,MATCH(Assets!Q$46&"|"&Assets!$B80,'Data Annex'!$K$1:$K$4779,0),MATCH(Assets!Q$47,'Data Annex'!$K$1:$BU$1,0)),"") -> 0.8482447514 | R80: =IFERROR(INDEX('Data Annex'!$K$1:$BU$4779,MATCH(Assets!R$46&"|"&Assets!$B80,'Data Annex'!$K$1:$K$4779,0),MATCH(Assets!R$47,'Data Annex'!$K$1:$BU$1,0)),"") -> 0.01301059326 | S80: =IFERROR(INDEX('Data Annex'!$K$1:$BU$4779,MATCH(Assets!S$46&"|"&Assets!$B80,'Data Annex'!$K$1:$K$4779,0),MATCH(Assets!S$47,'Data Annex'!$K$1:$BU$1,0)),"") -> 0.01295786739 | T80: =IFERROR(INDEX('Data Annex'!$K$1:$BU$4779,MATCH(Assets!T$46&"|"&Assets!$B80,'Data Annex'!$K$1:$K$4779,0),MATCH(Assets!T$47,'Data Annex'!$K$1:$BU$1,0)),"") -> 0.01618713136 | U80: =IFERROR(INDEX('Data Annex'!$K$1:$BU$4779,MATCH(Assets!U$46&"|"&Assets!$B80,'Data Annex'!$K$1:$K$4779,0),MATCH(Assets!U$47,'Data Annex'!$K$1:$BU$1,0)),"") -> 0.1170822181 | V80: =IFERROR(INDEX('Data Annex'!$K$1:$BU$4779,MATCH(Assets!V$46&"|"&Assets!$B80,'Data Annex'!$K$1:$K$4779,0),MATCH(Assets!V$47,'Data Annex'!$K$1:$BU$1,0)),"") -> 0.1106919977 | W80: =IFERROR(INDEX('Data Annex'!$K$1:$BU$4779,MATCH(Assets!W$46&"|"&Assets!$B80,'Data Annex'!$K$1:$K$4779,0),MATCH(Assets!W$47,'Data Annex'!$K$1:$BU$1,0)),"") -> 0.1355681172
B81: SI | D81: SI | F81: =IFERROR(INDEX('Data Annex'!$K$1:$BU$4779,MATCH(Assets!F$46&"|"&Assets!$B81,'Data Annex'!$K$1:$K$4779,0),MATCH(Assets!F$47,'Data Annex'!$K$1:$BU$1,0)),"") -> 42.96669307 | G81: =IFERROR(INDEX('Data Annex'!$K$1:$BU$4779,MATCH(Assets!G$46&"|"&Assets!$B81,'Data Annex'!$K$1:$K$4779,0),MATCH(Assets!G$47,'Data Annex'!$K$1:$BU$1,0)),"") -> 44.79119845 | H81: =IFERROR(INDEX('Data Annex'!$K$1:$BU$4779,MATCH(Assets!H$46&"|"&Assets!$B81,'Data Annex'!$K$1:$K$4779,0),MATCH(Assets!H$47,'Data Annex'!$K$1:$BU$1,0)),"") -> 44.37631676 | I81: =IFERROR(INDEX('Data Annex'!$K$1:$BU$4779,MATCH(Assets!I$46&"|"&Assets!$B81,'Data Annex'!$K$1:$K$4779,0),MATCH(Assets!I$47,'Data Annex'!$K$1:$BU$1,0)),"") -> 41.92540657 | J81: =IFERROR(INDEX('Data Annex'!$K$1:$BU$4779,MATCH(Assets!J$46&"|"&Assets!$B81,'Data Annex'!$K$1:$K$4779,0),MATCH(Assets!J$47,'Data Annex'!$K$1:$BU$1,0)),"") -> 43.80534065 | K81: =IFERROR(INDEX('Data Annex'!$K$1:$BU$4779,MATCH(Assets!K$46&"|"&Assets!$B81,'Data Annex'!$K$1:$K$4779,0),MATCH(Assets!K$47,'Data Annex'!$K$1:$BU$1,0)),"") -> 43.46191134 | L81: 0.9793942921 | M81: SI | O81: =IFERROR(INDEX('Data Annex'!$K$1:$BU$4779,MATCH(Assets!O$46&"|"&Assets!$B81,'Data Annex'!$K$1:$K$4779,0),MATCH(Assets!O$47,'Data Annex'!$K$1:$BU$1,0)),"") -> 0.8678505173 | P81: =IFERROR(INDEX('Data Annex'!$K$1:$BU$4779,MATCH(Assets!P$46&"|"&Assets!$B81,'Data Annex'!$K$1:$K$4779,0),MATCH(Assets!P$47,'Data Annex'!$K$1:$BU$1,0)),"") -> 0.8928954615 | Q81: =IFERROR(INDEX('Data Annex'!$K$1:$BU$4779,MATCH(Assets!Q$46&"|"&Assets!$B81,'Data Annex'!$K$1:$K$4779,0),MATCH(Assets!Q$47,'Data Annex'!$K$1:$BU$1,0)),"") -> 0.9038515065 | R81: =IFERROR(INDEX('Data Annex'!$K$1:$BU$4779,MATCH(Assets!R$46&"|"&Assets!$B81,'Data Annex'!$K$1:$K$4779,0),MATCH(Assets!R$47,'Data Annex'!$K$1:$BU$1,0)),"") -> 0.1290439566 | S81: =IFERROR(INDEX('Data Annex'!$K$1:$BU$4779,MATCH(Assets!S$46&"|"&Assets!$B81,'Data Annex'!$K$1:$K$4779,0),MATCH(Assets!S$47,'Data Annex'!$K$1:$BU$1,0)),"") -> 0.1025750497 | T81: =IFERROR(INDEX('Data Annex'!$K$1:$BU$4779,MATCH(Assets!T$46&"|"&Assets!$B81,'Data Annex'!$K$1:$K$4779,0),MATCH(Assets!T$47,'Data Annex'!$K$1:$BU$1,0)),"") -> 0.09151789069 | U81: =IFERROR(INDEX('Data Annex'!$K$1:$BU$4779,MATCH(Assets!U$46&"|"&Assets!$B81,'Data Annex'!$K$1:$K$4779,0),MATCH(Assets!U$47,'Data Annex'!$K$1:$BU$1,0)),"") -> 0.003105526139 | V81: =IFERROR(INDEX('Data Annex'!$K$1:$BU$4779,MATCH(Assets!V$46&"|"&Assets!$B81,'Data Annex'!$K$1:$K$4779,0),MATCH(Assets!V$47,'Data Annex'!$K$1:$BU$1,0)),"") -> 0.004529488879 | W81: =IFERROR(INDEX('Data Annex'!$K$1:$BU$4779,MATCH(Assets!W$46&"|"&Assets!$B81,'Data Annex'!$K$1:$K$4779,0),MATCH(Assets!W$47,'Data Annex'!$K$1:$BU$1,0)),"") -> 0.004630602852
B82: SK | D82: SK | F82: =IFERROR(INDEX('Data Annex'!$K$1:$BU$4779,MATCH(Assets!F$46&"|"&Assets!$B82,'Data Annex'!$K$1:$K$4779,0),MATCH(Assets!F$47,'Data Annex'!$K$1:$BU$1,0)),"") -> 65.94277504 | G82: =IFERROR(INDEX('Data Annex'!$K$1:$BU$4779,MATCH(Assets!G$46&"|"&Assets!$B82,'Data Annex'!$K$1:$K$4779,0),MATCH(Assets!G$47,'Data Annex'!$K$1:$BU$1,0)),"") -> 68.34103028 | H82: =IFERROR(INDEX('Data Annex'!$K$1:$BU$4779,MATCH(Assets!H$46&"|"&Assets!$B82,'Data Annex'!$K$1:$K$4779,0),MATCH(Assets!H$47,'Data Annex'!$K$1:$BU$1,0)),"") -> 69.42842214 | I82: =IFERROR(INDEX('Data Annex'!$K$1:$BU$4779,MATCH(Assets!I$46&"|"&Assets!$B82,'Data Annex'!$K$1:$K$4779,0),MATCH(Assets!I$47,'Data Annex'!$K$1:$BU$1,0)),"") -> 64.90642781 | J82: =IFERROR(INDEX('Data Annex'!$K$1:$BU$4779,MATCH(Assets!J$46&"|"&Assets!$B82,'Data Annex'!$K$1:$K$4779,0),MATCH(Assets!J$47,'Data Annex'!$K$1:$BU$1,0)),"") -> 67.49239098 | K82: =IFERROR(INDEX('Data Annex'!$K$1:$BU$4779,MATCH(Assets!K$46&"|"&Assets!$B82,'Data Annex'!$K$1:$K$4779,0),MATCH(Assets!K$47,'Data Annex'!$K$1:$BU$1,0)),"") -> 68.36016119 | L82: 0.9846134922 | M82: SK | O82: =IFERROR(INDEX('Data Annex'!$K$1:$BU$4779,MATCH(Assets!O$46&"|"&Assets!$B82,'Data Annex'!$K$1:$K$4779,0),MATCH(Assets!O$47,'Data Annex'!$K$1:$BU$1,0)),"") -> 0.96450861 | P82: =IFERROR(INDEX('Data Annex'!$K$1:$BU$4779,MATCH(Assets!P$46&"|"&Assets!$B82,'Data Annex'!$K$1:$K$4779,0),MATCH(Assets!P$47,'Data Annex'!$K$1:$BU$1,0)),"") -> 0.9666200882 | Q82: =IFERROR(INDEX('Data Annex'!$K$1:$BU$4779,MATCH(Assets!Q$46&"|"&Assets!$B82,'Data Annex'!$K$1:$K$4779,0),MATCH(Assets!Q$47,'Data Annex'!$K$1:$BU$1,0)),"") -> 0.9665281211 | R82: =IFERROR(INDEX('Data Annex'!$K$1:$BU$4779,MATCH(Assets!R$46&"|"&Assets!$B82,'Data Annex'!$K$1:$K$4779,0),MATCH(Assets!R$47,'Data Annex'!$K$1:$BU$1,0)),"") -> 0.03020478894 | S82: =IFERROR(INDEX('Data Annex'!$K$1:$BU$4779,MATCH(Assets!S$46&"|"&Assets!$B82,'Data Annex'!$K$1:$K$4779,0),MATCH(Assets!S$47,'Data Annex'!$K$1:$BU$1,0)),"") -> 0.02390825405 | T82: =IFERROR(INDEX('Data Annex'!$K$1:$BU$4779,MATCH(Assets!T$46&"|"&Assets!$B82,'Data Annex'!$K$1:$K$4779,0),MATCH(Assets!T$47,'Data Annex'!$K$1:$BU$1,0)),"") -> 0.02402192159 | U82: =IFERROR(INDEX('Data Annex'!$K$1:$BU$4779,MATCH(Assets!U$46&"|"&Assets!$B82,'Data Annex'!$K$1:$K$4779,0),MATCH(Assets!U$47,'Data Annex'!$K$1:$BU$1,0)),"") -> 0.005286601087 | V82: =IFERROR(INDEX('Data Annex'!$K$1:$BU$4779,MATCH(Assets!V$46&"|"&Assets!$B82,'Data Annex'!$K$1:$K$4779,0),MATCH(Assets!V$47,'Data Annex'!$K$1:$BU$1,0)),"") -> 0.009471657767 | W82: =IFERROR(INDEX('Data Annex'!$K$1:$BU$4779,MATCH(Assets!W$46&"|"&Assets!$B82,'Data Annex'!$K$1:$K$4779,0),MATCH(Assets!W$47,'Data Annex'!$K$1:$BU$1,0)),"") -> 0.009449957264
B83: EU | D83: =+D43 -> EU/EEA | F83: =IFERROR(INDEX('Data Annex'!$K$1:$BU$4779,MATCH(Assets!F$46&"|"&Assets!$B83,'Data Annex'!$K$1:$K$4779,0),MATCH(Assets!F$47,'Data Annex'!$K$1:$BU$1,0)),"") -> 27458.4693 | G83: =IFERROR(INDEX('Data Annex'!$K$1:$BU$4779,MATCH(Assets!G$46&"|"&Assets!$B83,'Data Annex'!$K$1:$K$4779,0),MATCH(Assets!G$47,'Data Annex'!$K$1:$BU$1,0)),"") -> 27019.97604 | H83: =IFERROR(INDEX('Data Annex'!$K$1:$BU$4779,MATCH(Assets!H$46&"|"&Assets!$B83,'Data Annex'!$K$1:$K$4779,0),MATCH(Assets!H$47,'Data Annex'!$K$1:$BU$1,0)),"") -> 27681.59829 | I83: =IFERROR(INDEX('Data Annex'!$K$1:$BU$4779,MATCH(Assets!I$46&"|"&Assets!$B83,'Data Annex'!$K$1:$K$4779,0),MATCH(Assets!I$47,'Data Annex'!$K$1:$BU$1,0)),"") -> 26016.25669 | J83: =IFERROR(INDEX('Data Annex'!$K$1:$BU$4779,MATCH(Assets!J$46&"|"&Assets!$B83,'Data Annex'!$K$1:$K$4779,0),MATCH(Assets!J$47,'Data Annex'!$K$1:$BU$1,0)),"") -> 25697.1453 | K83: =IFERROR(INDEX('Data Annex'!$K$1:$BU$4779,MATCH(Assets!K$46&"|"&Assets!$B83,'Data Annex'!$K$1:$K$4779,0),MATCH(Assets!K$47,'Data Annex'!$K$1:$BU$1,0)),"") -> 26487.19706 | L83: 0.956852158 | M83: =D83 -> EU/EEA | O83: =IFERROR(INDEX('Data Annex'!$K$1:$BU$4779,MATCH(Assets!O$46&"|"&Assets!$B83,'Data Annex'!$K$1:$K$4779,0),MATCH(Assets!O$47,'Data Annex'!$K$1:$BU$1,0)),"") -> 0.7909397203 | P83: =IFERROR(INDEX('Data Annex'!$K$1:$BU$4779,MATCH(Assets!P$46&"|"&Assets!$B83,'Data Annex'!$K$1:$K$4779,0),MATCH(Assets!P$47,'Data Annex'!$K$1:$BU$1,0)),"") -> 0.7973737919 | Q83: =IFERROR(INDEX('Data Annex'!$K$1:$BU$4779,MATCH(Assets!Q$46&"|"&Assets!$B83,'Data Annex'!$K$1:$K$4779,0),MATCH(Assets!Q$47,'Data Annex'!$K$1:$BU$1,0)),"") -> 0.793567901 | R83: =IFERROR(INDEX('Data Annex'!$K$1:$BU$4779,MATCH(Assets!R$46&"|"&Assets!$B83,'Data Annex'!$K$1:$K$4779,0),MATCH(Assets!R$47,'Data Annex'!$K$1:$BU$1,0)),"") -> 0.04374051225 | S83: =IFERROR(INDEX('Data Annex'!$K$1:$BU$4779,MATCH(Assets!S$46&"|"&Assets!$B83,'Data Annex'!$K$1:$K$4779,0),MATCH(Assets!S$47,'Data Annex'!$K$1:$BU$1,0)),"") -> 0.04145707113 | T83: =IFERROR(INDEX('Data Annex'!$K$1:$BU$4779,MATCH(Assets!T$46&"|"&Assets!$B83,'Data Annex'!$K$1:$K$4779,0),MATCH(Assets!T$47,'Data Annex'!$K$1:$BU$1,0)),"") -> 0.04169803471 | U83: =IFERROR(INDEX('Data Annex'!$K$1:$BU$4779,MATCH(Assets!U$46&"|"&Assets!$B83,'Data Annex'!$K$1:$K$4779,0),MATCH(Assets!U$47,'Data Annex'!$K$1:$BU$1,0)),"") -> 0.1653197674 | V83: =IFERROR(INDEX('Data Annex'!$K$1:$BU$4779,MATCH(Assets!V$46&"|"&Assets!$B83,'Data Annex'!$K$1:$K$4779,0),MATCH(Assets!V$47,'Data Annex'!$K$1:$BU$1,0)),"") -> 0.1611691369 | W83: =IFERROR(INDEX('Data Annex'!$K$1:$BU$4779,MATCH(Assets!W$46&"|"&Assets!$B83,'Data Annex'!$K$1:$K$4779,0),MATCH(Assets!W$47,'Data Annex'!$K$1:$BU$1,0)),"") -> 0.1647340643
D84: * The EBA Risk Dashboard does not include data from Norwegian nor Liechtensteiner banks from June 2021 to March 2022 due to the implementation of the reporting framework based on CRR2/CRD5 taking place only in Q2 2022.
N85: =G43+J43+M43+P43+S43 -> 0.9568521579
D86: Individual country data includes subsidiaries, which are excluded from EU aggregate. For example, at country level the subsidiary in country X of a bank domiciled in country Y is included both in data for countries X and Y (for the latter as part of the consolidated entity). In the EU aggregate, only the consolidated entity domiciled in country Y is considered. The sample of banks is unbalanced and reviewed annually. As of Q1 2020 onwards UK banks are removed from the EU/EEA aggregate and subsidiaries of UK banks in EU member states are used instead.
D87: * Norwegian banks have not implemented yet the reporting framework based on CRR2/CRD5. Therefore, Norwegian figures are included in the EBA Risk dashboard only until March 2021.

Sheet Loans Composition (hidden)
E1: T20_1 | F1: T20_1 | G1: T20_1 | H1: T20_2 | I1: T20_2 | J1: T20_2 | K1: T20_3 | L1: T20_3 | M1: T20_3 | N1: T20_4 | O1: T20_4 | P1: T20_4 | Q1: T20_5 | R1: T20_5 | S1: T20_5 | T1: T20_6 | U1: T20_6 | V1: T20_6
A2: ='Reference Dates'!$C$8 -> 202303 | E2: =TEXT(E50,"YYYYMM")+0 -> 202203 | F2: 202212 | G2: 202303 | H2: 202203 | I2: 202212 | J2: 202303 | K2: =TEXT(K50,"YYYYMM")+0 -> 202203 | L2: 202212 | M2: 202303 | N2: 202203 | O2: 202212 | P2: 202303 | Q2: 202203 | R2: 202212 | S2: 202303 | T2: 202203 | U2: 202212 | V2: 202303
A3: =DATE(LEFT(A2,4),RIGHT(A2,2),1) -> 2023-03-01 | D3: Statistical Annex
D4: Loans: composition and asset quality
H7: of which: loans and advances at amortised cost - by segment (volumes) (2)
D9: Volumes bn EUR
E10: Loans and advances (1) | H10: HHs | K10: …of which mortgages | N10: NFCs | Q10: …of which SMEs | T10: …of which CRE
E11: =EOMONTH($A$3,-12) -> 2022-03-31 | F11: =EOMONTH($A$3,-3) -> 2022-12-31 | G11: =EOMONTH($A$3,0) -> 2023-03-31 | H11: =EOMONTH($A$3,-12) -> 2022-03-31 | I11: =EOMONTH($A$3,-3) -> 2022-12-31 | J11: =EOMONTH($A$3,0) -> 2023-03-31 | K11: =EOMONTH($A$3,-12) -> 2022-03-31 | L11: =EOMONTH($A$3,-3) -> 2022-12-31 | M11: =EOMONTH($A$3,0) -> 2023-03-31 | N11: =EOMONTH($A$3,-12) -> 2022-03-31 | O11: =EOMONTH($A$3,-3) -> 2022-12-31 | P11: =EOMONTH($A$3,0) -> 2023-03-31 | Q11: =EOMONTH($A$3,-12) -> 2022-03-31 | R11: =EOMONTH($A$3,-3) -> 2022-12-31 | S11: =EOMONTH($A$3,0) -> 2023-03-31 | T11: =EOMONTH($A$3,-12) -> 2022-03-31 | U11: =EOMONTH($A$3,-3) -> 2022-12-31 | V11: =EOMONTH($A$3,0) -> 2023-03-31
A12: 1 | B12: AT | D12: AT | E12: =IFERROR(INDEX('Data Annex'!$K$1:$BU$4779,MATCH(E$1&"|"&$B12,'Data Annex'!$K$1:$K$4779,0),MATCH(E$2,'Data Annex'!$K$1:$BU$1,0)),"") -> 620.959818 | F12: =IFERROR(INDEX('Data Annex'!$K$1:$BU$4779,MATCH(F$1&"|"&$B12,'Data Annex'!$K$1:$K$4779,0),MATCH(F$2,'Data Annex'!$K$1:$BU$1,0)),"") -> 625.3469655 | G12: =IFERROR(INDEX('Data Annex'!$K$1:$BU$4779,MATCH(G$1&"|"&$B12,'Data Annex'!$K$1:$K$4779,0),MATCH(G$2,'Data Annex'!$K$1:$BU$1,0)),"") -> 655.6826482 | H12: =IFERROR(INDEX('Data Annex'!$K$1:$BU$4779,MATCH(H$1&"|"&$B12,'Data Annex'!$K$1:$K$4779,0),MATCH(H$2,'Data Annex'!$K$1:$BU$1,0)),"") -> 184.2987402 | I12: =IFERROR(INDEX('Data Annex'!$K$1:$BU$4779,MATCH(I$1&"|"&$B12,'Data Annex'!$K$1:$K$4779,0),MATCH(I$2,'Data Annex'!$K$1:$BU$1,0)),"") -> 192.2216106 | J12: =IFERROR(INDEX('Data Annex'!$K$1:$BU$4779,MATCH(J$1&"|"&$B12,'Data Annex'!$K$1:$K$4779,0),MATCH(J$2,'Data Annex'!$K$1:$BU$1,0)),"") -> 192.1764293 | K12: =IFERROR(INDEX('Data Annex'!$K$1:$BU$4779,MATCH(K$1&"|"&$B12,'Data Annex'!$K$1:$K$4779,0),MATCH(K$2,'Data Annex'!$K$1:$BU$1,0)),"") -> 127.5562136 | L12: =IFERROR(INDEX('Data Annex'!$K$1:$BU$4779,MATCH(L$1&"|"&$B12,'Data Annex'!$K$1:$K$4779,0),MATCH(L$2,'Data Annex'!$K$1:$BU$1,0)),"") -> 138.7384265 | M12: =IFERROR(INDEX('Data Annex'!$K$1:$BU$4779,MATCH(M$1&"|"&$B12,'Data Annex'!$K$1:$K$4779,0),MATCH(M$2,'Data Annex'!$K$1:$BU$1,0)),"") -> 139.2261892 | N12: =IFERROR(INDEX('Data Annex'!$K$1:$BU$4779,MATCH(N$1&"|"&$B12,'Data Annex'!$K$1:$K$4779,0),MATCH(N$2,'Data Annex'!$K$1:$BU$1,0)),"") -> 214.2306849 | O12: =IFERROR(INDEX('Data Annex'!$K$1:$BU$4779,MATCH(O$1&"|"&$B12,'Data Annex'!$K$1:$K$4779,0),MATCH(O$2,'Data Annex'!$K$1:$BU$1,0)),"") -> 222.5167763 | P12: =IFERROR(INDEX('Data Annex'!$K$1:$BU$4779,MATCH(P$1&"|"&$B12,'Data Annex'!$K$1:$K$4779,0),MATCH(P$2,'Data Annex'!$K$1:$BU$1,0)),"") -> 223.9716382 | Q12: =IFERROR(INDEX('Data Annex'!$K$1:$BU$4779,MATCH(Q$1&"|"&$B12,'Data Annex'!$K$1:$K$4779,0),MATCH(Q$2,'Data Annex'!$K$1:$BU$1,0)),"") -> 73.89802047 | R12: =IFERROR(INDEX('Data Annex'!$K$1:$BU$4779,MATCH(R$1&"|"&$B12,'Data Annex'!$K$1:$K$4779,0),MATCH(R$2,'Data Annex'!$K$1:$BU$1,0)),"") -> 77.85281058 | S12: =IFERROR(INDEX('Data Annex'!$K$1:$BU$4779,MATCH(S$1&"|"&$B12,'Data Annex'!$K$1:$K$4779,0),MATCH(S$2,'Data Annex'!$K$1:$BU$1,0)),"") -> 79.5437775 | T12: =IFERROR(INDEX('Data Annex'!$K$1:$BU$4779,MATCH(T$1&"|"&$B12,'Data Annex'!$K$1:$K$4779,0),MATCH(T$2,'Data Annex'!$K$1:$BU$1,0)),"") -> 61.33518962 | U12: =IFERROR(INDEX('Data Annex'!$K$1:$BU$4779,MATCH(U$1&"|"&$B12,'Data Annex'!$K$1:$K$4779,0),MATCH(U$2,'Data Annex'!$K$1:$BU$1,0)),"") -> 65.43867475 | V12: =IFERROR(INDEX('Data Annex'!$K$1:$BU$4779,MATCH(V$1&"|"&$B12,'Data Annex'!$K$1:$K$4779,0),MATCH(V$2,'Data Annex'!$K$1:$BU$1,0)),"") -> 66.39908924
A13: 2 | B13: BE | D13: BE | E13: =IFERROR(INDEX('Data Annex'!$K$1:$BU$4779,MATCH(E$1&"|"&$B13,'Data Annex'!$K$1:$K$4779,0),MATCH(E$2,'Data Annex'!$K$1:$BU$1,0)),"") -> 1031.458669 | F13: =IFERROR(INDEX('Data Annex'!$K$1:$BU$4779,MATCH(F$1&"|"&$B13,'Data Annex'!$K$1:$K$4779,0),MATCH(F$2,'Data Annex'!$K$1:$BU$1,0)),"") -> 965.2903901 | G13: =IFERROR(INDEX('Data Annex'!$K$1:$BU$4779,MATCH(G$1&"|"&$B13,'Data Annex'!$K$1:$K$4779,0),MATCH(G$2,'Data Annex'!$K$1:$BU$1,0)),"") -> 987.5775912 | H13: =IFERROR(INDEX('Data Annex'!$K$1:$BU$4779,MATCH(H$1&"|"&$B13,'Data Annex'!$K$1:$K$4779,0),MATCH(H$2,'Data Annex'!$K$1:$BU$1,0)),"") -> 332.7973071 | I13: =IFERROR(INDEX('Data Annex'!$K$1:$BU$4779,MATCH(I$1&"|"&$B13,'Data Annex'!$K$1:$K$4779,0),MATCH(I$2,'Data Annex'!$K$1:$BU$1,0)),"") -> 347.6503175 | J13: =IFERROR(INDEX('Data Annex'!$K$1:$BU$4779,MATCH(J$1&"|"&$B13,'Data Annex'!$K$1:$K$4779,0),MATCH(J$2,'Data Annex'!$K$1:$BU$1,0)),"") -> 304.9284899 | K13: =IFERROR(INDEX('Data Annex'!$K$1:$BU$4779,MATCH(K$1&"|"&$B13,'Data Annex'!$K$1:$K$4779,0),MATCH(K$2,'Data Annex'!$K$1:$BU$1,0)),"") -> 288.0309622 | L13: =IFERROR(INDEX('Data Annex'!$K$1:$BU$4779,MATCH(L$1&"|"&$B13,'Data Annex'!$K$1:$K$4779,0),MATCH(L$2,'Data Annex'!$K$1:$BU$1,0)),"") -> 302.3624427 | M13: =IFERROR(INDEX('Data Annex'!$K$1:$BU$4779,MATCH(M$1&"|"&$B13,'Data Annex'!$K$1:$K$4779,0),MATCH(M$2,'Data Annex'!$K$1:$BU$1,0)),"") -> 263.8364169 | N13: =IFERROR(INDEX('Data Annex'!$K$1:$BU$4779,MATCH(N$1&"|"&$B13,'Data Annex'!$K$1:$K$4779,0),MATCH(N$2,'Data Annex'!$K$1:$BU$1,0)),"") -> 284.3323763 | O13: =IFERROR(INDEX('Data Annex'!$K$1:$BU$4779,MATCH(O$1&"|"&$B13,'Data Annex'!$K$1:$K$4779,0),MATCH(O$2,'Data Annex'!$K$1:$BU$1,0)),"") -> 301.889747 | P13: =IFERROR(INDEX('Data Annex'!$K$1:$BU$4779,MATCH(P$1&"|"&$B13,'Data Annex'!$K$1:$K$4779,0),MATCH(P$2,'Data Annex'!$K$1:$BU$1,0)),"") -> 256.0091995 | Q13: =IFERROR(INDEX('Data Annex'!$K$1:$BU$4779,MATCH(Q$1&"|"&$B13,'Data Annex'!$K$1:$K$4779,0),MATCH(Q$2,'Data Annex'!$K$1:$BU$1,0)),"") -> 135.1863149 | R13: =IFERROR(INDEX('Data Annex'!$K$1:$BU$4779,MATCH(R$1&"|"&$B13,'Data Annex'!$K$1:$K$4779,0),MATCH(R$2,'Data Annex'!$K$1:$BU$1,0)),"") -> 141.3116453 | S13: =IFERROR(INDEX('Data Annex'!$K$1:$BU$4779,MATCH(S$1&"|"&$B13,'Data Annex'!$K$1:$K$4779,0),MATCH(S$2,'Data Annex'!$K$1:$BU$1,0)),"") -> 125.6806712 | T13: =IFERROR(INDEX('Data Annex'!$K$1:$BU$4779,MATCH(T$1&"|"&$B13,'Data Annex'!$K$1:$K$4779,0),MATCH(T$2,'Data Annex'!$K$1:$BU$1,0)),"") -> 77.4319122 | U13: =IFERROR(INDEX('Data Annex'!$K$1:$BU$4779,MATCH(U$1&"|"&$B13,'Data Annex'!$K$1:$K$4779,0),MATCH(U$2,'Data Annex'!$K$1:$BU$1,0)),"") -> 82.45291031 | V13: =IFERROR(INDEX('Data Annex'!$K$1:$BU$4779,MATCH(V$1&"|"&$B13,'Data Annex'!$K$1:$K$4779,0),MATCH(V$2,'Data Annex'!$K$1:$BU$1,0)),"") -> 68.8046291
A14: 3 | B14: BG | D14: BG | E14: =IFERROR(INDEX('Data Annex'!$K$1:$BU$4779,MATCH(E$1&"|"&$B14,'Data Annex'!$K$1:$K$4779,0),MATCH(E$2,'Data Annex'!$K$1:$BU$1,0)),"") -> 29.01081808 | F14: =IFERROR(INDEX('Data Annex'!$K$1:$BU$4779,MATCH(F$1&"|"&$B14,'Data Annex'!$K$1:$K$4779,0),MATCH(F$2,'Data Annex'!$K$1:$BU$1,0)),"") -> 32.08684477 | G14: =IFERROR(INDEX('Data Annex'!$K$1:$BU$4779,MATCH(G$1&"|"&$B14,'Data Annex'!$K$1:$K$4779,0),MATCH(G$2,'Data Annex'!$K$1:$BU$1,0)),"") -> 34.31593005 | H14: =IFERROR(INDEX('Data Annex'!$K$1:$BU$4779,MATCH(H$1&"|"&$B14,'Data Annex'!$K$1:$K$4779,0),MATCH(H$2,'Data Annex'!$K$1:$BU$1,0)),"") -> 9.17729727 | I14: =IFERROR(INDEX('Data Annex'!$K$1:$BU$4779,MATCH(I$1&"|"&$B14,'Data Annex'!$K$1:$K$4779,0),MATCH(I$2,'Data Annex'!$K$1:$BU$1,0)),"") -> 10.15335822 | J14: =IFERROR(INDEX('Data Annex'!$K$1:$BU$4779,MATCH(J$1&"|"&$B14,'Data Annex'!$K$1:$K$4779,0),MATCH(J$2,'Data Annex'!$K$1:$BU$1,0)),"") -> 10.44221291 | K14: =IFERROR(INDEX('Data Annex'!$K$1:$BU$4779,MATCH(K$1&"|"&$B14,'Data Annex'!$K$1:$K$4779,0),MATCH(K$2,'Data Annex'!$K$1:$BU$1,0)),"") -> 4.329735147 | L14: =IFERROR(INDEX('Data Annex'!$K$1:$BU$4779,MATCH(L$1&"|"&$B14,'Data Annex'!$K$1:$K$4779,0),MATCH(L$2,'Data Annex'!$K$1:$BU$1,0)),"") -> 4.930069537 | M14: =IFERROR(INDEX('Data Annex'!$K$1:$BU$4779,MATCH(M$1&"|"&$B14,'Data Annex'!$K$1:$K$4779,0),MATCH(M$2,'Data Annex'!$K$1:$BU$1,0)),"") -> 5.144035177 | N14: =IFERROR(INDEX('Data Annex'!$K$1:$BU$4779,MATCH(N$1&"|"&$B14,'Data Annex'!$K$1:$K$4779,0),MATCH(N$2,'Data Annex'!$K$1:$BU$1,0)),"") -> 10.14974691 | O14: =IFERROR(INDEX('Data Annex'!$K$1:$BU$4779,MATCH(O$1&"|"&$B14,'Data Annex'!$K$1:$K$4779,0),MATCH(O$2,'Data Annex'!$K$1:$BU$1,0)),"") -> 11.23154413 | P14: =IFERROR(INDEX('Data Annex'!$K$1:$BU$4779,MATCH(P$1&"|"&$B14,'Data Annex'!$K$1:$K$4779,0),MATCH(P$2,'Data Annex'!$K$1:$BU$1,0)),"") -> 11.42397178 | Q14: =IFERROR(INDEX('Data Annex'!$K$1:$BU$4779,MATCH(Q$1&"|"&$B14,'Data Annex'!$K$1:$K$4779,0),MATCH(Q$2,'Data Annex'!$K$1:$BU$1,0)),"") -> 5.494713672 | R14: =IFERROR(INDEX('Data Annex'!$K$1:$BU$4779,MATCH(R$1&"|"&$B14,'Data Annex'!$K$1:$K$4779,0),MATCH(R$2,'Data Annex'!$K$1:$BU$1,0)),"") -> 6.166300746 | S14: =IFERROR(INDEX('Data Annex'!$K$1:$BU$4779,MATCH(S$1&"|"&$B14,'Data Annex'!$K$1:$K$4779,0),MATCH(S$2,'Data Annex'!$K$1:$BU$1,0)),"") -> 6.260049596 | T14: =IFERROR(INDEX('Data Annex'!$K$1:$BU$4779,MATCH(T$1&"|"&$B14,'Data Annex'!$K$1:$K$4779,0),MATCH(T$2,'Data Annex'!$K$1:$BU$1,0)),"") -> 4.740122201 | U14: =IFERROR(INDEX('Data Annex'!$K$1:$BU$4779,MATCH(U$1&"|"&$B14,'Data Annex'!$K$1:$K$4779,0),MATCH(U$2,'Data Annex'!$K$1:$BU$1,0)),"") -> 4.98004346 | V14: =IFERROR(INDEX('Data Annex'!$K$1:$BU$4779,MATCH(V$1&"|"&$B14,'Data Annex'!$K$1:$K$4779,0),MATCH(V$2,'Data Annex'!$K$1:$BU$1,0)),"") -> 5.140386031
A15: 4 | B15: CY | D15: CY | E15: =IFERROR(INDEX('Data Annex'!$K$1:$BU$4779,MATCH(E$1&"|"&$B15,'Data Annex'!$K$1:$K$4779,0),MATCH(E$2,'Data Annex'!$K$1:$BU$1,0)),"") -> 33.77469444 | F15: =IFERROR(INDEX('Data Annex'!$K$1:$BU$4779,MATCH(F$1&"|"&$B15,'Data Annex'!$K$1:$K$4779,0),MATCH(F$2,'Data Annex'!$K$1:$BU$1,0)),"") -> 35.14071853 | G15: =IFERROR(INDEX('Data Annex'!$K$1:$BU$4779,MATCH(G$1&"|"&$B15,'Data Annex'!$K$1:$K$4779,0),MATCH(G$2,'Data Annex'!$K$1:$BU$1,0)),"") -> 35.21800359 | H15: =IFERROR(INDEX('Data Annex'!$K$1:$BU$4779,MATCH(H$1&"|"&$B15,'Data Annex'!$K$1:$K$4779,0),MATCH(H$2,'Data Annex'!$K$1:$BU$1,0)),"") -> 8.313959726 | I15: =IFERROR(INDEX('Data Annex'!$K$1:$BU$4779,MATCH(I$1&"|"&$B15,'Data Annex'!$K$1:$K$4779,0),MATCH(I$2,'Data Annex'!$K$1:$BU$1,0)),"") -> 8.349337654 | J15: =IFERROR(INDEX('Data Annex'!$K$1:$BU$4779,MATCH(J$1&"|"&$B15,'Data Annex'!$K$1:$K$4779,0),MATCH(J$2,'Data Annex'!$K$1:$BU$1,0)),"") -> 8.365188525 | K15: =IFERROR(INDEX('Data Annex'!$K$1:$BU$4779,MATCH(K$1&"|"&$B15,'Data Annex'!$K$1:$K$4779,0),MATCH(K$2,'Data Annex'!$K$1:$BU$1,0)),"") -> 6.408403164 | L15: =IFERROR(INDEX('Data Annex'!$K$1:$BU$4779,MATCH(L$1&"|"&$B15,'Data Annex'!$K$1:$K$4779,0),MATCH(L$2,'Data Annex'!$K$1:$BU$1,0)),"") -> 6.499689226 | M15: =IFERROR(INDEX('Data Annex'!$K$1:$BU$4779,MATCH(M$1&"|"&$B15,'Data Annex'!$K$1:$K$4779,0),MATCH(M$2,'Data Annex'!$K$1:$BU$1,0)),"") -> 6.501531754 | N15: =IFERROR(INDEX('Data Annex'!$K$1:$BU$4779,MATCH(N$1&"|"&$B15,'Data Annex'!$K$1:$K$4779,0),MATCH(N$2,'Data Annex'!$K$1:$BU$1,0)),"") -> 7.602343044 | O15: =IFERROR(INDEX('Data Annex'!$K$1:$BU$4779,MATCH(O$1&"|"&$B15,'Data Annex'!$K$1:$K$4779,0),MATCH(O$2,'Data Annex'!$K$1:$BU$1,0)),"") -> 7.690351234 | P15: =IFERROR(INDEX('Data Annex'!$K$1:$BU$4779,MATCH(P$1&"|"&$B15,'Data Annex'!$K$1:$K$4779,0),MATCH(P$2,'Data Annex'!$K$1:$BU$1,0)),"") -> 7.738258794 | Q15: =IFERROR(INDEX('Data Annex'!$K$1:$BU$4779,MATCH(Q$1&"|"&$B15,'Data Annex'!$K$1:$K$4779,0),MATCH(Q$2,'Data Annex'!$K$1:$BU$1,0)),"") -> 6.065060368 | R15: =IFERROR(INDEX('Data Annex'!$K$1:$BU$4779,MATCH(R$1&"|"&$B15,'Data Annex'!$K$1:$K$4779,0),MATCH(R$2,'Data Annex'!$K$1:$BU$1,0)),"") -> 5.528680569 | S15: =IFERROR(INDEX('Data Annex'!$K$1:$BU$4779,MATCH(S$1&"|"&$B15,'Data Annex'!$K$1:$K$4779,0),MATCH(S$2,'Data Annex'!$K$1:$BU$1,0)),"") -> 5.415724311 | T15: =IFERROR(INDEX('Data Annex'!$K$1:$BU$4779,MATCH(T$1&"|"&$B15,'Data Annex'!$K$1:$K$4779,0),MATCH(T$2,'Data Annex'!$K$1:$BU$1,0)),"") -> 5.486631764 | U15: =IFERROR(INDEX('Data Annex'!$K$1:$BU$4779,MATCH(U$1&"|"&$B15,'Data Annex'!$K$1:$K$4779,0),MATCH(U$2,'Data Annex'!$K$1:$BU$1,0)),"") -> 5.561440669 | V15: =IFERROR(INDEX('Data Annex'!$K$1:$BU$4779,MATCH(V$1&"|"&$B15,'Data Annex'!$K$1:$K$4779,0),MATCH(V$2,'Data Annex'!$K$1:$BU$1,0)),"") -> 5.523548775
A16: 5 | B16: CZ | D16: CZ | E16: =IFERROR(INDEX('Data Annex'!$K$1:$BU$4779,MATCH(E$1&"|"&$B16,'Data Annex'!$K$1:$K$4779,0),MATCH(E$2,'Data Annex'!$K$1:$BU$1,0)),"") -> 180.1836855 | F16: =IFERROR(INDEX('Data Annex'!$K$1:$BU$4779,MATCH(F$1&"|"&$B16,'Data Annex'!$K$1:$K$4779,0),MATCH(F$2,'Data Annex'!$K$1:$BU$1,0)),"") -> 150.9006807 | G16: =IFERROR(INDEX('Data Annex'!$K$1:$BU$4779,MATCH(G$1&"|"&$B16,'Data Annex'!$K$1:$K$4779,0),MATCH(G$2,'Data Annex'!$K$1:$BU$1,0)),"") -> 172.8206926 | H16: =IFERROR(INDEX('Data Annex'!$K$1:$BU$4779,MATCH(H$1&"|"&$B16,'Data Annex'!$K$1:$K$4779,0),MATCH(H$2,'Data Annex'!$K$1:$BU$1,0)),"") -> 61.17018123 | I16: =IFERROR(INDEX('Data Annex'!$K$1:$BU$4779,MATCH(I$1&"|"&$B16,'Data Annex'!$K$1:$K$4779,0),MATCH(I$2,'Data Annex'!$K$1:$BU$1,0)),"") -> 64.04357025 | J16: =IFERROR(INDEX('Data Annex'!$K$1:$BU$4779,MATCH(J$1&"|"&$B16,'Data Annex'!$K$1:$K$4779,0),MATCH(J$2,'Data Annex'!$K$1:$BU$1,0)),"") -> 66.21685416 | K16: =IFERROR(INDEX('Data Annex'!$K$1:$BU$4779,MATCH(K$1&"|"&$B16,'Data Annex'!$K$1:$K$4779,0),MATCH(K$2,'Data Annex'!$K$1:$BU$1,0)),"") -> 47.97815383 | L16: =IFERROR(INDEX('Data Annex'!$K$1:$BU$4779,MATCH(L$1&"|"&$B16,'Data Annex'!$K$1:$K$4779,0),MATCH(L$2,'Data Annex'!$K$1:$BU$1,0)),"") -> 50.99747356 | M16: =IFERROR(INDEX('Data Annex'!$K$1:$BU$4779,MATCH(M$1&"|"&$B16,'Data Annex'!$K$1:$K$4779,0),MATCH(M$2,'Data Annex'!$K$1:$BU$1,0)),"") -> 52.74104031 | N16: =IFERROR(INDEX('Data Annex'!$K$1:$BU$4779,MATCH(N$1&"|"&$B16,'Data Annex'!$K$1:$K$4779,0),MATCH(N$2,'Data Annex'!$K$1:$BU$1,0)),"") -> 34.24003827 | O16: =IFERROR(INDEX('Data Annex'!$K$1:$BU$4779,MATCH(O$1&"|"&$B16,'Data Annex'!$K$1:$K$4779,0),MATCH(O$2,'Data Annex'!$K$1:$BU$1,0)),"") -> 36.79948416 | P16: =IFERROR(INDEX('Data Annex'!$K$1:$BU$4779,MATCH(P$1&"|"&$B16,'Data Annex'!$K$1:$K$4779,0),MATCH(P$2,'Data Annex'!$K$1:$BU$1,0)),"") -> 37.78171444 | Q16: =IFERROR(INDEX('Data Annex'!$K$1:$BU$4779,MATCH(Q$1&"|"&$B16,'Data Annex'!$K$1:$K$4779,0),MATCH(Q$2,'Data Annex'!$K$1:$BU$1,0)),"") -> 13.16410865 | R16: =IFERROR(INDEX('Data Annex'!$K$1:$BU$4779,MATCH(R$1&"|"&$B16,'Data Annex'!$K$1:$K$4779,0),MATCH(R$2,'Data Annex'!$K$1:$BU$1,0)),"") -> 12.8965739 | S16: =IFERROR(INDEX('Data Annex'!$K$1:$BU$4779,MATCH(S$1&"|"&$B16,'Data Annex'!$K$1:$K$4779,0),MATCH(S$2,'Data Annex'!$K$1:$BU$1,0)),"") -> 13.08019921 | T16: =IFERROR(INDEX('Data Annex'!$K$1:$BU$4779,MATCH(T$1&"|"&$B16,'Data Annex'!$K$1:$K$4779,0),MATCH(T$2,'Data Annex'!$K$1:$BU$1,0)),"") -> 14.29825253 | U16: =IFERROR(INDEX('Data Annex'!$K$1:$BU$4779,MATCH(U$1&"|"&$B16,'Data Annex'!$K$1:$K$4779,0),MATCH(U$2,'Data Annex'!$K$1:$BU$1,0)),"") -> 15.1996751 | V16: =IFERROR(INDEX('Data Annex'!$K$1:$BU$4779,MATCH(V$1&"|"&$B16,'Data Annex'!$K$1:$K$4779,0),MATCH(V$2,'Data Annex'!$K$1:$BU$1,0)),"") -> 15.18464242
A17: 6 | B17: DE | D17: DE | E17: =IFERROR(INDEX('Data Annex'!$K$1:$BU$4779,MATCH(E$1&"|"&$B17,'Data Annex'!$K$1:$K$4779,0),MATCH(E$2,'Data Annex'!$K$1:$BU$1,0)),"") -> 2977.97816 | F17: =IFERROR(INDEX('Data Annex'!$K$1:$BU$4779,MATCH(F$1&"|"&$B17,'Data Annex'!$K$1:$K$4779,0),MATCH(F$2,'Data Annex'!$K$1:$BU$1,0)),"") -> 2870.702173 | G17: =IFERROR(INDEX('Data Annex'!$K$1:$BU$4779,MATCH(G$1&"|"&$B17,'Data Annex'!$K$1:$K$4779,0),MATCH(G$2,'Data Annex'!$K$1:$BU$1,0)),"") -> 3023.724013 | H17: =IFERROR(INDEX('Data Annex'!$K$1:$BU$4779,MATCH(H$1&"|"&$B17,'Data Annex'!$K$1:$K$4779,0),MATCH(H$2,'Data Annex'!$K$1:$BU$1,0)),"") -> 550.7549117 | I17: =IFERROR(INDEX('Data Annex'!$K$1:$BU$4779,MATCH(I$1&"|"&$B17,'Data Annex'!$K$1:$K$4779,0),MATCH(I$2,'Data Annex'!$K$1:$BU$1,0)),"") -> 554.0708462 | J17: =IFERROR(INDEX('Data Annex'!$K$1:$BU$4779,MATCH(J$1&"|"&$B17,'Data Annex'!$K$1:$K$4779,0),MATCH(J$2,'Data Annex'!$K$1:$BU$1,0)),"") -> 552.3061265 | K17: =IFERROR(INDEX('Data Annex'!$K$1:$BU$4779,MATCH(K$1&"|"&$B17,'Data Annex'!$K$1:$K$4779,0),MATCH(K$2,'Data Annex'!$K$1:$BU$1,0)),"") -> 380.3673569 | L17: =IFERROR(INDEX('Data Annex'!$K$1:$BU$4779,MATCH(L$1&"|"&$B17,'Data Annex'!$K$1:$K$4779,0),MATCH(L$2,'Data Annex'!$K$1:$BU$1,0)),"") -> 388.5294238 | M17: =IFERROR(INDEX('Data Annex'!$K$1:$BU$4779,MATCH(M$1&"|"&$B17,'Data Annex'!$K$1:$K$4779,0),MATCH(M$2,'Data Annex'!$K$1:$BU$1,0)),"") -> 388.5146937 | N17: =IFERROR(INDEX('Data Annex'!$K$1:$BU$4779,MATCH(N$1&"|"&$B17,'Data Annex'!$K$1:$K$4779,0),MATCH(N$2,'Data Annex'!$K$1:$BU$1,0)),"") -> 838.2249838 | O17: =IFERROR(INDEX('Data Annex'!$K$1:$BU$4779,MATCH(O$1&"|"&$B17,'Data Annex'!$K$1:$K$4779,0),MATCH(O$2,'Data Annex'!$K$1:$BU$1,0)),"") -> 861.6395467 | P17: =IFERROR(INDEX('Data Annex'!$K$1:$BU$4779,MATCH(P$1&"|"&$B17,'Data Annex'!$K$1:$K$4779,0),MATCH(P$2,'Data Annex'!$K$1:$BU$1,0)),"") -> 868.4748439 | Q17: =IFERROR(INDEX('Data Annex'!$K$1:$BU$4779,MATCH(Q$1&"|"&$B17,'Data Annex'!$K$1:$K$4779,0),MATCH(Q$2,'Data Annex'!$K$1:$BU$1,0)),"") -> 209.3006823 | R17: =IFERROR(INDEX('Data Annex'!$K$1:$BU$4779,MATCH(R$1&"|"&$B17,'Data Annex'!$K$1:$K$4779,0),MATCH(R$2,'Data Annex'!$K$1:$BU$1,0)),"") -> 216.9811432 | S17: =IFERROR(INDEX('Data Annex'!$K$1:$BU$4779,MATCH(S$1&"|"&$B17,'Data Annex'!$K$1:$K$4779,0),MATCH(S$2,'Data Annex'!$K$1:$BU$1,0)),"") -> 213.6202459 | T17: =IFERROR(INDEX('Data Annex'!$K$1:$BU$4779,MATCH(T$1&"|"&$B17,'Data Annex'!$K$1:$K$4779,0),MATCH(T$2,'Data Annex'!$K$1:$BU$1,0)),"") -> 266.4217578 | U17: =IFERROR(INDEX('Data Annex'!$K$1:$BU$4779,MATCH(U$1&"|"&$B17,'Data Annex'!$K$1:$K$4779,0),MATCH(U$2,'Data Annex'!$K$1:$BU$1,0)),"") -> 275.3993963 | V17: =IFERROR(INDEX('Data Annex'!$K$1:$BU$4779,MATCH(V$1&"|"&$B17,'Data Annex'!$K$1:$K$4779,0),MATCH(V$2,'Data Annex'!$K$1:$BU$1,0)),"") -> 275.1818934
A18: 7 | B18: DK | D18: DK | E18: =IFERROR(INDEX('Data Annex'!$K$1:$BU$4779,MATCH(E$1&"|"&$B18,'Data Annex'!$K$1:$K$4779,0),MATCH(E$2,'Data Annex'!$K$1:$BU$1,0)),"") -> 600.5694765 | F18: =IFERROR(INDEX('Data Annex'!$K$1:$BU$4779,MATCH(F$1&"|"&$B18,'Data Annex'!$K$1:$K$4779,0),MATCH(F$2,'Data Annex'!$K$1:$BU$1,0)),"") -> 587.0516506 | G18: =IFERROR(INDEX('Data Annex'!$K$1:$BU$4779,MATCH(G$1&"|"&$B18,'Data Annex'!$K$1:$K$4779,0),MATCH(G$2,'Data Annex'!$K$1:$BU$1,0)),"") -> 602.680993 | H18: =IFERROR(INDEX('Data Annex'!$K$1:$BU$4779,MATCH(H$1&"|"&$B18,'Data Annex'!$K$1:$K$4779,0),MATCH(H$2,'Data Annex'!$K$1:$BU$1,0)),"") -> 73.37544606 | I18: =IFERROR(INDEX('Data Annex'!$K$1:$BU$4779,MATCH(I$1&"|"&$B18,'Data Annex'!$K$1:$K$4779,0),MATCH(I$2,'Data Annex'!$K$1:$BU$1,0)),"") -> 72.53541551 | J18: =IFERROR(INDEX('Data Annex'!$K$1:$BU$4779,MATCH(J$1&"|"&$B18,'Data Annex'!$K$1:$K$4779,0),MATCH(J$2,'Data Annex'!$K$1:$BU$1,0)),"") -> 69.78112553 | K18: =IFERROR(INDEX('Data Annex'!$K$1:$BU$4779,MATCH(K$1&"|"&$B18,'Data Annex'!$K$1:$K$4779,0),MATCH(K$2,'Data Annex'!$K$1:$BU$1,0)),"") -> 57.46443966 | L18: =IFERROR(INDEX('Data Annex'!$K$1:$BU$4779,MATCH(L$1&"|"&$B18,'Data Annex'!$K$1:$K$4779,0),MATCH(L$2,'Data Annex'!$K$1:$BU$1,0)),"") -> 54.92398369 | M18: =IFERROR(INDEX('Data Annex'!$K$1:$BU$4779,MATCH(M$1&"|"&$B18,'Data Annex'!$K$1:$K$4779,0),MATCH(M$2,'Data Annex'!$K$1:$BU$1,0)),"") -> 52.42573186 | N18: =IFERROR(INDEX('Data Annex'!$K$1:$BU$4779,MATCH(N$1&"|"&$B18,'Data Annex'!$K$1:$K$4779,0),MATCH(N$2,'Data Annex'!$K$1:$BU$1,0)),"") -> 82.85101761 | O18: =IFERROR(INDEX('Data Annex'!$K$1:$BU$4779,MATCH(O$1&"|"&$B18,'Data Annex'!$K$1:$K$4779,0),MATCH(O$2,'Data Annex'!$K$1:$BU$1,0)),"") -> 89.76188749 | P18: =IFERROR(INDEX('Data Annex'!$K$1:$BU$4779,MATCH(P$1&"|"&$B18,'Data Annex'!$K$1:$K$4779,0),MATCH(P$2,'Data Annex'!$K$1:$BU$1,0)),"") -> 90.2020348 | Q18: =IFERROR(INDEX('Data Annex'!$K$1:$BU$4779,MATCH(Q$1&"|"&$B18,'Data Annex'!$K$1:$K$4779,0),MATCH(Q$2,'Data Annex'!$K$1:$BU$1,0)),"") -> 36.64387658 | R18: =IFERROR(INDEX('Data Annex'!$K$1:$BU$4779,MATCH(R$1&"|"&$B18,'Data Annex'!$K$1:$K$4779,0),MATCH(R$2,'Data Annex'!$K$1:$BU$1,0)),"") -> 37.28619258 | S18: =IFERROR(INDEX('Data Annex'!$K$1:$BU$4779,MATCH(S$1&"|"&$B18,'Data Annex'!$K$1:$K$4779,0),MATCH(S$2,'Data Annex'!$K$1:$BU$1,0)),"") -> 37.48754455 | T18: =IFERROR(INDEX('Data Annex'!$K$1:$BU$4779,MATCH(T$1&"|"&$B18,'Data Annex'!$K$1:$K$4779,0),MATCH(T$2,'Data Annex'!$K$1:$BU$1,0)),"") -> 25.34067826 | U18: =IFERROR(INDEX('Data Annex'!$K$1:$BU$4779,MATCH(U$1&"|"&$B18,'Data Annex'!$K$1:$K$4779,0),MATCH(U$2,'Data Annex'!$K$1:$BU$1,0)),"") -> 22.49735241 | V18: =IFERROR(INDEX('Data Annex'!$K$1:$BU$4779,MATCH(V$1&"|"&$B18,'Data Annex'!$K$1:$K$4779,0),MATCH(V$2,'Data Annex'!$K$1:$BU$1,0)),"") -> 22.93308775
A19: 8 | B19: EE | D19: EE | E19: =IFERROR(INDEX('Data Annex'!$K$1:$BU$4779,MATCH(E$1&"|"&$B19,'Data Annex'!$K$1:$K$4779,0),MATCH(E$2,'Data Annex'!$K$1:$BU$1,0)),"") -> 39.4407284 | F19: =IFERROR(INDEX('Data Annex'!$K$1:$BU$4779,MATCH(F$1&"|"&$B19,'Data Annex'!$K$1:$K$4779,0),MATCH(F$2,'Data Annex'!$K$1:$BU$1,0)),"") -> 40.25282473 | G19: =IFERROR(INDEX('Data Annex'!$K$1:$BU$4779,MATCH(G$1&"|"&$B19,'Data Annex'!$K$1:$K$4779,0),MATCH(G$2,'Data Annex'!$K$1:$BU$1,0)),"") -> 41.19969402 | H19: =IFERROR(INDEX('Data Annex'!$K$1:$BU$4779,MATCH(H$1&"|"&$B19,'Data Annex'!$K$1:$K$4779,0),MATCH(H$2,'Data Annex'!$K$1:$BU$1,0)),"") -> 14.9898008 | I19: =IFERROR(INDEX('Data Annex'!$K$1:$BU$4779,MATCH(I$1&"|"&$B19,'Data Annex'!$K$1:$K$4779,0),MATCH(I$2,'Data Annex'!$K$1:$BU$1,0)),"") -> 15.95735029 | J19: =IFERROR(INDEX('Data Annex'!$K$1:$BU$4779,MATCH(J$1&"|"&$B19,'Data Annex'!$K$1:$K$4779,0),MATCH(J$2,'Data Annex'!$K$1:$BU$1,0)),"") -> 16.00499835 | K19: =IFERROR(INDEX('Data Annex'!$K$1:$BU$4779,MATCH(K$1&"|"&$B19,'Data Annex'!$K$1:$K$4779,0),MATCH(K$2,'Data Annex'!$K$1:$BU$1,0)),"") -> 12.61715195 | L19: =IFERROR(INDEX('Data Annex'!$K$1:$BU$4779,MATCH(L$1&"|"&$B19,'Data Annex'!$K$1:$K$4779,0),MATCH(L$2,'Data Annex'!$K$1:$BU$1,0)),"") -> 13.42583292 | M19: =IFERROR(INDEX('Data Annex'!$K$1:$BU$4779,MATCH(M$1&"|"&$B19,'Data Annex'!$K$1:$K$4779,0),MATCH(M$2,'Data Annex'!$K$1:$BU$1,0)),"") -> 13.50022965 | N19: =IFERROR(INDEX('Data Annex'!$K$1:$BU$4779,MATCH(N$1&"|"&$B19,'Data Annex'!$K$1:$K$4779,0),MATCH(N$2,'Data Annex'!$K$1:$BU$1,0)),"") -> 12.02832243 | O19: =IFERROR(INDEX('Data Annex'!$K$1:$BU$4779,MATCH(O$1&"|"&$B19,'Data Annex'!$K$1:$K$4779,0),MATCH(O$2,'Data Annex'!$K$1:$BU$1,0)),"") -> 12.96430164 | P19: =IFERROR(INDEX('Data Annex'!$K$1:$BU$4779,MATCH(P$1&"|"&$B19,'Data Annex'!$K$1:$K$4779,0),MATCH(P$2,'Data Annex'!$K$1:$BU$1,0)),"") -> 12.6792689 | Q19: =IFERROR(INDEX('Data Annex'!$K$1:$BU$4779,MATCH(Q$1&"|"&$B19,'Data Annex'!$K$1:$K$4779,0),MATCH(Q$2,'Data Annex'!$K$1:$BU$1,0)),"") -> 8.65949016 | R19: =IFERROR(INDEX('Data Annex'!$K$1:$BU$4779,MATCH(R$1&"|"&$B19,'Data Annex'!$K$1:$K$4779,0),MATCH(R$2,'Data Annex'!$K$1:$BU$1,0)),"") -> 9.011303356 | S19: =IFERROR(INDEX('Data Annex'!$K$1:$BU$4779,MATCH(S$1&"|"&$B19,'Data Annex'!$K$1:$K$4779,0),MATCH(S$2,'Data Annex'!$K$1:$BU$1,0)),"") -> 8.914191522 | T19: =IFERROR(INDEX('Data Annex'!$K$1:$BU$4779,MATCH(T$1&"|"&$B19,'Data Annex'!$K$1:$K$4779,0),MATCH(T$2,'Data Annex'!$K$1:$BU$1,0)),"") -> 7.203935889 | U19: =IFERROR(INDEX('Data Annex'!$K$1:$BU$4779,MATCH(U$1&"|"&$B19,'Data Annex'!$K$1:$K$4779,0),MATCH(U$2,'Data Annex'!$K$1:$BU$1,0)),"") -> 7.700695698 | V19: =IFERROR(INDEX('Data Annex'!$K$1:$BU$4779,MATCH(V$1&"|"&$B19,'Data Annex'!$K$1:$K$4779,0),MATCH(V$2,'Data Annex'!$K$1:$BU$1,0)),"") -> 7.709114235
A20: 9 | B20: ES | D20: ES | E20: =IFERROR(INDEX('Data Annex'!$K$1:$BU$4779,MATCH(E$1&"|"&$B20,'Data Annex'!$K$1:$K$4779,0),MATCH(E$2,'Data Annex'!$K$1:$BU$1,0)),"") -> 2758.081029 | F20: =IFERROR(INDEX('Data Annex'!$K$1:$BU$4779,MATCH(F$1&"|"&$B20,'Data Annex'!$K$1:$K$4779,0),MATCH(F$2,'Data Annex'!$K$1:$BU$1,0)),"") -> 2724.930476 | G20: =IFERROR(INDEX('Data Annex'!$K$1:$BU$4779,MATCH(G$1&"|"&$B20,'Data Annex'!$K$1:$K$4779,0),MATCH(G$2,'Data Annex'!$K$1:$BU$1,0)),"") -> 2740.748071 | H20: =IFERROR(INDEX('Data Annex'!$K$1:$BU$4779,MATCH(H$1&"|"&$B20,'Data Annex'!$K$1:$K$4779,0),MATCH(H$2,'Data Annex'!$K$1:$BU$1,0)),"") -> 1202.692355 | I20: =IFERROR(INDEX('Data Annex'!$K$1:$BU$4779,MATCH(I$1&"|"&$B20,'Data Annex'!$K$1:$K$4779,0),MATCH(I$2,'Data Annex'!$K$1:$BU$1,0)),"") -> 1216.147593 | J20: =IFERROR(INDEX('Data Annex'!$K$1:$BU$4779,MATCH(J$1&"|"&$B20,'Data Annex'!$K$1:$K$4779,0),MATCH(J$2,'Data Annex'!$K$1:$BU$1,0)),"") -> 1214.666907 | K20: =IFERROR(INDEX('Data Annex'!$K$1:$BU$4779,MATCH(K$1&"|"&$B20,'Data Annex'!$K$1:$K$4779,0),MATCH(K$2,'Data Annex'!$K$1:$BU$1,0)),"") -> 844.6290874 | L20: =IFERROR(INDEX('Data Annex'!$K$1:$BU$4779,MATCH(L$1&"|"&$B20,'Data Annex'!$K$1:$K$4779,0),MATCH(L$2,'Data Annex'!$K$1:$BU$1,0)),"") -> 841.7742758 | M20: =IFERROR(INDEX('Data Annex'!$K$1:$BU$4779,MATCH(M$1&"|"&$B20,'Data Annex'!$K$1:$K$4779,0),MATCH(M$2,'Data Annex'!$K$1:$BU$1,0)),"") -> 835.8496423 | N20: =IFERROR(INDEX('Data Annex'!$K$1:$BU$4779,MATCH(N$1&"|"&$B20,'Data Annex'!$K$1:$K$4779,0),MATCH(N$2,'Data Annex'!$K$1:$BU$1,0)),"") -> 767.253747 | O20: =IFERROR(INDEX('Data Annex'!$K$1:$BU$4779,MATCH(O$1&"|"&$B20,'Data Annex'!$K$1:$K$4779,0),MATCH(O$2,'Data Annex'!$K$1:$BU$1,0)),"") -> 798.2400942 | P20: =IFERROR(INDEX('Data Annex'!$K$1:$BU$4779,MATCH(P$1&"|"&$B20,'Data Annex'!$K$1:$K$4779,0),MATCH(P$2,'Data Annex'!$K$1:$BU$1,0)),"") -> 797.7121901 | Q20: =IFERROR(INDEX('Data Annex'!$K$1:$BU$4779,MATCH(Q$1&"|"&$B20,'Data Annex'!$K$1:$K$4779,0),MATCH(Q$2,'Data Annex'!$K$1:$BU$1,0)),"") -> 321.540092 | R20: =IFERROR(INDEX('Data Annex'!$K$1:$BU$4779,MATCH(R$1&"|"&$B20,'Data Annex'!$K$1:$K$4779,0),MATCH(R$2,'Data Annex'!$K$1:$BU$1,0)),"") -> 318.0234138 | S20: =IFERROR(INDEX('Data Annex'!$K$1:$BU$4779,MATCH(S$1&"|"&$B20,'Data Annex'!$K$1:$K$4779,0),MATCH(S$2,'Data Annex'!$K$1:$BU$1,0)),"") -> 313.8552574 | T20: =IFERROR(INDEX('Data Annex'!$K$1:$BU$4779,MATCH(T$1&"|"&$B20,'Data Annex'!$K$1:$K$4779,0),MATCH(T$2,'Data Annex'!$K$1:$BU$1,0)),"") -> 106.8187349 | U20: =IFERROR(INDEX('Data Annex'!$K$1:$BU$4779,MATCH(U$1&"|"&$B20,'Data Annex'!$K$1:$K$4779,0),MATCH(U$2,'Data Annex'!$K$1:$BU$1,0)),"") -> 117.4326854 | V20: =IFERROR(INDEX('Data Annex'!$K$1:$BU$4779,MATCH(V$1&"|"&$B20,'Data Annex'!$K$1:$K$4779,0),MATCH(V$2,'Data Annex'!$K$1:$BU$1,0)),"") -> 120.1110486
A21: 10 | B21: FI | D21: FI | E21: =IFERROR(INDEX('Data Annex'!$K$1:$BU$4779,MATCH(E$1&"|"&$B21,'Data Annex'!$K$1:$K$4779,0),MATCH(E$2,'Data Annex'!$K$1:$BU$1,0)),"") -> 579.6601744 | F21: =IFERROR(INDEX('Data Annex'!$K$1:$BU$4779,MATCH(F$1&"|"&$B21,'Data Annex'!$K$1:$K$4779,0),MATCH(F$2,'Data Annex'!$K$1:$BU$1,0)),"") -> 571.3632431 | G21: =IFERROR(INDEX('Data Annex'!$K$1:$BU$4779,MATCH(G$1&"|"&$B21,'Data Annex'!$K$1:$K$4779,0),MATCH(G$2,'Data Annex'!$K$1:$BU$1,0)),"") -> 549.2212636 | H21: =IFERROR(INDEX('Data Annex'!$K$1:$BU$4779,MATCH(H$1&"|"&$B21,'Data Annex'!$K$1:$K$4779,0),MATCH(H$2,'Data Annex'!$K$1:$BU$1,0)),"") -> 207.8896743 | I21: =IFERROR(INDEX('Data Annex'!$K$1:$BU$4779,MATCH(I$1&"|"&$B21,'Data Annex'!$K$1:$K$4779,0),MATCH(I$2,'Data Annex'!$K$1:$BU$1,0)),"") -> 200.4956731 | J21: =IFERROR(INDEX('Data Annex'!$K$1:$BU$4779,MATCH(J$1&"|"&$B21,'Data Annex'!$K$1:$K$4779,0),MATCH(J$2,'Data Annex'!$K$1:$BU$1,0)),"") -> 197.2849004 | K21: =IFERROR(INDEX('Data Annex'!$K$1:$BU$4779,MATCH(K$1&"|"&$B21,'Data Annex'!$K$1:$K$4779,0),MATCH(K$2,'Data Annex'!$K$1:$BU$1,0)),"") -> 171.3015153 | L21: =IFERROR(INDEX('Data Annex'!$K$1:$BU$4779,MATCH(L$1&"|"&$B21,'Data Annex'!$K$1:$K$4779,0),MATCH(L$2,'Data Annex'!$K$1:$BU$1,0)),"") -> 166.8950392 | M21: =IFERROR(INDEX('Data Annex'!$K$1:$BU$4779,MATCH(M$1&"|"&$B21,'Data Annex'!$K$1:$K$4779,0),MATCH(M$2,'Data Annex'!$K$1:$BU$1,0)),"") -> 163.0002958 | N21: =IFERROR(INDEX('Data Annex'!$K$1:$BU$4779,MATCH(N$1&"|"&$B21,'Data Annex'!$K$1:$K$4779,0),MATCH(N$2,'Data Annex'!$K$1:$BU$1,0)),"") -> 165.7484091 | O21: =IFERROR(INDEX('Data Annex'!$K$1:$BU$4779,MATCH(O$1&"|"&$B21,'Data Annex'!$K$1:$K$4779,0),MATCH(O$2,'Data Annex'!$K$1:$BU$1,0)),"") -> 172.7596365 | P21: =IFERROR(INDEX('Data Annex'!$K$1:$BU$4779,MATCH(P$1&"|"&$B21,'Data Annex'!$K$1:$K$4779,0),MATCH(P$2,'Data Annex'!$K$1:$BU$1,0)),"") -> 169.188767 | Q21: =IFERROR(INDEX('Data Annex'!$K$1:$BU$4779,MATCH(Q$1&"|"&$B21,'Data Annex'!$K$1:$K$4779,0),MATCH(Q$2,'Data Annex'!$K$1:$BU$1,0)),"") -> 62.39592696 | R21: =IFERROR(INDEX('Data Annex'!$K$1:$BU$4779,MATCH(R$1&"|"&$B21,'Data Annex'!$K$1:$K$4779,0),MATCH(R$2,'Data Annex'!$K$1:$BU$1,0)),"") -> 64.47012456 | S21: =IFERROR(INDEX('Data Annex'!$K$1:$BU$4779,MATCH(S$1&"|"&$B21,'Data Annex'!$K$1:$K$4779,0),MATCH(S$2,'Data Annex'!$K$1:$BU$1,0)),"") -> 64.76354824 | T21: =IFERROR(INDEX('Data Annex'!$K$1:$BU$4779,MATCH(T$1&"|"&$B21,'Data Annex'!$K$1:$K$4779,0),MATCH(T$2,'Data Annex'!$K$1:$BU$1,0)),"") -> 28.11420397 | U21: =IFERROR(INDEX('Data Annex'!$K$1:$BU$4779,MATCH(U$1&"|"&$B21,'Data Annex'!$K$1:$K$4779,0),MATCH(U$2,'Data Annex'!$K$1:$BU$1,0)),"") -> 33.44455303 | V21: =IFERROR(INDEX('Data Annex'!$K$1:$BU$4779,MATCH(V$1&"|"&$B21,'Data Annex'!$K$1:$K$4779,0),MATCH(V$2,'Data Annex'!$K$1:$BU$1,0)),"") -> 34.36186413
A22: 11 | B22: FR | D22: FR | E22: =IFERROR(INDEX('Data Annex'!$K$1:$BU$4779,MATCH(E$1&"|"&$B22,'Data Annex'!$K$1:$K$4779,0),MATCH(E$2,'Data Annex'!$K$1:$BU$1,0)),"") -> 6015.459095 | F22: =IFERROR(INDEX('Data Annex'!$K$1:$BU$4779,MATCH(F$1&"|"&$B22,'Data Annex'!$K$1:$K$4779,0),MATCH(F$2,'Data Annex'!$K$1:$BU$1,0)),"") -> 6008.448736 | G22: =IFERROR(INDEX('Data Annex'!$K$1:$BU$4779,MATCH(G$1&"|"&$B22,'Data Annex'!$K$1:$K$4779,0),MATCH(G$2,'Data Annex'!$K$1:$BU$1,0)),"") -> 6077.084642 | H22: =IFERROR(INDEX('Data Annex'!$K$1:$BU$4779,MATCH(H$1&"|"&$B22,'Data Annex'!$K$1:$K$4779,0),MATCH(H$2,'Data Annex'!$K$1:$BU$1,0)),"") -> 2002.292013 | I22: =IFERROR(INDEX('Data Annex'!$K$1:$BU$4779,MATCH(I$1&"|"&$B22,'Data Annex'!$K$1:$K$4779,0),MATCH(I$2,'Data Annex'!$K$1:$BU$1,0)),"") -> 2021.41064 | J22: =IFERROR(INDEX('Data Annex'!$K$1:$BU$4779,MATCH(J$1&"|"&$B22,'Data Annex'!$K$1:$K$4779,0),MATCH(J$2,'Data Annex'!$K$1:$BU$1,0)),"") -> 2054.78413 | K22: =IFERROR(INDEX('Data Annex'!$K$1:$BU$4779,MATCH(K$1&"|"&$B22,'Data Annex'!$K$1:$K$4779,0),MATCH(K$2,'Data Annex'!$K$1:$BU$1,0)),"") -> 660.7987166 | L22: =IFERROR(INDEX('Data Annex'!$K$1:$BU$4779,MATCH(L$1&"|"&$B22,'Data Annex'!$K$1:$K$4779,0),MATCH(L$2,'Data Annex'!$K$1:$BU$1,0)),"") -> 636.8553997 | M22: =IFERROR(INDEX('Data Annex'!$K$1:$BU$4779,MATCH(M$1&"|"&$B22,'Data Annex'!$K$1:$K$4779,0),MATCH(M$2,'Data Annex'!$K$1:$BU$1,0)),"") -> 645.1402615 | N22: =IFERROR(INDEX('Data Annex'!$K$1:$BU$4779,MATCH(N$1&"|"&$B22,'Data Annex'!$K$1:$K$4779,0),MATCH(N$2,'Data Annex'!$K$1:$BU$1,0)),"") -> 1786.117395 | O22: =IFERROR(INDEX('Data Annex'!$K$1:$BU$4779,MATCH(O$1&"|"&$B22,'Data Annex'!$K$1:$K$4779,0),MATCH(O$2,'Data Annex'!$K$1:$BU$1,0)),"") -> 1914.817788 | P22: =IFERROR(INDEX('Data Annex'!$K$1:$BU$4779,MATCH(P$1&"|"&$B22,'Data Annex'!$K$1:$K$4779,0),MATCH(P$2,'Data Annex'!$K$1:$BU$1,0)),"") -> 1903.239332 | Q22: =IFERROR(INDEX('Data Annex'!$K$1:$BU$4779,MATCH(Q$1&"|"&$B22,'Data Annex'!$K$1:$K$4779,0),MATCH(Q$2,'Data Annex'!$K$1:$BU$1,0)),"") -> 818.2956642 | R22: =IFERROR(INDEX('Data Annex'!$K$1:$BU$4779,MATCH(R$1&"|"&$B22,'Data Annex'!$K$1:$K$4779,0),MATCH(R$2,'Data Annex'!$K$1:$BU$1,0)),"") -> 867.6529107 | S22: =IFERROR(INDEX('Data Annex'!$K$1:$BU$4779,MATCH(S$1&"|"&$B22,'Data Annex'!$K$1:$K$4779,0),MATCH(S$2,'Data Annex'!$K$1:$BU$1,0)),"") -> 868.982873 | T22: =IFERROR(INDEX('Data Annex'!$K$1:$BU$4779,MATCH(T$1&"|"&$B22,'Data Annex'!$K$1:$K$4779,0),MATCH(T$2,'Data Annex'!$K$1:$BU$1,0)),"") -> 251.8737771 | U22: =IFERROR(INDEX('Data Annex'!$K$1:$BU$4779,MATCH(U$1&"|"&$B22,'Data Annex'!$K$1:$K$4779,0),MATCH(U$2,'Data Annex'!$K$1:$BU$1,0)),"") -> 275.529426 | V22: =IFERROR(INDEX('Data Annex'!$K$1:$BU$4779,MATCH(V$1&"|"&$B22,'Data Annex'!$K$1:$K$4779,0),MATCH(V$2,'Data Annex'!$K$1:$BU$1,0)),"") -> 281.0674917
A23: 13 | B23: GR | D23: GR | E23: =IFERROR(INDEX('Data Annex'!$K$1:$BU$4779,MATCH(E$1&"|"&$B23,'Data Annex'!$K$1:$K$4779,0),MATCH(E$2,'Data Annex'!$K$1:$BU$1,0)),"") -> 216.57912 | F23: =IFERROR(INDEX('Data Annex'!$K$1:$BU$4779,MATCH(F$1&"|"&$B23,'Data Annex'!$K$1:$K$4779,0),MATCH(F$2,'Data Annex'!$K$1:$BU$1,0)),"") -> 215.0843085 | G23: =IFERROR(INDEX('Data Annex'!$K$1:$BU$4779,MATCH(G$1&"|"&$B23,'Data Annex'!$K$1:$K$4779,0),MATCH(G$2,'Data Annex'!$K$1:$BU$1,0)),"") -> 201.1008635 | H23: =IFERROR(INDEX('Data Annex'!$K$1:$BU$4779,MATCH(H$1&"|"&$B23,'Data Annex'!$K$1:$K$4779,0),MATCH(H$2,'Data Annex'!$K$1:$BU$1,0)),"") -> 46.31276605 | I23: =IFERROR(INDEX('Data Annex'!$K$1:$BU$4779,MATCH(I$1&"|"&$B23,'Data Annex'!$K$1:$K$4779,0),MATCH(I$2,'Data Annex'!$K$1:$BU$1,0)),"") -> 45.66721784 | J23: =IFERROR(INDEX('Data Annex'!$K$1:$BU$4779,MATCH(J$1&"|"&$B23,'Data Annex'!$K$1:$K$4779,0),MATCH(J$2,'Data Annex'!$K$1:$BU$1,0)),"") -> 44.45326753 | K23: =IFERROR(INDEX('Data Annex'!$K$1:$BU$4779,MATCH(K$1&"|"&$B23,'Data Annex'!$K$1:$K$4779,0),MATCH(K$2,'Data Annex'!$K$1:$BU$1,0)),"") -> 33.1794325 | L23: =IFERROR(INDEX('Data Annex'!$K$1:$BU$4779,MATCH(L$1&"|"&$B23,'Data Annex'!$K$1:$K$4779,0),MATCH(L$2,'Data Annex'!$K$1:$BU$1,0)),"") -> 32.76788064 | M23: =IFERROR(INDEX('Data Annex'!$K$1:$BU$4779,MATCH(M$1&"|"&$B23,'Data Annex'!$K$1:$K$4779,0),MATCH(M$2,'Data Annex'!$K$1:$BU$1,0)),"") -> 32.33773251 | N23: =IFERROR(INDEX('Data Annex'!$K$1:$BU$4779,MATCH(N$1&"|"&$B23,'Data Annex'!$K$1:$K$4779,0),MATCH(N$2,'Data Annex'!$K$1:$BU$1,0)),"") -> 79.54391026 | O23: =IFERROR(INDEX('Data Annex'!$K$1:$BU$4779,MATCH(O$1&"|"&$B23,'Data Annex'!$K$1:$K$4779,0),MATCH(O$2,'Data Annex'!$K$1:$BU$1,0)),"") -> 83.52127047 | P23: =IFERROR(INDEX('Data Annex'!$K$1:$BU$4779,MATCH(P$1&"|"&$B23,'Data Annex'!$K$1:$K$4779,0),MATCH(P$2,'Data Annex'!$K$1:$BU$1,0)),"") -> 82.0073044 | Q23: =IFERROR(INDEX('Data Annex'!$K$1:$BU$4779,MATCH(Q$1&"|"&$B23,'Data Annex'!$K$1:$K$4779,0),MATCH(Q$2,'Data Annex'!$K$1:$BU$1,0)),"") -> 34.76015415 | R23: =IFERROR(INDEX('Data Annex'!$K$1:$BU$4779,MATCH(R$1&"|"&$B23,'Data Annex'!$K$1:$K$4779,0),MATCH(R$2,'Data Annex'!$K$1:$BU$1,0)),"") -> 34.94245864 | S23: =IFERROR(INDEX('Data Annex'!$K$1:$BU$4779,MATCH(S$1&"|"&$B23,'Data Annex'!$K$1:$K$4779,0),MATCH(S$2,'Data Annex'!$K$1:$BU$1,0)),"") -> 34.66902621 | T23: =IFERROR(INDEX('Data Annex'!$K$1:$BU$4779,MATCH(T$1&"|"&$B23,'Data Annex'!$K$1:$K$4779,0),MATCH(T$2,'Data Annex'!$K$1:$BU$1,0)),"") -> 24.13657443 | U23: =IFERROR(INDEX('Data Annex'!$K$1:$BU$4779,MATCH(U$1&"|"&$B23,'Data Annex'!$K$1:$K$4779,0),MATCH(U$2,'Data Annex'!$K$1:$BU$1,0)),"") -> 23.68219743 | V23: =IFERROR(INDEX('Data Annex'!$K$1:$BU$4779,MATCH(V$1&"|"&$B23,'Data Annex'!$K$1:$K$4779,0),MATCH(V$2,'Data Annex'!$K$1:$BU$1,0)),"") -> 23.08400942
A24: 14 | B24: HR | D24: HR | E24: =IFERROR(INDEX('Data Annex'!$K$1:$BU$4779,MATCH(E$1&"|"&$B24,'Data Annex'!$K$1:$K$4779,0),MATCH(E$2,'Data Annex'!$K$1:$BU$1,0)),"") -> 45.22335086 | F24: =IFERROR(INDEX('Data Annex'!$K$1:$BU$4779,MATCH(F$1&"|"&$B24,'Data Annex'!$K$1:$K$4779,0),MATCH(F$2,'Data Annex'!$K$1:$BU$1,0)),"") -> 50.70053289 | G24: =IFERROR(INDEX('Data Annex'!$K$1:$BU$4779,MATCH(G$1&"|"&$B24,'Data Annex'!$K$1:$K$4779,0),MATCH(G$2,'Data Annex'!$K$1:$BU$1,0)),"") -> 47.83276673 | H24: =IFERROR(INDEX('Data Annex'!$K$1:$BU$4779,MATCH(H$1&"|"&$B24,'Data Annex'!$K$1:$K$4779,0),MATCH(H$2,'Data Annex'!$K$1:$BU$1,0)),"") -> 14.0097241 | I24: =IFERROR(INDEX('Data Annex'!$K$1:$BU$4779,MATCH(I$1&"|"&$B24,'Data Annex'!$K$1:$K$4779,0),MATCH(I$2,'Data Annex'!$K$1:$BU$1,0)),"") -> 14.71376326 | J24: =IFERROR(INDEX('Data Annex'!$K$1:$BU$4779,MATCH(J$1&"|"&$B24,'Data Annex'!$K$1:$K$4779,0),MATCH(J$2,'Data Annex'!$K$1:$BU$1,0)),"") -> 14.90692746 | K24: =IFERROR(INDEX('Data Annex'!$K$1:$BU$4779,MATCH(K$1&"|"&$B24,'Data Annex'!$K$1:$K$4779,0),MATCH(K$2,'Data Annex'!$K$1:$BU$1,0)),"") -> 5.910081574 | L24: =IFERROR(INDEX('Data Annex'!$K$1:$BU$4779,MATCH(L$1&"|"&$B24,'Data Annex'!$K$1:$K$4779,0),MATCH(L$2,'Data Annex'!$K$1:$BU$1,0)),"") -> 6.526139849 | M24: =IFERROR(INDEX('Data Annex'!$K$1:$BU$4779,MATCH(M$1&"|"&$B24,'Data Annex'!$K$1:$K$4779,0),MATCH(M$2,'Data Annex'!$K$1:$BU$1,0)),"") -> 6.60711512 | N24: =IFERROR(INDEX('Data Annex'!$K$1:$BU$4779,MATCH(N$1&"|"&$B24,'Data Annex'!$K$1:$K$4779,0),MATCH(N$2,'Data Annex'!$K$1:$BU$1,0)),"") -> 10.82629525 | O24: =IFERROR(INDEX('Data Annex'!$K$1:$BU$4779,MATCH(O$1&"|"&$B24,'Data Annex'!$K$1:$K$4779,0),MATCH(O$2,'Data Annex'!$K$1:$BU$1,0)),"") -> 12.16786669 | P24: =IFERROR(INDEX('Data Annex'!$K$1:$BU$4779,MATCH(P$1&"|"&$B24,'Data Annex'!$K$1:$K$4779,0),MATCH(P$2,'Data Annex'!$K$1:$BU$1,0)),"") -> 12.38866444 | Q24: =IFERROR(INDEX('Data Annex'!$K$1:$BU$4779,MATCH(Q$1&"|"&$B24,'Data Annex'!$K$1:$K$4779,0),MATCH(Q$2,'Data Annex'!$K$1:$BU$1,0)),"") -> 5.651964187 | R24: =IFERROR(INDEX('Data Annex'!$K$1:$BU$4779,MATCH(R$1&"|"&$B24,'Data Annex'!$K$1:$K$4779,0),MATCH(R$2,'Data Annex'!$K$1:$BU$1,0)),"") -> 5.875728485 | S24: =IFERROR(INDEX('Data Annex'!$K$1:$BU$4779,MATCH(S$1&"|"&$B24,'Data Annex'!$K$1:$K$4779,0),MATCH(S$2,'Data Annex'!$K$1:$BU$1,0)),"") -> 5.913485394 | T24: =IFERROR(INDEX('Data Annex'!$K$1:$BU$4779,MATCH(T$1&"|"&$B24,'Data Annex'!$K$1:$K$4779,0),MATCH(T$2,'Data Annex'!$K$1:$BU$1,0)),"") -> 4.374932513 | U24: =IFERROR(INDEX('Data Annex'!$K$1:$BU$4779,MATCH(U$1&"|"&$B24,'Data Annex'!$K$1:$K$4779,0),MATCH(U$2,'Data Annex'!$K$1:$BU$1,0)),"") -> 4.783556922 | V24: =IFERROR(INDEX('Data Annex'!$K$1:$BU$4779,MATCH(V$1&"|"&$B24,'Data Annex'!$K$1:$K$4779,0),MATCH(V$2,'Data Annex'!$K$1:$BU$1,0)),"") -> 4.713433532
A25: 15 | B25: HU | D25: HU | E25: =IFERROR(INDEX('Data Annex'!$K$1:$BU$4779,MATCH(E$1&"|"&$B25,'Data Annex'!$K$1:$K$4779,0),MATCH(E$2,'Data Annex'!$K$1:$BU$1,0)),"") -> 95.22133594 | F25: =IFERROR(INDEX('Data Annex'!$K$1:$BU$4779,MATCH(F$1&"|"&$B25,'Data Annex'!$K$1:$K$4779,0),MATCH(F$2,'Data Annex'!$K$1:$BU$1,0)),"") -> 98.58079954 | G25: =IFERROR(INDEX('Data Annex'!$K$1:$BU$4779,MATCH(G$1&"|"&$B25,'Data Annex'!$K$1:$K$4779,0),MATCH(G$2,'Data Annex'!$K$1:$BU$1,0)),"") -> 100.2476862 | H25: =IFERROR(INDEX('Data Annex'!$K$1:$BU$4779,MATCH(H$1&"|"&$B25,'Data Annex'!$K$1:$K$4779,0),MATCH(H$2,'Data Annex'!$K$1:$BU$1,0)),"") -> 28.73107068 | I25: =IFERROR(INDEX('Data Annex'!$K$1:$BU$4779,MATCH(I$1&"|"&$B25,'Data Annex'!$K$1:$K$4779,0),MATCH(I$2,'Data Annex'!$K$1:$BU$1,0)),"") -> 28.93266241 | J25: =IFERROR(INDEX('Data Annex'!$K$1:$BU$4779,MATCH(J$1&"|"&$B25,'Data Annex'!$K$1:$K$4779,0),MATCH(J$2,'Data Annex'!$K$1:$BU$1,0)),"") -> 30.5121951 | K25: =IFERROR(INDEX('Data Annex'!$K$1:$BU$4779,MATCH(K$1&"|"&$B25,'Data Annex'!$K$1:$K$4779,0),MATCH(K$2,'Data Annex'!$K$1:$BU$1,0)),"") -> 14.04645288 | L25: =IFERROR(INDEX('Data Annex'!$K$1:$BU$4779,MATCH(L$1&"|"&$B25,'Data Annex'!$K$1:$K$4779,0),MATCH(L$2,'Data Annex'!$K$1:$BU$1,0)),"") -> 14.12025581 | M25: =IFERROR(INDEX('Data Annex'!$K$1:$BU$4779,MATCH(M$1&"|"&$B25,'Data Annex'!$K$1:$K$4779,0),MATCH(M$2,'Data Annex'!$K$1:$BU$1,0)),"") -> 14.72108391 | N25: =IFERROR(INDEX('Data Annex'!$K$1:$BU$4779,MATCH(N$1&"|"&$B25,'Data Annex'!$K$1:$K$4779,0),MATCH(N$2,'Data Annex'!$K$1:$BU$1,0)),"") -> 32.35682877 | O25: =IFERROR(INDEX('Data Annex'!$K$1:$BU$4779,MATCH(O$1&"|"&$B25,'Data Annex'!$K$1:$K$4779,0),MATCH(O$2,'Data Annex'!$K$1:$BU$1,0)),"") -> 34.90617418 | P25: =IFERROR(INDEX('Data Annex'!$K$1:$BU$4779,MATCH(P$1&"|"&$B25,'Data Annex'!$K$1:$K$4779,0),MATCH(P$2,'Data Annex'!$K$1:$BU$1,0)),"") -> 33.93498678 | Q25: =IFERROR(INDEX('Data Annex'!$K$1:$BU$4779,MATCH(Q$1&"|"&$B25,'Data Annex'!$K$1:$K$4779,0),MATCH(Q$2,'Data Annex'!$K$1:$BU$1,0)),"") -> 16.1201923 | R25: =IFERROR(INDEX('Data Annex'!$K$1:$BU$4779,MATCH(R$1&"|"&$B25,'Data Annex'!$K$1:$K$4779,0),MATCH(R$2,'Data Annex'!$K$1:$BU$1,0)),"") -> 17.04126802 | S25: =IFERROR(INDEX('Data Annex'!$K$1:$BU$4779,MATCH(S$1&"|"&$B25,'Data Annex'!$K$1:$K$4779,0),MATCH(S$2,'Data Annex'!$K$1:$BU$1,0)),"") -> 17.19135361 | T25: =IFERROR(INDEX('Data Annex'!$K$1:$BU$4779,MATCH(T$1&"|"&$B25,'Data Annex'!$K$1:$K$4779,0),MATCH(T$2,'Data Annex'!$K$1:$BU$1,0)),"") -> 10.65089399 | U25: =IFERROR(INDEX('Data Annex'!$K$1:$BU$4779,MATCH(U$1&"|"&$B25,'Data Annex'!$K$1:$K$4779,0),MATCH(U$2,'Data Annex'!$K$1:$BU$1,0)),"") -> 11.6744765 | V25: =IFERROR(INDEX('Data Annex'!$K$1:$BU$4779,MATCH(V$1&"|"&$B25,'Data Annex'!$K$1:$K$4779,0),MATCH(V$2,'Data Annex'!$K$1:$BU$1,0)),"") -> 11.91440647
A26: 16 | B26: IE | D26: IE | E26: =IFERROR(INDEX('Data Annex'!$K$1:$BU$4779,MATCH(E$1&"|"&$B26,'Data Annex'!$K$1:$K$4779,0),MATCH(E$2,'Data Annex'!$K$1:$BU$1,0)),"") -> 274.7936927 | F26: =IFERROR(INDEX('Data Annex'!$K$1:$BU$4779,MATCH(F$1&"|"&$B26,'Data Annex'!$K$1:$K$4779,0),MATCH(F$2,'Data Annex'!$K$1:$BU$1,0)),"") -> 292.4490626 | G26: =IFERROR(INDEX('Data Annex'!$K$1:$BU$4779,MATCH(G$1&"|"&$B26,'Data Annex'!$K$1:$K$4779,0),MATCH(G$2,'Data Annex'!$K$1:$BU$1,0)),"") -> 294.9271573 | H26: =IFERROR(INDEX('Data Annex'!$K$1:$BU$4779,MATCH(H$1&"|"&$B26,'Data Annex'!$K$1:$K$4779,0),MATCH(H$2,'Data Annex'!$K$1:$BU$1,0)),"") -> 83.38517206 | I26: =IFERROR(INDEX('Data Annex'!$K$1:$BU$4779,MATCH(I$1&"|"&$B26,'Data Annex'!$K$1:$K$4779,0),MATCH(I$2,'Data Annex'!$K$1:$BU$1,0)),"") -> 79.83828786 | J26: =IFERROR(INDEX('Data Annex'!$K$1:$BU$4779,MATCH(J$1&"|"&$B26,'Data Annex'!$K$1:$K$4779,0),MATCH(J$2,'Data Annex'!$K$1:$BU$1,0)),"") -> 88.70023382 | K26: =IFERROR(INDEX('Data Annex'!$K$1:$BU$4779,MATCH(K$1&"|"&$B26,'Data Annex'!$K$1:$K$4779,0),MATCH(K$2,'Data Annex'!$K$1:$BU$1,0)),"") -> 71.28631466 | L26: =IFERROR(INDEX('Data Annex'!$K$1:$BU$4779,MATCH(L$1&"|"&$B26,'Data Annex'!$K$1:$K$4779,0),MATCH(L$2,'Data Annex'!$K$1:$BU$1,0)),"") -> 68.2052736 | M26: =IFERROR(INDEX('Data Annex'!$K$1:$BU$4779,MATCH(M$1&"|"&$B26,'Data Annex'!$K$1:$K$4779,0),MATCH(M$2,'Data Annex'!$K$1:$BU$1,0)),"") -> 75.90343324 | N26: =IFERROR(INDEX('Data Annex'!$K$1:$BU$4779,MATCH(N$1&"|"&$B26,'Data Annex'!$K$1:$K$4779,0),MATCH(N$2,'Data Annex'!$K$1:$BU$1,0)),"") -> 68.25015529 | O26: =IFERROR(INDEX('Data Annex'!$K$1:$BU$4779,MATCH(O$1&"|"&$B26,'Data Annex'!$K$1:$K$4779,0),MATCH(O$2,'Data Annex'!$K$1:$BU$1,0)),"") -> 69.58224517 | P26: =IFERROR(INDEX('Data Annex'!$K$1:$BU$4779,MATCH(P$1&"|"&$B26,'Data Annex'!$K$1:$K$4779,0),MATCH(P$2,'Data Annex'!$K$1:$BU$1,0)),"") -> 69.34798733 | Q26: =IFERROR(INDEX('Data Annex'!$K$1:$BU$4779,MATCH(Q$1&"|"&$B26,'Data Annex'!$K$1:$K$4779,0),MATCH(Q$2,'Data Annex'!$K$1:$BU$1,0)),"") -> 26.78205046 | R26: =IFERROR(INDEX('Data Annex'!$K$1:$BU$4779,MATCH(R$1&"|"&$B26,'Data Annex'!$K$1:$K$4779,0),MATCH(R$2,'Data Annex'!$K$1:$BU$1,0)),"") -> 26.45555972 | S26: =IFERROR(INDEX('Data Annex'!$K$1:$BU$4779,MATCH(S$1&"|"&$B26,'Data Annex'!$K$1:$K$4779,0),MATCH(S$2,'Data Annex'!$K$1:$BU$1,0)),"") -> 26.68733618 | T26: =IFERROR(INDEX('Data Annex'!$K$1:$BU$4779,MATCH(T$1&"|"&$B26,'Data Annex'!$K$1:$K$4779,0),MATCH(T$2,'Data Annex'!$K$1:$BU$1,0)),"") -> 18.83873266 | U26: =IFERROR(INDEX('Data Annex'!$K$1:$BU$4779,MATCH(U$1&"|"&$B26,'Data Annex'!$K$1:$K$4779,0),MATCH(U$2,'Data Annex'!$K$1:$BU$1,0)),"") -> 18.49709409 | V26: =IFERROR(INDEX('Data Annex'!$K$1:$BU$4779,MATCH(V$1&"|"&$B26,'Data Annex'!$K$1:$K$4779,0),MATCH(V$2,'Data Annex'!$K$1:$BU$1,0)),"") -> 18.47632816
A27: 17 | B27: IS | D27: IS | E27: =IFERROR(INDEX('Data Annex'!$K$1:$BU$4779,MATCH(E$1&"|"&$B27,'Data Annex'!$K$1:$K$4779,0),MATCH(E$2,'Data Annex'!$K$1:$BU$1,0)),"") -> 27.46229587 | F27: =IFERROR(INDEX('Data Annex'!$K$1:$BU$4779,MATCH(F$1&"|"&$B27,'Data Annex'!$K$1:$K$4779,0),MATCH(F$2,'Data Annex'!$K$1:$BU$1,0)),"") -> 28.16351044 | G27: =IFERROR(INDEX('Data Annex'!$K$1:$BU$4779,MATCH(G$1&"|"&$B27,'Data Annex'!$K$1:$K$4779,0),MATCH(G$2,'Data Annex'!$K$1:$BU$1,0)),"") -> 29.63182067 | H27: =IFERROR(INDEX('Data Annex'!$K$1:$BU$4779,MATCH(H$1&"|"&$B27,'Data Annex'!$K$1:$K$4779,0),MATCH(H$2,'Data Annex'!$K$1:$BU$1,0)),"") -> 12.80864376 | I27: =IFERROR(INDEX('Data Annex'!$K$1:$BU$4779,MATCH(I$1&"|"&$B27,'Data Annex'!$K$1:$K$4779,0),MATCH(I$2,'Data Annex'!$K$1:$BU$1,0)),"") -> 12.87341264 | J27: =IFERROR(INDEX('Data Annex'!$K$1:$BU$4779,MATCH(J$1&"|"&$B27,'Data Annex'!$K$1:$K$4779,0),MATCH(J$2,'Data Annex'!$K$1:$BU$1,0)),"") -> 13.29939793 | K27: =IFERROR(INDEX('Data Annex'!$K$1:$BU$4779,MATCH(K$1&"|"&$B27,'Data Annex'!$K$1:$K$4779,0),MATCH(K$2,'Data Annex'!$K$1:$BU$1,0)),"") -> 11.39149549 | L27: =IFERROR(INDEX('Data Annex'!$K$1:$BU$4779,MATCH(L$1&"|"&$B27,'Data Annex'!$K$1:$K$4779,0),MATCH(L$2,'Data Annex'!$K$1:$BU$1,0)),"") -> 11.46585674 | M27: =IFERROR(INDEX('Data Annex'!$K$1:$BU$4779,MATCH(M$1&"|"&$B27,'Data Annex'!$K$1:$K$4779,0),MATCH(M$2,'Data Annex'!$K$1:$BU$1,0)),"") -> 11.85839912 | N27: =IFERROR(INDEX('Data Annex'!$K$1:$BU$4779,MATCH(N$1&"|"&$B27,'Data Annex'!$K$1:$K$4779,0),MATCH(N$2,'Data Annex'!$K$1:$BU$1,0)),"") -> 11.1731762 | O27: =IFERROR(INDEX('Data Annex'!$K$1:$BU$4779,MATCH(O$1&"|"&$B27,'Data Annex'!$K$1:$K$4779,0),MATCH(O$2,'Data Annex'!$K$1:$BU$1,0)),"") -> 11.57536791 | P27: =IFERROR(INDEX('Data Annex'!$K$1:$BU$4779,MATCH(P$1&"|"&$B27,'Data Annex'!$K$1:$K$4779,0),MATCH(P$2,'Data Annex'!$K$1:$BU$1,0)),"") -> 12.26198894 | Q27: =IFERROR(INDEX('Data Annex'!$K$1:$BU$4779,MATCH(Q$1&"|"&$B27,'Data Annex'!$K$1:$K$4779,0),MATCH(Q$2,'Data Annex'!$K$1:$BU$1,0)),"") -> 6.05716044 | R27: =IFERROR(INDEX('Data Annex'!$K$1:$BU$4779,MATCH(R$1&"|"&$B27,'Data Annex'!$K$1:$K$4779,0),MATCH(R$2,'Data Annex'!$K$1:$BU$1,0)),"") -> 4.98438546 | S27: =IFERROR(INDEX('Data Annex'!$K$1:$BU$4779,MATCH(S$1&"|"&$B27,'Data Annex'!$K$1:$K$4779,0),MATCH(S$2,'Data Annex'!$K$1:$BU$1,0)),"") -> 5.405051356 | T27: =IFERROR(INDEX('Data Annex'!$K$1:$BU$4779,MATCH(T$1&"|"&$B27,'Data Annex'!$K$1:$K$4779,0),MATCH(T$2,'Data Annex'!$K$1:$BU$1,0)),"") -> 4.863600141 | U27: =IFERROR(INDEX('Data Annex'!$K$1:$BU$4779,MATCH(U$1&"|"&$B27,'Data Annex'!$K$1:$K$4779,0),MATCH(U$2,'Data Annex'!$K$1:$BU$1,0)),"") -> 4.849437145 | V27: =IFERROR(INDEX('Data Annex'!$K$1:$BU$4779,MATCH(V$1&"|"&$B27,'Data Annex'!$K$1:$K$4779,0),MATCH(V$2,'Data Annex'!$K$1:$BU$1,0)),"") -> 5.291706229
A28: 18 | B28: IT | D28: IT | E28: =IFERROR(INDEX('Data Annex'!$K$1:$BU$4779,MATCH(E$1&"|"&$B28,'Data Annex'!$K$1:$K$4779,0),MATCH(E$2,'Data Annex'!$K$1:$BU$1,0)),"") -> 2012.904803 | F28: =IFERROR(INDEX('Data Annex'!$K$1:$BU$4779,MATCH(F$1&"|"&$B28,'Data Annex'!$K$1:$K$4779,0),MATCH(F$2,'Data Annex'!$K$1:$BU$1,0)),"") -> 1872.54324 | G28: =IFERROR(INDEX('Data Annex'!$K$1:$BU$4779,MATCH(G$1&"|"&$B28,'Data Annex'!$K$1:$K$4779,0),MATCH(G$2,'Data Annex'!$K$1:$BU$1,0)),"") -> 1890.091509 | H28: =IFERROR(INDEX('Data Annex'!$K$1:$BU$4779,MATCH(H$1&"|"&$B28,'Data Annex'!$K$1:$K$4779,0),MATCH(H$2,'Data Annex'!$K$1:$BU$1,0)),"") -> 565.1875425 | I28: =IFERROR(INDEX('Data Annex'!$K$1:$BU$4779,MATCH(I$1&"|"&$B28,'Data Annex'!$K$1:$K$4779,0),MATCH(I$2,'Data Annex'!$K$1:$BU$1,0)),"") -> 581.2151777 | J28: =IFERROR(INDEX('Data Annex'!$K$1:$BU$4779,MATCH(J$1&"|"&$B28,'Data Annex'!$K$1:$K$4779,0),MATCH(J$2,'Data Annex'!$K$1:$BU$1,0)),"") -> 578.3407282 | K28: =IFERROR(INDEX('Data Annex'!$K$1:$BU$4779,MATCH(K$1&"|"&$B28,'Data Annex'!$K$1:$K$4779,0),MATCH(K$2,'Data Annex'!$K$1:$BU$1,0)),"") -> 401.8973167 | L28: =IFERROR(INDEX('Data Annex'!$K$1:$BU$4779,MATCH(L$1&"|"&$B28,'Data Annex'!$K$1:$K$4779,0),MATCH(L$2,'Data Annex'!$K$1:$BU$1,0)),"") -> 414.843142 | M28: =IFERROR(INDEX('Data Annex'!$K$1:$BU$4779,MATCH(M$1&"|"&$B28,'Data Annex'!$K$1:$K$4779,0),MATCH(M$2,'Data Annex'!$K$1:$BU$1,0)),"") -> 414.6877034 | N28: =IFERROR(INDEX('Data Annex'!$K$1:$BU$4779,MATCH(N$1&"|"&$B28,'Data Annex'!$K$1:$K$4779,0),MATCH(N$2,'Data Annex'!$K$1:$BU$1,0)),"") -> 726.3589092 | O28: =IFERROR(INDEX('Data Annex'!$K$1:$BU$4779,MATCH(O$1&"|"&$B28,'Data Annex'!$K$1:$K$4779,0),MATCH(O$2,'Data Annex'!$K$1:$BU$1,0)),"") -> 713.4876329 | P28: =IFERROR(INDEX('Data Annex'!$K$1:$BU$4779,MATCH(P$1&"|"&$B28,'Data Annex'!$K$1:$K$4779,0),MATCH(P$2,'Data Annex'!$K$1:$BU$1,0)),"") -> 705.7478066 | Q28: =IFERROR(INDEX('Data Annex'!$K$1:$BU$4779,MATCH(Q$1&"|"&$B28,'Data Annex'!$K$1:$K$4779,0),MATCH(Q$2,'Data Annex'!$K$1:$BU$1,0)),"") -> 332.0560597 | R28: =IFERROR(INDEX('Data Annex'!$K$1:$BU$4779,MATCH(R$1&"|"&$B28,'Data Annex'!$K$1:$K$4779,0),MATCH(R$2,'Data Annex'!$K$1:$BU$1,0)),"") -> 322.5959074 | S28: =IFERROR(INDEX('Data Annex'!$K$1:$BU$4779,MATCH(S$1&"|"&$B28,'Data Annex'!$K$1:$K$4779,0),MATCH(S$2,'Data Annex'!$K$1:$BU$1,0)),"") -> 317.570253 | T28: =IFERROR(INDEX('Data Annex'!$K$1:$BU$4779,MATCH(T$1&"|"&$B28,'Data Annex'!$K$1:$K$4779,0),MATCH(T$2,'Data Annex'!$K$1:$BU$1,0)),"") -> 142.5883748 | U28: =IFERROR(INDEX('Data Annex'!$K$1:$BU$4779,MATCH(U$1&"|"&$B28,'Data Annex'!$K$1:$K$4779,0),MATCH(U$2,'Data Annex'!$K$1:$BU$1,0)),"") -> 138.9399776 | V28: =IFERROR(INDEX('Data Annex'!$K$1:$BU$4779,MATCH(V$1&"|"&$B28,'Data Annex'!$K$1:$K$4779,0),MATCH(V$2,'Data Annex'!$K$1:$BU$1,0)),"") -> 139.1401824
B29: LI | D29: LI* | E29: =IFERROR(INDEX('Data Annex'!$K$1:$BU$4779,MATCH(E$1&"|"&$B29,'Data Annex'!$K$1:$K$4779,0),MATCH(E$2,'Data Annex'!$K$1:$BU$1,0)),"") -> n.a. | F29: =IFERROR(INDEX('Data Annex'!$K$1:$BU$4779,MATCH(F$1&"|"&$B29,'Data Annex'!$K$1:$K$4779,0),MATCH(F$2,'Data Annex'!$K$1:$BU$1,0)),"") -> 70.14054564 | G29: =IFERROR(INDEX('Data Annex'!$K$1:$BU$4779,MATCH(G$1&"|"&$B29,'Data Annex'!$K$1:$K$4779,0),MATCH(G$2,'Data Annex'!$K$1:$BU$1,0)),"") -> 70.10884031 | H29: =IFERROR(INDEX('Data Annex'!$K$1:$BU$4779,MATCH(H$1&"|"&$B29,'Data Annex'!$K$1:$K$4779,0),MATCH(H$2,'Data Annex'!$K$1:$BU$1,0)),"") -> n.a. | I29: =IFERROR(INDEX('Data Annex'!$K$1:$BU$4779,MATCH(I$1&"|"&$B29,'Data Annex'!$K$1:$K$4779,0),MATCH(I$2,'Data Annex'!$K$1:$BU$1,0)),"") -> 21.50018896 | J29: =IFERROR(INDEX('Data Annex'!$K$1:$BU$4779,MATCH(J$1&"|"&$B29,'Data Annex'!$K$1:$K$4779,0),MATCH(J$2,'Data Annex'!$K$1:$BU$1,0)),"") -> 21.17741795 | K29: =IFERROR(INDEX('Data Annex'!$K$1:$BU$4779,MATCH(K$1&"|"&$B29,'Data Annex'!$K$1:$K$4779,0),MATCH(K$2,'Data Annex'!$K$1:$BU$1,0)),"") -> n.a. | L29: =IFERROR(INDEX('Data Annex'!$K$1:$BU$4779,MATCH(L$1&"|"&$B29,'Data Annex'!$K$1:$K$4779,0),MATCH(L$2,'Data Annex'!$K$1:$BU$1,0)),"") -> 12.39298778 | M29: =IFERROR(INDEX('Data Annex'!$K$1:$BU$4779,MATCH(M$1&"|"&$B29,'Data Annex'!$K$1:$K$4779,0),MATCH(M$2,'Data Annex'!$K$1:$BU$1,0)),"") -> 12.30355934 | N29: =IFERROR(INDEX('Data Annex'!$K$1:$BU$4779,MATCH(N$1&"|"&$B29,'Data Annex'!$K$1:$K$4779,0),MATCH(N$2,'Data Annex'!$K$1:$BU$1,0)),"") -> n.a. | O29: =IFERROR(INDEX('Data Annex'!$K$1:$BU$4779,MATCH(O$1&"|"&$B29,'Data Annex'!$K$1:$K$4779,0),MATCH(O$2,'Data Annex'!$K$1:$BU$1,0)),"") -> 8.059045283 | P29: =IFERROR(INDEX('Data Annex'!$K$1:$BU$4779,MATCH(P$1&"|"&$B29,'Data Annex'!$K$1:$K$4779,0),MATCH(P$2,'Data Annex'!$K$1:$BU$1,0)),"") -> 8.059370668 | Q29: =IFERROR(INDEX('Data Annex'!$K$1:$BU$4779,MATCH(Q$1&"|"&$B29,'Data Annex'!$K$1:$K$4779,0),MATCH(Q$2,'Data Annex'!$K$1:$BU$1,0)),"") -> n.a. | R29: =IFERROR(INDEX('Data Annex'!$K$1:$BU$4779,MATCH(R$1&"|"&$B29,'Data Annex'!$K$1:$K$4779,0),MATCH(R$2,'Data Annex'!$K$1:$BU$1,0)),"") -> 4.910358485 | S29: =IFERROR(INDEX('Data Annex'!$K$1:$BU$4779,MATCH(S$1&"|"&$B29,'Data Annex'!$K$1:$K$4779,0),MATCH(S$2,'Data Annex'!$K$1:$BU$1,0)),"") -> 4.943184017 | T29: =IFERROR(INDEX('Data Annex'!$K$1:$BU$4779,MATCH(T$1&"|"&$B29,'Data Annex'!$K$1:$K$4779,0),MATCH(T$2,'Data Annex'!$K$1:$BU$1,0)),"") -> n.a. | U29: =IFERROR(INDEX('Data Annex'!$K$1:$BU$4779,MATCH(U$1&"|"&$B29,'Data Annex'!$K$1:$K$4779,0),MATCH(U$2,'Data Annex'!$K$1:$BU$1,0)),"") -> 2.573496706 | V29: =IFERROR(INDEX('Data Annex'!$K$1:$BU$4779,MATCH(V$1&"|"&$B29,'Data Annex'!$K$1:$K$4779,0),MATCH(V$2,'Data Annex'!$K$1:$BU$1,0)),"") -> 2.590385814
A30: 19 | B30: LT | D30: LT | E30: =IFERROR(INDEX('Data Annex'!$K$1:$BU$4779,MATCH(E$1&"|"&$B30,'Data Annex'!$K$1:$K$4779,0),MATCH(E$2,'Data Annex'!$K$1:$BU$1,0)),"") -> 17.93022 | F30: =IFERROR(INDEX('Data Annex'!$K$1:$BU$4779,MATCH(F$1&"|"&$B30,'Data Annex'!$K$1:$K$4779,0),MATCH(F$2,'Data Annex'!$K$1:$BU$1,0)),"") -> 26.586275 | G30: =IFERROR(INDEX('Data Annex'!$K$1:$BU$4779,MATCH(G$1&"|"&$B30,'Data Annex'!$K$1:$K$4779,0),MATCH(G$2,'Data Annex'!$K$1:$BU$1,0)),"") -> 26.750927 | H30: =IFERROR(INDEX('Data Annex'!$K$1:$BU$4779,MATCH(H$1&"|"&$B30,'Data Annex'!$K$1:$K$4779,0),MATCH(H$2,'Data Annex'!$K$1:$BU$1,0)),"") -> 5.967847 | I30: =IFERROR(INDEX('Data Annex'!$K$1:$BU$4779,MATCH(I$1&"|"&$B30,'Data Annex'!$K$1:$K$4779,0),MATCH(I$2,'Data Annex'!$K$1:$BU$1,0)),"") -> 6.42375 | J30: =IFERROR(INDEX('Data Annex'!$K$1:$BU$4779,MATCH(J$1&"|"&$B30,'Data Annex'!$K$1:$K$4779,0),MATCH(J$2,'Data Annex'!$K$1:$BU$1,0)),"") -> 6.620346 | K30: =IFERROR(INDEX('Data Annex'!$K$1:$BU$4779,MATCH(K$1&"|"&$B30,'Data Annex'!$K$1:$K$4779,0),MATCH(K$2,'Data Annex'!$K$1:$BU$1,0)),"") -> 4.782826 | L30: =IFERROR(INDEX('Data Annex'!$K$1:$BU$4779,MATCH(L$1&"|"&$B30,'Data Annex'!$K$1:$K$4779,0),MATCH(L$2,'Data Annex'!$K$1:$BU$1,0)),"") -> 4.995779 | M30: =IFERROR(INDEX('Data Annex'!$K$1:$BU$4779,MATCH(M$1&"|"&$B30,'Data Annex'!$K$1:$K$4779,0),MATCH(M$2,'Data Annex'!$K$1:$BU$1,0)),"") -> 5.068312 | N30: =IFERROR(INDEX('Data Annex'!$K$1:$BU$4779,MATCH(N$1&"|"&$B30,'Data Annex'!$K$1:$K$4779,0),MATCH(N$2,'Data Annex'!$K$1:$BU$1,0)),"") -> 3.588866 | O30: =IFERROR(INDEX('Data Annex'!$K$1:$BU$4779,MATCH(O$1&"|"&$B30,'Data Annex'!$K$1:$K$4779,0),MATCH(O$2,'Data Annex'!$K$1:$BU$1,0)),"") -> 4.168224 | P30: =IFERROR(INDEX('Data Annex'!$K$1:$BU$4779,MATCH(P$1&"|"&$B30,'Data Annex'!$K$1:$K$4779,0),MATCH(P$2,'Data Annex'!$K$1:$BU$1,0)),"") -> 4.187829 | Q30: =IFERROR(INDEX('Data Annex'!$K$1:$BU$4779,MATCH(Q$1&"|"&$B30,'Data Annex'!$K$1:$K$4779,0),MATCH(Q$2,'Data Annex'!$K$1:$BU$1,0)),"") -> 2.692739 | R30: =IFERROR(INDEX('Data Annex'!$K$1:$BU$4779,MATCH(R$1&"|"&$B30,'Data Annex'!$K$1:$K$4779,0),MATCH(R$2,'Data Annex'!$K$1:$BU$1,0)),"") -> 2.943923 | S30: =IFERROR(INDEX('Data Annex'!$K$1:$BU$4779,MATCH(S$1&"|"&$B30,'Data Annex'!$K$1:$K$4779,0),MATCH(S$2,'Data Annex'!$K$1:$BU$1,0)),"") -> 3.059512 | T30: =IFERROR(INDEX('Data Annex'!$K$1:$BU$4779,MATCH(T$1&"|"&$B30,'Data Annex'!$K$1:$K$4779,0),MATCH(T$2,'Data Annex'!$K$1:$BU$1,0)),"") -> 2.219587 | U30: =IFERROR(INDEX('Data Annex'!$K$1:$BU$4779,MATCH(U$1&"|"&$B30,'Data Annex'!$K$1:$K$4779,0),MATCH(U$2,'Data Annex'!$K$1:$BU$1,0)),"") -> 2.542504 | V30: =IFERROR(INDEX('Data Annex'!$K$1:$BU$4779,MATCH(V$1&"|"&$B30,'Data Annex'!$K$1:$K$4779,0),MATCH(V$2,'Data Annex'!$K$1:$BU$1,0)),"") -> 2.544824
